Workbook

Sheet About
B1: ABOUT FILE | U1: Due Pay Calculation | Z1: Drawn Pay Calculation | AC1: Mannual
A2: Developed By Vijay Ranwa, Teacher, Govt. Sen. Sec. School, Dhaneru, Bikaner | E2: Ded& Allow | H2: DA Updation | L2: Pay Calculation | O2: =P2 -> 2007-01-01 | P2: 39083 | R2: =M7 -> 2021-02-05 | T2: Sancd Dt | U2: =Z4 -> 2021-02-01 | V2: =M17 -> 1020 | W2: =M13 -> 10 | X2: =SUM(V2:W2) -> 1030 | Z2: Date | AA2: Mannual Amt
E3: =Entry!B14 -> DA | F3: =Entry!C14 -> Y | H3: =Entry!K6 -> 2017-01-01 | I3: =Entry!L6 -> 4 | J3: =Entry!M6 -> 0 | K3: 65 | Q3: =IF(S3="",0,1) -> 0 | R3: 2015-07-01 | S3: =IF(R3>M$5,"",IF(R$2<R3,R3,"")) ->  | T3: 1 | U3: =IF(ISNA(VLOOKUP(T3,Q$2:S$10,3,FALSE)),"",VLOOKUP(T3,Q$2:S$10,3,FALSE)) -> 2021-07-01 | V3: =IF(U3="","",ROUNDUP((ROUND((M17+M13)*(3%),0)),-1)+M17) -> 1060 | W3: =IF(OR(V3="",V3=0),0,M$13) -> 10 | X3: =SUM(V3:W3) -> 1070 | AE3: =AA3 -> 0
E4: =Entry!B15 -> HRA | F4: =Entry!C15 -> 8 | G4: =IF(F4=8,0.08,IF(F4=16,1.6,0)) -> 0.08 | H4: =Entry!K7 -> 2017-07-01 | I4: =Entry!L7 -> 5 | J4: =Entry!M7 -> 0 | L4: Arrear From | M4: =Entry!D$12 -> 2021-02-05 | Q4: =IF(S4="",0,(Q3+1)) -> 0 | R4: 2016-07-01 | S4: =IF(R4>M$5,"",IF(R$2<R4,R4,"")) ->  | T4: 2 | U4: =IF(ISNA(VLOOKUP(T4,Q$2:S$10,3,FALSE)),"",VLOOKUP(T4,Q$2:S$10,3,FALSE)) ->  | V4: =IF(U4="","",ROUNDUP((ROUND((V3+W3)*(3%),0)),-1)+V3) ->  | W4: =IF(OR(V4="",V4=0),0,M$13) -> 0 | X4: =SUM(V4:W4) -> 0 | Y4: 1 | Z4: =IF(AC2="",IF(P2>R2,P2,((R2-((DAY(R2)-(1)))))),AC2) -> 2021-02-01 | AA4: =IF(P2>R2,P2,R2) -> 2021-02-05 | AE4: =IF(AD2="",P19,AD2) -> 33800
A5: MS Excel esa ;g ,d esØks ;qDr Qkby gS ftlds }kjk ekg fnlEcj 2020 rd dk izkscs'ku iw.kZ gksus ds ckn LFkkbZdj.k ,fj;j cuk;k tk ldrk gS A blds mi;ksx ls iwoZ fnukad QkesZV "dd/mm/yyyy" djuk vko';d gS rkfd lgh x.kuk gks lds A blds ckn ,Mªsl ckj ds Åij vkI'ku dks fDyd dj esØks ,uscy fd;k tkuk gS A lacaf/kr dkye esa okafNr lwpuk Hkjsa A | E5: =Entry!B16 -> CCA | F5: =Entry!C16 -> N | G5: =IF(F4=8,9,IF(F4=16,18,0)) -> 9 | H5: =Entry!K8 -> 2018-01-01 | I5: =Entry!L8 -> 7 | J5: =Entry!M8 -> 0 | L5: upto | M5: =Entry!G12 -> 2021-08-31 | Q5: 0 | R5: 2017-07-01 | T5: 3 | U5: =IF(ISNA(VLOOKUP(T5,Q$2:S$10,3,FALSE)),"",VLOOKUP(T5,Q$2:S$10,3,FALSE)) ->  | V5: =IF(U5="","",ROUNDUP((ROUND((V4+W4)*(3%),0)),-1)+V4) ->  | W5: 0 | X5: 0 | Y5: 2 | Z5: =IF(AC$3="",(IF(V3="","",U3)),AC3) -> 2021-07-01 | AA5: =DAY(AA4) -> 5 | AE5: =IF(Z5="",0,IF(Z5<>1,(ROUND(ROUND(AE4*3%,0),-2)+AE4),AD3)) -> 34800
E6: =Entry!B17 -> 0 | F6: =Entry!C17 -> 0 | G6: =IF(F4=8,8,IF(F4=16,16,0)) -> 8 | H6: =Entry!K9 -> 2018-07-01 | I6: =Entry!L9 -> 9 | J6: =Entry!M9 -> 0 | Q6: 0 | R6: 2018-07-01 | T6: 4 | U6: =IF(ISNA(VLOOKUP(T6,Q$2:S$10,3,FALSE)),"",VLOOKUP(T6,Q$2:S$10,3,FALSE)) ->  | W6: 0 | X6: 0 | Y6: 3 | Z6: =IF(AC$3="",(IF(V4="","",U4)),AC4) ->  | AA6: =MONTH(AA4) -> 2 | AB6: =(LOOKUP(AA6,{1,2,3,4,5,6,7,8,9,10,11,12},{31,28,31,30,31,30,31,31,30,31,30,31}))+(IF(AA6=2,AB7,0)) -> 28 | AE6: =IF(Z6="",0,IF(Z6<>1,(ROUNDUP(ROUND(AE5*3%,0),-1)+AE5),AD4)) -> 0
E7: =Entry!B18 -> 0 | H7: =Entry!K10 -> 2019-01-01 | I7: =Entry!L10 -> 12 | J7: =Entry!M10 -> 0 | L7: Sancd Date | M7: =Entry!D$9 -> 2021-02-05 | Q7: 0 | R7: 2019-07-01 | T7: 5 | U7: =IF(ISNA(VLOOKUP(T7,Q$2:S$10,3,FALSE)),"",VLOOKUP(T7,Q$2:S$10,3,FALSE)) ->  | W7: 0 | X7: =SUM(V7:W7) -> 0 | Y7: 4 | AA7: =YEAR(AA4) -> 2021 | AB7: =IF(AA7=2008,1,IF(AA7=2012,1,0)) -> 0 | AE7: 0
E8: =Entry!B19 -> 0 | H8: =Entry!K13 -> 2022-01-01 | I8: =Entry!L13 -> 0 | J8: =Entry!M11 -> 0 | L8: DrawnPayOn | Q8: 0 | R8: 2020-07-01 | T8: 6 | W8: 0 | X8: 0 | Y8: 5 | AE8: 0
H9: =Entry!K14 -> 2022-07-01 | I9: =Entry!L14 -> 0 | J9: =Entry!M13 -> 0 | K9: =IF(I9=0,0,I3) -> 0 | L9: Sancd Date | M9: =IF(Entry!H10="",Q34,Entry!H10) -> 33800 | Q9: 1 | R9: 2021-07-01 | S9: 2021-07-01 | T9: 7 | W9: 0 | X9: 0 | Y9: 6 | AB9: =AB6-(AA5-1) -> 24 | AE9: 0
H10: =Entry!K15 -> 2023-01-01 | I10: =Entry!L15 -> 0 | J10: =Entry!M14 -> 0 | L10: Grade Pay | M10: =Entry!F$10 -> 0 | Q10: 0 | R10: 2022-07-01 | T10: 8 | W10: 0 | X10: 0 | Y10: 7 | AE10: 0
H11: =Entry!K16 -> 2023-07-01 | I11: =Entry!L16 -> 0 | J11: =Entry!M15 -> 0 | L11: Total | M11: =SUM(M9:M10) -> 33800 | S11: =IF(R$2<R11,R11,"") ->  | T11: 9 | W11: 0 | X11: 0 | Y11: 8 | AE11: 0
H12: =Entry!K17 -> 00:00:00 | I12: =Entry!L17 -> 0 | J12: =Entry!M16 -> 0 | O12: Pay Detail For Order | Y12: 9 | AE12: 0
H13: =Entry!K18 -> 00:00:00 | I13: =Entry!L18 -> 0 | J13: =Entry!M17 -> 0 | L13: New GradePay | M13: =Entry!H9 -> 10 | O13: ,lhih Lohd`fr frfFk ,oa Lohd`r xzsM is | P13: Lohd`fr frfFk dks | S13: vkxkeh osru o`f) dh fnukad | T13: osru o`f) ckn osru
H14: =Entry!K19 -> 00:00:00 | I14: =Entry!L19 -> 0 | J14: =Entry!M18 -> 0 | L14: Ser Year | M14: =Entry!J9 -> 0 | N14: =IF(OR(M14=9,M14<17),"izFke",IF(OR(M14=18,M14<27),"f}rh;",IF(M14>=27,"r`rh;"))) -> izFke | P14: osru | Q14: o`f) dh tkus okyh jk'kh | R14: fu/kkZfjr osru | T14: osru | U14: xzsM is | V14: ;ksx
A15: le; le; ij c<+us okys egxkbZ HkRrs gsrq LFkku izLrkfor fd;k x;k gS blesa jsV ds dkye esa fcuk izfr'kr dk fu'kku yxk;s lEcf/kr ekg ds le{k ?kksf"kr nj fy[ksa A | H15: =Entry!K20 -> 00:00:00 | I15: =Entry!L20 -> 0 | K15: =IF(I15=0,0,I9) -> 0 | L15: Inc Pay | M15: =ROUNDUP((ROUND(M11*3%,0)),-1) -> 1020 | P15: xzsM is | R15: xzsM is
L16: GP Diff | M16: =M13-M10 -> 10 | P16: jfuax is cS.M | R16: jfuax is cS.M
L17: RevisedPay | M17: =M8+M15 -> 1020 | O17: =M7 -> 2021-02-05 | P17: =M9 -> 33800 | Q17: =ROUNDUP((ROUND((P17+P18)*(3%),0)),-1) -> 1020 | R17: =P17+Q17 -> 34820 | S17: =IF(U3="","",U3) -> 2021-07-01 | T17: =IF(S17="","",V3) -> 1060 | U17: =IF(S17="","",W2) -> 10 | V17: =IF(S17="","",(T17+U17)) -> 1070
O18: =M13 -> 10 | P18: =M10 -> 0 | Q18: =O18-P18 -> 10 | R18: =O18 -> 10 | T18: =IF(S18="","",V4) ->  | U18: =IF(S18="","",W3) ->  | V18: =IF(S18="","",(T18+U18)) -> 
A19: ;g Qkby dkfeZdks dh lqfo/kk ,oe lg;ksx ds n`f"Vxr rS;kj dh xbZ gS blesa x.kuk dks iqu% O;fDr'k% tkap dj gh dke esa ys fdlh izdkj dh =qfV gsrq Qkby rS;kjdrkZ mRrjnk;h ugha gksxkA | O19: =N14 -> izFke | P19: =SUM(P17:P18) -> 33800 | R19: =SUM(R17:R18) -> 34830 | U19: =IF(S19="","",W4) -> 
P20: =IF(P18=0,"",IF(P18<=1650,"4750-7440",IF(P18<=2800,"5200-20200",IF(P18<=5400,"9300-34800",IF(P18<=8200,IF(P17>=7440,"5200-20200","15600-39100")))))) ->  | R20: =IF(R18=0,"",IF(R18<=1650,"4750-7440",IF(R18<=2800,"5200-20200",IF(R18<=5400,"9300-34800",IF(R18<=8200,"15600-39100"))))) -> 4750-7440
K21: =IF(I21=0,0,I15) -> 0
A23: blds mi;ksx esa fdlh izdkj dh dfBukbZ gks vFkok vkids dksbZ lq>ko gks rks lnSo vkeaf=r gS
O27: Pay Detail For Arrear Calculation | AA27: Pay Detail For Arrear Calculation
K28: =IF(I28=0,0,I21) -> 0 | Q28: Due Pay | AC28: Drawn Pay
M29: =Q29 -> 44232 | O29: =VALUE(P29) -> 44228 | P29: =CONCATENATE("01"&"/"&MONTH(Q29)&"/"&YEAR(Q29)) -> 01/2/2021 | Q29: =IF(Entry!D$12<=M7,M7,M4) -> 2021-02-05 | Y29: =AC29 -> 44232 | AA29: =VALUE(AB29) -> 44228 | AB29: =CONCATENATE("01"&"/"&MONTH(AC29)&"/"&YEAR(AC29)) -> 01/2/2021 | AC29: =Entry!D$12 -> 2021-02-05
N30: =M29-O29 -> 4 | O30: =N31-N30 -> 24 | S30: =IF(T30<N34,O33,IF(T30<N35,O34,IF(T30<N36,O35,IF(T30<N37,O36,IF(T30<N38,O37,IF(T30<N39,O38,IF(T30<N40,O39,IF(T30<N41,O40,IF(T30>N41,O41,""))))))))) -> 1 | T30: =Q29-N30 -> 2021-02-01 | U30: =ROUND(Q34*O30/N31,0) -> 28971 | Z30: =Y29-AA29 -> 4 | AA30: =Z31-Z30 -> 24 | AE30: =IF(AF30<Z34,AA33,IF(AF30<Z35,AA34,IF(AF30<Z36,AA35,IF(AF30<Z37,AA36,IF(AF30<Z38,AA37,IF(AF30<Z39,AA38,IF(AF30<Z40,AA39,IF(AF30<Z41,AA40,IF(AF30>Z41,AA41,""))))))))) -> 1 | AF30: =AC29-Z30 -> 2021-02-01 | AG30: =AA31 -> 28971
L31: Month | M31: =MONTH(Q29) -> 2 | N31: =(LOOKUP(M31,{1,2,3,4,5,6,7,8,9,10,11,12},{31,28,31,30,31,30,31,31,30,31,30,31}))+(IF(M31=2,N32,0)) -> 28 | O31: =IF(Entry!D$9=Entry!D$12,(ROUND((R19/N31*O30),0)),(ROUND((Q31/N31*O30),0))) -> 29854 | Q31: =IF(N30>=0,(VLOOKUP(S30,O33:P41,2,FALSE)),0) -> 34830 | S31: =IF((S30+1)>(MAX(M$33:M$41)),"",(S30+1)) -> 2 | T31: =IF(ISNA(VLOOKUP(S31,M$33:N$41,2,FALSE)),"",VLOOKUP(S31,M$33:N$41,2,FALSE)) -> 2021-07-01 | U31: =AG31 -> 34800 | X31: Month | Y31: =MONTH(AC29) -> 2 | Z31: =(LOOKUP(Y31,{1,2,3,4,5,6,7,8,9,10,11,12},{31,28,31,30,31,30,31,31,30,31,30,31}))+(IF(Y31=2,Z32,0)) -> 28 | AA31: =IF(Entry!D$9=Entry!D$12,(ROUND((P19/Z31*AA30),0)),(ROUND((AC31/Z31*AA30),0))) -> 28971 | AC31: =IF(Z30>=0,(VLOOKUP(AE30,AA33:AB41,2,FALSE)),0) -> 33800 | AE31: =IF((AE30+1)>(MAX(Y$33:Y$41)),"",(AE30+1)) -> 2 | AF31: =IF(ISNA(VLOOKUP(AE31,Y$33:Z$41,2,FALSE)),"",VLOOKUP(AE31,Y$33:Z$41,2,FALSE)) -> 2021-07-01 | AG31: =IF(ISNA(VLOOKUP(AE31,AA$33:AB$41,2,FALSE)),"",VLOOKUP(AE31,AA$33:AB$41,2,FALSE)) -> 34800
S32: =IF(S31="","",IF((S31+1)>(MAX(M$33:M$41)),"",(S31+1))) ->  | T32: =IF(ISNA(VLOOKUP(S32,M$33:N$41,2,FALSE)),"",VLOOKUP(S32,M$33:N$41,2,FALSE)) ->  | U32: =AG32 ->  | AE32: =IF(AE31="","",IF((AE31+1)>(MAX(Y$33:Y$41)),"",(AE31+1))) -> 
M33: 1 | N33: =U2 -> 2021-02-01 | O33: 1 | P33: =R19 -> 34830 | Q33: =Entry!H9 -> 10 | S33: =IF(S32="","",IF((S32+1)>(MAX(M$33:M$41)),"",(S32+1))) ->  | T33: =IF(ISNA(VLOOKUP(S33,M$33:N$41,2,FALSE)),"",VLOOKUP(S33,M$33:N$41,2,FALSE)) ->  | U33: =AG33 ->  | Y33: 1 | Z33: =Z4 -> 2021-02-01 | AA33: 1 | AB33: =AE4 -> 33800 | AE33: =IF(AE32="","",IF((AE32+1)>(MAX(Y$33:Y$41)),"",(AE32+1))) -> 
A34: ljdkjh vkns'k] lsok fu;e] gj izdkj ds QkWeZ o Ldwy ls lEcfU/kr ,Iyhds'ku bl lkbV ls MkmuyksM dj ldrs gks & vijayranwa.jimdo.com | C34: fot; j.kok¡ v/;kid jktdh; mPp ek/;fed fo|ky; /kus:] chdkusj vijaysalasar2011@gmail.com 9828113904 | M34: =IF(U3="","",2) -> 2 | N34: =U3 -> 2021-07-01 | O34: 2 | P34: =IF(ISNA(VLOOKUP(N34,U$3:X$10,4,FALSE)),"",(VLOOKUP(N34,U$3:X$10,4,FALSE))) -> 1070 | Q34: =VLOOKUP(Q33,F56:J78,5) -> 33800 | Y34: =IF(Z5="","",2) -> 2 | Z34: =Z5 -> 2021-07-01 | AA34: 2 | AB34: =IF(ISNA(VLOOKUP(Z34,Z$4:AE$12,6,FALSE)),"",(VLOOKUP(Z34,Z$4:AE$12,6,FALSE))) -> 34800
M35: =IF(U4="","",3) ->  | N35: =U4 ->  | O35: 3 | P35: =IF(ISNA(VLOOKUP(N35,U$3:X$10,4,FALSE)),"",(VLOOKUP(N35,U$3:X$10,4,FALSE))) -> 0 | Y35: =IF(Z6="","",3) ->  | AA35: 3 | AB35: =IF(ISNA(VLOOKUP(Z35,Z$4:AE$12,6,FALSE)),"",(VLOOKUP(Z35,Z$4:AE$12,6,FALSE))) -> 0
M36: =IF(U5="","",4) ->  | O36: 4 | P36: 0 | Y36: =IF(Z7="","",4) ->  | AA36: 4 | AB36: 0
M37: =IF(U6="","",5) ->  | O37: 5 | P37: 0 | Y37: =IF(Z8="","",5) ->  | AA37: 5 | AB37: 0
M38: =IF(U7="","",6) ->  | O38: 6 | P38: =IF(ISNA(VLOOKUP(N38,U$3:X$10,4,FALSE)),"",(VLOOKUP(N38,U$3:X$10,4,FALSE))) -> 0 | Y38: =IF(Z9="","",6) ->  | AA38: 6 | AB38: 0
M39: =IF(U8="","",7) ->  | O39: 7 | P39: 0 | U39: =IF(ISNA(VLOOKUP(S39,O$33:P$41,2,FALSE)),"",VLOOKUP(S39,O$33:P$41,2,FALSE)) ->  | Y39: =IF(Z10="","",7) ->  | AA39: 7 | AB39: 0
M40: =IF(U9="","",8) ->  | O40: 8 | P40: 0 | Y40: =IF(Z11="","",8) ->  | AA40: 8 | AB40: 0
M41: =IF(U10="","",9) ->  | O41: 9 | P41: 0 | Y41: =IF(Z12="","",9) ->  | AA41: 9 | AB41: 0
M42: =IF(U11="","",10) ->  | O42: 10 | P42: 0 | Y42: =IF(Z13="","",10) ->  | AA42: 10
M45: M54 | N45: =M121 -> 44743 | T45: =13230/30*21 -> 9261
M46: M7 | N46: =N33 -> 44228
M49: 1 | N49: 2 | O49: 3 | P49: 4 | Q49: 5 | R49: 6 | S49: 7 | T49: 8 | U49: 9 | V49: 10 | W49: 11 | X49: 12 | Y49: 13 | Z49: 14 | AA49: 15 | AB49: 16 | AC49: 17 | AD49: 18 | AE49: 19 | AF49: 20 | AG49: 21 | AH49: 22 | AI49: 23 | AJ49: 24 | AK49: 25 | AL49: 26 | AM49: 27 | AN49: 28 | AO49: 29 | AP49: 30
N50: =Entry!H9 -> 10 | T50: =VLOOKUP(N50,F56:H78,3) -> 23700
M51: 1 | N51: 2 | O51: 3 | P51: 4 | Q51: 5 | R51: 6 | S51: 7 | T51: 8 | U51: 9 | V51: 10 | W51: 11 | X51: 12 | Y51: 13 | Z51: 14 | AA51: 15 | AB51: 16 | AC51: 17 | AD51: 18 | AE51: 19 | AF51: 20 | AG51: 21 | AH51: 22 | AI51: 23 | AJ51: 24 | AK51: 25 | AL51: 26 | AM51: 27 | AN51: 28 | AO51: 29 | AP51: 30 | AQ51: 31 | AR51: 32 | AS51: 33 | AT51: 34 | AU51: 35 | AV51: 36 | AW51: 37 | AX51: 38 | AY51: 39 | AZ51: 40 | BA51: 41 | BB51: 42 | BC51: 43 | BD51: 44 | BE51: 45 | BF51: 46 | BG51: 47 | BH51: 48 | BI51: 49 | BJ51: 50 | BK51: 51 | BL51: 52 | BM51: 53 | BN51: 54 | BO51: 55 | BP51: 56 | BQ51: 57 | BR51: 58 | BS51: 59 | BT51: 60 | BU51: 61 | BV51: 62
M52: CALCULATION
M53: Month | N53: Amount Due | T53: Amount Drawn | Z53: Amount to Be Drawn | AF53: Deducations | AL53: NET | AR53: Due | AS53: DRAWN | AT53: GPF | BE53: CCA | BF53: CCA | BG53: CCA | BH53: CCA
I54: DU | J54: DR | N54: Band Pay | O54: DA | P54: CCA | Q54: HRA | R54: BASIC | S54: Total | T54: Band Pay | U54: DA | V54: CCA | W54: HRA | Y54: Total | Z54: Band Pay | AA54: DA | AB54: CCA | AC54: HRA | AE54: Total | AF54: =IF(F13="Y",E13,"GPF") -> GPF | AG54: RPMF | AH54: SI | AJ54: I TAX | AK54: Total | AL54: PAYMENT | AM54: ECpenf | AO54: NPS | AR54: PAY | AS54: PAY | AT54: DUE | AU54: DRAWN | AV54: DIFF | AW54: DA | AY54: RPMF | BB54: S.Ins | BE54: A | BF54: B | BG54: A | BH54: B | BI54: 3600 | BJ54: 4200 | BL54: 4800 | BM54: 2800 | BN54: 2400
K55: 31 | L55: =IF(N55=0,0,1) -> 0 | M55: 2017-01-01 | N55: =ROUND(IF(M55>=M$5,0,IF(AND(M55>T$30,M55<T$31),Q$34,IF(ISNA(LOOKUP(M55,T$30:T$42,U$30:U$42)),0,LOOKUP(M55,T$30:T$42,U$30:U$42)))),0) -> 0 | O55: =IF(F$3="N",0,(ROUND((N55)*(AP55%),0))) -> 0 | Q55: =ROUND((N55)*(IF(G$4=0,0,G$4)),0) -> 0 | R55: =$G$6 -> 8 | S55: =SUM(N55:Q55) -> 0 | T55: =IF(L55=1,ROUND((T$50*AA$30/Z$31),0),IF(L55=0,0,T$50)) -> 0 | U55: =IF(F$3="N",0,(ROUND((T55)*(AP55%),0))) -> 0 | Y55: =SUM(T55:W55) -> 0 | Z55: =N55-T55 -> 0 | AA55: =O55-U55 -> 0 | AC55: =Q55-W55 -> 0 | AE55: =SUM(Z55:AC55) -> 0 | AK55: =SUM(AF55:AJ55) -> 0 | AL55: =AE55-AK55 -> 0 | AM55: =ROUND((N55+O55)*10%,0) -> 0 | AN55: =ROUND((T55)*10%,0) -> 0 | AO55: =AM55-AN55 -> 0 | AP55: 4 | AQ55: =M55 -> 2017-01-01 | AR55: =IF(N55=0,0,(IF(ISNA(LOOKUP(M55,U$2:U$11,X$2:X$11)),0,LOOKUP(M55,U$2:U$11,X$2:X$11)))) -> 0 | AS55: =(IF(N55=0,0,(LOOKUP(M55,Z$33:Z$42,AB$33:AB$42)))) -> 0 | BE55: Due | BF55: Due | BG55: Drawn | BH55: Drawn | BI55: =IF(L55=1,ROUND((12000*AA$30/Z$31),0),IF(L55=0,0,12000)) -> 0 | BJ55: =IF(L55=1,ROUND((13320*AA$30/Z$31),0),IF(L55=0,0,13320)) -> 0 | BK55: =IF(Entry!H$9=3600,BI55,IF(Entry!H$9=4200,BJ55,IF(Entry!H$9=4800,BL55,IF(Entry!H$9=2800,BM55,BN55)))) -> 0 | BL55: =IF(L55=1,ROUND((15660*AA$30/Z$31),0),IF(L55=0,0,15660)) -> 0 | BM55: =IF(L55=1,ROUND((10740*AA$30/Z$31),0),IF(L55=0,0,10740)) -> 0 | BN55: =IF(L55=1,ROUND((8100*AA$30/Z$31),0),IF(L55=0,0,8100)) -> 0 | BO55: =IF(Q55=1,ROUND((13320*AF$30/AE$31),0),IF(Q55=0,0,13320)) -> 0 | BP55: =IF(R55=1,ROUND((13320*AG$30/AF$31),0),IF(R55=0,0,13320)) -> 13320
E56: L-1 | F56: 1 | G56: L-1 | H56: 12400 | I56: 17700 | J56: =IF(F56=Entry!H$9,MAX(Entry!H$10,About!I56),I56) -> 17700 | K56: 28 | L56: =IF(N56=0,0,(IF(N56=0,0,1)+MAX(L55))) -> 0 | M56: 2017-02-01 | N56: =ROUND(IF(M56>=M$5,0,IF(AND(M56>T$30,M56<T$31),Q$34,IF(ISNA(LOOKUP(M56,T$30:T$42,U$30:U$42)),0,LOOKUP(M56,T$30:T$42,U$30:U$42)))),0) -> 0 | O56: =IF(F$3="N",0,(ROUND((N56)*(AP56%),0))) -> 0 | Q56: 0 | R56: =$G$6 -> 8 | S56: 0 | T56: =IF(L56=1,ROUND((T$50*AA$30/Z$31),0),IF(L56=0,0,T$50)) -> 0 | U56: =IF(F$3="N",0,(ROUND((T56)*(AP56%),0))) -> 0 | Y56: 0 | Z56: =N56-T56 -> 0 | AA56: =O56-U56 -> 0 | AC56: =Q56-W56 -> 0 | AE56: 0 | AK56: 0 | AL56: 0 | AM56: 0 | AN56: =ROUND((T56)*10%,0) -> 0 | AO56: =AM56-AN56 -> 0 | AP56: =AP55 -> 4 | AQ56: 2017-02-01 | AR56: 0 | AS56: =(IF(N56=0,0,(LOOKUP(M56,Z$33:Z$42,AB$33:AB$42)))) -> 0 | BI56: 0 | BJ56: =IF(L56=1,ROUND((13320*AA$30/Z$31),0),IF(L56=0,0,13320)) -> 0 | BK56: =IF(Entry!H$9=3600,BI56,IF(Entry!H$9=4200,BJ56,IF(Entry!H$9=4800,BL56,IF(Entry!H$9=2800,BM56,BN56)))) -> 0 | BL56: =IF(L56=1,ROUND((15660*AA$30/Z$31),0),IF(L56=0,0,15660)) -> 0 | BM56: =IF(L56=1,ROUND((10740*AA$30/Z$31),0),IF(L56=0,0,10740)) -> 0 | BN56: =IF(L56=1,ROUND((8100*AA$30/Z$31),0),IF(L56=0,0,8100)) -> 0
E57: L-2 | F57: 2 | G57: L-2 | H57: 12600 | I57: 17900 | J57: =IF(F57=Entry!H$9,MAX(Entry!H$10,About!I57),I57) -> 17900 | K57: 31 | L57: =IF(N57=0,0,(IF(N57=0,0,1)+MAX(L56))) -> 0 | M57: 2017-03-01 | N57: 0 | O57: 0 | Q57: 0 | R57: 8 | S57: 0 | T57: 0 | U57: 0 | Y57: 0 | Z57: 0 | AA57: 0 | AC57: 0 | AE57: 0 | AK57: 0 | AL57: 0 | AM57: 0 | AN57: 0 | AO57: 0 | AP57: =AP56 -> 4 | AQ57: 2017-03-01 | AR57: 0 | AS57: 0 | BI57: 0 | BJ57: 0 | BK57: =IF(Entry!H$9=3600,BI57,IF(Entry!H$9=4200,BJ57,IF(Entry!H$9=4800,BL57,IF(Entry!H$9=2800,BM57,BN57)))) -> 0 | BL57: 0 | BM57: 0 | BN57: 0
E58: L-3 | F58: 3 | G58: L-3 | H58: 12800 | I58: 18200 | J58: =IF(F58=Entry!H$9,MAX(Entry!H$10,About!I58),I58) -> 18200 | K58: 30 | L58: 0 | M58: 2017-04-01 | N58: 0 | O58: 0 | Q58: 0 | R58: 8 | S58: 0 | T58: 0 | U58: 0 | Y58: 0 | Z58: 0 | AA58: 0 | AC58: 0 | AE58: 0 | AK58: 0 | AL58: 0 | AM58: 0 | AN58: 0 | AO58: 0 | AP58: 4 | AQ58: 2017-04-01 | AR58: 0 | AS58: 0 | BI58: 0 | BJ58: 0 | BK58: =IF(Entry!H$9=3600,BI58,IF(Entry!H$9=4200,BJ58,IF(Entry!H$9=4800,BL58,IF(Entry!H$9=2800,BM58,BN58)))) -> 0 | BL58: 0 | BM58: 0 | BN58: 0
E59: L-4 | F59: 4 | G59: L-4 | H59: 13500 | I59: 19200 | J59: =IF(F59=Entry!H$9,MAX(Entry!H$10,About!I59),I59) -> 19200 | K59: 31 | L59: 0 | M59: 2017-05-01 | N59: 0 | O59: 0 | Q59: 0 | R59: 8 | S59: 0 | T59: 0 | U59: 0 | Y59: 0 | Z59: 0 | AA59: 0 | AC59: 0 | AE59: 0 | AK59: 0 | AL59: 0 | AM59: 0 | AN59: 0 | AO59: 0 | AP59: 4 | AQ59: 2017-05-01 | AR59: 0 | AS59: 0 | BI59: 0 | BJ59: 0 | BK59: =IF(Entry!H$9=3600,BI59,IF(Entry!H$9=4200,BJ59,IF(Entry!H$9=4800,BL59,IF(Entry!H$9=2800,BM59,BN59)))) -> 0 | BL59: 0 | BM59: 0 | BN59: 0
E60: L-5 | F60: 5 | G60: L-5 | H60: 14600 | I60: 20800 | J60: =IF(F60=Entry!H$9,MAX(Entry!H$10,About!I60),I60) -> 20800 | K60: 30 | L60: 0 | M60: 2017-06-01 | N60: 0 | O60: 0 | Q60: 0 | R60: 8 | S60: 0 | T60: 0 | U60: 0 | Y60: 0 | Z60: 0 | AA60: 0 | AC60: 0 | AE60: 0 | AK60: 0 | AL60: 0 | AM60: 0 | AN60: 0 | AO60: 0 | AP60: 4 | AQ60: 2017-06-01 | AR60: 0 | AS60: 0 | BI60: 0 | BJ60: 0 | BK60: =IF(Entry!H$9=3600,BI60,IF(Entry!H$9=4200,BJ60,IF(Entry!H$9=4800,BL60,IF(Entry!H$9=2800,BM60,BN60)))) -> 0 | BL60: 0 | BM60: 0 | BN60: 0
E61: L-6 | F61: 6 | G61: L-6 | H61: 15100 | I61: 21500 | J61: =IF(F61=Entry!H$9,MAX(Entry!H$10,About!I61),I61) -> 21500 | K61: 31 | L61: 0 | M61: 2017-07-01 | N61: 0 | O61: 0 | Q61: 0 | R61: 8 | S61: 0 | T61: 0 | U61: 0 | Y61: 0 | Z61: 0 | AA61: 0 | AC61: 0 | AE61: 0 | AK61: 0 | AL61: 0 | AM61: 0 | AN61: 0 | AO61: 0 | AP61: 5 | AQ61: 2017-07-01 | AR61: 0 | AS61: 0 | BI61: 0 | BJ61: 0 | BK61: =IF(Entry!H$9=3600,BI61,IF(Entry!H$9=4200,BJ61,IF(Entry!H$9=4800,BL61,IF(Entry!H$9=2800,BM61,BN61)))) -> 0 | BL61: 0 | BM61: 0 | BN61: 0
E62: L-7 | F62: 7 | G62: L-7 | H62: 15700 | I62: 22400 | J62: =IF(F62=Entry!H$9,MAX(Entry!H$10,About!I62),I62) -> 22400 | K62: 31 | L62: 0 | M62: 2017-08-01 | N62: 0 | O62: 0 | Q62: 0 | R62: 8 | S62: 0 | T62: 0 | Y62: 0 | Z62: 0 | AA62: 0 | AC62: 0 | AE62: 0 | AK62: 0 | AL62: 0 | AM62: 0 | AN62: 0 | AO62: 0 | AP62: 5 | AQ62: 2017-08-01 | AR62: 0 | AS62: 0 | BI62: 0 | BJ62: 0 | BK62: =IF(Entry!H$9=3600,BI62,IF(Entry!H$9=4200,BJ62,IF(Entry!H$9=4800,BL62,IF(Entry!H$9=2800,BM62,BN62)))) -> 0 | BL62: 0 | BM62: 0 | BN62: 0
E63: L-8 | F63: 8 | G63: L-8 | H63: 18500 | I63: 26300 | J63: =IF(F63=Entry!H$9,MAX(Entry!H$10,About!I63),I63) -> 26300 | K63: 30 | L63: 0 | M63: 2017-09-01 | N63: 0 | O63: 0 | Q63: 0 | R63: 8 | S63: =SUM(N63:Q63) -> 0 | T63: 0 | Y63: 0 | Z63: =N63-T63 -> 0 | AA63: =O63-U63 -> 0 | AC63: =Q63-W63 -> 0 | AE63: 0 | AK63: 0 | AL63: =AE63-AK63 -> 0 | AM63: 0 | AN63: 0 | AO63: 0 | AP63: 5 | AQ63: 2017-09-01 | AR63: 0 | AS63: 0 | BI63: 0 | BJ63: 0 | BK63: =IF(Entry!H$9=3600,BI63,IF(Entry!H$9=4200,BJ63,IF(Entry!H$9=4800,BL63,IF(Entry!H$9=2800,BM63,BN63)))) -> 0 | BL63: 0 | BM63: 0 | BN63: 0
E64: L-9 | F64: 9 | G64: L-9 | H64: 20100 | I64: 28700 | J64: =IF(F64=Entry!H$9,MAX(Entry!H$10,About!I64),I64) -> 28700 | K64: 31 | L64: 0 | M64: 2017-10-01 | N64: 0 | O64: 0 | Q64: 0 | R64: 8 | S64: 0 | T64: 0 | Y64: 0 | Z64: 0 | AA64: 0 | AC64: 0 | AE64: 0 | AK64: 0 | AL64: 0 | AM64: 0 | AN64: 0 | AO64: 0 | AP64: 5 | AQ64: 2017-10-01 | AR64: 0 | AS64: 0 | BI64: 0 | BJ64: 0 | BK64: =IF(Entry!H$9=3600,BI64,IF(Entry!H$9=4200,BJ64,IF(Entry!H$9=4800,BL64,IF(Entry!H$9=2800,BM64,BN64)))) -> 0 | BL64: 0 | BM64: 0 | BN64: 0
E65: L-10 | F65: 10 | G65: L-10 | H65: 23700 | I65: 33800 | J65: =IF(F65=Entry!H$9,MAX(Entry!H$10,About!I65),I65) -> 33800 | K65: 30 | L65: 0 | M65: 2017-11-01 | N65: 0 | O65: 0 | Q65: 0 | R65: 8 | S65: 0 | T65: 0 | Y65: 0 | Z65: 0 | AA65: 0 | AC65: 0 | AE65: 0 | AK65: 0 | AL65: 0 | AM65: 0 | AN65: 0 | AO65: 0 | AP65: 5 | AQ65: 2017-11-01 | AR65: 0 | AS65: 0 | BI65: 0 | BJ65: 0 | BK65: =IF(Entry!H$9=3600,BI65,IF(Entry!H$9=4200,BJ65,IF(Entry!H$9=4800,BL65,IF(Entry!H$9=2800,BM65,BN65)))) -> 0 | BL65: 0 | BM65: 0 | BN65: 0
E66: L-11 | F66: 11 | G66: L-11 | H66: 26500 | I66: 37800 | J66: =IF(F66=Entry!H$9,MAX(Entry!H$10,About!I66),I66) -> 37800 | K66: 31 | L66: 0 | M66: 2017-12-01 | N66: 0 | O66: 0 | Q66: 0 | R66: 8 | S66: 0 | T66: 0 | Y66: 0 | Z66: 0 | AA66: 0 | AC66: 0 | AE66: 0 | AK66: 0 | AL66: 0 | AM66: 0 | AN66: 0 | AO66: 0 | AP66: 5 | AQ66: 2017-12-01 | AR66: 0 | AS66: 0 | BI66: 0 | BJ66: 0 | BK66: =IF(Entry!H$9=3600,BI66,IF(Entry!H$9=4200,BJ66,IF(Entry!H$9=4800,BL66,IF(Entry!H$9=2800,BM66,BN66)))) -> 0 | BL66: 0 | BM66: 0 | BN66: 0
E67: L-12 | F67: 12 | G67: L-12 | H67: 31100 | I67: 44300 | J67: =IF(F67=Entry!H$9,MAX(Entry!H$10,About!I67),I67) -> 44300 | K67: 31 | L67: 0 | M67: 2018-01-01 | N67: 0 | O67: 0 | Q67: 0 | R67: 8 | S67: 0 | T67: 0 | Y67: 0 | Z67: 0 | AA67: 0 | AC67: 0 | AE67: 0 | AK67: 0 | AL67: 0 | AM67: 0 | AN67: 0 | AO67: 0 | AP67: 7 | AQ67: 2018-01-01 | AR67: 0 | AS67: 0 | BI67: 0 | BJ67: 0 | BK67: =IF(Entry!H$9=3600,BI67,IF(Entry!H$9=4200,BJ67,IF(Entry!H$9=4800,BL67,IF(Entry!H$9=2800,BM67,BN67)))) -> 0 | BL67: 0 | BM67: 0 | BN67: 0
E68: L-14 | F68: 14 | G68: L-14 | H68: 39300 | I68: 56100 | J68: =IF(F68=Entry!H$9,MAX(Entry!H$10,About!I68),I68) -> 56100 | K68: 29 | L68: 0 | M68: 2018-02-01 | N68: 0 | O68: 0 | Q68: 0 | R68: 8 | S68: 0 | T68: 0 | Y68: 0 | Z68: 0 | AA68: 0 | AC68: 0 | AE68: 0 | AK68: 0 | AL68: 0 | AM68: 0 | AN68: 0 | AO68: 0 | AP68: 7 | AQ68: 2018-02-01 | AR68: 0 | AS68: 0 | BI68: 0 | BJ68: 0 | BK68: =IF(Entry!H$9=3600,BI68,IF(Entry!H$9=4200,BJ68,IF(Entry!H$9=4800,BL68,IF(Entry!H$9=2800,BM68,BN68)))) -> 0 | BL68: 0 | BM68: 0 | BN68: 0
E69: L-15 | F69: 15 | G69: L-15 | H69: 42500 | I69: 60700 | J69: =IF(F69=Entry!H$9,MAX(Entry!H$10,About!I69),I69) -> 60700 | K69: 31 | L69: 0 | M69: 2018-03-01 | N69: 0 | O69: 0 | Q69: 0 | R69: 8 | S69: 0 | T69: 0 | Y69: 0 | Z69: 0 | AA69: 0 | AC69: 0 | AE69: 0 | AK69: 0 | AL69: 0 | AM69: 0 | AN69: 0 | AO69: 0 | AP69: 7 | AQ69: 2018-03-01 | AR69: 0 | AS69: 0 | BI69: 0 | BJ69: 0 | BK69: =IF(Entry!H$9=3600,BI69,IF(Entry!H$9=4200,BJ69,IF(Entry!H$9=4800,BL69,IF(Entry!H$9=2800,BM69,BN69)))) -> 0 | BL69: 0 | BM69: 0 | BN69: 0
E70: L-16 | F70: 16 | G70: L-16 | H70: 47200 | I70: 67300 | J70: =IF(F70=Entry!H$9,MAX(Entry!H$10,About!I70),I70) -> 67300 | K70: 30 | L70: 0 | M70: 2018-04-01 | N70: 0 | O70: 0 | Q70: 0 | R70: 8 | S70: 0 | T70: 0 | Y70: 0 | Z70: 0 | AA70: 0 | AC70: 0 | AE70: 0 | AK70: 0 | AL70: 0 | AM70: 0 | AN70: 0 | AO70: 0 | AP70: 7 | AQ70: 2018-04-01 | AR70: 0 | AS70: 0 | BI70: 0 | BJ70: 0 | BK70: =IF(Entry!H$9=3600,BI70,IF(Entry!H$9=4200,BJ70,IF(Entry!H$9=4800,BL70,IF(Entry!H$9=2800,BM70,BN70)))) -> 0 | BL70: 0 | BM70: 0 | BN70: 0
E71: L-17 | F71: 17 | G71: L-17 | H71: 49700 | I71: 71000 | J71: =IF(F71=Entry!H$9,MAX(Entry!H$10,About!I71),I71) -> 71000 | K71: 31 | L71: 0 | M71: 2018-05-01 | N71: 0 | O71: 0 | Q71: 0 | R71: 8 | S71: 0 | T71: 0 | Y71: 0 | Z71: 0 | AA71: 0 | AC71: 0 | AE71: 0 | AK71: 0 | AL71: 0 | AM71: 0 | AN71: 0 | AO71: 0 | AP71: 7 | AQ71: 2018-05-01 | AR71: 0 | AS71: 0 | BI71: 0 | BJ71: 0 | BK71: =IF(Entry!H$9=3600,BI71,IF(Entry!H$9=4200,BJ71,IF(Entry!H$9=4800,BL71,IF(Entry!H$9=2800,BM71,BN71)))) -> 0 | BL71: 0 | BM71: 0 | BN71: 0
E72: L-18 | F72: 18 | G72: L-18 | H72: 52800 | I72: 75300 | J72: =IF(F72=Entry!H$9,MAX(Entry!H$10,About!I72),I72) -> 75300 | K72: 30 | L72: 0 | M72: 2018-06-01 | N72: 0 | O72: 0 | Q72: 0 | R72: 8 | S72: 0 | T72: 0 | Y72: 0 | Z72: 0 | AA72: 0 | AC72: 0 | AE72: 0 | AK72: 0 | AL72: 0 | AM72: 0 | AN72: 0 | AO72: 0 | AP72: 7 | AQ72: 2018-06-01 | AR72: 0 | AS72: 0 | BI72: 0 | BJ72: 0 | BK72: =IF(Entry!H$9=3600,BI72,IF(Entry!H$9=4200,BJ72,IF(Entry!H$9=4800,BL72,IF(Entry!H$9=2800,BM72,BN72)))) -> 0 | BL72: 0 | BM72: 0 | BN72: 0
E73: L-19 | F73: 19 | G73: L-19 | H73: 56000 | I73: 79900 | J73: =IF(F73=Entry!H$9,MAX(Entry!H$10,About!I73),I73) -> 79900 | K73: 31 | L73: 0 | M73: 2018-07-01 | N73: 0 | O73: 0 | Q73: 0 | R73: 8 | S73: 0 | T73: 0 | Y73: 0 | Z73: 0 | AA73: 0 | AC73: 0 | AE73: 0 | AK73: 0 | AL73: 0 | AM73: 0 | AN73: 0 | AO73: 0 | AP73: 9 | AQ73: 2018-07-01 | AR73: 0 | AS73: 0 | AY73: =IF(AR73<1,0,IF(AR73<=7000,51,IF(AR73<=13000,74,IF(AR73<=21000,112,IF(AR73>21000,165))))) -> 0 | AZ73: 0 | BA73: =IF(AY73>AZ73,AY73-AZ73,0) -> 0 | BI73: 0 | BJ73: 0 | BK73: =IF(Entry!H$9=3600,BI73,IF(Entry!H$9=4200,BJ73,IF(Entry!H$9=4800,BL73,IF(Entry!H$9=2800,BM73,BN73)))) -> 0 | BL73: 0 | BM73: 0 | BN73: 0
E74: L-20 | F74: 20 | G74: L-20 | H74: 62300 | I74: 88900 | J74: =IF(F74=Entry!H$9,MAX(Entry!H$10,About!I74),I74) -> 88900 | K74: 31 | L74: 0 | M74: 2018-08-01 | N74: 0 | O74: 0 | Q74: 0 | R74: 8 | S74: 0 | T74: 0 | Y74: 0 | Z74: 0 | AA74: 0 | AC74: 0 | AE74: 0 | AK74: 0 | AL74: 0 | AM74: 0 | AN74: 0 | AO74: 0 | AP74: 9 | AQ74: 2018-08-01 | AR74: 0 | AS74: 0 | AY74: 0 | AZ74: 0 | BA74: =IF(AY74>AZ74,AY74-AZ74,0) -> 0 | BI74: 0 | BJ74: 0 | BK74: =IF(Entry!H$9=3600,BI74,IF(Entry!H$9=4200,BJ74,IF(Entry!H$9=4800,BL74,IF(Entry!H$9=2800,BM74,BN74)))) -> 0 | BL74: 0 | BM74: 0 | BN74: 0
E75: L-21 | F75: 21 | G75: L-21 | H75: 86200 | I75: 123100 | J75: =IF(F75=Entry!H$9,MAX(Entry!H$10,About!I75),I75) -> 123100 | K75: 30 | L75: 0 | M75: 2018-09-01 | N75: 0 | O75: 0 | P75: =IF(F$5="N",0,IF(F$5="B",BF75,BE75)) -> 0 | Q75: 0 | R75: 8 | S75: 0 | T75: 0 | V75: =IF(F$5="N",0,IF(F$5="B",BH75,BG75)) -> 0 | Y75: 0 | Z75: 0 | AA75: 0 | AC75: 0 | AE75: 0 | AK75: 0 | AL75: 0 | AM75: 0 | AN75: 0 | AO75: 0 | AP75: 9 | AQ75: 2018-09-01 | AR75: 0 | AS75: 0 | AT75: =IF(AR75=0,0,IF(AR75<=9000,400,IF(AR75<=11000,500,IF(AR75<=15000,900,IF(AR75<=20000,1200,IF(AR75<=24000,1700,IF(AR75<=28000,2500,IF(AR75<=31000,3200,IF(AR75>31000,4200))))))))) -> 0 | AU75: =IF(AS75=0,0,IF(AS75<=9000,400,IF(AS75<=11000,500,IF(AS75<=15000,900,IF(AS75<=20000,1200,IF(AS75<=24000,1700,IF(AS75<=28000,2500,IF(AS75<=31000,3200,IF(AS75>31000,4200))))))))) -> 0 | AV75: =IF(AT75>AU75,AT75-AU75,0) -> 0 | AX75: =IF(F$9="Nill",0,IF(F$9="ALL",(AV75+AW75),IF(F$9="DA",AW75))) -> FALSE | AY75: 0 | AZ75: 0 | BA75: 0 | BE75: =IF(N75<1,0,IF(N75<=7000,130,IF(N75<=10000,190,IF(N75<=13000,300,IF(N75>13000,480))))) -> 0 | BF75: =IF(N75<1,0,IF(N75<=7000,50,IF(N75<=10000,70,IF(N75<=13000,130,IF(N75>13000,240))))) -> 0 | BG75: =IF(T75<1,0,IF(T75<=7000,130,IF(T75<=10000,190,IF(T75<=13000,300,IF(T75>13000,480))))) -> 0 | BH75: =IF(T75<1,0,IF(T75<=7000,50,IF(T75<=10000,70,IF(T75<=13000,130,IF(T75>13000,240))))) -> 0 | BI75: 0 | BJ75: 0 | BK75: =IF(Entry!H$9=3600,BI75,IF(Entry!H$9=4200,BJ75,IF(Entry!H$9=4800,BL75,IF(Entry!H$9=2800,BM75,BN75)))) -> 0 | BL75: 0 | BM75: 0 | BN75: 0
E76: L-22 | F76: 22 | G76: L-22 | H76: 90800 | I76: 129700 | J76: =IF(F76=Entry!H$9,MAX(Entry!H$10,About!I76),I76) -> 129700 | K76: 31 | L76: 0 | M76: 2018-10-01 | N76: 0 | O76: 0 | P76: =IF(F$5="N",0,IF(F$5="B",BF76,BE76)) -> 0 | Q76: 0 | R76: 8 | S76: 0 | T76: 0 | V76: =IF(F$5="N",0,IF(F$5="B",BH76,BG76)) -> 0 | Y76: 0 | Z76: 0 | AA76: 0 | AC76: 0 | AE76: 0 | AK76: 0 | AL76: 0 | AM76: 0 | AN76: 0 | AO76: 0 | AP76: 9 | AQ76: 2018-10-01 | AR76: 0 | AS76: 0 | AT76: =IF(AR76=0,0,IF(AR76<=9000,400,IF(AR76<=11000,500,IF(AR76<=15000,900,IF(AR76<=20000,1200,IF(AR76<=24000,1700,IF(AR76<=28000,2500,IF(AR76<=31000,3200,IF(AR76>31000,4200))))))))) -> 0 | AU76: =IF(AS76=0,0,IF(AS76<=9000,400,IF(AS76<=11000,500,IF(AS76<=15000,900,IF(AS76<=20000,1200,IF(AS76<=24000,1700,IF(AS76<=28000,2500,IF(AS76<=31000,3200,IF(AS76>31000,4200))))))))) -> 0 | AV76: =IF(AT76>AU76,AT76-AU76,0) -> 0 | AX76: =IF(F$9="Nill",0,IF(F$9="ALL",(AV76+AW76),IF(F$9="DA",AW76))) -> FALSE | AY76: 0 | AZ76: 0 | BA76: 0 | BE76: 0 | BF76: 0 | BG76: 0 | BH76: 0 | BI76: 0 | BJ76: 0 | BK76: =IF(Entry!H$9=3600,BI76,IF(Entry!H$9=4200,BJ76,IF(Entry!H$9=4800,BL76,IF(Entry!H$9=2800,BM76,BN76)))) -> 0 | BL76: 0 | BM76: 0 | BN76: 0
E77: L-23 | F77: 23 | G77: L-23 | H77: 102100 | I77: 145800 | J77: =IF(F77=Entry!H$9,MAX(Entry!H$10,About!I77),I77) -> 145800 | K77: 30 | L77: 0 | M77: 2018-11-01 | N77: 0 | O77: 0 | P77: 0 | Q77: 0 | R77: 8 | S77: 0 | T77: 0 | V77: 0 | Y77: 0 | Z77: 0 | AA77: 0 | AC77: 0 | AE77: 0 | AK77: 0 | AL77: 0 | AM77: 0 | AN77: 0 | AO77: 0 | AP77: 9 | AQ77: 2018-11-01 | AR77: 0 | AS77: 0 | AT77: 0 | AU77: 0 | AV77: 0 | AX77: FALSE | AY77: 0 | AZ77: 0 | BA77: 0 | BE77: 0 | BF77: 0 | BG77: 0 | BH77: 0 | BI77: 0 | BJ77: 0 | BK77: =IF(Entry!H$9=3600,BI77,IF(Entry!H$9=4200,BJ77,IF(Entry!H$9=4800,BL77,IF(Entry!H$9=2800,BM77,BN77)))) -> 0 | BL77: 0 | BM77: 0 | BN77: 0
E78: L-24 | F78: 24 | G78: L-24 | H78: 104200 | I78: 148800 | J78: =IF(F78=Entry!H$9,MAX(Entry!H$10,About!I78),I78) -> 148800 | K78: 31 | L78: 0 | M78: 2018-12-01 | N78: 0 | O78: 0 | P78: 0 | Q78: 0 | R78: 8 | S78: 0 | T78: 0 | V78: 0 | Y78: 0 | Z78: 0 | AA78: 0 | AC78: 0 | AE78: 0 | AK78: 0 | AL78: 0 | AM78: 0 | AN78: 0 | AO78: 0 | AP78: 9 | AQ78: 2018-12-01 | AR78: 0 | AS78: 0 | AT78: 0 | AU78: 0 | AV78: 0 | AX78: FALSE | AY78: =IF(AR78<1,0,IF(AR78<=7000,51,IF(AR78<=13000,74,IF(AR78<=21000,112,IF(AR78>21000,165))))) -> 0 | AZ78: =IF(AS78<1,0,IF(AS78<=7000,51,IF(AS78<=13000,74,IF(AS78<=21000,112,IF(AS78>21000,165))))) -> 0 | BA78: 0 | BE78: 0 | BF78: 0 | BG78: 0 | BH78: 0 | BI78: 0 | BJ78: 0 | BK78: =IF(Entry!H$9=3600,BI78,IF(Entry!H$9=4200,BJ78,IF(Entry!H$9=4800,BL78,IF(Entry!H$9=2800,BM78,BN78)))) -> 0 | BL78: 0 | BM78: 0 | BN78: 0
K79: 31 | L79: 0 | M79: 2019-01-01 | N79: 0 | O79: 0 | P79: 0 | Q79: 0 | R79: 8 | S79: 0 | T79: 0 | V79: 0 | Y79: 0 | Z79: 0 | AA79: 0 | AC79: 0 | AE79: 0 | AK79: 0 | AL79: 0 | AM79: 0 | AN79: 0 | AO79: 0 | AP79: 12 | AQ79: 2019-01-01 | AR79: 0 | AS79: 0 | AT79: 0 | AU79: 0 | AV79: 0 | AW79: =IF(ROUND((AR79*6%)-(AS79*6%),0)<1,0,ROUND((AR79*6%)-(AS79*6%),0)) -> 0 | AX79: FALSE | AY79: =IF(AR79<1,0,IF(AR79<=7000,55,IF(AR79<=13000,80,IF(AR79<=21000,120,IF(AR79>21000,175))))) -> 0 | AZ79: 0 | BA79: 0 | BE79: 0 | BF79: 0 | BG79: 0 | BH79: 0 | BI79: 0 | BJ79: 0 | BK79: =IF(Entry!H$9=3600,BI79,IF(Entry!H$9=4200,BJ79,IF(Entry!H$9=4800,BL79,IF(Entry!H$9=2800,BM79,BN79)))) -> 0 | BL79: 0 | BM79: 0 | BN79: 0
K80: 29 | L80: 0 | M80: 2019-02-01 | N80: 0 | O80: 0 | P80: 0 | Q80: 0 | R80: 8 | S80: 0 | T80: 0 | V80: 0 | Y80: 0 | Z80: 0 | AA80: 0 | AC80: 0 | AE80: 0 | AK80: 0 | AL80: 0 | AM80: 0 | AN80: 0 | AO80: 0 | AP80: 12 | AQ80: 2019-02-01 | AR80: 0 | AS80: 0 | AT80: 0 | AU80: 0 | AV80: 0 | AW80: =IF(ROUND((AR80*6%)-(AS80*6%),0)<1,0,ROUND((AR80*6%)-(AS80*6%),0)) -> 0 | AX80: FALSE | AY80: 0 | AZ80: 0 | BA80: 0 | BE80: 0 | BF80: 0 | BG80: 0 | BH80: 0 | BI80: 0 | BJ80: 0 | BK80: =IF(Entry!H$9=3600,BI80,IF(Entry!H$9=4200,BJ80,IF(Entry!H$9=4800,BL80,IF(Entry!H$9=2800,BM80,BN80)))) -> 0 | BL80: 0 | BM80: 0 | BN80: 0
K81: 31 | L81: 0 | M81: 2019-03-01 | N81: 0 | O81: 0 | P81: 0 | Q81: 0 | R81: 8 | S81: 0 | T81: 0 | V81: 0 | Y81: 0 | Z81: 0 | AA81: 0 | AC81: 0 | AE81: 0 | AK81: 0 | AL81: 0 | AM81: 0 | AN81: 0 | AO81: 0 | AP81: 12 | AQ81: 2019-03-01 | AR81: 0 | AS81: 0 | AT81: 0 | AU81: 0 | AV81: 0 | AX81: FALSE | AY81: 0 | AZ81: 0 | BA81: 0 | BB81: =IF(AR81<1,0,IF(AR81<=8500,180,IF(AR81<=11000,240,IF(AR81<=18000,480,IF(AR81<=28000,720,1200))))) -> 0 | BC81: =IF(AS81<1,0,IF(AS81<=8500,180,IF(AS81<=11000,240,IF(AS81<=18000,480,IF(AS81<=28000,720,IF(AS81<=28000,1200)))))) -> 0 | BD81: =IF((MONTH(AQ81))=3,(BB81-BC81),0) -> 0 | BE81: 0 | BF81: 0 | BG81: 0 | BH81: 0 | BI81: 0 | BJ81: 0 | BK81: =IF(Entry!H$9=3600,BI81,IF(Entry!H$9=4200,BJ81,IF(Entry!H$9=4800,BL81,IF(Entry!H$9=2800,BM81,BN81)))) -> 0 | BL81: 0 | BM81: 0 | BN81: 0
K82: 30 | L82: 0 | M82: 2019-04-01 | N82: 0 | O82: 0 | P82: 0 | Q82: 0 | R82: 8 | S82: 0 | T82: 0 | V82: 0 | Y82: 0 | Z82: 0 | AA82: 0 | AC82: 0 | AE82: 0 | AK82: 0 | AL82: 0 | AM82: 0 | AN82: 0 | AO82: 0 | AP82: 12 | AQ82: 2019-04-01 | AR82: 0 | AS82: 0 | AT82: 0 | AU82: 0 | AV82: 0 | AX82: FALSE | AY82: 0 | AZ82: 0 | BA82: 0 | BB82: =IF(AR82<1,0,IF(AR82<=8500,180,IF(AR82<=11000,240,IF(AR82<=18000,480,IF(AR82<=28000,720,1200))))) -> 0 | BC82: 0 | BD82: =IF((MONTH(AQ82))=3,(BB82-BC82),BD81) -> 0 | BE82: 0 | BF82: 0 | BG82: 0 | BH82: 0 | BI82: 0 | BJ82: 0 | BK82: =IF(Entry!H$9=3600,BI82,IF(Entry!H$9=4200,BJ82,IF(Entry!H$9=4800,BL82,IF(Entry!H$9=2800,BM82,BN82)))) -> 0 | BL82: 0 | BM82: 0 | BN82: 0
K83: 31 | L83: 0 | M83: 2019-05-01 | N83: 0 | O83: 0 | P83: 0 | Q83: =ROUND((N83)*(IF(G$4=0,0,G$4)),0) -> 0 | R83: 8 | S83: 0 | T83: 0 | V83: 0 | Y83: 0 | Z83: 0 | AA83: 0 | AC83: 0 | AE83: 0 | AK83: 0 | AL83: 0 | AM83: 0 | AN83: 0 | AO83: 0 | AP83: 12 | AQ83: 2019-05-01 | AR83: 0 | AS83: 0 | AT83: 0 | AU83: 0 | AV83: 0 | AX83: FALSE | AY83: =IF(AR83<1,0,IF(AR83<=7000,55,IF(AR83<=13000,80,IF(AR83<=21000,120,IF(AR83>21000,175))))) -> 0 | AZ83: =IF(AS83<1,0,IF(AS83<=7000,55,IF(AS83<=13000,80,IF(AS83<=21000,120,IF(AS83>21000,175))))) -> 0 | BA83: 0 | BB83: =IF(AR83<1,0,IF(AR83<=8500,180,IF(AR83<=11000,240,IF(AR83<=18000,480,IF(AR83<=28000,720,1200))))) -> 0 | BC83: 0 | BD83: =IF((MONTH(AQ83))=3,(BB83-BC83),BD82) -> 0 | BE83: 0 | BF83: 0 | BG83: 0 | BH83: 0 | BI83: 0 | BJ83: 0 | BK83: =IF(Entry!H$9=3600,BI83,IF(Entry!H$9=4200,BJ83,IF(Entry!H$9=4800,BL83,IF(Entry!H$9=2800,BM83,BN83)))) -> 0 | BL83: 0 | BM83: 0 | BN83: 0
K84: 30 | L84: 0 | M84: 2019-06-01 | N84: 0 | O84: 0 | P84: 0 | Q84: =ROUND((N84)*(IF(G$4=0,0,G$4)),0) -> 0 | R84: 8 | S84: 0 | T84: 0 | V84: 0 | Y84: 0 | Z84: 0 | AA84: 0 | AC84: 0 | AE84: 0 | AK84: 0 | AL84: 0 | AM84: 0 | AN84: 0 | AO84: 0 | AP84: 12 | AQ84: 2019-06-01 | AR84: 0 | AS84: 0 | AT84: 0 | AU84: 0 | AV84: 0 | AX84: FALSE | AY84: =IF(AR84<1,0,IF(AR84<=7000,71,IF(AR84<=13000,91,IF(AR84<=21000,133,IF(AR84>21000,195))))) -> 0 | AZ84: =IF(AS84<1,0,IF(AS84<=7000,71,IF(AS84<=13000,91,IF(AS84<=21000,133,IF(AS84>21000,195))))) -> 0 | BA84: 0 | BB84: =IF(AR84<1,0,IF(AR84<=8500,180,IF(AR84<=11000,240,IF(AR84<=18000,480,IF(AR84<=28000,720,1200))))) -> 0 | BC84: 0 | BD84: 0 | BE84: 0 | BF84: 0 | BG84: 0 | BH84: 0 | BI84: 0 | BJ84: 0 | BK84: =IF(Entry!H$9=3600,BI84,IF(Entry!H$9=4200,BJ84,IF(Entry!H$9=4800,BL84,IF(Entry!H$9=2800,BM84,BN84)))) -> 0 | BL84: 0 | BM84: 0 | BN84: 0
K85: 31 | L85: 0 | M85: 2019-07-01 | N85: 0 | O85: 0 | P85: 0 | Q85: 0 | R85: 8 | S85: 0 | T85: 0 | V85: 0 | Y85: 0 | Z85: 0 | AA85: 0 | AC85: 0 | AE85: 0 | AK85: 0 | AL85: 0 | AM85: 0 | AN85: 0 | AO85: 0 | AP85: =IF(Entry!L11="",About!AP84,Entry!L11) -> 17 | AQ85: 2019-07-01 | AR85: 0 | AS85: 0 | AT85: 0 | AU85: 0 | AV85: 0 | AW85: =IF(ROUND((AR85*5%)-(AS85*5%),0)<1,0,ROUND((AR85*5%)-(AS85*5%),0)) -> 0 | AX85: FALSE | AY85: =IF(AR85<1,0,IF(AR85<=7000,75,IF(AR85<=13000,110,IF(AR85<=21000,160,IF(AR85>21000,225))))) -> 0 | AZ85: 0 | BA85: 0 | BB85: =IF(AR85<1,0,IF(AR85<=8500,180,IF(AR85<=11000,240,IF(AR85<=18000,480,IF(AR85<=28000,720,1200))))) -> 0 | BC85: 0 | BD85: 0 | BE85: 0 | BF85: 0 | BG85: 0 | BH85: 0 | BI85: 0 | BJ85: 0 | BK85: =IF(Entry!H$9=3600,BI85,IF(Entry!H$9=4200,BJ85,IF(Entry!H$9=4800,BL85,IF(Entry!H$9=2800,BM85,BN85)))) -> 0 | BL85: 0 | BM85: 0 | BN85: 0
K86: 31 | L86: 0 | M86: 2019-08-01 | N86: 0 | O86: 0 | P86: 0 | Q86: 0 | R86: 8 | S86: 0 | T86: 0 | V86: 0 | Y86: 0 | Z86: 0 | AA86: 0 | AC86: 0 | AE86: 0 | AK86: 0 | AL86: 0 | AM86: 0 | AN86: 0 | AO86: 0 | AP86: 17 | AQ86: 2019-08-01 | AR86: 0 | AS86: 0 | AT86: 0 | AU86: 0 | AV86: 0 | AW86: =IF(ROUND((AR86*5%)-(AS86*5%),0)<1,0,ROUND((AR86*5%)-(AS86*5%),0)) -> 0 | AX86: FALSE | AY86: 0 | AZ86: 0 | BA86: 0 | BB86: =IF(AR86<1,0,IF(AR86<=8500,180,IF(AR86<=11000,240,IF(AR86<=18000,480,IF(AR86<=28000,720,IF(AR86<28000,1200)))))) -> 0 | BC86: 0 | BD86: 0 | BE86: 0 | BF86: 0 | BG86: 0 | BH86: 0 | BI86: 0 | BJ86: 0 | BK86: =IF(Entry!H$9=3600,BI86,IF(Entry!H$9=4200,BJ86,IF(Entry!H$9=4800,BL86,IF(Entry!H$9=2800,BM86,BN86)))) -> 0 | BL86: 0 | BM86: 0 | BN86: 0
K87: 30 | L87: 0 | M87: 2019-09-01 | N87: 0 | O87: 0 | P87: 0 | Q87: 0 | R87: 8 | S87: =SUM(N87:Q87) -> 0 | T87: 0 | V87: 0 | Y87: 0 | Z87: 0 | AA87: 0 | AC87: 0 | AE87: =SUM(Z87:AC87) -> 0 | AK87: 0 | AL87: 0 | AM87: 0 | AN87: 0 | AO87: 0 | AP87: 17 | AQ87: =M87 -> 2019-09-01 | AR87: 0 | AS87: 0 | AT87: 0 | AU87: 0 | AV87: 0 | AX87: FALSE | AY87: 0 | AZ87: 0 | BA87: 0 | BB87: 0 | BC87: 0 | BD87: 0 | BE87: 0 | BF87: 0 | BG87: 0 | BH87: 0 | BI87: 0 | BJ87: 0 | BK87: =IF(Entry!H$9=3600,BI87,IF(Entry!H$9=4200,BJ87,IF(Entry!H$9=4800,BL87,IF(Entry!H$9=2800,BM87,BN87)))) -> 0 | BL87: 0 | BM87: 0 | BN87: 0
K88: 31 | L88: 0 | M88: 2019-10-01 | N88: 0 | O88: 0 | P88: 0 | Q88: 0 | R88: 8 | S88: 0 | T88: 0 | V88: 0 | Y88: 0 | Z88: 0 | AA88: 0 | AC88: 0 | AE88: 0 | AK88: 0 | AL88: 0 | AM88: 0 | AN88: 0 | AO88: 0 | AP88: 17 | AQ88: 2019-10-01 | AR88: 0 | AS88: 0 | AT88: =IF(AR88=0,0,IF(AR88<=9000,500,IF(AR88<=11000,650,IF(AR88<=15000,1100,IF(AR88<=20000,1450,IF(AR88<=24000,2100,IF(AR88<=28000,3300,IF(AR88<=31000,4100,IF(AR88<=45000,5200,5700))))))))) -> 0 | AU88: =IF(AS88=0,0,IF(AS88<=9000,500,IF(AS88<=11000,650,IF(AS88<=15000,1100,IF(AS88<=20000,1450,IF(AS88<=24000,2100,IF(AS88<=28000,3300,IF(AS88<=31000,4100,IF(AS88<=45000,5200,5700))))))))) -> 0 | AV88: 0 | AX88: FALSE | AY88: 0 | AZ88: 0 | BA88: 0 | BB88: 0 | BC88: 0 | BD88: 0 | BE88: 0 | BF88: 0 | BG88: 0 | BH88: 0 | BI88: 0 | BJ88: 0 | BK88: =IF(Entry!H$9=3600,BI88,IF(Entry!H$9=4200,BJ88,IF(Entry!H$9=4800,BL88,IF(Entry!H$9=2800,BM88,BN88)))) -> 0 | BL88: 0 | BM88: 0 | BN88: 0
K89: 30 | L89: 0 | M89: 2019-11-01 | N89: 0 | O89: 0 | P89: 0 | Q89: 0 | R89: 8 | S89: 0 | T89: 0 | V89: 0 | Y89: 0 | Z89: 0 | AA89: 0 | AC89: 0 | AE89: 0 | AK89: 0 | AL89: 0 | AM89: 0 | AN89: 0 | AO89: 0 | AP89: 17 | AQ89: 2019-11-01 | AR89: 0 | AS89: 0 | AT89: =IF(AR89=0,0,IF(AR89<=9000,500,IF(AR89<=11000,650,IF(AR89<=15000,1100,IF(AR89<=20000,1450,IF(AR89<=24000,2100,IF(AR89<=28000,3300,IF(AR89<=31000,4100,IF(AR89<=45000,5200,5700))))))))) -> 0 | AU89: =IF(AS89=0,0,IF(AS89<=9000,500,IF(AS89<=11000,650,IF(AS89<=15000,1100,IF(AS89<=20000,1450,IF(AS89<=24000,2100,IF(AS89<=28000,3300,IF(AS89<=31000,4100,IF(AS89<=45000,5200,5700))))))))) -> 0 | AV89: 0 | AX89: FALSE | AY89: 0 | AZ89: 0 | BA89: 0 | BB89: 0 | BC89: 0 | BD89: 0 | BE89: 0 | BF89: 0 | BG89: 0 | BH89: 0 | BI89: 0 | BJ89: 0 | BK89: =IF(Entry!H$9=3600,BI89,IF(Entry!H$9=4200,BJ89,IF(Entry!H$9=4800,BL89,IF(Entry!H$9=2800,BM89,BN89)))) -> 0 | BL89: 0 | BM89: 0 | BN89: 0
K90: 31 | L90: 0 | M90: 2019-12-01 | N90: 0 | O90: 0 | P90: 0 | Q90: 0 | R90: 8 | S90: 0 | T90: 0 | V90: 0 | Y90: 0 | Z90: 0 | AA90: 0 | AC90: 0 | AE90: 0 | AK90: 0 | AL90: 0 | AM90: 0 | AN90: 0 | AO90: 0 | AP90: 17 | AQ90: 2019-12-01 | AR90: 0 | AS90: 0 | AT90: =IF(AR90=0,0,IF(AR90<=9000,500,IF(AR90<=11000,650,IF(AR90<=15000,1100,IF(AR90<=20000,1450,IF(AR90<=24000,2100,IF(AR90<=28000,3300,IF(AR90<=31000,4100,IF(AR90<=45000,5200,5700))))))))) -> 0 | AU90: =IF(AS90=0,0,IF(AS90<=9000,500,IF(AS90<=11000,650,IF(AS90<=15000,1100,IF(AS90<=20000,1450,IF(AS90<=24000,2100,IF(AS90<=28000,3300,IF(AS90<=31000,4100,IF(AS90<=45000,5200,5700))))))))) -> 0 | AV90: 0 | AX90: FALSE | AY90: 0 | AZ90: 0 | BA90: 0 | BB90: 0 | BC90: 0 | BD90: 0 | BE90: 0 | BF90: 0 | BG90: 0 | BH90: 0 | BI90: 0 | BJ90: 0 | BK90: =IF(Entry!H$9=3600,BI90,IF(Entry!H$9=4200,BJ90,IF(Entry!H$9=4800,BL90,IF(Entry!H$9=2800,BM90,BN90)))) -> 0 | BL90: 0 | BM90: 0 | BN90: 0
K91: 31 | L91: 0 | M91: 2020-01-01 | N91: 0 | O91: 0 | P91: 0 | Q91: 0 | R91: 8 | S91: 0 | T91: 0 | V91: 0 | Y91: 0 | Z91: 0 | AA91: 0 | AC91: 0 | AE91: 0 | AK91: 0 | AL91: 0 | AM91: 0 | AN91: 0 | AO91: 0 | AP91: 17 | AQ91: 2020-01-01 | AR91: 0 | AS91: 0 | AT91: 0 | AU91: 0 | AV91: 0 | AW91: =IF(ROUND((AR91*8%)-(AS91*8%),0)<1,0,ROUND((AR91*8%)-(AS91*8%),0)) -> 0 | AX91: FALSE | AY91: =IF(AR91<1,0,IF(AR91<=7000,85,IF(AR91<=13000,130,IF(AR91<=21000,190,IF(AR91>21000,265))))) -> 0 | AZ91: 0 | BA91: 0 | BB91: 0 | BC91: 0 | BD91: 0 | BE91: 0 | BF91: 0 | BG91: 0 | BH91: 0 | BI91: 0 | BJ91: 0 | BK91: =IF(Entry!H$9=3600,BI91,IF(Entry!H$9=4200,BJ91,IF(Entry!H$9=4800,BL91,IF(Entry!H$9=2800,BM91,BN91)))) -> 0 | BL91: 0 | BM91: 0 | BN91: 0
K92: 28 | L92: 0 | M92: 2020-02-01 | N92: 0 | O92: 0 | P92: 0 | Q92: 0 | R92: 8 | S92: 0 | T92: 0 | V92: 0 | Y92: 0 | Z92: 0 | AA92: 0 | AC92: 0 | AE92: 0 | AK92: 0 | AL92: 0 | AM92: 0 | AN92: 0 | AO92: 0 | AP92: 17 | AQ92: 2020-02-01 | AR92: 0 | AS92: 0 | AT92: 0 | AU92: 0 | AV92: 0 | AW92: =IF(ROUND((AR92*8%)-(AS92*8%),0)<1,0,ROUND((AR92*8%)-(AS92*8%),0)) -> 0 | AX92: FALSE | AY92: 0 | AZ92: 0 | BA92: 0 | BB92: 0 | BC92: 0 | BD92: 0 | BE92: 0 | BF92: 0 | BG92: 0 | BH92: 0 | BI92: 0 | BJ92: 0 | BK92: =IF(Entry!H$9=3600,BI92,IF(Entry!H$9=4200,BJ92,IF(Entry!H$9=4800,BL92,IF(Entry!H$9=2800,BM92,BN92)))) -> 0 | BL92: 0 | BM92: 0 | BN92: 0
K93: 31 | L93: 0 | M93: 2020-03-01 | N93: 0 | O93: 0 | P93: 0 | Q93: 0 | R93: 8 | S93: 0 | T93: 0 | V93: 0 | Y93: 0 | Z93: 0 | AA93: 0 | AC93: 0 | AE93: 0 | AK93: 0 | AL93: 0 | AM93: 0 | AN93: 0 | AO93: 0 | AP93: 17 | AQ93: 2020-03-01 | AR93: 0 | AS93: 0 | AT93: 0 | AU93: 0 | AV93: 0 | AW93: =IF(ROUND((AR93*8%)-(AS93*8%),0)<1,0,ROUND((AR93*8%)-(AS93*8%),0)) -> 0 | AX93: FALSE | AY93: 0 | AZ93: 0 | BA93: 0 | BB93: =IF(AR93<1,0,IF(AR93<=8500,330,IF(AR93<=11000,450,IF(AR93<=18000,900,IF(AR93<=28000,1300,IF(AR93<=28000,2200)))))) -> 0 | BC93: =IF(AS93<1,0,IF(AS93<=8500,330,IF(AS93<=11000,450,IF(AS93<=18000,900,IF(AS93<=28000,1300,IF(AS93<=28000,2200)))))) -> 0 | BD93: 0 | BE93: 0 | BF93: 0 | BG93: 0 | BH93: 0 | BI93: 0 | BJ93: 0 | BK93: =IF(Entry!H$9=3600,BI93,IF(Entry!H$9=4200,BJ93,IF(Entry!H$9=4800,BL93,IF(Entry!H$9=2800,BM93,BN93)))) -> 0 | BL93: 0 | BM93: 0 | BN93: 0
K94: 30 | L94: 0 | M94: 2020-04-01 | N94: 0 | O94: 0 | P94: 0 | Q94: 0 | R94: 8 | S94: 0 | T94: 0 | V94: 0 | Y94: 0 | Z94: 0 | AA94: 0 | AC94: 0 | AE94: 0 | AK94: 0 | AL94: 0 | AM94: 0 | AN94: 0 | AO94: 0 | AP94: 17 | AQ94: 2020-04-01 | AR94: 0 | AS94: 0 | AT94: 0 | AU94: 0 | AV94: 0 | AX94: FALSE | AY94: 0 | AZ94: 0 | BA94: 0 | BB94: =IF(AR94<1,0,IF(AR94<=8500,330,IF(AR94<=11000,450,IF(AR94<=18000,900,IF(AR94<=28000,1300,IF(AR94<=28000,2200)))))) -> 0 | BC94: =IF(AS94<1,0,IF(AS94<=8500,330,IF(AS94<=11000,450,IF(AS94<=18000,900,IF(AS94<=28000,1300,IF(AS94<=28000,2200)))))) -> 0 | BD94: 0 | BE94: 0 | BF94: 0 | BG94: 0 | BH94: 0 | BI94: 0 | BJ94: 0 | BK94: =IF(Entry!H$9=3600,BI94,IF(Entry!H$9=4200,BJ94,IF(Entry!H$9=4800,BL94,IF(Entry!H$9=2800,BM94,BN94)))) -> 0 | BL94: 0 | BM94: 0 | BN94: 0
K95: 31 | L95: 0 | M95: 2020-05-01 | N95: 0 | O95: 0 | P95: 0 | Q95: 0 | R95: 8 | S95: 0 | T95: 0 | V95: 0 | Y95: 0 | Z95: 0 | AA95: 0 | AC95: 0 | AE95: 0 | AK95: 0 | AL95: 0 | AM95: 0 | AN95: 0 | AO95: 0 | AP95: 17 | AQ95: 2020-05-01 | AR95: 0 | AS95: 0 | AT95: 0 | AU95: 0 | AV95: 0 | AX95: FALSE | AY95: 0 | AZ95: 0 | BA95: 0 | BB95: =IF(AR95<1,0,IF(AR95<=8500,330,IF(AR95<=11000,450,IF(AR95<=18000,900,IF(AR95<=28000,1300,IF(AR95<=28000,2200)))))) -> 0 | BC95: 0 | BD95: 0 | BE95: 0 | BF95: 0 | BG95: 0 | BH95: 0 | BI95: 0 | BJ95: 0 | BK95: =IF(Entry!H$9=3600,BI95,IF(Entry!H$9=4200,BJ95,IF(Entry!H$9=4800,BL95,IF(Entry!H$9=2800,BM95,BN95)))) -> 0 | BL95: 0 | BM95: 0 | BN95: 0
K96: 30 | L96: 0 | M96: 2020-06-01 | N96: 0 | O96: 0 | P96: 0 | Q96: 0 | R96: 8 | S96: 0 | T96: 0 | V96: 0 | Y96: 0 | Z96: 0 | AA96: 0 | AC96: 0 | AE96: 0 | AK96: 0 | AL96: 0 | AM96: 0 | AN96: 0 | AO96: 0 | AP96: 17 | AQ96: 2020-06-01 | AR96: 0 | AS96: 0 | AT96: 0 | AU96: 0 | AV96: 0 | AX96: FALSE | AY96: 0 | AZ96: 0 | BA96: 0 | BB96: =IF(AR96<1,0,IF(AR96<=8500,330,IF(AR96<=11000,450,IF(AR96<=18000,900,IF(AR96<=28000,1300,IF(AR96<=28000,2200)))))) -> 0 | BC96: 0 | BD96: 0 | BE96: 0 | BF96: 0 | BG96: 0 | BH96: 0 | BI96: 0 | BJ96: 0 | BK96: =IF(Entry!H$9=3600,BI96,IF(Entry!H$9=4200,BJ96,IF(Entry!H$9=4800,BL96,IF(Entry!H$9=2800,BM96,BN96)))) -> 0 | BL96: 0 | BM96: 0 | BN96: 0
K97: 31 | L97: 0 | M97: 2020-07-01 | N97: 0 | O97: 0 | P97: 0 | Q97: 0 | R97: 8 | S97: 0 | T97: 0 | V97: 0 | Y97: 0 | Z97: 0 | AA97: 0 | AC97: 0 | AE97: 0 | AK97: 0 | AL97: 0 | AM97: 0 | AN97: 0 | AO97: 0 | AP97: 17 | AQ97: 2020-07-01 | AR97: 0 | AS97: 0 | AT97: 0 | AU97: 0 | AV97: 0 | AW97: =IF(ROUND((AR97*10%)-(AS97*10%),0)<1,0,ROUND((AR97*10%)-(AS97*10%),0)) -> 0 | AX97: FALSE | AY97: =IF(AR97<1,0,IF(AR97<=7000,100,IF(AR97<=13000,160,IF(AR97<=21000,235,IF(AR97>21000,325))))) -> 0 | AZ97: =IF(AS97<1,0,IF(AS97<=7000,100,IF(AS97<=13000,160,IF(AS97<=21000,235,IF(AS97>21000,325))))) -> 0 | BA97: 0 | BB97: =IF(AR97<1,0,IF(AR97<=8500,330,IF(AR97<=11000,450,IF(AR97<=18000,900,IF(AR97<=28000,1300,IF(AR97<=28000,2200)))))) -> 0 | BC97: 0 | BD97: 0 | BE97: 0 | BF97: 0 | BG97: 0 | BH97: 0 | BI97: 0 | BJ97: 0 | BK97: =IF(Entry!H$9=3600,BI97,IF(Entry!H$9=4200,BJ97,IF(Entry!H$9=4800,BL97,IF(Entry!H$9=2800,BM97,BN97)))) -> 0 | BL97: 0 | BM97: 0 | BN97: 0
K98: 31 | L98: 0 | M98: 2020-08-01 | N98: 0 | O98: 0 | P98: 0 | Q98: 0 | R98: 8 | S98: 0 | T98: 0 | V98: 0 | Y98: 0 | Z98: 0 | AA98: 0 | AC98: 0 | AE98: 0 | AK98: 0 | AL98: 0 | AM98: 0 | AN98: 0 | AO98: 0 | AP98: 17 | AQ98: 2020-08-01 | AR98: 0 | AS98: 0 | AT98: 0 | AU98: 0 | AV98: 0 | AW98: =IF(ROUND((AR98*10%)-(AS98*10%),0)<1,0,ROUND((AR98*10%)-(AS98*10%),0)) -> 0 | AX98: FALSE | AY98: =IF(AR98<1,0,IF(AR98<=7000,100,IF(AR98<=13000,160,IF(AR98<=21000,235,IF(AR98>21000,325))))) -> 0 | AZ98: 0 | BA98: 0 | BB98: =IF(AR98<1,0,IF(AR98<=8500,330,IF(AR98<=11000,450,IF(AR98<=18000,900,IF(AR98<=28000,1300,IF(AR98>=28000,2200)))))) -> 0 | BC98: 0 | BD98: 0 | BE98: 0 | BF98: 0 | BG98: 0 | BH98: 0 | BI98: 0 | BJ98: 0 | BK98: =IF(Entry!H$9=3600,BI98,IF(Entry!H$9=4200,BJ98,IF(Entry!H$9=4800,BL98,IF(Entry!H$9=2800,BM98,BN98)))) -> 0 | BL98: 0 | BM98: 0 | BN98: 0
K99: 30 | L99: 0 | M99: 2020-09-01 | N99: 0 | O99: 0 | P99: 0 | Q99: 0 | R99: 8 | S99: 0 | T99: 0 | V99: 0 | Y99: 0 | Z99: 0 | AA99: 0 | AC99: 0 | AE99: 0 | AK99: 0 | AL99: 0 | AM99: 0 | AN99: 0 | AO99: 0 | AP99: 17 | AQ99: 2020-09-01 | AR99: 0 | AS99: 0 | AT99: 0 | AU99: 0 | AV99: 0 | AW99: =IF(ROUND((AR99*10%)-(AS99*10%),0)<1,0,ROUND((AR99*10%)-(AS99*10%),0)) -> 0 | AX99: FALSE | AY99: 0 | AZ99: 0 | BA99: 0 | BB99: =IF(AR99<1,0,IF(AR99<=8500,330,IF(AR99<=11000,450,IF(AR99<=18000,900,IF(AR99<=28000,1300,IF(AR99>=28000,2200)))))) -> 0 | BC99: 0 | BD99: 0 | BE99: 0 | BF99: 0 | BG99: 0 | BH99: 0 | BI99: 0 | BJ99: 0 | BK99: =IF(Entry!H$9=3600,BI99,IF(Entry!H$9=4200,BJ99,IF(Entry!H$9=4800,BL99,IF(Entry!H$9=2800,BM99,BN99)))) -> 0 | BL99: 0 | BM99: 0 | BN99: 0
K100: 31 | L100: 0 | M100: 2020-10-01 | N100: 0 | O100: 0 | P100: 0 | Q100: 0 | R100: 8 | S100: 0 | T100: 0 | V100: 0 | Y100: 0 | Z100: 0 | AA100: 0 | AC100: 0 | AE100: 0 | AK100: 0 | AL100: 0 | AM100: 0 | AN100: 0 | AO100: 0 | AP100: 17 | AQ100: 2020-10-01 | AR100: 0 | AS100: 0 | AT100: 0 | AU100: 0 | AV100: 0 | AX100: FALSE | AY100: 0 | AZ100: 0 | BA100: 0 | BB100: 0 | BC100: 0 | BD100: 0 | BE100: 0 | BF100: 0 | BG100: 0 | BH100: 0 | BI100: 0 | BJ100: 0 | BK100: =IF(Entry!H$9=3600,BI100,IF(Entry!H$9=4200,BJ100,IF(Entry!H$9=4800,BL100,IF(Entry!H$9=2800,BM100,BN100)))) -> 0 | BL100: 0 | BM100: 0 | BN100: 0
K101: 30 | L101: 0 | M101: 2020-11-01 | N101: 0 | O101: 0 | P101: 0 | Q101: 0 | R101: 8 | S101: 0 | T101: 0 | V101: 0 | Y101: 0 | Z101: 0 | AA101: 0 | AC101: 0 | AE101: 0 | AK101: 0 | AL101: 0 | AM101: 0 | AN101: 0 | AO101: 0 | AP101: 17 | AQ101: 2020-11-01 | AR101: 0 | AS101: 0 | AT101: 0 | AU101: 0 | AV101: 0 | AX101: FALSE | AY101: 0 | AZ101: 0 | BA101: 0 | BB101: 0 | BC101: 0 | BD101: 0 | BE101: 0 | BF101: 0 | BG101: 0 | BH101: 0 | BI101: 0 | BJ101: 0 | BK101: =IF(Entry!H$9=3600,BI101,IF(Entry!H$9=4200,BJ101,IF(Entry!H$9=4800,BL101,IF(Entry!H$9=2800,BM101,BN101)))) -> 0 | BL101: 0 | BM101: 0 | BN101: 0
K102: 31 | L102: 0 | M102: 2020-12-01 | N102: 0 | O102: 0 | P102: 0 | Q102: 0 | R102: 8 | S102: 0 | T102: 0 | V102: 0 | Y102: 0 | Z102: 0 | AA102: 0 | AC102: 0 | AE102: 0 | AK102: 0 | AL102: 0 | AM102: 0 | AN102: 0 | AO102: 0 | AP102: 17 | AQ102: 2020-12-01 | AR102: 0 | AS102: 0 | AT102: 0 | AU102: 0 | AV102: 0 | AX102: FALSE | AY102: 0 | AZ102: 0 | BA102: 0 | BB102: 0 | BC102: 0 | BD102: 0 | BE102: 0 | BF102: 0 | BG102: 0 | BH102: 0 | BI102: 0 | BJ102: 0 | BK102: =IF(Entry!H$9=3600,BI102,IF(Entry!H$9=4200,BJ102,IF(Entry!H$9=4800,BL102,IF(Entry!H$9=2800,BM102,BN102)))) -> 0 | BL102: 0 | BM102: 0 | BN102: 0
K103: 31 | L103: 0 | M103: 2021-01-01 | N103: 0 | O103: 0 | P103: 0 | Q103: 0 | R103: 8 | S103: 0 | T103: 0 | V103: 0 | Y103: 0 | Z103: 0 | AA103: 0 | AC103: 0 | AE103: 0 | AK103: 0 | AL103: 0 | AM103: 0 | AN103: 0 | AO103: 0 | AP103: 17 | AQ103: 2021-01-01 | AR103: 0 | AS103: 0 | AT103: 0 | AU103: 0 | AV103: 0 | AW103: =IF(ROUND((AR103*6%)-(AS103*6%),0)<1,0,ROUND((AR103*6%)-(AS103*6%),0)) -> 0 | AX103: FALSE | AY103: =IF(AR103<1,0,IF(AR103<=7000,115,IF(AR103<=13000,190,IF(AR103<=21000,280,IF(AR103>21000,385))))) -> 0 | AZ103: =IF(AS103<1,0,IF(AS103<=7000,115,IF(AS103<=13000,190,IF(AS103<=21000,280,IF(AS103>21000,385))))) -> 0 | BA103: 0 | BB103: 0 | BC103: 0 | BD103: 0 | BE103: 0 | BF103: 0 | BG103: 0 | BH103: 0 | BI103: 0 | BJ103: 0 | BK103: =IF(Entry!H$9=3600,BI103,IF(Entry!H$9=4200,BJ103,IF(Entry!H$9=4800,BL103,IF(Entry!H$9=2800,BM103,BN103)))) -> 0 | BL103: 0 | BM103: 0 | BN103: 0
K104: 28 | L104: 1 | M104: 2021-02-01 | N104: 28971 | O104: 4925 | P104: 0 | Q104: 2318 | R104: 8 | S104: 36214 | T104: 20314 | V104: 0 | Y104: 20314 | Z104: 8657 | AA104: 4925 | AC104: 2318 | AE104: 15900 | AK104: 0 | AL104: 15900 | AM104: 3390 | AN104: 2031 | AO104: 1359 | AP104: 17 | AQ104: 2021-02-01 | AR104: 1030 | AS104: 33800 | AT104: 500 | AU104: 5200 | AV104: 0 | AW104: =IF(ROUND((AR104*6%)-(AS104*6%),0)<1,0,ROUND((AR104*6%)-(AS104*6%),0)) -> 0 | AX104: FALSE | AY104: =IF(AR104<1,0,IF(AR104<=7000,115,IF(AR104<=13000,190,IF(AR104<=21000,280,IF(AR104>21000,385))))) -> 115 | AZ104: 385 | BA104: 0 | BB104: 330 | BC104: FALSE | BD104: =IF((MONTH(AQ104))=3,(BB104-BC104),BD103) -> 0 | BE104: 480 | BF104: 240 | BG104: 480 | BH104: 240 | BI104: 10286 | BJ104: 11417 | BK104: =IF(Entry!H$9=3600,BI104,IF(Entry!H$9=4200,BJ104,IF(Entry!H$9=4800,BL104,IF(Entry!H$9=2800,BM104,BN104)))) -> 6943 | BL104: 13423 | BM104: 9206 | BN104: 6943
K105: 31 | L105: 2 | M105: 2021-03-01 | N105: 33800 | O105: 5746 | P105: 0 | Q105: 2704 | R105: 8 | S105: 42250 | T105: 23700 | V105: 0 | Y105: 23700 | Z105: 10100 | AA105: 5746 | AC105: 2704 | AE105: 18550 | AH105: =IF(AND(AE105>0,Entry!E14=""),2200, Entry!E14) -> 2200 | AK105: 2200 | AL105: 16350 | AM105: 3955 | AN105: 2370 | AO105: 1585 | AP105: 17 | AQ105: 2021-03-01 | AR105: 1030 | AS105: 33800 | AT105: 500 | AU105: 5200 | AV105: 0 | AW105: =IF(ROUND((AR105*6%)-(AS105*6%),0)<1,0,ROUND((AR105*6%)-(AS105*6%),0)) -> 0 | AX105: FALSE | AY105: 115 | AZ105: 385 | BA105: 0 | BB105: 330 | BC105: FALSE | BD105: 330 | BE105: 480 | BF105: 240 | BG105: 480 | BH105: 240 | BI105: 12000 | BJ105: 13320 | BK105: =IF(Entry!H$9=3600,BI105,IF(Entry!H$9=4200,BJ105,IF(Entry!H$9=4800,BL105,IF(Entry!H$9=2800,BM105,BN105)))) -> 8100 | BL105: 15660 | BM105: 10740 | BN105: 8100
K106: 30 | L106: 3 | M106: 2021-04-01 | N106: 33800 | O106: 5746 | P106: 0 | Q106: 2704 | R106: 8 | S106: 42250 | T106: 23700 | V106: 0 | Y106: 23700 | Z106: 10100 | AA106: 5746 | AC106: 2704 | AE106: 18550 | AH106: =IF(AE106>0,AH105,0) -> 2200 | AK106: 2200 | AL106: 16350 | AM106: 3955 | AN106: 2370 | AO106: 1585 | AP106: 17 | AQ106: 2021-04-01 | AR106: 1030 | AS106: 33800 | AT106: 500 | AU106: 5200 | AV106: 0 | AX106: FALSE | AY106: 115 | AZ106: 385 | BA106: 0 | BB106: 330 | BC106: FALSE | BD106: 330 | BE106: 480 | BF106: 240 | BG106: 480 | BH106: 240 | BI106: 12000 | BJ106: 13320 | BK106: =IF(Entry!H$9=3600,BI106,IF(Entry!H$9=4200,BJ106,IF(Entry!H$9=4800,BL106,IF(Entry!H$9=2800,BM106,BN106)))) -> 8100 | BL106: 15660 | BM106: 10740 | BN106: 8100
K107: 31 | L107: 4 | M107: 2021-05-01 | N107: 33800 | O107: 5746 | P107: 0 | Q107: 2704 | R107: 8 | S107: 42250 | T107: 23700 | V107: 0 | Y107: 23700 | Z107: 10100 | AA107: 5746 | AC107: 2704 | AE107: 18550 | AH107: =IF(AE107>0,AH106,0) -> 2200 | AK107: 2200 | AL107: 16350 | AM107: 3955 | AN107: 2370 | AO107: 1585 | AP107: 17 | AQ107: 2021-05-01 | AR107: 1030 | AS107: 33800 | AT107: 500 | AU107: 5200 | AV107: 0 | AX107: FALSE | AY107: 115 | AZ107: 385 | BA107: 0 | BB107: 330 | BC107: FALSE | BD107: 330 | BE107: =IF(N107<1,0,IF(N107<=7000,130,IF(N107<=10000,190,IF(N107<=13000,300,IF(N107>13000,480))))) -> 480 | BF107: =IF(N107<1,0,IF(N107<=7000,50,IF(N107<=10000,70,IF(N107<=13000,130,IF(N107>13000,240))))) -> 240 | BG107: =IF(T107<1,0,IF(T107<=7000,130,IF(T107<=10000,190,IF(T107<=13000,300,IF(T107>13000,480))))) -> 480 | BH107: =IF(T107<1,0,IF(T107<=7000,50,IF(T107<=10000,70,IF(T107<=13000,130,IF(T107>13000,240))))) -> 240 | BI107: 12000 | BJ107: 13320 | BK107: =IF(Entry!H$9=3600,BI107,IF(Entry!H$9=4200,BJ107,IF(Entry!H$9=4800,BL107,IF(Entry!H$9=2800,BM107,BN107)))) -> 8100 | BL107: 15660 | BM107: 10740 | BN107: 8100
K108: 30 | L108: 5 | M108: 2021-06-01 | N108: 33800 | O108: 5746 | P108: 0 | Q108: 2704 | R108: 8 | S108: 42250 | T108: 23700 | V108: 0 | Y108: 23700 | Z108: 10100 | AA108: 5746 | AC108: 2704 | AE108: 18550 | AH108: 2200 | AK108: 2200 | AL108: 16350 | AM108: 3955 | AN108: 2370 | AO108: 1585 | AP108: 17 | AQ108: 2021-06-01 | AR108: 1030 | AS108: 33800 | AT108: 500 | AU108: 5200 | AV108: 0 | AX108: FALSE | AY108: 115 | AZ108: 385 | BA108: 0 | BB108: 330 | BC108: FALSE | BD108: 330 | BE108: 480 | BF108: 240 | BG108: 480 | BH108: 240 | BI108: 12000 | BJ108: 13320 | BK108: =IF(Entry!H$9=3600,BI108,IF(Entry!H$9=4200,BJ108,IF(Entry!H$9=4800,BL108,IF(Entry!H$9=2800,BM108,BN108)))) -> 8100 | BL108: 15660 | BM108: 10740 | BN108: 8100
K109: 31 | L109: 6 | M109: 2021-07-01 | N109: 34800 | O109: 9744 | P109: 0 | Q109: =ROUND((N109)*(IF(G$4=0,0,G$5/100)),0) -> 3132 | R109: =$G$5 -> 9 | S109: 47676 | T109: 23700 | V109: 0 | Y109: 23700 | Z109: 11100 | AA109: 9744 | AC109: 3132 | AE109: 23976 | AH109: 2200 | AK109: 2200 | AL109: 21776 | AM109: 4454 | AN109: 2370 | AO109: 2084 | AP109: =IF(Entry!L12="",About!AP108,Entry!L12) -> 28 | AQ109: =M109 -> 2021-07-01 | AR109: =IF(N109=0,0,(IF(ISNA(LOOKUP(M109,U$2:U$11,X$2:X$11)),0,LOOKUP(M109,U$2:U$11,X$2:X$11)))) -> 1070 | AS109: 34800 | AT109: 500 | AU109: 5200 | AV109: 0 | AW109: =ROUND(N109*7%,0)-ROUND(T109*7%,0) -> 777 | AX109: FALSE | AY109: =IF(AR109<1,0,IF(AR109<=7000,130,IF(AR109<=13000,220,IF(AR109<=21000,325,IF(AR109>21000,445))))) -> 130 | AZ109: =IF(AS109<1,0,IF(AS109<=7000,130,IF(AS109<=13000,220,IF(AS109<=21000,325,IF(AS109>21000,445))))) -> 445 | BA109: 0 | BB109: 330 | BC109: 2200 | BD109: 330 | BE109: 480 | BF109: 240 | BG109: 480 | BH109: 240 | BI109: 12000 | BJ109: 13320 | BK109: =IF(Entry!H$9=3600,BI109,IF(Entry!H$9=4200,BJ109,IF(Entry!H$9=4800,BL109,IF(Entry!H$9=2800,BM109,BN109)))) -> 8100 | BL109: 15660 | BM109: 10740 | BN109: 8100
K110: 31 | L110: 7 | M110: 2021-08-01 | N110: 34800 | O110: 9744 | P110: 0 | Q110: =ROUND((N110)*(IF(G$4=0,0,G$5/100)),0) -> 3132 | R110: =$G$5 -> 9 | S110: 47676 | T110: 23700 | V110: 0 | Y110: 23700 | Z110: 11100 | AA110: 9744 | AC110: 3132 | AE110: 23976 | AH110: 2200 | AK110: 2200 | AL110: 21776 | AM110: 4454 | AN110: 2370 | AO110: 2084 | AP110: 28 | AQ110: 2021-08-01 | AR110: =IF(N110=0,0,(IF(ISNA(LOOKUP(M110,U$2:U$11,X$2:X$11)),0,LOOKUP(M110,U$2:U$11,X$2:X$11)))) -> 1070 | AS110: 34800 | AT110: 500 | AU110: 5200 | AV110: 0 | AW110: =ROUND(N110*7%,0)-ROUND(T110*7%,0) -> 777 | AX110: FALSE | AY110: =IF(AR110<1,0,IF(AR110<=7000,130,IF(AR110<=13000,220,IF(AR110<=21000,325,IF(AR110>21000,445))))) -> 130 | AZ110: 445 | BA110: 0 | BB110: 330 | BC110: 2200 | BD110: 330 | BE110: 480 | BF110: 240 | BG110: 480 | BH110: 240 | BI110: 12000 | BJ110: 13320 | BK110: =IF(Entry!H$9=3600,BI110,IF(Entry!H$9=4200,BJ110,IF(Entry!H$9=4800,BL110,IF(Entry!H$9=2800,BM110,BN110)))) -> 8100 | BL110: 15660 | BM110: 10740 | BN110: 8100
K111: 30 | L111: 0 | M111: 2021-09-01 | N111: 0 | O111: 0 | P111: 0 | Q111: 0 | R111: 9 | S111: 0 | T111: 0 | V111: 0 | Y111: 0 | Z111: 0 | AA111: 0 | AC111: 0 | AE111: 0 | AH111: 0 | AK111: 0 | AL111: 0 | AM111: 0 | AN111: 0 | AO111: 0 | AP111: 28 | AQ111: 2021-09-01 | AR111: 0 | AS111: 0 | AT111: 0 | AU111: 0 | AV111: 0 | AX111: FALSE | AY111: 0 | AZ111: 0 | BA111: 0 | BB111: 0 | BC111: 0 | BD111: 330 | BE111: 0 | BF111: 0 | BG111: 0 | BH111: 0 | BI111: 0 | BJ111: 0 | BK111: =IF(Entry!H$9=3600,BI111,IF(Entry!H$9=4200,BJ111,IF(Entry!H$9=4800,BL111,IF(Entry!H$9=2800,BM111,BN111)))) -> 0 | BL111: 0 | BM111: 0 | BN111: 0
K112: 31 | L112: 0 | M112: 2021-10-01 | N112: 0 | O112: 0 | P112: 0 | Q112: 0 | R112: 9 | S112: 0 | T112: 0 | V112: 0 | Y112: 0 | Z112: 0 | AA112: 0 | AC112: 0 | AE112: 0 | AH112: 0 | AK112: 0 | AL112: 0 | AM112: 0 | AN112: 0 | AO112: 0 | AP112: 28 | AQ112: 2021-10-01 | AR112: 0 | AS112: 0 | AT112: 0 | AU112: 0 | AV112: 0 | AX112: FALSE | AY112: 0 | AZ112: 0 | BA112: 0 | BB112: 0 | BC112: 0 | BD112: 330 | BE112: 0 | BF112: 0 | BG112: 0 | BH112: 0 | BI112: 0 | BJ112: 0 | BK112: =IF(Entry!H$9=3600,BI112,IF(Entry!H$9=4200,BJ112,IF(Entry!H$9=4800,BL112,IF(Entry!H$9=2800,BM112,BN112)))) -> 0 | BL112: 0 | BM112: 0 | BN112: 0
K113: 30 | L113: 0 | M113: 2021-11-01 | N113: 0 | O113: 0 | P113: 0 | Q113: 0 | R113: 9 | S113: 0 | T113: 0 | V113: 0 | Y113: 0 | Z113: 0 | AA113: 0 | AC113: 0 | AE113: 0 | AH113: 0 | AK113: 0 | AL113: 0 | AM113: 0 | AN113: 0 | AO113: 0 | AP113: 28 | AQ113: 2021-11-01 | AR113: 0 | AS113: 0 | AT113: 0 | AU113: 0 | AV113: 0 | AX113: FALSE | AY113: 0 | AZ113: 0 | BA113: =IF(AY113>AZ113,AY113-AZ113,0) -> 0 | BB113: =IF(AR113<1,0,IF(AR113<=8500,330,IF(AR113<=11000,450,IF(AR113<=18000,900,IF(AR113<=28000,1300,IF(AR113>=28000,2200)))))) -> 0 | BC113: 0 | BD113: 330 | BE113: 0 | BF113: 0 | BG113: 0 | BH113: 0 | BI113: 0 | BJ113: 0 | BK113: =IF(Entry!H$9=3600,BI113,IF(Entry!H$9=4200,BJ113,IF(Entry!H$9=4800,BL113,IF(Entry!H$9=2800,BM113,BN113)))) -> 0 | BL113: 0 | BM113: 0 | BN113: 0
K114: 31 | L114: 0 | M114: 2021-12-01 | N114: 0 | O114: 0 | P114: 0 | Q114: 0 | R114: 9 | S114: 0 | T114: 0 | V114: 0 | Y114: 0 | Z114: 0 | AA114: 0 | AC114: 0 | AE114: 0 | AH114: 0 | AK114: 0 | AL114: 0 | AM114: 0 | AN114: 0 | AO114: 0 | AP114: 28 | AQ114: 2021-12-01 | AR114: 0 | AS114: 0 | AT114: 0 | AU114: 0 | AV114: 0 | AX114: FALSE | AY114: 0 | AZ114: 0 | BA114: =IF(AY114>AZ114,AY114-AZ114,0) -> 0 | BB114: =IF(AR114<1,0,IF(AR114<=8500,330,IF(AR114<=11000,450,IF(AR114<=18000,900,IF(AR114<=28000,1300,IF(AR114>=28000,2200)))))) -> 0 | BC114: 0 | BD114: 330 | BE114: 0 | BF114: 0 | BG114: 0 | BH114: 0 | BI114: 0 | BJ114: 0 | BK114: =IF(Entry!H$9=3600,BI114,IF(Entry!H$9=4200,BJ114,IF(Entry!H$9=4800,BL114,IF(Entry!H$9=2800,BM114,BN114)))) -> 0 | BL114: 0 | BM114: 0 | BN114: 0
K115: 31 | L115: 0 | M115: 2022-01-01 | N115: 0 | O115: 0 | P115: 0 | Q115: 0 | R115: 9 | S115: 0 | T115: 0 | V115: 0 | Y115: 0 | Z115: 0 | AA115: 0 | AC115: 0 | AE115: 0 | AH115: 0 | AK115: 0 | AL115: 0 | AM115: 0 | AN115: 0 | AO115: 0 | AP115: 28 | AQ115: 2022-01-01 | AR115: 0 | AS115: 0 | AT115: 0 | AU115: 0 | AV115: 0 | AW115: =ROUND(N115*7%,0)-ROUND(T115*7%,0) -> 0 | AX115: FALSE | AY115: 0 | AZ115: 0 | BA115: =IF(AY115>AZ115,AY115-AZ115,0) -> 0 | BB115: =IF(AR115<1,0,IF(AR115<=8500,330,IF(AR115<=11000,450,IF(AR115<=18000,900,IF(AR115<=28000,1300,IF(AR115>=28000,2200)))))) -> 0 | BC115: =IF(AS115<1,0,IF(AS115<=8500,330,IF(AS115<=11000,450,IF(AS115<=18000,900,IF(AS115<=28000,1300,IF(AS115>=28000,2200)))))) -> 0 | BD115: 330 | BE115: 0 | BF115: 0 | BG115: 0 | BH115: 0 | BI115: 0 | BJ115: 0 | BK115: =IF(Entry!H$9=3600,BI115,IF(Entry!H$9=4200,BJ115,IF(Entry!H$9=4800,BL115,IF(Entry!H$9=2800,BM115,BN115)))) -> 0 | BL115: 0 | BM115: 0 | BN115: 0
K116: 29 | L116: 0 | M116: 2022-02-01 | N116: 0 | O116: 0 | P116: 0 | Q116: 0 | R116: 9 | S116: 0 | T116: 0 | V116: 0 | Y116: 0 | Z116: 0 | AA116: 0 | AC116: 0 | AE116: 0 | AH116: 0 | AK116: 0 | AL116: 0 | AM116: 0 | AN116: 0 | AO116: 0 | AP116: 28 | AQ116: 2022-02-01 | AR116: 0 | AS116: 0 | AT116: 0 | AU116: 0 | AV116: 0 | AW116: =ROUND(N116*7%,0)-ROUND(T116*7%,0) -> 0 | AX116: FALSE | AY116: 0 | AZ116: 0 | BA116: =IF(AY116>AZ116,AY116-AZ116,0) -> 0 | BB116: =IF(AR116<1,0,IF(AR116<=8500,330,IF(AR116<=11000,450,IF(AR116<=18000,900,IF(AR116<=28000,1300,IF(AR116>=28000,2200)))))) -> 0 | BC116: 0 | BD116: 330 | BE116: 0 | BF116: 0 | BG116: 0 | BH116: 0 | BI116: 0 | BJ116: 0 | BK116: =IF(Entry!H$9=3600,BI116,IF(Entry!H$9=4200,BJ116,IF(Entry!H$9=4800,BL116,IF(Entry!H$9=2800,BM116,BN116)))) -> 0 | BL116: 0 | BM116: 0 | BN116: 0
K117: 31 | L117: 0 | M117: 2022-03-01 | N117: 0 | O117: 0 | P117: 0 | Q117: 0 | R117: 9 | S117: 0 | T117: 0 | V117: 0 | Y117: 0 | Z117: 0 | AA117: 0 | AC117: 0 | AE117: 0 | AH117: 0 | AK117: 0 | AL117: 0 | AM117: 0 | AN117: 0 | AO117: 0 | AP117: 28 | AQ117: 2022-03-01 | AR117: 0 | AS117: 0 | AT117: 0 | AU117: 0 | AV117: 0 | AW117: =ROUND(N117*7%,0)-ROUND(T117*7%,0) -> 0 | AX117: FALSE | AY117: 0 | AZ117: 0 | BA117: =IF(AY117>AZ117,AY117-AZ117,0) -> 0 | BB117: =IF(AR117<1,0,IF(AR117<=8500,330,IF(AR117<=11000,450,IF(AR117<=18000,900,IF(AR117<=28000,1300,IF(AR117>=28000,2200)))))) -> 0 | BC117: 0 | BD117: 0 | BE117: 0 | BF117: 0 | BG117: 0 | BH117: 0 | BI117: 0 | BJ117: 0 | BK117: =IF(Entry!H$9=3600,BI117,IF(Entry!H$9=4200,BJ117,IF(Entry!H$9=4800,BL117,IF(Entry!H$9=2800,BM117,BN117)))) -> 0 | BL117: 0 | BM117: 0 | BN117: 0
K118: 30 | L118: 0 | M118: 2022-04-01 | N118: 0 | O118: 0 | P118: 0 | Q118: 0 | R118: 9 | S118: 0 | T118: 0 | V118: 0 | Y118: 0 | Z118: 0 | AA118: 0 | AC118: 0 | AE118: 0 | AH118: 0 | AK118: 0 | AL118: 0 | AM118: 0 | AN118: 0 | AO118: 0 | AP118: 28 | AQ118: 2022-04-01 | AR118: 0 | AS118: 0 | AT118: 0 | AU118: 0 | AV118: 0 | AX118: FALSE | AY118: 0 | AZ118: 0 | BA118: 0 | BB118: 0 | BC118: 0 | BD118: 0 | BE118: 0 | BF118: 0 | BG118: 0 | BH118: 0 | BI118: 0 | BJ118: 0 | BK118: =IF(Entry!H$9=3600,BI118,IF(Entry!H$9=4200,BJ118,IF(Entry!H$9=4800,BL118,IF(Entry!H$9=2800,BM118,BN118)))) -> 0 | BL118: 0 | BM118: 0 | BN118: 0
K119: 31 | L119: 0 | M119: 2022-05-01 | N119: 0 | O119: 0 | P119: 0 | Q119: 0 | R119: 9 | S119: =SUM(N119:Q119) -> 0 | T119: 0 | V119: 0 | Y119: =SUM(T119:W119) -> 0 | Z119: 0 | AA119: 0 | AC119: 0 | AE119: =SUM(Z119:AC119) -> 0 | AH119: 0 | AK119: =SUM(AF119:AJ119) -> 0 | AL119: =AE119-AK119 -> 0 | AM119: 0 | AN119: 0 | AO119: 0 | AP119: 28 | AQ119: =M119 -> 2022-05-01 | AR119: 0 | AS119: 0 | AT119: 0 | AU119: 0 | AV119: 0 | AX119: FALSE | AY119: 0 | AZ119: 0 | BA119: 0 | BB119: 0 | BC119: 0 | BD119: 0 | BE119: 0 | BF119: 0 | BG119: 0 | BH119: 0 | BI119: =IF(L119=1,ROUND((12000*AA$30/Z$31),0),IF(L119=0,0,12000)) -> 0 | BJ119: 0 | BK119: =IF(Entry!H$9=3600,BI119,IF(Entry!H$9=4200,BJ119,IF(Entry!H$9=4800,BL119,IF(Entry!H$9=2800,BM119,BN119)))) -> 0 | BL119: 0 | BM119: 0 | BN119: 0
K120: 30 | L120: 0 | M120: 2022-06-01 | N120: =ROUND(IF(M120>=M$5,0,IF(AND(M120>T$30,M120<T$31),Q$34,IF(ISNA(LOOKUP(M120,T$30:T$42,U$30:U$42)),0,LOOKUP(M120,T$30:T$42,U$30:U$42)))),0) -> 0 | O120: =IF(F$3="N",0,(ROUND((N120)*(AP120%),0))) -> 0 | P120: 0 | Q120: 0 | R120: 9 | S120: 0 | T120: =IF(L120=1,ROUND((T$50*AA$30/Z$31),0),IF(L120=0,0,T$50)) -> 0 | V120: 0 | Y120: 0 | Z120: =N120-T120 -> 0 | AA120: =O120-U120 -> 0 | AC120: =Q120-W120 -> 0 | AE120: 0 | AH120: 0 | AK120: 0 | AL120: 0 | AM120: =ROUND((N120+O120)*10%,0) -> 0 | AN120: =ROUND((T120)*10%,0) -> 0 | AO120: =AM120-AN120 -> 0 | AP120: 28 | AQ120: 2022-06-01 | AR120: 0 | AS120: =(IF(N120=0,0,(LOOKUP(M120,Z$33:Z$42,AB$33:AB$42)))) -> 0 | AT120: 0 | AU120: 0 | AV120: 0 | AX120: FALSE | AY120: 0 | AZ120: 0 | BA120: 0 | BB120: 0 | BC120: 0 | BD120: 0 | BE120: 0 | BF120: 0 | BG120: 0 | BH120: 0 | BI120: =IF(L120=1,ROUND((12000*AA$30/Z$31),0),IF(L120=0,0,12000)) -> 0 | BJ120: =IF(L120=1,ROUND((13320*AA$30/Z$31),0),IF(L120=0,0,13320)) -> 0 | BK120: =IF(Entry!H$9=3600,BI120,IF(Entry!H$9=4200,BJ120,IF(Entry!H$9=4800,BL120,IF(Entry!H$9=2800,BM120,BN120)))) -> 0 | BL120: =IF(L120=1,ROUND((15660*AA$30/Z$31),0),IF(L120=0,0,15660)) -> 0 | BM120: =IF(L120=1,ROUND((10740*AA$30/Z$31),0),IF(L120=0,0,10740)) -> 0 | BN120: =IF(L120=1,ROUND((8100*AA$30/Z$31),0),IF(L120=0,0,8100)) -> 0
K121: 31 | L121: =IF(N121=0,0,(IF(N121=0,0,1)+MAX(L120))) -> 0 | M121: 2022-07-01 | N121: 0 | O121: 0 | P121: 0 | Q121: 0 | R121: 9 | S121: 0 | T121: 0 | V121: 0 | Y121: 0 | Z121: 0 | AA121: 0 | AC121: 0 | AE121: 0 | AH121: 0 | AK121: 0 | AL121: 0 | AM121: 0 | AN121: 0 | AO121: 0 | AP121: =AP120 -> 28 | AQ121: 2022-07-01 | AR121: 0 | AS121: 0 | AT121: 0 | AU121: 0 | AV121: 0 | AW121: =IF(J3=0,0,((ROUND(N121*(I$3%-K$3%),0)))-(ROUND(T121*(I$3%-K$3%),0))) -> 0 | AX121: FALSE | AY121: 0 | AZ121: 0 | BA121: 0 | BB121: 0 | BC121: 0 | BD121: 0 | BE121: 0 | BF121: 0 | BG121: 0 | BH121: 0 | BI121: =IF(L121=1,ROUND((12000*AA$30/Z$31),0),IF(L121=0,0,12000)) -> 0 | BJ121: 0 | BK121: =IF(Entry!H$9=3600,BI121,IF(Entry!H$9=4200,BJ121,IF(Entry!H$9=4800,BL121,IF(Entry!H$9=2800,BM121,BN121)))) -> 0 | BL121: 0 | BM121: 0 | BN121: 0
K122: 31 | L122: 0 | M122: 2022-08-01 | N122: 0 | O122: 0 | P122: 0 | Q122: 0 | R122: 9 | S122: 0 | T122: 0 | V122: 0 | Y122: 0 | Z122: 0 | AA122: 0 | AC122: 0 | AE122: 0 | AH122: 0 | AK122: 0 | AL122: 0 | AM122: 0 | AN122: 0 | AO122: 0 | AP122: 28 | AQ122: 2022-08-01 | AR122: 0 | AS122: 0 | AT122: 0 | AU122: 0 | AV122: 0 | AW122: 0 | AX122: FALSE | AY122: 0 | AZ122: 0 | BA122: 0 | BB122: 0 | BC122: 0 | BD122: 0 | BE122: 0 | BF122: 0 | BG122: 0 | BH122: 0 | BI122: =IF(L122=1,ROUND((12000*AA$30/Z$31),0),IF(L122=0,0,12000)) -> 0 | BJ122: 0 | BK122: =IF(Entry!H$9=3600,BI122,IF(Entry!H$9=4200,BJ122,IF(Entry!H$9=4800,BL122,IF(Entry!H$9=2800,BM122,BN122)))) -> 0 | BL122: 0 | BM122: 0 | BN122: 0
K123: 30 | L123: 0 | M123: 2022-09-01 | N123: 0 | O123: 0 | P123: 0 | Q123: 0 | R123: 9 | S123: 0 | T123: 0 | V123: 0 | Y123: 0 | Z123: 0 | AA123: 0 | AC123: 0 | AE123: 0 | AH123: 0 | AK123: 0 | AL123: 0 | AM123: 0 | AN123: 0 | AO123: 0 | AP123: 28 | AQ123: 2022-09-01 | AR123: 0 | AS123: 0 | AT123: 0 | AU123: 0 | AV123: 0 | AW123: 0 | AX123: FALSE | AY123: 0 | AZ123: 0 | BA123: 0 | BB123: 0 | BC123: 0 | BD123: 0 | BE123: 0 | BF123: 0 | BG123: 0 | BH123: 0 | BI123: =IF(L123=1,ROUND((12000*AA$30/Z$31),0),IF(L123=0,0,12000)) -> 0 | BJ123: 0 | BK123: =IF(Entry!H$9=3600,BI123,IF(Entry!H$9=4200,BJ123,IF(Entry!H$9=4800,BL123,IF(Entry!H$9=2800,BM123,BN123)))) -> 0 | BL123: 0 | BM123: 0 | BN123: 0
K124: 31 | L124: 0 | M124: 2022-10-01 | N124: 0 | O124: 0 | P124: 0 | Q124: 0 | R124: 9 | S124: 0 | T124: 0 | V124: 0 | Y124: 0 | Z124: 0 | AA124: 0 | AC124: 0 | AE124: 0 | AH124: 0 | AK124: 0 | AL124: 0 | AM124: 0 | AN124: 0 | AO124: 0 | AP124: 28 | AQ124: 2022-10-01 | AR124: 0 | AS124: 0 | AT124: 0 | AU124: 0 | AV124: 0 | AW124: 0 | AX124: FALSE | AY124: 0 | AZ124: 0 | BA124: 0 | BB124: 0 | BC124: 0 | BD124: 0 | BE124: 0 | BF124: 0 | BG124: 0 | BH124: 0 | BI124: 0 | BJ124: 0 | BK124: =IF(Entry!H$9=3600,BI124,IF(Entry!H$9=4200,BJ124,IF(Entry!H$9=4800,BL124,IF(Entry!H$9=2800,BM124,BN124)))) -> 0 | BL124: 0 | BM124: 0 | BN124: 0
K125: 30 | L125: 0 | M125: 2022-11-01 | N125: 0 | O125: 0 | P125: 0 | Q125: 0 | R125: 9 | S125: 0 | T125: 0 | V125: 0 | Y125: 0 | Z125: 0 | AA125: 0 | AC125: 0 | AE125: 0 | AH125: 0 | AK125: 0 | AL125: 0 | AM125: 0 | AN125: 0 | AO125: 0 | AP125: 28 | AQ125: 2022-11-01 | AR125: 0 | AS125: 0 | AT125: 0 | AU125: 0 | AV125: 0 | AW125: 0 | AX125: FALSE | AY125: 0 | AZ125: 0 | BA125: 0 | BB125: 0 | BC125: 0 | BD125: 0 | BE125: 0 | BF125: 0 | BG125: 0 | BH125: 0 | BI125: 0 | BJ125: 0 | BK125: =IF(Entry!H$9=3600,BI125,IF(Entry!H$9=4200,BJ125,IF(Entry!H$9=4800,BL125,IF(Entry!H$9=2800,BM125,BN125)))) -> 0 | BL125: 0 | BM125: 0 | BN125: 0
K126: 31 | L126: 0 | M126: 2022-12-01 | N126: 0 | O126: 0 | P126: 0 | Q126: 0 | R126: 9 | S126: 0 | T126: 0 | V126: 0 | Y126: 0 | Z126: 0 | AA126: 0 | AC126: 0 | AE126: 0 | AH126: 0 | AK126: 0 | AL126: 0 | AM126: 0 | AN126: 0 | AO126: 0 | AP126: 28 | AQ126: 2022-12-01 | AR126: 0 | AS126: 0 | AT126: 0 | AU126: 0 | AV126: 0 | AW126: 0 | AX126: FALSE | AY126: =IF(AR126<1,0,IF(AR126<=7000,130,IF(AR126<=13000,220,IF(AR126<=21000,325,IF(AR126>21000,445))))) -> 0 | AZ126: 0 | BA126: 0 | BB126: 0 | BC126: 0 | BD126: 0 | BE126: 0 | BF126: 0 | BG126: 0 | BH126: 0 | BI126: 0 | BJ126: 0 | BK126: =IF(Entry!H$9=3600,BI126,IF(Entry!H$9=4200,BJ126,IF(Entry!H$9=4800,BL126,IF(Entry!H$9=2800,BM126,BN126)))) -> 0 | BL126: 0 | BM126: 0 | BN126: 0
K127: 31 | L127: 0 | M127: 2023-01-01 | N127: 0 | O127: 0 | P127: 0 | Q127: 0 | R127: 9 | S127: 0 | T127: 0 | V127: 0 | Y127: 0 | Z127: 0 | AA127: 0 | AC127: 0 | AE127: 0 | AH127: 0 | AK127: =SUM(AF127:AJ127) -> 0 | AL127: =AE127-AK127 -> 0 | AM127: 0 | AN127: 0 | AO127: 0 | AP127: 28 | AQ127: =M127 -> 2023-01-01 | AR127: 0 | AS127: 0 | AT127: 0 | AU127: 0 | AV127: 0 | AW127: 0 | AX127: FALSE | AY127: 0 | AZ127: 0 | BA127: 0 | BB127: 0 | BC127: 0 | BD127: 0 | BE127: =IF(N127<1,0,IF(N127<=7000,130,IF(N127<=10000,190,IF(N127<=13000,300,IF(N127>13000,480))))) -> 0 | BF127: =IF(N127<1,0,IF(N127<=7000,50,IF(N127<=10000,70,IF(N127<=13000,130,IF(N127>13000,240))))) -> 0 | BG127: =IF(T127<1,0,IF(T127<=7000,130,IF(T127<=10000,190,IF(T127<=13000,300,IF(T127>13000,480))))) -> 0 | BH127: =IF(T127<1,0,IF(T127<=7000,50,IF(T127<=10000,70,IF(T127<=13000,130,IF(T127>13000,240))))) -> 0 | BI127: 0 | BJ127: 0 | BK127: =IF(Entry!H$9=3600,BI127,IF(Entry!H$9=4200,BJ127,IF(Entry!H$9=4800,BL127,IF(Entry!H$9=2800,BM127,BN127)))) -> 0 | BL127: 0 | BM127: 0 | BN127: 0
K128: 29 | L128: 0 | M128: 2023-02-01 | N128: 0 | O128: 0 | P128: 0 | Q128: 0 | R128: 9 | S128: 0 | T128: 0 | V128: 0 | Y128: 0 | Z128: 0 | AA128: 0 | AC128: 0 | AE128: 0 | AH128: 0 | AK128: 0 | AL128: 0 | AM128: 0 | AN128: 0 | AO128: 0 | AP128: 28 | AQ128: 2023-02-01 | AR128: 0 | AS128: 0 | AT128: 0 | AU128: 0 | AV128: 0 | AW128: 0 | AX128: FALSE | AY128: 0 | AZ128: 0 | BA128: 0 | BB128: 0 | BC128: 0 | BD128: 0 | BE128: 0 | BF128: 0 | BG128: 0 | BH128: 0 | BI128: 0 | BJ128: 0 | BK128: =IF(Entry!H$9=3600,BI128,IF(Entry!H$9=4200,BJ128,IF(Entry!H$9=4800,BL128,IF(Entry!H$9=2800,BM128,BN128)))) -> 0 | BL128: 0 | BM128: 0 | BN128: 0
K129: 31 | L129: 0 | M129: 2023-03-01 | N129: 0 | O129: 0 | P129: 0 | Q129: 0 | R129: 9 | S129: 0 | T129: 0 | V129: 0 | Y129: 0 | Z129: 0 | AA129: 0 | AC129: 0 | AE129: 0 | AH129: 0 | AK129: 0 | AL129: 0 | AM129: 0 | AN129: 0 | AO129: 0 | AP129: 28 | AQ129: 2023-03-01 | AR129: 0 | AS129: 0 | AT129: 0 | AU129: 0 | AV129: 0 | AW129: 0 | AX129: FALSE | AY129: 0 | AZ129: 0 | BA129: 0 | BB129: 0 | BC129: 0 | BD129: 0 | BE129: 0 | BF129: 0 | BG129: 0 | BH129: 0 | BI129: 0 | BJ129: 0 | BK129: =IF(Entry!H$9=3600,BI129,IF(Entry!H$9=4200,BJ129,IF(Entry!H$9=4800,BL129,IF(Entry!H$9=2800,BM129,BN129)))) -> 0 | BL129: 0 | BM129: 0 | BN129: 0
K130: 30 | L130: 0 | M130: 2023-04-01 | N130: 0 | O130: 0 | P130: 0 | Q130: 0 | R130: 9 | S130: 0 | T130: 0 | V130: 0 | Y130: 0 | Z130: 0 | AA130: 0 | AC130: 0 | AE130: 0 | AH130: 0 | AK130: 0 | AL130: 0 | AM130: 0 | AN130: 0 | AO130: 0 | AP130: 28 | AQ130: 2023-04-01 | AR130: 0 | AS130: 0 | AT130: 0 | AU130: 0 | AV130: 0 | AW130: 0 | AX130: FALSE | AY130: 0 | AZ130: 0 | BA130: 0 | BB130: 0 | BC130: 0 | BD130: 0 | BE130: 0 | BF130: 0 | BG130: 0 | BH130: 0 | BI130: 0 | BJ130: 0 | BK130: =IF(Entry!H$9=3600,BI130,IF(Entry!H$9=4200,BJ130,IF(Entry!H$9=4800,BL130,IF(Entry!H$9=2800,BM130,BN130)))) -> 0 | BL130: 0 | BM130: 0 | BN130: 0
K131: 31 | L131: 0 | M131: 2023-05-01 | N131: 0 | O131: 0 | P131: 0 | Q131: 0 | R131: 9 | S131: 0 | T131: 0 | V131: 0 | Y131: 0 | Z131: 0 | AA131: 0 | AC131: 0 | AE131: 0 | AH131: 0 | AK131: 0 | AL131: 0 | AM131: 0 | AN131: 0 | AO131: 0 | AP131: 28 | AQ131: 2023-05-01 | AR131: 0 | AS131: 0 | AT131: 0 | AU131: 0 | AV131: 0 | AW131: 0 | AX131: FALSE | AY131: 0 | AZ131: 0 | BA131: 0 | BB131: 0 | BC131: 0 | BD131: 0 | BE131: 0 | BF131: 0 | BG131: 0 | BH131: 0 | BI131: 0 | BJ131: 0 | BK131: =IF(Entry!H$9=3600,BI131,IF(Entry!H$9=4200,BJ131,IF(Entry!H$9=4800,BL131,IF(Entry!H$9=2800,BM131,BN131)))) -> 0 | BL131: 0 | BM131: 0 | BN131: 0
K132: 30 | L132: 0 | M132: 2023-06-01 | N132: 0 | O132: 0 | P132: 0 | Q132: 0 | R132: 9 | S132: 0 | T132: 0 | V132: 0 | Y132: 0 | Z132: 0 | AA132: 0 | AC132: 0 | AE132: 0 | AH132: 0 | AK132: 0 | AL132: 0 | AM132: 0 | AN132: 0 | AO132: 0 | AP132: 28 | AQ132: 2023-06-01 | AR132: 0 | AS132: 0 | AT132: 0 | AU132: 0 | AV132: 0 | AW132: 0 | AX132: FALSE | AY132: 0 | AZ132: 0 | BA132: 0 | BB132: 0 | BC132: 0 | BD132: 0 | BE132: 0 | BF132: 0 | BG132: 0 | BH132: 0 | BI132: 0 | BJ132: 0 | BK132: =IF(Entry!H$9=3600,BI132,IF(Entry!H$9=4200,BJ132,IF(Entry!H$9=4800,BL132,IF(Entry!H$9=2800,BM132,BN132)))) -> 0 | BL132: 0 | BM132: 0 | BN132: 0
K133: 31 | L133: 0 | M133: 2023-07-01 | N133: 0 | O133: 0 | P133: 0 | Q133: 0 | R133: 9 | S133: 0 | T133: 0 | V133: 0 | Y133: 0 | Z133: 0 | AA133: 0 | AC133: 0 | AE133: 0 | AH133: 0 | AK133: 0 | AL133: 0 | AM133: 0 | AN133: 0 | AO133: 0 | AP133: 28 | AQ133: 2023-07-01 | AR133: 0 | AS133: 0 | AT133: 0 | AU133: 0 | AV133: 0 | AW133: 0 | AX133: FALSE | AY133: 0 | AZ133: 0 | BA133: 0 | BB133: 0 | BC133: 0 | BD133: 0 | BE133: 0 | BF133: 0 | BG133: 0 | BH133: 0 | BI133: 0 | BJ133: 0 | BK133: =IF(Entry!H$9=3600,BI133,IF(Entry!H$9=4200,BJ133,IF(Entry!H$9=4800,BL133,IF(Entry!H$9=2800,BM133,BN133)))) -> 0 | BL133: 0 | BM133: 0 | BN133: 0
K134: 31 | L134: 0 | M134: 2023-08-01 | N134: 0 | O134: 0 | P134: 0 | Q134: 0 | R134: 9 | S134: 0 | T134: 0 | V134: 0 | Y134: 0 | Z134: 0 | AA134: 0 | AC134: 0 | AE134: 0 | AH134: 0 | AK134: 0 | AL134: 0 | AM134: 0 | AN134: 0 | AO134: 0 | AP134: 28 | AQ134: 2023-08-01 | AR134: 0 | AS134: 0 | AT134: 0 | AU134: 0 | AV134: 0 | AW134: 0 | AX134: FALSE | AY134: 0 | AZ134: 0 | BA134: 0 | BB134: 0 | BC134: 0 | BD134: 0 | BE134: 0 | BF134: 0 | BG134: 0 | BH134: 0 | BI134: 0 | BJ134: 0 | BK134: =IF(Entry!H$9=3600,BI134,IF(Entry!H$9=4200,BJ134,IF(Entry!H$9=4800,BL134,IF(Entry!H$9=2800,BM134,BN134)))) -> 0 | BL134: 0 | BM134: 0 | BN134: 0
K135: 30 | L135: 0 | M135: 2023-09-01 | N135: 0 | O135: 0 | P135: 0 | Q135: 0 | R135: 9 | S135: 0 | T135: 0 | V135: 0 | Y135: 0 | Z135: 0 | AA135: 0 | AC135: 0 | AE135: 0 | AH135: 0 | AK135: 0 | AL135: 0 | AM135: 0 | AN135: 0 | AO135: 0 | AP135: 28 | AQ135: 2023-09-01 | AR135: 0 | AS135: 0 | AT135: 0 | AU135: 0 | AV135: 0 | AW135: 0 | AX135: FALSE | AY135: 0 | AZ135: 0 | BA135: 0 | BB135: 0 | BC135: 0 | BD135: 0 | BE135: 0 | BF135: 0 | BG135: 0 | BH135: 0 | BI135: 0 | BJ135: 0 | BK135: =IF(Entry!H$9=3600,BI135,IF(Entry!H$9=4200,BJ135,IF(Entry!H$9=4800,BL135,IF(Entry!H$9=2800,BM135,BN135)))) -> 0 | BL135: 0 | BM135: 0 | BN135: 0
K136: 31 | L136: 0 | M136: 2023-10-01 | N136: 0 | O136: 0 | P136: 0 | Q136: 0 | R136: 9 | S136: 0 | T136: 0 | V136: 0 | Y136: 0 | Z136: 0 | AA136: 0 | AC136: 0 | AE136: 0 | AH136: 0 | AK136: 0 | AL136: 0 | AM136: 0 | AN136: 0 | AO136: 0 | AP136: 28 | AQ136: 2023-10-01 | AR136: 0 | AS136: 0 | AT136: 0 | AU136: 0 | AV136: 0 | AW136: 0 | AX136: FALSE | AY136: 0 | AZ136: 0 | BA136: 0 | BB136: 0 | BC136: 0 | BD136: 0 | BE136: 0 | BF136: 0 | BG136: 0 | BH136: 0 | BI136: 0 | BJ136: 0 | BK136: =IF(Entry!H$9=3600,BI136,IF(Entry!H$9=4200,BJ136,IF(Entry!H$9=4800,BL136,IF(Entry!H$9=2800,BM136,BN136)))) -> 0 | BL136: 0 | BM136: 0 | BN136: 0
K137: 30 | L137: 0 | M137: 2023-11-01 | N137: 0 | O137: 0 | P137: 0 | Q137: 0 | R137: 9 | S137: 0 | T137: 0 | V137: 0 | Y137: 0 | Z137: 0 | AA137: 0 | AC137: 0 | AE137: 0 | AH137: 0 | AK137: 0 | AL137: 0 | AM137: 0 | AN137: 0 | AO137: 0 | AP137: 28 | AQ137: 2023-11-01 | AR137: 0 | AS137: 0 | AT137: 0 | AU137: 0 | AV137: 0 | AW137: 0 | AX137: FALSE | AY137: 0 | AZ137: 0 | BA137: 0 | BB137: 0 | BC137: 0 | BD137: 0 | BE137: 0 | BF137: 0 | BG137: 0 | BH137: 0 | BI137: 0 | BJ137: 0 | BK137: =IF(Entry!H$9=3600,BI137,IF(Entry!H$9=4200,BJ137,IF(Entry!H$9=4800,BL137,IF(Entry!H$9=2800,BM137,BN137)))) -> 0 | BL137: 0 | BM137: 0 | BN137: 0
K138: 31 | L138: 0 | M138: 2023-12-01 | N138: 0 | O138: 0 | P138: 0 | Q138: 0 | R138: 9 | S138: 0 | T138: 0 | V138: 0 | Y138: 0 | Z138: 0 | AA138: 0 | AC138: 0 | AE138: 0 | AH138: 0 | AK138: 0 | AL138: 0 | AM138: 0 | AN138: 0 | AO138: 0 | AP138: 28 | AQ138: 2023-12-01 | AR138: 0 | AS138: 0 | AT138: 0 | AU138: 0 | AV138: 0 | AW138: 0 | AX138: FALSE | AY138: 0 | AZ138: 0 | BA138: 0 | BB138: 0 | BC138: 0 | BD138: 0 | BE138: 0 | BF138: 0 | BG138: 0 | BH138: 0 | BI138: 0 | BJ138: 0 | BK138: =IF(Entry!H$9=3600,BI138,IF(Entry!H$9=4200,BJ138,IF(Entry!H$9=4800,BL138,IF(Entry!H$9=2800,BM138,BN138)))) -> 0 | BL138: 0 | BM138: 0 | BN138: 0
K139: 31 | L139: 0 | M139: 2024-01-01 | N139: 0 | O139: 0 | P139: 0 | Q139: 0 | R139: 9 | S139: 0 | T139: 0 | V139: 0 | Y139: 0 | Z139: 0 | AA139: 0 | AC139: 0 | AE139: 0 | AH139: 0 | AK139: =SUM(AF139:AJ139) -> 0 | AL139: =AE139-AK139 -> 0 | AM139: 0 | AN139: 0 | AO139: 0 | AP139: 28 | AQ139: =M139 -> 2024-01-01 | AR139: 0 | AS139: 0 | AT139: 0 | AU139: 0 | AV139: 0 | AW139: 0 | AX139: FALSE | AY139: 0 | AZ139: 0 | BA139: 0 | BB139: 0 | BC139: 0 | BD139: 0 | BE139: 0 | BF139: 0 | BG139: 0 | BH139: 0 | BI139: =IF(L139=1,ROUND((12000*AA$30/Z$31),0),IF(L139=0,0,12000)) -> 0 | BJ139: 0 | BK139: =IF(Entry!H$9=3600,BI139,IF(Entry!H$9=4200,BJ139,IF(Entry!H$9=4800,BL139,IF(Entry!H$9=2800,BM139,BN139)))) -> 0 | BL139: 0 | BM139: 0 | BN139: 0
K140: 29 | L140: 0 | M140: 2024-02-01 | N140: 0 | O140: 0 | P140: =IF(F$5="N",0,IF(F$5="B",BF140,BE140)) -> 0 | Q140: 0 | R140: 9 | S140: 0 | T140: 0 | V140: =IF(F$5="N",0,IF(F$5="B",BH140,BG140)) -> 0 | Y140: 0 | Z140: 0 | AA140: 0 | AC140: 0 | AE140: 0 | AH140: 0 | AK140: 0 | AL140: 0 | AM140: 0 | AN140: 0 | AO140: 0 | AP140: 28 | AQ140: 2024-02-01 | AR140: 0 | AS140: 0 | AT140: 0 | AU140: 0 | AV140: =IF(AT140>AU140,AT140-AU140,0) -> 0 | AW140: 0 | AX140: =IF(F$9="Nill",0,IF(F$9="ALL",(AV140+AW140),IF(F$9="DA",AW140))) -> FALSE | AY140: 0 | AZ140: 0 | BA140: 0 | BB140: 0 | BC140: 0 | BD140: 0 | BE140: 0 | BF140: 0 | BG140: 0 | BH140: 0 | BI140: =IF(L140=1,ROUND((12000*AA$30/Z$31),0),IF(L140=0,0,12000)) -> 0 | BJ140: 0 | BK140: =IF(Entry!H$9=3600,BI140,IF(Entry!H$9=4200,BJ140,IF(Entry!H$9=4800,BL140,IF(Entry!H$9=2800,BM140,BN140)))) -> 0 | BL140: 0 | BM140: 0 | BN140: 0
K141: 31 | L141: 0 | M141: 2024-03-01 | N141: 0 | O141: 0 | P141: 0 | Q141: 0 | R141: 9 | S141: 0 | T141: 0 | V141: 0 | Y141: 0 | Z141: 0 | AA141: 0 | AC141: 0 | AE141: 0 | AH141: 0 | AK141: 0 | AL141: 0 | AM141: 0 | AN141: 0 | AO141: 0 | AP141: 28 | AQ141: 2024-03-01 | AR141: 0 | AS141: 0 | AT141: 0 | AU141: 0 | AV141: 0 | AW141: 0 | AX141: FALSE | AY141: 0 | AZ141: 0 | BA141: 0 | BB141: 0 | BC141: 0 | BD141: 0 | BE141: 0 | BF141: 0 | BG141: 0 | BH141: 0 | BI141: =IF(L141=1,ROUND((12000*AA$30/Z$31),0),IF(L141=0,0,12000)) -> 0 | BJ141: 0 | BK141: =IF(Entry!H$9=3600,BI141,IF(Entry!H$9=4200,BJ141,IF(Entry!H$9=4800,BL141,IF(Entry!H$9=2800,BM141,BN141)))) -> 0 | BL141: 0 | BM141: 0 | BN141: 0
K142: 30 | L142: 0 | M142: 2024-04-01 | N142: 0 | O142: 0 | P142: 0 | Q142: 0 | R142: 9 | S142: 0 | T142: 0 | V142: 0 | Y142: 0 | Z142: 0 | AA142: 0 | AC142: 0 | AE142: 0 | AH142: 0 | AK142: 0 | AL142: 0 | AM142: 0 | AN142: 0 | AO142: 0 | AP142: 28 | AQ142: 2024-04-01 | AR142: 0 | AS142: 0 | AT142: 0 | AU142: 0 | AV142: 0 | AW142: 0 | AX142: FALSE | AY142: 0 | AZ142: 0 | BA142: 0 | BB142: 0 | BC142: 0 | BD142: 0 | BE142: 0 | BF142: 0 | BG142: 0 | BH142: 0 | BI142: 0 | BJ142: 0 | BK142: =IF(Entry!H$9=3600,BI142,IF(Entry!H$9=4200,BJ142,IF(Entry!H$9=4800,BL142,IF(Entry!H$9=2800,BM142,BN142)))) -> 0 | BL142: 0 | BM142: 0 | BN142: 0
K143: 31 | L143: 0 | M143: 2024-05-01 | N143: 0 | O143: 0 | P143: 0 | Q143: 0 | R143: 9 | S143: 0 | T143: 0 | V143: 0 | Y143: 0 | Z143: 0 | AA143: 0 | AC143: 0 | AE143: 0 | AH143: 0 | AK143: 0 | AL143: 0 | AM143: 0 | AN143: 0 | AO143: 0 | AP143: 28 | AQ143: 2024-05-01 | AR143: 0 | AS143: 0 | AT143: 0 | AU143: 0 | AV143: 0 | AW143: =IF(J26=0,0,((ROUND(N143*(I$3%-K$3%),0)))-(ROUND(T143*(I$3%-K$3%),0))) -> 0 | AX143: FALSE | AY143: 0 | AZ143: 0 | BA143: 0 | BB143: 0 | BC143: 0 | BD143: 0 | BE143: 0 | BF143: 0 | BG143: 0 | BH143: 0 | BI143: 0 | BJ143: 0 | BK143: =IF(Entry!H$9=3600,BI143,IF(Entry!H$9=4200,BJ143,IF(Entry!H$9=4800,BL143,IF(Entry!H$9=2800,BM143,BN143)))) -> 0 | BL143: 0 | BM143: 0 | BN143: 0
K144: 30 | L144: 0 | M144: 2024-06-01 | N144: 0 | O144: 0 | P144: 0 | Q144: 0 | R144: 9 | S144: 0 | T144: 0 | V144: 0 | Y144: 0 | Z144: 0 | AA144: 0 | AC144: 0 | AE144: 0 | AH144: 0 | AK144: 0 | AL144: 0 | AM144: 0 | AN144: 0 | AO144: 0 | AP144: 28 | AQ144: 2024-06-01 | AR144: 0 | AS144: 0 | AT144: 0 | AU144: 0 | AV144: 0 | AW144: 0 | AX144: FALSE | AY144: 0 | AZ144: 0 | BA144: 0 | BB144: 0 | BC144: 0 | BD144: 0 | BE144: 0 | BF144: 0 | BG144: 0 | BH144: 0 | BI144: 0 | BJ144: 0 | BK144: =IF(Entry!H$9=3600,BI144,IF(Entry!H$9=4200,BJ144,IF(Entry!H$9=4800,BL144,IF(Entry!H$9=2800,BM144,BN144)))) -> 0 | BL144: 0 | BM144: 0 | BN144: 0
K145: 31 | L145: 0 | M145: 2024-07-01 | N145: 0 | O145: 0 | P145: 0 | Q145: 0 | R145: 9 | S145: 0 | T145: 0 | V145: 0 | Y145: 0 | Z145: 0 | AA145: 0 | AC145: 0 | AE145: 0 | AH145: 0 | AK145: 0 | AL145: 0 | AM145: 0 | AN145: 0 | AO145: 0 | AP145: 28 | AQ145: 2024-07-01 | AR145: 0 | AS145: 0 | AT145: 0 | AU145: 0 | AV145: 0 | AW145: 0 | AX145: FALSE | AY145: 0 | AZ145: 0 | BA145: 0 | BB145: 0 | BC145: 0 | BD145: 0 | BE145: 0 | BF145: 0 | BG145: 0 | BH145: 0 | BI145: 0 | BJ145: 0 | BK145: =IF(Entry!H$9=3600,BI145,IF(Entry!H$9=4200,BJ145,IF(Entry!H$9=4800,BL145,IF(Entry!H$9=2800,BM145,BN145)))) -> 0 | BL145: 0 | BM145: 0 | BN145: 0
K146: 31 | L146: 0 | M146: 2024-08-01 | N146: 0 | O146: 0 | P146: 0 | Q146: 0 | R146: 9 | S146: 0 | T146: 0 | V146: 0 | Y146: 0 | Z146: 0 | AA146: 0 | AC146: 0 | AE146: 0 | AH146: 0 | AK146: 0 | AL146: 0 | AM146: 0 | AN146: 0 | AO146: 0 | AP146: 28 | AQ146: 2024-08-01 | AR146: 0 | AS146: 0 | AT146: 0 | AU146: 0 | AV146: 0 | AW146: 0 | AX146: FALSE | AY146: 0 | AZ146: 0 | BA146: 0 | BB146: 0 | BC146: 0 | BD146: 0 | BE146: 0 | BF146: 0 | BG146: 0 | BH146: 0 | BI146: 0 | BJ146: 0 | BK146: =IF(Entry!H$9=3600,BI146,IF(Entry!H$9=4200,BJ146,IF(Entry!H$9=4800,BL146,IF(Entry!H$9=2800,BM146,BN146)))) -> 0 | BL146: 0 | BM146: 0 | BN146: 0
K147: 30 | L147: 0 | M147: 2024-09-01 | N147: 0 | O147: 0 | P147: 0 | Q147: 0 | R147: 9 | S147: 0 | T147: 0 | V147: 0 | Y147: 0 | Z147: 0 | AA147: 0 | AC147: 0 | AE147: 0 | AH147: 0 | AK147: 0 | AL147: 0 | AM147: 0 | AN147: 0 | AO147: 0 | AP147: 28 | AQ147: 2024-09-01 | AR147: 0 | AS147: 0 | AT147: 0 | AU147: 0 | AV147: 0 | AW147: 0 | AX147: FALSE | AY147: 0 | AZ147: 0 | BA147: 0 | BB147: 0 | BC147: 0 | BD147: =IF((MONTH(AQ147))=3,(BB147-BC147),BD146) -> 0 | BE147: 0 | BF147: 0 | BG147: 0 | BH147: 0 | BI147: 0 | BJ147: 0 | BK147: =IF(Entry!H$9=3600,BI147,IF(Entry!H$9=4200,BJ147,IF(Entry!H$9=4800,BL147,IF(Entry!H$9=2800,BM147,BN147)))) -> 0 | BL147: 0 | BM147: 0 | BN147: 0
K148: 31 | L148: 0 | M148: 2024-10-01 | N148: 0 | O148: 0 | P148: 0 | Q148: 0 | R148: 9 | S148: 0 | T148: 0 | V148: 0 | Y148: 0 | Z148: 0 | AA148: 0 | AC148: 0 | AE148: 0 | AH148: 0 | AK148: 0 | AL148: 0 | AM148: 0 | AN148: 0 | AO148: 0 | AP148: 28 | AQ148: 2024-10-01 | AR148: 0 | AS148: 0 | AT148: 0 | AU148: 0 | AV148: 0 | AW148: 0 | AX148: FALSE | AY148: 0 | AZ148: 0 | BA148: 0 | BB148: 0 | BC148: 0 | BD148: =IF((MONTH(AQ148))=3,(BB148-BC148),BD147) -> 0 | BE148: 0 | BF148: 0 | BG148: 0 | BH148: 0 | BI148: 0 | BJ148: 0 | BK148: =IF(Entry!H$9=3600,BI148,IF(Entry!H$9=4200,BJ148,IF(Entry!H$9=4800,BL148,IF(Entry!H$9=2800,BM148,BN148)))) -> 0 | BL148: 0 | BM148: 0 | BN148: 0
K149: 30 | L149: 0 | M149: 2024-11-01 | N149: 0 | O149: 0 | P149: 0 | Q149: 0 | R149: 9 | S149: 0 | T149: 0 | V149: 0 | Y149: 0 | Z149: 0 | AA149: 0 | AC149: 0 | AE149: 0 | AH149: 0 | AK149: 0 | AL149: 0 | AM149: 0 | AN149: 0 | AO149: 0 | AP149: 28 | AQ149: 2024-11-01 | AR149: 0 | AS149: 0 | AT149: 0 | AU149: 0 | AV149: 0 | AW149: 0 | AX149: FALSE | AY149: 0 | AZ149: 0 | BA149: 0 | BB149: 0 | BC149: 0 | BD149: =IF((MONTH(AQ149))=3,(BB149-BC149),BD148) -> 0 | BE149: 0 | BF149: 0 | BG149: 0 | BH149: 0 | BI149: 0 | BJ149: 0 | BK149: =IF(Entry!H$9=3600,BI149,IF(Entry!H$9=4200,BJ149,IF(Entry!H$9=4800,BL149,IF(Entry!H$9=2800,BM149,BN149)))) -> 0 | BL149: 0 | BM149: 0 | BN149: 0
K150: 31 | L150: 0 | M150: 2024-12-01 | N150: 0 | O150: 0 | P150: 0 | Q150: 0 | R150: 9 | S150: 0 | T150: 0 | V150: 0 | Y150: 0 | Z150: 0 | AA150: 0 | AC150: 0 | AE150: 0 | AH150: 0 | AK150: 0 | AL150: 0 | AM150: 0 | AN150: 0 | AO150: 0 | AP150: 28 | AQ150: 2024-12-01 | AR150: 0 | AS150: 0 | AT150: 0 | AU150: 0 | AV150: 0 | AW150: 0 | AX150: FALSE | AY150: 0 | AZ150: 0 | BA150: 0 | BB150: 0 | BC150: 0 | BD150: =IF((MONTH(AQ150))=3,(BB150-BC150),BD149) -> 0 | BE150: 0 | BF150: 0 | BG150: 0 | BH150: 0 | BI150: 0 | BJ150: 0 | BK150: =IF(Entry!H$9=3600,BI150,IF(Entry!H$9=4200,BJ150,IF(Entry!H$9=4800,BL150,IF(Entry!H$9=2800,BM150,BN150)))) -> 0 | BL150: 0 | BM150: 0 | BN150: 0
K151: 32 | L151: =IF(N151=0,0,(IF(N151=0,0,1)+MAX(L150))) -> 0 | M151: 2025-01-01 | N151: 0 | O151: =IF(F$3="N",0,(ROUND((N151)*(AP151%),0))) -> 0 | P151: =IF(F$5="N",0,IF(F$5="B",BF151,BE151)) -> 0 | Q151: 0 | R151: 9 | S151: =SUM(N151:Q151) -> 0 | T151: 0 | V151: =IF(F$5="N",0,IF(F$5="B",BH151,BG151)) -> 0 | Y151: =SUM(T151:W151) -> 0 | Z151: =N151-T151 -> 0 | AA151: =O151-U151 -> 0 | AC151: =Q151-W151 -> 0 | AE151: =SUM(Z151:AC151) -> 0 | AH151: 0 | AK151: =SUM(AF151:AJ151) -> 0 | AL151: =AE151-AK151 -> 0 | AM151: 0 | AN151: 0 | AO151: 0 | AP151: 28 | AQ151: =M151 -> 2025-01-01 | AR151: =IF(N151=0,0,(IF(ISNA(LOOKUP(M151,U$2:U$11,X$2:X$11)),0,LOOKUP(M151,U$2:U$11,X$2:X$11)))) -> 0 | AS151: =(IF(N151=0,0,(LOOKUP(M151,Z$33:Z$42,AB$33:AB$42)))) -> 0 | AT151: =IF(AR151=0,0,IF(AR151<=9000,500,IF(AR151<=11000,650,IF(AR151<=15000,1100,IF(AR151<=20000,1450,IF(AR151<=24000,2100,IF(AR151<=28000,3300,IF(AR151<=31000,4100,IF(AR151<=45000,5200,5700))))))))) -> 0 | AU151: =IF(AS151=0,0,IF(AS151<=9000,500,IF(AS151<=11000,650,IF(AS151<=15000,1100,IF(AS151<=20000,1450,IF(AS151<=24000,2100,IF(AS151<=28000,3300,IF(AS151<=31000,4100,IF(AS151<=45000,5200,5700))))))))) -> 0 | AV151: =IF(AT151>AU151,AT151-AU151,0) -> 0 | AW151: =IF(J34=0,0,((ROUND(N151*(I$3%-K$3%),0)))-(ROUND(T151*(I$3%-K$3%),0))) -> 0 | AX151: =IF(F$9="Nill",0,IF(F$9="ALL",(AV151+AW151),IF(F$9="DA",AW151))) -> FALSE | AY151: =IF(AR151<1,0,IF(AR151<=7000,130,IF(AR151<=13000,220,IF(AR151<=21000,325,IF(AR151>21000,445))))) -> 0 | AZ151: =IF(AS151<1,0,IF(AS151<=7000,130,IF(AS151<=13000,220,IF(AS151<=21000,325,IF(AS151>21000,445))))) -> 0 | BA151: =IF(AY151>AZ151,AY151-AZ151,0) -> 0 | BB151: =IF(AR151<1,0,IF(AR151<=8500,330,IF(AR151<=11000,450,IF(AR151<=18000,900,IF(AR151<=28000,1300,IF(AR151>=28000,2200)))))) -> 0 | BC151: =IF(AS151<1,0,IF(AS151<=8500,330,IF(AS151<=11000,450,IF(AS151<=18000,900,IF(AS151<=28000,1300,IF(AS151>=28000,2200)))))) -> 0 | BD151: =IF((MONTH(AQ151))=3,(BB151-BC151),BD150) -> 0 | BE151: =IF(N151<1,0,IF(N151<=7000,130,IF(N151<=10000,190,IF(N151<=13000,300,IF(N151>13000,480))))) -> 0 | BF151: =IF(N151<1,0,IF(N151<=7000,50,IF(N151<=10000,70,IF(N151<=13000,130,IF(N151>13000,240))))) -> 0 | BG151: =IF(T151<1,0,IF(T151<=7000,130,IF(T151<=10000,190,IF(T151<=13000,300,IF(T151>13000,480))))) -> 0 | BH151: =IF(T151<1,0,IF(T151<=7000,50,IF(T151<=10000,70,IF(T151<=13000,130,IF(T151>13000,240))))) -> 0 | BI151: =IF(L151=1,ROUND((12000*AA$30/Z$31),0),IF(L151=0,0,12000)) -> 0 | BJ151: 0 | BK151: =IF(Entry!H$9=3600,BI151,IF(Entry!H$9=4200,BJ151,IF(Entry!H$9=4800,BL151,IF(Entry!H$9=2800,BM151,BN151)))) -> 0 | BL151: =IF(L151=1,ROUND((15660*AA$30/Z$31),0),IF(L151=0,0,15660)) -> 0 | BM151: =IF(L151=1,ROUND((10740*AA$30/Z$31),0),IF(L151=0,0,10740)) -> 0 | BN151: =IF(L151=1,ROUND((8100*AA$30/Z$31),0),IF(L151=0,0,8100)) -> 0
K152: 33 | L152: 0 | M152: 2025-02-01 | N152: 0 | O152: 0 | P152: 0 | Q152: 0 | R152: 9 | S152: 0 | T152: 0 | V152: 0 | Y152: 0 | Z152: 0 | AA152: 0 | AC152: 0 | AE152: 0 | AH152: 0 | AK152: 0 | AL152: 0 | AM152: 0 | AN152: 0 | AO152: 0 | AP152: 28 | AQ152: 2025-02-01 | AR152: 0 | AS152: 0 | AT152: 0 | AU152: 0 | AV152: 0 | AW152: 0 | AX152: FALSE | AY152: 0 | AZ152: 0 | BA152: 0 | BB152: 0 | BC152: 0 | BD152: 0 | BE152: 0 | BF152: 0 | BG152: 0 | BH152: 0 | BI152: 0 | BJ152: 0 | BK152: =IF(Entry!H$9=3600,BI152,IF(Entry!H$9=4200,BJ152,IF(Entry!H$9=4800,BL152,IF(Entry!H$9=2800,BM152,BN152)))) -> 0 | BL152: 0 | BM152: 0 | BN152: 0
K153: 34 | L153: 0 | M153: 2025-03-01 | N153: 0 | O153: 0 | P153: 0 | Q153: 0 | R153: 9 | S153: 0 | T153: 0 | V153: 0 | W153: =ROUND((T153)*(IF(F$4="Nill",0,G$4)),0) -> 0 | Y153: 0 | Z153: 0 | AA153: 0 | AC153: 0 | AE153: 0 | AH153: 0 | AK153: 0 | AL153: 0 | AM153: 0 | AN153: 0 | AO153: 0 | AP153: 28 | AQ153: 2025-03-01 | AR153: 0 | AS153: 0 | AT153: 0 | AU153: 0 | AV153: 0 | AW153: 0 | AX153: FALSE | AY153: 0 | AZ153: 0 | BA153: 0 | BB153: 0 | BC153: 0 | BD153: 0 | BE153: 0 | BF153: 0 | BG153: 0 | BH153: 0 | BI153: 0 | BJ153: 0 | BK153: =IF(Entry!H$9=3600,BI153,IF(Entry!H$9=4200,BJ153,IF(Entry!H$9=4800,BL153,IF(Entry!H$9=2800,BM153,BN153)))) -> 0 | BL153: 0 | BM153: 0 | BN153: 0
K154: 35 | L154: 0 | M154: 2025-04-01 | N154: 0 | O154: 0 | P154: 0 | Q154: 0 | R154: 9 | S154: 0 | T154: 0 | V154: 0 | W154: 0 | Y154: 0 | Z154: 0 | AA154: 0 | AC154: 0 | AE154: 0 | AH154: 0 | AK154: 0 | AL154: 0 | AM154: 0 | AN154: 0 | AO154: 0 | AP154: 28 | AQ154: 2025-04-01 | AR154: 0 | AS154: 0 | AT154: 0 | AU154: 0 | AV154: 0 | AW154: 0 | AX154: FALSE | AY154: 0 | AZ154: 0 | BA154: 0 | BB154: 0 | BC154: 0 | BD154: 0 | BE154: 0 | BF154: 0 | BG154: 0 | BH154: 0 | BI154: 0 | BJ154: 0 | BK154: =IF(Entry!H$9=3600,BI154,IF(Entry!H$9=4200,BJ154,IF(Entry!H$9=4800,BL154,IF(Entry!H$9=2800,BM154,BN154)))) -> 0 | BL154: 0 | BM154: 0 | BN154: 0
K155: 36 | L155: 0 | M155: 2025-05-01 | N155: 0 | O155: 0 | P155: 0 | Q155: 0 | R155: 9 | S155: 0 | T155: 0 | V155: 0 | W155: 0 | Y155: 0 | Z155: 0 | AA155: 0 | AC155: 0 | AE155: 0 | AH155: 0 | AK155: 0 | AL155: 0 | AM155: 0 | AN155: 0 | AO155: 0 | AP155: 28 | AQ155: 2025-05-01 | AR155: 0 | AS155: 0 | AT155: 0 | AU155: 0 | AV155: 0 | AW155: 0 | AX155: FALSE | AY155: 0 | AZ155: 0 | BA155: 0 | BB155: 0 | BC155: 0 | BD155: 0 | BE155: 0 | BF155: 0 | BG155: 0 | BH155: 0 | BI155: 0 | BJ155: 0 | BK155: =IF(Entry!H$9=3600,BI155,IF(Entry!H$9=4200,BJ155,IF(Entry!H$9=4800,BL155,IF(Entry!H$9=2800,BM155,BN155)))) -> 0 | BL155: 0 | BM155: 0 | BN155: 0
K156: 37 | L156: 0 | M156: 2025-06-01 | N156: 0 | O156: 0 | P156: 0 | Q156: 0 | R156: 9 | S156: 0 | T156: 0 | V156: 0 | W156: 0 | Y156: 0 | Z156: 0 | AA156: 0 | AC156: 0 | AE156: 0 | AH156: 0 | AK156: 0 | AL156: 0 | AM156: 0 | AN156: 0 | AO156: 0 | AP156: 28 | AQ156: 2025-06-01 | AR156: 0 | AS156: 0 | AT156: 0 | AU156: 0 | AV156: 0 | AW156: 0 | AX156: FALSE | AY156: 0 | AZ156: 0 | BA156: 0 | BB156: 0 | BC156: 0 | BD156: 0 | BE156: 0 | BF156: 0 | BG156: 0 | BH156: 0 | BI156: 0 | BJ156: 0 | BK156: =IF(Entry!H$9=3600,BI156,IF(Entry!H$9=4200,BJ156,IF(Entry!H$9=4800,BL156,IF(Entry!H$9=2800,BM156,BN156)))) -> 0 | BL156: 0 | BM156: 0 | BN156: 0
K157: 38 | L157: 0 | M157: 2025-07-01 | N157: 0 | O157: 0 | P157: 0 | Q157: 0 | R157: 9 | S157: 0 | T157: 0 | V157: 0 | W157: 0 | Y157: 0 | Z157: 0 | AA157: 0 | AC157: 0 | AE157: 0 | AH157: 0 | AK157: 0 | AL157: 0 | AM157: 0 | AN157: 0 | AO157: 0 | AP157: 28 | AQ157: 2025-07-01 | AR157: 0 | AS157: 0 | AT157: 0 | AU157: 0 | AV157: 0 | AW157: 0 | AX157: FALSE | AY157: 0 | AZ157: 0 | BA157: 0 | BB157: 0 | BC157: 0 | BD157: 0 | BE157: 0 | BF157: 0 | BG157: 0 | BH157: 0 | BI157: =IF(L157=1,ROUND((13200*AA$30/Z$31),0),IF(L157=0,0,13200)) -> 0 | BJ157: =IF(L157=1,ROUND((14660*AA$30/Z$31),0),IF(L157=0,0,14660)) -> 0 | BK157: =IF(Entry!H$9=3600,BI157,IF(Entry!H$9=4200,BJ157,IF(Entry!H$9=4800,BL157,IF(Entry!H$9=2800,BM157,BN157)))) -> 0 | BL157: 0 | BM157: 0 | BN157: 0
K158: 39 | L158: 0 | M158: 2025-08-01 | N158: 0 | O158: 0 | P158: 0 | Q158: 0 | R158: 9 | S158: 0 | T158: 0 | V158: 0 | W158: 0 | Y158: 0 | Z158: 0 | AA158: 0 | AC158: 0 | AE158: 0 | AH158: 0 | AK158: 0 | AL158: 0 | AM158: 0 | AN158: 0 | AO158: 0 | AP158: 28 | AQ158: 2025-08-01 | AR158: 0 | AS158: 0 | AT158: 0 | AU158: 0 | AV158: 0 | AW158: 0 | AX158: FALSE | AY158: 0 | AZ158: 0 | BA158: 0 | BB158: 0 | BC158: 0 | BD158: 0 | BE158: 0 | BF158: 0 | BG158: 0 | BH158: 0 | BI158: =IF(L158=1,ROUND((13200*AA$30/Z$31),0),IF(L158=0,0,13200)) -> 0 | BJ158: =IF(L158=1,ROUND((14660*AA$30/Z$31),0),IF(L158=0,0,14660)) -> 0 | BK158: =IF(Entry!H$9=3600,BI158,IF(Entry!H$9=4200,BJ158,IF(Entry!H$9=4800,BL158,IF(Entry!H$9=2800,BM158,BN158)))) -> 0 | BL158: 0 | BM158: 0 | BN158: 0
K159: 40 | L159: 0 | M159: 2025-09-01 | N159: 0 | O159: 0 | P159: 0 | Q159: 0 | R159: 9 | S159: 0 | T159: 0 | V159: 0 | W159: 0 | Y159: 0 | Z159: 0 | AA159: 0 | AC159: 0 | AE159: 0 | AH159: 0 | AK159: 0 | AL159: 0 | AM159: 0 | AN159: 0 | AO159: 0 | AP159: 28 | AQ159: 2025-09-01 | AR159: 0 | AS159: 0 | AT159: 0 | AU159: 0 | AV159: 0 | AW159: 0 | AX159: FALSE | AY159: 0 | AZ159: 0 | BA159: 0 | BB159: 0 | BC159: 0 | BD159: 0 | BE159: 0 | BF159: 0 | BG159: 0 | BH159: 0 | BI159: 0 | BJ159: 0 | BK159: =IF(Entry!H$9=3600,BI159,IF(Entry!H$9=4200,BJ159,IF(Entry!H$9=4800,BL159,IF(Entry!H$9=2800,BM159,BN159)))) -> 0 | BL159: 0 | BM159: 0 | BN159: 0
K160: 41 | L160: 0 | M160: 2025-10-01 | N160: 0 | O160: 0 | P160: 0 | Q160: 0 | R160: 9 | S160: 0 | T160: 0 | V160: 0 | W160: 0 | Y160: 0 | Z160: 0 | AA160: 0 | AC160: 0 | AE160: 0 | AH160: 0 | AK160: 0 | AL160: 0 | AM160: 0 | AN160: 0 | AO160: 0 | AP160: 28 | AQ160: 2025-10-01 | AR160: 0 | AS160: 0 | AT160: 0 | AU160: 0 | AV160: 0 | AW160: 0 | AX160: FALSE | AY160: 0 | AZ160: 0 | BA160: 0 | BB160: 0 | BC160: 0 | BD160: 0 | BE160: 0 | BF160: 0 | BG160: 0 | BH160: 0 | BI160: 0 | BJ160: 0 | BK160: =IF(Entry!H$9=3600,BI160,IF(Entry!H$9=4200,BJ160,IF(Entry!H$9=4800,BL160,IF(Entry!H$9=2800,BM160,BN160)))) -> 0 | BL160: 0 | BM160: 0 | BN160: 0
K161: 42 | L161: 0 | M161: 2025-11-01 | N161: 0 | O161: 0 | P161: 0 | Q161: 0 | R161: 9 | S161: 0 | T161: 0 | V161: 0 | W161: 0 | Y161: 0 | Z161: 0 | AA161: 0 | AC161: 0 | AE161: 0 | AH161: 0 | AK161: 0 | AL161: 0 | AM161: 0 | AN161: 0 | AO161: 0 | AP161: 28 | AQ161: 2025-11-01 | AR161: 0 | AS161: 0 | AT161: 0 | AU161: 0 | AV161: 0 | AW161: 0 | AX161: FALSE | AY161: 0 | AZ161: 0 | BA161: 0 | BB161: 0 | BC161: 0 | BD161: 0 | BE161: 0 | BF161: 0 | BG161: 0 | BH161: 0 | BI161: 0 | BJ161: 0 | BK161: =IF(Entry!H$9=3600,BI161,IF(Entry!H$9=4200,BJ161,IF(Entry!H$9=4800,BL161,IF(Entry!H$9=2800,BM161,BN161)))) -> 0 | BL161: 0 | BM161: 0 | BN161: 0
K162: 43 | L162: 0 | M162: 2025-12-01 | N162: 0 | O162: 0 | P162: 0 | Q162: 0 | R162: 9 | S162: 0 | T162: 0 | V162: 0 | W162: 0 | Y162: 0 | Z162: 0 | AA162: 0 | AC162: 0 | AE162: 0 | AH162: 0 | AK162: 0 | AL162: 0 | AM162: 0 | AN162: 0 | AO162: 0 | AP162: 28 | AQ162: 2025-12-01 | AR162: 0 | AS162: 0 | AT162: 0 | AU162: 0 | AV162: 0 | AW162: 0 | AX162: FALSE | AY162: 0 | AZ162: 0 | BA162: 0 | BB162: 0 | BC162: 0 | BD162: 0 | BE162: 0 | BF162: 0 | BG162: 0 | BH162: 0 | BI162: 0 | BJ162: 0 | BK162: =IF(Entry!H$9=3600,BI162,IF(Entry!H$9=4200,BJ162,IF(Entry!H$9=4800,BL162,IF(Entry!H$9=2800,BM162,BN162)))) -> 0 | BL162: 0 | BM162: 0 | BN162: 0
K163: 44 | L163: 0 | M163: 2026-01-01 | N163: 0 | O163: 0 | P163: 0 | Q163: 0 | R163: 9 | S163: 0 | T163: 0 | V163: 0 | W163: 0 | Y163: 0 | Z163: 0 | AA163: 0 | AC163: 0 | AE163: 0 | AH163: 0 | AK163: 0 | AL163: 0 | AM163: 0 | AN163: 0 | AO163: 0 | AP163: 28 | AQ163: 2026-01-01 | AR163: 0 | AS163: 0 | AT163: 0 | AU163: 0 | AV163: 0 | AW163: 0 | AX163: FALSE | AY163: 0 | AZ163: 0 | BA163: 0 | BB163: 0 | BC163: 0 | BD163: 0 | BE163: 0 | BF163: 0 | BG163: 0 | BH163: 0 | BI163: 0 | BJ163: 0 | BK163: =IF(Entry!H$9=3600,BI163,IF(Entry!H$9=4200,BJ163,IF(Entry!H$9=4800,BL163,IF(Entry!H$9=2800,BM163,BN163)))) -> 0 | BL163: 0 | BM163: 0 | BN163: 0
K164: 45 | L164: 0 | M164: 2026-02-01 | N164: 0 | O164: 0 | P164: 0 | Q164: 0 | R164: 9 | S164: 0 | T164: 0 | V164: 0 | W164: 0 | Y164: 0 | Z164: 0 | AA164: 0 | AC164: 0 | AE164: 0 | AH164: 0 | AK164: 0 | AL164: 0 | AM164: 0 | AN164: 0 | AO164: 0 | AP164: 28 | AQ164: 2026-02-01 | AR164: 0 | AS164: 0 | AT164: 0 | AU164: 0 | AV164: 0 | AW164: 0 | AX164: FALSE | AY164: 0 | AZ164: 0 | BA164: 0 | BB164: 0 | BC164: 0 | BD164: 0 | BE164: 0 | BF164: 0 | BG164: 0 | BH164: 0 | BI164: 0 | BJ164: 0 | BK164: =IF(Entry!H$9=3600,BI164,IF(Entry!H$9=4200,BJ164,IF(Entry!H$9=4800,BL164,IF(Entry!H$9=2800,BM164,BN164)))) -> 0 | BL164: 0 | BM164: 0 | BN164: 0
K165: 46 | L165: 0 | M165: 2026-03-01 | N165: 0 | O165: 0 | P165: 0 | Q165: 0 | R165: 9 | S165: 0 | T165: 0 | V165: 0 | W165: 0 | Y165: 0 | Z165: 0 | AA165: 0 | AC165: 0 | AE165: 0 | AH165: 0 | AK165: 0 | AL165: 0 | AM165: 0 | AN165: 0 | AO165: 0 | AP165: 28 | AQ165: 2026-03-01 | AR165: 0 | AS165: 0 | AT165: 0 | AU165: 0 | AV165: 0 | AW165: 0 | AX165: FALSE | AY165: 0 | AZ165: 0 | BA165: 0 | BB165: 0 | BC165: 0 | BD165: 0 | BE165: 0 | BF165: 0 | BG165: 0 | BH165: 0 | BI165: 0 | BJ165: 0 | BK165: =IF(Entry!H$9=3600,BI165,IF(Entry!H$9=4200,BJ165,IF(Entry!H$9=4800,BL165,IF(Entry!H$9=2800,BM165,BN165)))) -> 0 | BL165: 0 | BM165: 0 | BN165: 0
K166: 47 | L166: 0 | M166: 2026-04-01 | N166: 0 | O166: 0 | P166: 0 | Q166: 0 | R166: 9 | S166: 0 | T166: 0 | V166: 0 | W166: 0 | Y166: 0 | Z166: 0 | AA166: 0 | AC166: 0 | AE166: 0 | AH166: 0 | AK166: 0 | AL166: 0 | AM166: 0 | AN166: 0 | AO166: 0 | AP166: 28 | AQ166: 2026-04-01 | AR166: 0 | AS166: 0 | AT166: 0 | AU166: 0 | AV166: 0 | AW166: 0 | AX166: FALSE | AY166: 0 | AZ166: 0 | BA166: 0 | BB166: 0 | BC166: 0 | BD166: 0 | BE166: 0 | BF166: 0 | BG166: 0 | BH166: 0 | BI166: 0 | BJ166: 0 | BK166: =IF(Entry!H$9=3600,BI166,IF(Entry!H$9=4200,BJ166,IF(Entry!H$9=4800,BL166,IF(Entry!H$9=2800,BM166,BN166)))) -> 0 | BL166: 0 | BM166: 0 | BN166: 0
K167: 48 | L167: 0 | M167: 2026-05-01 | N167: 0 | O167: 0 | P167: 0 | Q167: 0 | R167: 9 | S167: 0 | T167: 0 | V167: 0 | W167: 0 | Y167: 0 | Z167: 0 | AA167: 0 | AC167: 0 | AE167: 0 | AH167: 0 | AK167: 0 | AL167: 0 | AM167: 0 | AN167: 0 | AO167: 0 | AP167: 28 | AQ167: 2026-05-01 | AR167: 0 | AS167: 0 | AT167: 0 | AU167: 0 | AV167: 0 | AW167: 0 | AX167: FALSE | AY167: 0 | AZ167: 0 | BA167: 0 | BB167: 0 | BC167: 0 | BD167: 0 | BE167: 0 | BF167: 0 | BG167: 0 | BH167: 0 | BI167: 0 | BJ167: 0 | BK167: =IF(Entry!H$9=3600,BI167,IF(Entry!H$9=4200,BJ167,IF(Entry!H$9=4800,BL167,IF(Entry!H$9=2800,BM167,BN167)))) -> 0 | BL167: 0 | BM167: 0 | BN167: 0
K168: 49 | L168: =IF(N168=0,0,(IF(N168=0,0,1)+MAX(L167))) -> 0 | M168: 2026-06-01 | N168: =ROUND(IF(M168>=M$5,0,IF(AND(M168>T$30,M168<T$31),Q$34,IF(ISNA(LOOKUP(M168,T$30:T$42,U$30:U$42)),0,LOOKUP(M168,T$30:T$42,U$30:U$42)))),0) -> 0 | O168: =IF(F$3="N",0,(ROUND((N168)*(AP168%),0))) -> 0 | P168: =IF(F$5="N",0,IF(F$5="B",BF168,BE168)) -> 0 | Q168: 0 | R168: 9 | S168: =SUM(N168:Q168) -> 0 | T168: =IF(L168=1,ROUND((T$50*AA$30/Z$31),0),IF(L168=0,0,T$50)) -> 0 | V168: =IF(F$5="N",0,IF(F$5="B",BH168,BG168)) -> 0 | W168: 0 | Y168: =SUM(T168:W168) -> 0 | Z168: =N168-T168 -> 0 | AA168: =O168-U168 -> 0 | AC168: =Q168-W168 -> 0 | AE168: =SUM(Z168:AC168) -> 0 | AH168: 0 | AK168: =SUM(AF168:AJ168) -> 0 | AL168: =AE168-AK168 -> 0 | AM168: =ROUND((N168+O168)*10%,0) -> 0 | AN168: 0 | AO168: 0 | AP168: 28 | AQ168: =M168 -> 2026-06-01 | AR168: =IF(N168=0,0,(IF(ISNA(LOOKUP(M168,U$2:U$11,X$2:X$11)),0,LOOKUP(M168,U$2:U$11,X$2:X$11)))) -> 0 | AS168: =(IF(N168=0,0,(LOOKUP(M168,Z$33:Z$42,AB$33:AB$42)))) -> 0 | AT168: =IF(AR168=0,0,IF(AR168<=9000,500,IF(AR168<=11000,650,IF(AR168<=15000,1100,IF(AR168<=20000,1450,IF(AR168<=24000,2100,IF(AR168<=28000,3300,IF(AR168<=31000,4100,IF(AR168<=45000,5200,5700))))))))) -> 0 | AU168: =IF(AS168=0,0,IF(AS168<=9000,500,IF(AS168<=11000,650,IF(AS168<=15000,1100,IF(AS168<=20000,1450,IF(AS168<=24000,2100,IF(AS168<=28000,3300,IF(AS168<=31000,4100,IF(AS168<=45000,5200,5700))))))))) -> 0 | AV168: =IF(AT168>AU168,AT168-AU168,0) -> 0 | AW168: =IF(J51=0,0,((ROUND(N168*(I$3%-K$3%),0)))-(ROUND(T168*(I$3%-K$3%),0))) -> 0 | AX168: =IF(F$9="Nill",0,IF(F$9="ALL",(AV168+AW168),IF(F$9="DA",AW168))) -> FALSE | AY168: =IF(AR168<1,0,IF(AR168<=7000,130,IF(AR168<=13000,220,IF(AR168<=21000,325,IF(AR168>21000,445))))) -> 0 | AZ168: =IF(AS168<1,0,IF(AS168<=7000,130,IF(AS168<=13000,220,IF(AS168<=21000,325,IF(AS168>21000,445))))) -> 0 | BA168: =IF(AY168>AZ168,AY168-AZ168,0) -> 0 | BB168: =IF(AR168<1,0,IF(AR168<=8500,330,IF(AR168<=11000,450,IF(AR168<=18000,900,IF(AR168<=28000,1300,IF(AR168>=28000,2200)))))) -> 0 | BC168: =IF(AS168<1,0,IF(AS168<=8500,330,IF(AS168<=11000,450,IF(AS168<=18000,900,IF(AS168<=28000,1300,IF(AS168>=28000,2200)))))) -> 0 | BD168: =IF((MONTH(AQ168))=3,(BB168-BC168),BD167) -> 0 | BE168: =IF(N168<1,0,IF(N168<=7000,130,IF(N168<=10000,190,IF(N168<=13000,300,IF(N168>13000,480))))) -> 0 | BF168: =IF(N168<1,0,IF(N168<=7000,50,IF(N168<=10000,70,IF(N168<=13000,130,IF(N168>13000,240))))) -> 0 | BG168: =IF(T168<1,0,IF(T168<=7000,130,IF(T168<=10000,190,IF(T168<=13000,300,IF(T168>13000,480))))) -> 0 | BH168: =IF(T168<1,0,IF(T168<=7000,50,IF(T168<=10000,70,IF(T168<=13000,130,IF(T168>13000,240))))) -> 0 | BI168: =IF(L168=1,ROUND((13200*AA$30/Z$31),0),IF(L168=0,0,13200)) -> 0 | BJ168: =IF(L168=1,ROUND((14660*AA$30/Z$31),0),IF(L168=0,0,14660)) -> 0 | BK168: =IF(Entry!H$9=3600,BI168,IF(Entry!H$9=4200,BJ168,IF(Entry!H$9=4800,BL168,IF(Entry!H$9=2800,BM168,BN168)))) -> 0 | BL168: =IF(L168=1,ROUND((15660*AA$30/Z$31),0),IF(L168=0,0,15660)) -> 0 | BM168: =IF(L168=1,ROUND((10740*AA$30/Z$31),0),IF(L168=0,0,10740)) -> 0 | BN168: =IF(L168=1,ROUND((8100*AA$30/Z$31),0),IF(L168=0,0,8100)) -> 0
K169: 50 | L169: 0 | M169: 2026-07-01 | N169: 0 | O169: 0 | P169: 0 | Q169: 0 | R169: 9 | S169: 0 | T169: 0 | V169: 0 | W169: 0 | Y169: 0 | Z169: 0 | AA169: 0 | AC169: 0 | AE169: 0 | AH169: 0 | AK169: 0 | AL169: 0 | AM169: 0 | AN169: 0 | AO169: 0 | AP169: 28 | AQ169: 2026-07-01 | AR169: 0 | AS169: 0 | AT169: 0 | AU169: 0 | AV169: 0 | AW169: 0 | AX169: FALSE | AY169: 0 | AZ169: 0 | BA169: 0 | BB169: 0 | BC169: 0 | BD169: 0 | BE169: 0 | BF169: 0 | BG169: 0 | BH169: 0 | BI169: 0 | BJ169: 0 | BK169: =IF(Entry!H$9=3600,BI169,IF(Entry!H$9=4200,BJ169,IF(Entry!H$9=4800,BL169,IF(Entry!H$9=2800,BM169,BN169)))) -> 0 | BL169: 0 | BM169: 0 | BN169: 0
K170: 51 | L170: 0 | M170: 2026-08-01 | N170: 0 | O170: 0 | P170: 0 | Q170: 0 | R170: 9 | S170: 0 | T170: 0 | V170: 0 | W170: 0 | Y170: 0 | Z170: 0 | AA170: 0 | AC170: 0 | AE170: 0 | AH170: 0 | AK170: 0 | AL170: 0 | AM170: 0 | AN170: 0 | AO170: 0 | AP170: 28 | AQ170: 2026-08-01 | AR170: 0 | AS170: 0 | AT170: 0 | AU170: 0 | AV170: 0 | AW170: 0 | AX170: FALSE | AY170: 0 | AZ170: 0 | BA170: 0 | BB170: 0 | BC170: 0 | BD170: 0 | BE170: 0 | BF170: 0 | BG170: 0 | BH170: 0 | BI170: 0 | BJ170: 0 | BK170: =IF(Entry!H$9=3600,BI170,IF(Entry!H$9=4200,BJ170,IF(Entry!H$9=4800,BL170,IF(Entry!H$9=2800,BM170,BN170)))) -> 0 | BL170: 0 | BM170: 0 | BN170: 0
K171: 52 | L171: 0 | M171: 2026-09-01 | N171: 0 | O171: 0 | P171: 0 | Q171: 0 | R171: 9 | S171: 0 | T171: 0 | V171: 0 | W171: 0 | Y171: 0 | Z171: 0 | AA171: 0 | AC171: 0 | AE171: 0 | AH171: =IF(AE171>0,AH170,0) -> 0 | AK171: 0 | AL171: 0 | AM171: 0 | AN171: 0 | AO171: 0 | AP171: 28 | AQ171: 2026-09-01 | AR171: 0 | AS171: 0 | AT171: 0 | AU171: 0 | AV171: 0 | AW171: 0 | AX171: FALSE | AY171: 0 | AZ171: 0 | BA171: 0 | BB171: 0 | BC171: 0 | BD171: 0 | BE171: 0 | BF171: 0 | BG171: 0 | BH171: 0 | BI171: 0 | BJ171: 0 | BK171: =IF(Entry!H$9=3600,BI171,IF(Entry!H$9=4200,BJ171,IF(Entry!H$9=4800,BL171,IF(Entry!H$9=2800,BM171,BN171)))) -> 0 | BL171: 0 | BM171: 0 | BN171: 0
K172: 53 | L172: 0 | M172: 2026-10-01 | N172: 0 | O172: 0 | P172: 0 | Q172: 0 | R172: 9 | S172: 0 | T172: 0 | V172: 0 | W172: 0 | Y172: 0 | Z172: 0 | AA172: 0 | AC172: 0 | AE172: 0 | AH172: 0 | AK172: 0 | AL172: 0 | AM172: 0 | AN172: 0 | AO172: 0 | AP172: 28 | AQ172: 2026-10-01 | AR172: 0 | AS172: 0 | AT172: 0 | AU172: 0 | AV172: 0 | AW172: 0 | AX172: FALSE | AY172: 0 | AZ172: 0 | BA172: 0 | BB172: 0 | BC172: 0 | BD172: 0 | BE172: 0 | BF172: 0 | BG172: 0 | BH172: 0 | BI172: 0 | BJ172: 0 | BK172: =IF(Entry!H$9=3600,BI172,IF(Entry!H$9=4200,BJ172,IF(Entry!H$9=4800,BL172,IF(Entry!H$9=2800,BM172,BN172)))) -> 0 | BL172: 0 | BM172: 0 | BN172: 0
K173: 54 | L173: 0 | M173: 2026-11-01 | N173: 0 | O173: 0 | P173: 0 | Q173: 0 | R173: 9 | S173: 0 | T173: 0 | V173: 0 | W173: 0 | Y173: 0 | Z173: 0 | AA173: 0 | AC173: 0 | AE173: 0 | AH173: 0 | AK173: 0 | AL173: 0 | AM173: 0 | AN173: 0 | AO173: 0 | AP173: 28 | AQ173: 2026-11-01 | AR173: 0 | AS173: 0 | AT173: 0 | AU173: 0 | AV173: 0 | AW173: 0 | AX173: FALSE | AY173: 0 | AZ173: 0 | BA173: 0 | BB173: 0 | BC173: 0 | BD173: 0 | BE173: 0 | BF173: 0 | BG173: 0 | BH173: 0 | BI173: 0 | BJ173: 0 | BK173: =IF(Entry!H$9=3600,BI173,IF(Entry!H$9=4200,BJ173,IF(Entry!H$9=4800,BL173,IF(Entry!H$9=2800,BM173,BN173)))) -> 0 | BL173: 0 | BM173: 0 | BN173: 0
K174: 55 | L174: 0 | M174: 2026-12-01 | N174: 0 | O174: 0 | P174: 0 | Q174: =ROUND((N174)*(IF(G$4=0,0,G$5/100)),0) -> 0 | R174: =$G$5 -> 9 | S174: 0 | T174: 0 | V174: 0 | W174: 0 | Y174: 0 | Z174: 0 | AA174: 0 | AC174: 0 | AE174: 0 | AH174: 0 | AK174: 0 | AL174: 0 | AM174: 0 | AN174: 0 | AO174: 0 | AP174: 28 | AQ174: 2026-12-01 | AR174: 0 | AS174: 0 | AT174: 0 | AU174: 0 | AV174: 0 | AW174: 0 | AX174: FALSE | AY174: 0 | AZ174: 0 | BA174: 0 | BB174: 0 | BC174: 0 | BD174: 0 | BE174: 0 | BF174: 0 | BG174: 0 | BH174: 0 | BI174: 0 | BJ174: 0 | BK174: =IF(Entry!H$9=3600,BI174,IF(Entry!H$9=4200,BJ174,IF(Entry!H$9=4800,BL174,IF(Entry!H$9=2800,BM174,BN174)))) -> 0 | BL174: 0 | BM174: 0 | BN174: 0
K175: 56 | L175: 0 | M175: 2027-01-01 | N175: 0 | O175: 0 | P175: 0 | Q175: 0 | R175: 9 | S175: 0 | T175: 0 | V175: 0 | W175: 0 | Y175: 0 | Z175: 0 | AA175: 0 | AC175: 0 | AE175: 0 | AH175: 0 | AK175: 0 | AL175: 0 | AM175: 0 | AN175: 0 | AO175: 0 | AP175: 28 | AQ175: 2027-01-01 | AR175: 0 | AS175: 0 | AT175: 0 | AU175: 0 | AV175: 0 | AW175: 0 | AX175: FALSE | AY175: 0 | AZ175: 0 | BA175: 0 | BB175: 0 | BC175: 0 | BD175: 0 | BE175: 0 | BF175: 0 | BG175: 0 | BH175: 0 | BI175: 0 | BJ175: 0 | BK175: =IF(Entry!H$9=3600,BI175,IF(Entry!H$9=4200,BJ175,IF(Entry!H$9=4800,BL175,IF(Entry!H$9=2800,BM175,BN175)))) -> 0 | BL175: 0 | BM175: 0 | BN175: 0
K176: 57 | L176: 0 | M176: 2027-02-01 | N176: 0 | O176: 0 | P176: 0 | Q176: 0 | R176: 9 | S176: 0 | T176: 0 | V176: 0 | W176: 0 | Y176: 0 | Z176: 0 | AA176: 0 | AC176: 0 | AE176: 0 | AH176: 0 | AK176: 0 | AL176: 0 | AM176: 0 | AN176: 0 | AO176: 0 | AP176: 28 | AQ176: 2027-02-01 | AR176: 0 | AS176: 0 | AT176: 0 | AU176: 0 | AV176: 0 | AW176: 0 | AX176: FALSE | AY176: 0 | AZ176: 0 | BA176: 0 | BB176: 0 | BC176: 0 | BD176: 0 | BE176: 0 | BF176: 0 | BG176: 0 | BH176: 0 | BI176: 0 | BJ176: 0 | BK176: =IF(Entry!H$9=3600,BI176,IF(Entry!H$9=4200,BJ176,IF(Entry!H$9=4800,BL176,IF(Entry!H$9=2800,BM176,BN176)))) -> 0 | BL176: 0 | BM176: 0 | BN176: 0
K177: 58 | L177: 0 | M177: 2027-03-01 | N177: 0 | O177: 0 | P177: 0 | Q177: 0 | R177: 9 | S177: 0 | T177: 0 | V177: 0 | W177: 0 | Y177: 0 | Z177: 0 | AA177: 0 | AC177: 0 | AE177: 0 | AH177: 0 | AK177: 0 | AL177: 0 | AM177: 0 | AN177: 0 | AO177: 0 | AP177: 28 | AQ177: 2027-03-01 | AR177: 0 | AS177: 0 | AT177: 0 | AU177: 0 | AV177: 0 | AW177: 0 | AX177: FALSE | AY177: 0 | AZ177: 0 | BA177: 0 | BB177: 0 | BC177: 0 | BD177: 0 | BE177: 0 | BF177: 0 | BG177: 0 | BH177: 0 | BI177: 0 | BJ177: 0 | BK177: =IF(Entry!H$9=3600,BI177,IF(Entry!H$9=4200,BJ177,IF(Entry!H$9=4800,BL177,IF(Entry!H$9=2800,BM177,BN177)))) -> 0 | BL177: 0 | BM177: 0 | BN177: 0
K178: 59 | L178: 0 | M178: 2027-04-01 | N178: 0 | O178: 0 | P178: 0 | Q178: 0 | R178: 9 | S178: 0 | T178: 0 | V178: 0 | W178: 0 | Y178: 0 | Z178: 0 | AA178: 0 | AC178: 0 | AE178: 0 | AH178: 0 | AK178: 0 | AL178: 0 | AM178: 0 | AN178: 0 | AO178: 0 | AP178: 28 | AQ178: 2027-04-01 | AR178: 0 | AS178: 0 | AT178: 0 | AU178: 0 | AV178: 0 | AW178: 0 | AX178: FALSE | AY178: 0 | AZ178: 0 | BA178: 0 | BB178: 0 | BC178: 0 | BD178: 0 | BE178: 0 | BF178: 0 | BG178: 0 | BH178: 0 | BI178: 0 | BJ178: 0 | BK178: =IF(Entry!H$9=3600,BI178,IF(Entry!H$9=4200,BJ178,IF(Entry!H$9=4800,BL178,IF(Entry!H$9=2800,BM178,BN178)))) -> 0 | BL178: 0 | BM178: 0 | BN178: 0
K179: 60 | L179: 0 | M179: 2027-05-01 | N179: 0 | O179: 0 | P179: 0 | Q179: 0 | R179: 9 | S179: 0 | T179: 0 | V179: 0 | W179: 0 | Y179: 0 | Z179: 0 | AA179: 0 | AC179: 0 | AE179: 0 | AH179: 0 | AK179: 0 | AL179: 0 | AM179: 0 | AN179: 0 | AO179: 0 | AP179: 28 | AQ179: 2027-05-01 | AR179: 0 | AS179: 0 | AT179: 0 | AU179: 0 | AV179: 0 | AW179: 0 | AX179: FALSE | AY179: 0 | AZ179: 0 | BA179: 0 | BB179: 0 | BC179: 0 | BD179: 0 | BE179: 0 | BF179: 0 | BG179: 0 | BH179: 0 | BI179: 0 | BJ179: 0 | BK179: =IF(Entry!H$9=3600,BI179,IF(Entry!H$9=4200,BJ179,IF(Entry!H$9=4800,BL179,IF(Entry!H$9=2800,BM179,BN179)))) -> 0 | BL179: 0 | BM179: 0 | BN179: 0
K180: 61 | L180: 0 | M180: 2027-06-01 | N180: 0 | O180: 0 | P180: 0 | Q180: 0 | R180: 9 | S180: 0 | T180: 0 | V180: 0 | W180: 0 | Y180: 0 | Z180: 0 | AA180: 0 | AC180: 0 | AE180: 0 | AH180: 0 | AK180: 0 | AL180: 0 | AM180: 0 | AN180: 0 | AO180: 0 | AP180: 28 | AQ180: 2027-06-01 | AR180: 0 | AS180: 0 | AT180: 0 | AU180: 0 | AV180: 0 | AW180: 0 | AX180: FALSE | AY180: 0 | AZ180: 0 | BA180: 0 | BB180: 0 | BC180: 0 | BD180: 0 | BE180: 0 | BF180: 0 | BG180: 0 | BH180: 0 | BI180: 0 | BJ180: 0 | BK180: =IF(Entry!H$9=3600,BI180,IF(Entry!H$9=4200,BJ180,IF(Entry!H$9=4800,BL180,IF(Entry!H$9=2800,BM180,BN180)))) -> 0 | BL180: 0 | BM180: 0 | BN180: 0
K181: 62 | L181: 0 | M181: 2027-07-01 | N181: 0 | O181: 0 | P181: 0 | Q181: 0 | R181: 9 | S181: 0 | T181: 0 | V181: 0 | W181: 0 | Y181: 0 | Z181: 0 | AA181: 0 | AC181: 0 | AE181: 0 | AH181: 0 | AK181: 0 | AL181: 0 | AM181: 0 | AN181: 0 | AO181: 0 | AP181: 28 | AQ181: 2027-07-01 | AR181: 0 | AS181: 0 | AT181: 0 | AU181: 0 | AV181: 0 | AW181: 0 | AX181: FALSE | AY181: 0 | AZ181: 0 | BA181: 0 | BB181: 0 | BC181: 0 | BD181: 0 | BE181: 0 | BF181: 0 | BG181: 0 | BH181: 0 | BI181: 0 | BJ181: 0 | BK181: =IF(Entry!H$9=3600,BI181,IF(Entry!H$9=4200,BJ181,IF(Entry!H$9=4800,BL181,IF(Entry!H$9=2800,BM181,BN181)))) -> 0 | BL181: 0 | BM181: 0 | BN181: 0
K182: 63 | L182: 0 | M182: 2027-08-01 | N182: 0 | O182: 0 | P182: 0 | Q182: 0 | R182: 9 | S182: 0 | T182: 0 | V182: 0 | W182: 0 | Y182: 0 | Z182: 0 | AA182: 0 | AC182: 0 | AE182: 0 | AH182: 0 | AK182: 0 | AL182: 0 | AM182: 0 | AN182: 0 | AO182: 0 | AP182: 28 | AQ182: 2027-08-01 | AR182: 0 | AS182: 0 | AT182: 0 | AU182: 0 | AV182: 0 | AW182: 0 | AX182: FALSE | AY182: 0 | AZ182: 0 | BA182: 0 | BB182: 0 | BC182: 0 | BD182: 0 | BE182: 0 | BF182: 0 | BG182: 0 | BH182: 0 | BI182: 0 | BJ182: 0 | BK182: =IF(Entry!H$9=3600,BI182,IF(Entry!H$9=4200,BJ182,IF(Entry!H$9=4800,BL182,IF(Entry!H$9=2800,BM182,BN182)))) -> 0 | BL182: 0 | BM182: 0 | BN182: 0
K183: 64 | L183: 0 | M183: 2027-09-01 | N183: 0 | O183: 0 | P183: 0 | Q183: 0 | R183: 9 | S183: 0 | T183: 0 | V183: 0 | W183: 0 | Y183: 0 | Z183: 0 | AA183: 0 | AC183: 0 | AE183: 0 | AH183: 0 | AK183: 0 | AL183: 0 | AM183: 0 | AN183: 0 | AO183: 0 | AP183: 28 | AQ183: 2027-09-01 | AR183: 0 | AS183: 0 | AT183: 0 | AU183: 0 | AV183: 0 | AW183: 0 | AX183: FALSE | AY183: 0 | AZ183: 0 | BA183: 0 | BB183: 0 | BC183: 0 | BD183: 0 | BE183: 0 | BF183: 0 | BG183: 0 | BH183: 0 | BI183: 0 | BJ183: 0 | BK183: =IF(Entry!H$9=3600,BI183,IF(Entry!H$9=4200,BJ183,IF(Entry!H$9=4800,BL183,IF(Entry!H$9=2800,BM183,BN183)))) -> 0 | BL183: 0 | BM183: 0 | BN183: 0
K184: 65 | L184: 0 | M184: 2027-10-01 | N184: 0 | O184: 0 | P184: 0 | Q184: 0 | R184: 9 | S184: 0 | T184: 0 | V184: 0 | W184: 0 | Y184: 0 | Z184: 0 | AA184: 0 | AC184: 0 | AE184: 0 | AH184: 0 | AK184: 0 | AL184: 0 | AM184: 0 | AN184: =ROUND((T184)*10%,0) -> 0 | AO184: =AM184-AN184 -> 0 | AP184: 28 | AQ184: 2027-10-01 | AR184: 0 | AS184: 0 | AT184: 0 | AU184: 0 | AV184: 0 | AW184: 0 | AX184: FALSE | AY184: 0 | AZ184: 0 | BA184: 0 | BB184: 0 | BC184: 0 | BD184: 0 | BE184: 0 | BF184: 0 | BG184: 0 | BH184: 0 | BI184: 0 | BJ184: 0 | BK184: =IF(Entry!H$9=3600,BI184,IF(Entry!H$9=4200,BJ184,IF(Entry!H$9=4800,BL184,IF(Entry!H$9=2800,BM184,BN184)))) -> 0 | BL184: 0 | BM184: 0 | BN184: 0
K185: 66 | L185: 0 | M185: 2027-11-01 | N185: 0 | O185: 0 | P185: 0 | Q185: 0 | R185: 9 | S185: 0 | T185: 0 | V185: 0 | W185: 0 | Y185: 0 | Z185: 0 | AA185: 0 | AC185: 0 | AE185: 0 | AH185: 0 | AK185: 0 | AL185: 0 | AM185: 0 | AN185: 0 | AO185: 0 | AP185: =AP184 -> 28 | AQ185: 2027-11-01 | AR185: 0 | AS185: 0 | AT185: 0 | AU185: 0 | AV185: 0 | AW185: 0 | AX185: FALSE | AY185: 0 | AZ185: 0 | BA185: 0 | BB185: 0 | BC185: 0 | BD185: 0 | BE185: 0 | BF185: 0 | BG185: 0 | BH185: 0 | BI185: 0 | BJ185: 0 | BK185: =IF(Entry!H$9=3600,BI185,IF(Entry!H$9=4200,BJ185,IF(Entry!H$9=4800,BL185,IF(Entry!H$9=2800,BM185,BN185)))) -> 0 | BL185: 0 | BM185: 0 | BN185: 0
K186: 67 | L186: 0 | M186: 2027-12-01 | N186: 0 | O186: 0 | P186: 0 | Q186: 0 | R186: 9 | S186: 0 | T186: 0 | V186: 0 | W186: 0 | Y186: 0 | Z186: 0 | AA186: 0 | AC186: 0 | AE186: 0 | AH186: 0 | AK186: 0 | AL186: 0 | AM186: 0 | AN186: 0 | AO186: 0 | AP186: 28 | AQ186: 2027-12-01 | AR186: 0 | AS186: 0 | AT186: 0 | AU186: 0 | AV186: 0 | AW186: 0 | AX186: FALSE | AY186: 0 | AZ186: 0 | BA186: 0 | BB186: 0 | BC186: 0 | BD186: 0 | BE186: 0 | BF186: 0 | BG186: 0 | BH186: 0 | BI186: 0 | BJ186: 0 | BK186: =IF(Entry!H$9=3600,BI186,IF(Entry!H$9=4200,BJ186,IF(Entry!H$9=4800,BL186,IF(Entry!H$9=2800,BM186,BN186)))) -> 0 | BL186: 0 | BM186: 0 | BN186: 0
K187: 68 | L187: 0 | M187: 2028-01-01 | N187: 0 | O187: 0 | P187: 0 | Q187: 0 | R187: 9 | S187: 0 | T187: 0 | V187: 0 | W187: 0 | Y187: 0 | Z187: 0 | AA187: 0 | AC187: 0 | AE187: 0 | AH187: 0 | AK187: 0 | AL187: 0 | AM187: 0 | AN187: 0 | AO187: 0 | AP187: 28 | AQ187: 2028-01-01 | AR187: 0 | AS187: 0 | AT187: 0 | AU187: 0 | AV187: 0 | AW187: 0 | AX187: FALSE | AY187: 0 | AZ187: 0 | BA187: 0 | BB187: 0 | BC187: 0 | BD187: 0 | BE187: 0 | BF187: 0 | BG187: 0 | BH187: 0 | BI187: 0 | BJ187: 0 | BK187: =IF(Entry!H$9=3600,BI187,IF(Entry!H$9=4200,BJ187,IF(Entry!H$9=4800,BL187,IF(Entry!H$9=2800,BM187,BN187)))) -> 0 | BL187: 0 | BM187: 0 | BN187: 0
K188: 69 | L188: 0 | M188: 2028-02-01 | N188: 0 | O188: 0 | P188: 0 | Q188: 0 | R188: 9 | S188: 0 | T188: 0 | V188: 0 | W188: 0 | Y188: 0 | Z188: 0 | AA188: 0 | AC188: 0 | AE188: 0 | AH188: 0 | AK188: 0 | AL188: 0 | AM188: 0 | AN188: 0 | AO188: 0 | AP188: 28 | AQ188: 2028-02-01 | AR188: 0 | AS188: 0 | AT188: 0 | AU188: 0 | AV188: 0 | AW188: 0 | AX188: FALSE | AY188: 0 | AZ188: 0 | BA188: 0 | BB188: 0 | BC188: 0 | BD188: 0 | BE188: 0 | BF188: 0 | BG188: 0 | BH188: 0 | BI188: 0 | BJ188: 0 | BK188: =IF(Entry!H$9=3600,BI188,IF(Entry!H$9=4200,BJ188,IF(Entry!H$9=4800,BL188,IF(Entry!H$9=2800,BM188,BN188)))) -> 0 | BL188: 0 | BM188: 0 | BN188: 0
K189: 70 | L189: 0 | M189: 2028-03-01 | N189: 0 | O189: 0 | P189: 0 | Q189: 0 | R189: 9 | S189: 0 | T189: 0 | V189: 0 | W189: 0 | Y189: 0 | Z189: 0 | AA189: 0 | AC189: 0 | AE189: 0 | AH189: 0 | AK189: 0 | AL189: 0 | AM189: 0 | AN189: 0 | AO189: 0 | AP189: 28 | AQ189: 2028-03-01 | AR189: 0 | AS189: 0 | AT189: 0 | AU189: 0 | AV189: 0 | AW189: 0 | AX189: FALSE | AY189: 0 | AZ189: 0 | BA189: 0 | BB189: 0 | BC189: 0 | BD189: 0 | BE189: 0 | BF189: 0 | BG189: 0 | BH189: 0 | BI189: 0 | BJ189: 0 | BK189: =IF(Entry!H$9=3600,BI189,IF(Entry!H$9=4200,BJ189,IF(Entry!H$9=4800,BL189,IF(Entry!H$9=2800,BM189,BN189)))) -> 0 | BL189: 0 | BM189: 0 | BN189: 0
K190: 71 | L190: 0 | M190: 2028-04-01 | N190: 0 | O190: 0 | P190: 0 | Q190: 0 | R190: 9 | S190: 0 | T190: 0 | V190: 0 | W190: 0 | Y190: 0 | Z190: 0 | AA190: 0 | AC190: 0 | AE190: 0 | AH190: 0 | AK190: 0 | AL190: 0 | AM190: 0 | AN190: 0 | AO190: 0 | AP190: 28 | AQ190: 2028-04-01 | AR190: 0 | AS190: 0 | AT190: 0 | AU190: 0 | AV190: 0 | AW190: 0 | AX190: FALSE | AY190: 0 | AZ190: 0 | BA190: 0 | BB190: 0 | BC190: 0 | BD190: 0 | BE190: 0 | BF190: 0 | BG190: 0 | BH190: 0 | BI190: 0 | BJ190: 0 | BK190: =IF(Entry!H$9=3600,BI190,IF(Entry!H$9=4200,BJ190,IF(Entry!H$9=4800,BL190,IF(Entry!H$9=2800,BM190,BN190)))) -> 0 | BL190: 0 | BM190: 0 | BN190: 0
K191: 72 | L191: 0 | M191: 2028-05-01 | N191: 0 | O191: 0 | P191: 0 | Q191: 0 | R191: 9 | S191: 0 | T191: 0 | V191: 0 | W191: 0 | Y191: 0 | Z191: 0 | AA191: 0 | AC191: 0 | AE191: 0 | AH191: 0 | AK191: 0 | AL191: 0 | AM191: 0 | AN191: 0 | AO191: 0 | AP191: 28 | AQ191: 2028-05-01 | AR191: 0 | AS191: 0 | AT191: 0 | AU191: 0 | AV191: 0 | AW191: 0 | AX191: FALSE | AY191: 0 | AZ191: 0 | BA191: 0 | BB191: 0 | BC191: 0 | BD191: 0 | BE191: 0 | BF191: 0 | BG191: 0 | BH191: 0 | BI191: 0 | BJ191: 0 | BK191: =IF(Entry!H$9=3600,BI191,IF(Entry!H$9=4200,BJ191,IF(Entry!H$9=4800,BL191,IF(Entry!H$9=2800,BM191,BN191)))) -> 0 | BL191: 0 | BM191: 0 | BN191: 0
K192: 73 | L192: 0 | M192: 2028-06-01 | N192: 0 | O192: 0 | P192: 0 | Q192: 0 | R192: 9 | S192: 0 | T192: 0 | V192: 0 | W192: 0 | Y192: 0 | Z192: 0 | AA192: 0 | AC192: 0 | AE192: 0 | AH192: 0 | AK192: 0 | AL192: 0 | AM192: 0 | AN192: 0 | AO192: 0 | AP192: 28 | AQ192: 2028-06-01 | AR192: 0 | AS192: 0 | AT192: 0 | AU192: 0 | AV192: 0 | AW192: 0 | AX192: FALSE | AY192: 0 | AZ192: 0 | BA192: 0 | BB192: 0 | BC192: 0 | BD192: 0 | BE192: 0 | BF192: 0 | BG192: 0 | BH192: 0 | BI192: 0 | BJ192: 0 | BK192: =IF(Entry!H$9=3600,BI192,IF(Entry!H$9=4200,BJ192,IF(Entry!H$9=4800,BL192,IF(Entry!H$9=2800,BM192,BN192)))) -> 0 | BL192: 0 | BM192: 0 | BN192: 0
K193: 74 | L193: 0 | M193: 2028-07-01 | N193: 0 | O193: 0 | P193: 0 | Q193: 0 | R193: 9 | S193: 0 | T193: 0 | V193: 0 | W193: 0 | Y193: 0 | Z193: 0 | AA193: 0 | AC193: 0 | AE193: 0 | AH193: 0 | AK193: 0 | AL193: 0 | AM193: 0 | AN193: 0 | AO193: 0 | AP193: 28 | AQ193: 2028-07-01 | AR193: 0 | AS193: 0 | AT193: 0 | AU193: 0 | AV193: 0 | AW193: 0 | AX193: FALSE | AY193: 0 | AZ193: 0 | BA193: 0 | BB193: 0 | BC193: 0 | BD193: 0 | BE193: 0 | BF193: 0 | BG193: 0 | BH193: 0 | BI193: 0 | BJ193: 0 | BK193: =IF(Entry!H$9=3600,BI193,IF(Entry!H$9=4200,BJ193,IF(Entry!H$9=4800,BL193,IF(Entry!H$9=2800,BM193,BN193)))) -> 0 | BL193: 0 | BM193: 0 | BN193: 0
K194: 75 | L194: 0 | M194: 2028-08-01 | N194: 0 | O194: 0 | P194: 0 | Q194: 0 | R194: 9 | S194: 0 | T194: 0 | V194: 0 | W194: 0 | Y194: 0 | Z194: 0 | AA194: 0 | AC194: 0 | AE194: 0 | AH194: 0 | AK194: 0 | AL194: 0 | AM194: 0 | AN194: 0 | AO194: 0 | AP194: 28 | AQ194: 2028-08-01 | AR194: 0 | AS194: 0 | AT194: 0 | AU194: 0 | AV194: 0 | AW194: 0 | AX194: FALSE | AY194: 0 | AZ194: 0 | BA194: 0 | BB194: 0 | BC194: 0 | BD194: 0 | BE194: 0 | BF194: 0 | BG194: 0 | BH194: 0 | BI194: 0 | BJ194: 0 | BK194: =IF(Entry!H$9=3600,BI194,IF(Entry!H$9=4200,BJ194,IF(Entry!H$9=4800,BL194,IF(Entry!H$9=2800,BM194,BN194)))) -> 0 | BL194: 0 | BM194: 0 | BN194: 0
K195: 76 | L195: 0 | M195: 2028-09-01 | N195: 0 | O195: 0 | P195: 0 | Q195: 0 | R195: 9 | S195: 0 | T195: 0 | V195: 0 | W195: 0 | Y195: 0 | Z195: 0 | AA195: 0 | AC195: 0 | AE195: 0 | AH195: 0 | AK195: 0 | AL195: 0 | AM195: 0 | AN195: 0 | AO195: 0 | AP195: 28 | AQ195: 2028-09-01 | AR195: 0 | AS195: 0 | AT195: 0 | AU195: 0 | AV195: 0 | AW195: 0 | AX195: FALSE | AY195: 0 | AZ195: 0 | BA195: 0 | BB195: 0 | BC195: 0 | BD195: 0 | BE195: 0 | BF195: 0 | BG195: 0 | BH195: 0 | BI195: 0 | BJ195: 0 | BK195: =IF(Entry!H$9=3600,BI195,IF(Entry!H$9=4200,BJ195,IF(Entry!H$9=4800,BL195,IF(Entry!H$9=2800,BM195,BN195)))) -> 0 | BL195: 0 | BM195: 0 | BN195: 0
K196: 77 | L196: 0 | M196: 2028-10-01 | N196: 0 | O196: 0 | P196: 0 | Q196: 0 | R196: 9 | S196: 0 | T196: 0 | V196: 0 | W196: 0 | Y196: 0 | Z196: 0 | AA196: 0 | AC196: 0 | AE196: 0 | AH196: 0 | AK196: 0 | AL196: 0 | AM196: 0 | AN196: 0 | AO196: 0 | AP196: 28 | AQ196: 2028-10-01 | AR196: 0 | AS196: 0 | AT196: 0 | AU196: 0 | AV196: 0 | AW196: 0 | AX196: FALSE | AY196: 0 | AZ196: 0 | BA196: 0 | BB196: 0 | BC196: 0 | BD196: 0 | BE196: 0 | BF196: 0 | BG196: 0 | BH196: 0 | BI196: 0 | BJ196: 0 | BK196: =IF(Entry!H$9=3600,BI196,IF(Entry!H$9=4200,BJ196,IF(Entry!H$9=4800,BL196,IF(Entry!H$9=2800,BM196,BN196)))) -> 0 | BL196: 0 | BM196: 0 | BN196: 0
K197: 78 | L197: 0 | M197: 2028-11-01 | N197: 0 | O197: 0 | P197: 0 | Q197: 0 | R197: 9 | S197: 0 | T197: 0 | V197: 0 | W197: 0 | Y197: 0 | Z197: 0 | AA197: 0 | AC197: 0 | AE197: 0 | AH197: 0 | AK197: 0 | AL197: 0 | AM197: 0 | AN197: 0 | AO197: 0 | AP197: 28 | AQ197: 2028-11-01 | AR197: 0 | AS197: 0 | AT197: 0 | AU197: 0 | AV197: 0 | AW197: 0 | AX197: FALSE | AY197: 0 | AZ197: 0 | BA197: 0 | BB197: 0 | BC197: 0 | BD197: 0 | BE197: 0 | BF197: 0 | BG197: 0 | BH197: 0 | BI197: 0 | BJ197: 0 | BK197: =IF(Entry!H$9=3600,BI197,IF(Entry!H$9=4200,BJ197,IF(Entry!H$9=4800,BL197,IF(Entry!H$9=2800,BM197,BN197)))) -> 0 | BL197: 0 | BM197: 0 | BN197: 0
K198: 79 | L198: 0 | M198: 2028-12-01 | N198: 0 | O198: 0 | P198: 0 | Q198: 0 | R198: 9 | S198: 0 | T198: 0 | V198: 0 | W198: 0 | Y198: 0 | Z198: 0 | AA198: 0 | AC198: 0 | AE198: 0 | AH198: 0 | AK198: 0 | AL198: 0 | AM198: 0 | AN198: 0 | AO198: 0 | AP198: 28 | AQ198: 2028-12-01 | AR198: 0 | AS198: 0 | AT198: 0 | AU198: 0 | AV198: 0 | AW198: 0 | AX198: FALSE | AY198: 0 | AZ198: 0 | BA198: 0 | BB198: 0 | BC198: 0 | BD198: 0 | BE198: 0 | BF198: 0 | BG198: 0 | BH198: 0 | BI198: 0 | BJ198: 0 | BK198: =IF(Entry!H$9=3600,BI198,IF(Entry!H$9=4200,BJ198,IF(Entry!H$9=4800,BL198,IF(Entry!H$9=2800,BM198,BN198)))) -> 0 | BL198: 0 | BM198: 0 | BN198: 0
K199: 80 | L199: 0 | M199: 2029-01-01 | N199: 0 | O199: 0 | P199: 0 | Q199: 0 | R199: 9 | S199: 0 | T199: 0 | V199: 0 | W199: 0 | Y199: 0 | Z199: 0 | AA199: 0 | AC199: 0 | AE199: 0 | AH199: 0 | AK199: 0 | AL199: 0 | AM199: 0 | AN199: 0 | AO199: 0 | AP199: 28 | AQ199: 2029-01-01 | AR199: 0 | AS199: 0 | AT199: 0 | AU199: 0 | AV199: 0 | AW199: 0 | AX199: FALSE | AY199: 0 | AZ199: 0 | BA199: 0 | BB199: 0 | BC199: 0 | BD199: 0 | BE199: 0 | BF199: 0 | BG199: 0 | BH199: 0 | BI199: 0 | BJ199: 0 | BK199: =IF(Entry!H$9=3600,BI199,IF(Entry!H$9=4200,BJ199,IF(Entry!H$9=4800,BL199,IF(Entry!H$9=2800,BM199,BN199)))) -> 0 | BL199: 0 | BM199: 0 | BN199: 0
K200: 81 | L200: 0 | M200: 2029-02-01 | N200: 0 | O200: 0 | P200: 0 | Q200: 0 | R200: 9 | S200: 0 | T200: 0 | V200: 0 | W200: 0 | Y200: 0 | Z200: 0 | AA200: 0 | AC200: 0 | AE200: 0 | AH200: 0 | AK200: 0 | AL200: 0 | AM200: 0 | AN200: 0 | AO200: 0 | AP200: 28 | AQ200: 2029-02-01 | AR200: 0 | AS200: 0 | AT200: 0 | AU200: 0 | AV200: 0 | AW200: 0 | AX200: FALSE | AY200: 0 | AZ200: 0 | BA200: 0 | BB200: 0 | BC200: 0 | BD200: 0 | BE200: 0 | BF200: 0 | BG200: 0 | BH200: 0 | BI200: 0 | BJ200: 0 | BK200: =IF(Entry!H$9=3600,BI200,IF(Entry!H$9=4200,BJ200,IF(Entry!H$9=4800,BL200,IF(Entry!H$9=2800,BM200,BN200)))) -> 0 | BL200: 0 | BM200: 0 | BN200: 0
M201: 2029-03-01 | AO201: 0
I202: =IF(F18="",0,IF(F18=0,0,F18)) -> 0 | K202: 30 | M202: 2029-04-01 | N202: =IF(M202="","",(ROUND(VLOOKUP(M202,AQ$55:AS$150,2,FALSE)/K202*I202,0))) ->  | O202: =IF(N202="","",IF(F$3="N",0,ROUND(N202*(VLOOKUP(M202,M$55:AR$150,30,FALSE))%,0))) ->  | S202: =SUM(N202:R202) ->  | T202: =IF(M202="","",(ROUND(VLOOKUP(M202,AQ$55:AS$150,3,FALSE)/K202*J202,0))) ->  | U202: =IF(N202="","",IF(F$3="N",0,ROUND(T202*(VLOOKUP(M202,M$55:AR$150,30,FALSE))%,0))) ->  | Y202: =SUM(T202:X202) ->  | AF202: =IF(N202="","",IF(AF$54=E$13,0,IF(AF$54="GPF",ROUND(VLOOKUP(M202,AQ$55:AW$150,7,FALSE)/2,0)))) ->  | AO202: 0
I203: 0 | K203: 30 | M203: 2029-05-01 | N203: =IF(M203="","",(ROUND(VLOOKUP(M203,AQ$55:AS$150,2,FALSE)/K203*I203,0))) ->  | O203: =IF(N203="","",IF(F$3="N",0,ROUND(N203*(VLOOKUP(M203,M$55:AR$150,30,FALSE))%,0))) ->  | S203: =SUM(N203:R203) ->  | T203: =IF(M203="","",(ROUND(VLOOKUP(M203,AQ$55:AS$150,3,FALSE)/K203*J203,0))) ->  | U203: =IF(N203="","",IF(F$3="N",0,ROUND(T203*(VLOOKUP(M203,M$55:AR$150,30,FALSE))%,0))) ->  | Y203: =SUM(T203:X203) ->  | AF203: =IF(N203="","",IF(AF$54=E$13,0,IF(AF$54="GPF",ROUND(VLOOKUP(M203,AQ$55:AW$150,7,FALSE)/2,0)))) ->  | AO203: 0
I204: 0 | K204: 30 | M204: 2029-06-01 | AO204: 0
I205: 0 | K205: 30 | M205: 2029-07-01 | AO205: 0
I206: 0 | K206: 30 | M206: 2029-08-01 | AO206: 0
I207: 0 | K207: 30 | M207: 2029-09-01 | AO207: 0
I208: 0 | K208: 30 | M208: 2029-10-01 | AO208: 0
... 12 more rows

Sheet Entry
B2: This Program made by Vijay Ranwa, Teacher Govt sen. Sec. School DHANERU
B3: Pay Fixtation Arrear For State Employees , PLEASE Fill Required INFORMATION | K3: D A UPDATION
B4: dk;kZy; | D4: dk;kZy;] iz/kkukpk;Z ,oa ih-bZ-bZ-vks-] jktdh; mPp ek/;fed fo|ky; /kus:] chdkusj | K4: DA REVISION
K5: MONTH | L5: RATE
B6: deZpkjh dk uke | D6: fot; | G6: VIJAY RANWA MO. 9828113904 | K6: 2017-01-01 | L6: 4
B7: in | D7: v/;kid | K7: 2017-07-01 | L7: 5
B8: inLFkkiu LFkku | D8: jkmekfo] /kus: | K8: 2018-01-01 | L8: 7
B9: LFkkbZdj.k fnukad | D9: 2021-02-05 | F9: Lohd`r is esfVªd ysoy | H9: 10 | K9: 2018-07-01 | L9: 9
B10: ;fn uks'kuy ykHk feyk gS rks izkscs'ku iw.kZ Ik'pkr ftl csfld ij fQDl fd;k gS oks csfld QhM djsA vU;Fkk dkWye [kkyh jgus nsaA | K10: 2019-01-01 | L10: 12
K11: 2019-07-01 | L11: 17
B12: ARREAR FROM | D12: =D9 -> 2021-02-05 | E12: ARREAR UP TO | G12: 2021-08-31 | K12: 2021-07-01 | L12: 28
B13: ALLOWANCES | K13: 2022-01-01
B14: DA | C14: Y | D14: SI | K14: 2022-07-01
B15: HRA | C15: 8 | K15: 2023-01-01
B16: CCA | C16: N | K16: 2023-07-01
T26: =LEFT(D23,1) ->  | V26: =RIGHT(U26,1) -> 

Sheet FIX ARREAR
C1: ="dk;kZy; "&Entry!D4 -> dk;kZy; dk;kZy;] iz/kkukpk;Z ,oa ih-bZ-bZ-vks-] jktdh; mPp ek/;fed fo|ky; /kus:] chdkusj
B2: LFkkbZdj.k Ik'pkr~ osru vUrj izi= | Q2: vo/kh | S2: =Entry!D12 -> 2021-02-05 | U2: TO | W2: =Entry!G12 -> 2021-08-31
W3: =About!E18 -> 00:00:00 | X3: =About!F18 -> 0
N4: PAY MATRIX LEVEL | U4: =Entry!H9 -> 10
C5: deZpkjh dk uke | I5: =Entry!D6 -> fot; | Q5: =Entry!B7 -> in | T5: =Entry!D7 -> v/;kid
B6: inLFkkiu fo|ky; | I6: =Entry!D8 -> jkmekfo] /kus: | W6: =About!E24 -> 00:00:00 | X6: =About!F24 -> 0
A7: S.N. | B7: Month | C7: PAY DUE | J7: PAY DROWN | O7: DIFFERENCE | T7: Deducations | X7: NET | Y7: Bill No./Date | Z7: T.V.NO./ Incash date
C8: Basic | D8: DA | E8: CCA | F8: DA | H8: HRA | I8: Total | J8: Basic | K8: DA | L8: CCA | M8: HRA | N8: Total | O8: Basic | P8: DA | Q8: CCA | R8: HRA | S8: Total | T8: NPS | U8: SI | V8: I TAX | W8: Total
A9: 1 | B9: =VLOOKUP(1,About!L$55:AL$200,2,FALSE) -> 2021-02-01 | C9: =IF(B9>=About!M$5,0,(IF(ISNA(VLOOKUP(B9,About!M$55:AL$200,2,FALSE)),0,(VLOOKUP(B9,About!M$55:AL$200,2,FALSE))))) -> 28971 | D9: =IF(B9>=About!M$5,0,(IF(ISNA(VLOOKUP(B9,About!M$55:AP$200,30,FALSE)),0,(VLOOKUP(B9,About!M$55:AP$200,30,FALSE))))) -> 17 | E9: =IF(B9>=About!M$5,0,(IF(ISNA(VLOOKUP(B9,About!M$55:AL$167,4,FALSE)),0,(VLOOKUP(B9,About!M$55:AL$167,4,FALSE))))) -> 0 | F9: =ROUND(C9*D9/100,0) -> 4925 | G9: =IF(B9>=About!M$5,0,(IF(ISNA(VLOOKUP(B9,About!M$55:AK$200,6,FALSE)),0,(VLOOKUP(B9,About!M$55:AK$200,6,FALSE))))) -> 8 | H9: =ROUND(C9*G9/100,0) -> 2318 | I9: =SUM(C9,E9,F9,H9) -> 36214 | J9: =IF(B9>=About!M$5,0,(IF(ISNA(VLOOKUP(B9,About!M$55:BL$200,8,FALSE)),0,(VLOOKUP(B9,About!M$55:BL$200,8,FALSE))))) -> 20314 | K9: 0 | L9: 0 | M9: 0 | N9: =SUM(J9:M9) -> 20314 | O9: =C9-J9 -> 8657 | P9: =F9-K9 -> 4925 | Q9: =E9-L9 -> 0 | R9: =H9-M9 -> 2318 | S9: =SUM(O9:R9) -> 15900 | T9: =ROUND((C9+F9)*10%,0)-ROUND(J9*10%,0) -> 1359 | U9: =IF(B9>=About!M$5,0,(IF(ISNA(VLOOKUP(B9,About!M$55:BL$200,29,FALSE)),0,(VLOOKUP(B9,About!M$55:BL$200,22,FALSE))))) -> 0 | W9: =SUM(T9:V9) -> 1359 | X9: =S9-W9 -> 14541
A10: 2 | B10: =EDATE(B9,1) -> 2021-03-01 | C10: =IF(B10>=About!M$5,0,(IF(ISNA(VLOOKUP(B10,About!M$55:AL$200,2,FALSE)),0,(VLOOKUP(B10,About!M$55:AL$200,2,FALSE))))) -> 33800 | D10: =IF(B10>=About!M$5,0,(IF(ISNA(VLOOKUP(B10,About!M$55:AP$200,30,FALSE)),0,(VLOOKUP(B10,About!M$55:AP$200,30,FALSE))))) -> 17 | E10: =IF(B10>=About!M$5,0,(IF(ISNA(VLOOKUP(B10,About!M$55:AL$167,4,FALSE)),0,(VLOOKUP(B10,About!M$55:AL$167,4,FALSE))))) -> 0 | F10: =ROUND(C10*D10/100,0) -> 5746 | G10: =IF(B10>=About!M$5,0,(IF(ISNA(VLOOKUP(B10,About!M$55:AK$200,6,FALSE)),0,(VLOOKUP(B10,About!M$55:AK$200,6,FALSE))))) -> 8 | H10: =ROUND(C10*G10/100,0) -> 2704 | I10: =SUM(C10,F10,H10) -> 42250 | J10: =IF(B10>=About!M$5,0,(IF(ISNA(VLOOKUP(B10,About!M$55:BL$200,8,FALSE)),0,(VLOOKUP(B10,About!M$55:BL$200,8,FALSE))))) -> 23700 | K10: 0 | L10: 0 | M10: 0 | N10: =SUM(J10:M10) -> 23700 | O10: =C10-J10 -> 10100 | P10: =F10-K10 -> 5746 | Q10: =E10-L10 -> 0 | R10: =H10-M10 -> 2704 | S10: =SUM(O10:R10) -> 18550 | T10: =ROUND((C10+F10)*10%,0)-ROUND(J10*10%,0) -> 1585 | U10: =IF(B10>=About!M$5,0,(IF(ISNA(VLOOKUP(B10,About!M$55:BL$200,29,FALSE)),0,(VLOOKUP(B10,About!M$55:BL$200,22,FALSE))))) -> 2200 | W10: =SUM(T10:V10) -> 3785 | X10: 14765
A11: 3 | B11: =EDATE(B10,1) -> 2021-04-01 | C11: =IF(B11>=About!M$5,0,(IF(ISNA(VLOOKUP(B11,About!M$55:AL$200,2,FALSE)),0,(VLOOKUP(B11,About!M$55:AL$200,2,FALSE))))) -> 33800 | D11: =IF(B11>=About!M$5,0,(IF(ISNA(VLOOKUP(B11,About!M$55:AP$200,30,FALSE)),0,(VLOOKUP(B11,About!M$55:AP$200,30,FALSE))))) -> 17 | E11: =IF(B11>=About!M$5,0,(IF(ISNA(VLOOKUP(B11,About!M$55:AL$167,4,FALSE)),0,(VLOOKUP(B11,About!M$55:AL$167,4,FALSE))))) -> 0 | F11: 5746 | G11: =IF(B11>=About!M$5,0,(IF(ISNA(VLOOKUP(B11,About!M$55:AK$200,6,FALSE)),0,(VLOOKUP(B11,About!M$55:AK$200,6,FALSE))))) -> 8 | H11: 2704 | I11: 42250 | J11: =IF(B11>=About!M$5,0,(IF(ISNA(VLOOKUP(B11,About!M$55:BL$200,8,FALSE)),0,(VLOOKUP(B11,About!M$55:BL$200,8,FALSE))))) -> 23700 | K11: 0 | L11: 0 | M11: 0 | N11: 23700 | O11: 10100 | P11: 5746 | Q11: 0 | R11: 2704 | S11: 18550 | T11: 1585 | U11: =IF(B11>=About!M$5,0,(IF(ISNA(VLOOKUP(B11,About!M$55:BL$200,29,FALSE)),0,(VLOOKUP(B11,About!M$55:BL$200,22,FALSE))))) -> 2200 | W11: 3785 | X11: 14765
A12: 4 | B12: 2021-05-01 | C12: =IF(B12>=About!M$5,0,(IF(ISNA(VLOOKUP(B12,About!M$55:AL$200,2,FALSE)),0,(VLOOKUP(B12,About!M$55:AL$200,2,FALSE))))) -> 33800 | D12: =IF(B12>=About!M$5,0,(IF(ISNA(VLOOKUP(B12,About!M$55:AP$200,30,FALSE)),0,(VLOOKUP(B12,About!M$55:AP$200,30,FALSE))))) -> 17 | E12: =IF(B12>=About!M$5,0,(IF(ISNA(VLOOKUP(B12,About!M$55:AL$167,4,FALSE)),0,(VLOOKUP(B12,About!M$55:AL$167,4,FALSE))))) -> 0 | F12: 5746 | G12: =IF(B12>=About!M$5,0,(IF(ISNA(VLOOKUP(B12,About!M$55:AK$200,6,FALSE)),0,(VLOOKUP(B12,About!M$55:AK$200,6,FALSE))))) -> 8 | H12: 2704 | I12: 42250 | J12: =IF(B12>=About!M$5,0,(IF(ISNA(VLOOKUP(B12,About!M$55:BL$200,8,FALSE)),0,(VLOOKUP(B12,About!M$55:BL$200,8,FALSE))))) -> 23700 | K12: 0 | L12: 0 | M12: 0 | N12: 23700 | O12: 10100 | P12: 5746 | Q12: 0 | R12: 2704 | S12: 18550 | T12: 1585 | U12: =IF(B12>=About!M$5,0,(IF(ISNA(VLOOKUP(B12,About!M$55:BL$200,29,FALSE)),0,(VLOOKUP(B12,About!M$55:BL$200,22,FALSE))))) -> 2200 | W12: 3785 | X12: 14765
A13: 5 | B13: 2021-06-01 | C13: =IF(B13>=About!M$5,0,(IF(ISNA(VLOOKUP(B13,About!M$55:AL$200,2,FALSE)),0,(VLOOKUP(B13,About!M$55:AL$200,2,FALSE))))) -> 33800 | D13: =IF(B13>=About!M$5,0,(IF(ISNA(VLOOKUP(B13,About!M$55:AP$200,30,FALSE)),0,(VLOOKUP(B13,About!M$55:AP$200,30,FALSE))))) -> 17 | E13: =IF(B13>=About!M$5,0,(IF(ISNA(VLOOKUP(B13,About!M$55:AL$167,4,FALSE)),0,(VLOOKUP(B13,About!M$55:AL$167,4,FALSE))))) -> 0 | F13: 5746 | G13: =IF(B13>=About!M$5,0,(IF(ISNA(VLOOKUP(B13,About!M$55:AK$200,6,FALSE)),0,(VLOOKUP(B13,About!M$55:AK$200,6,FALSE))))) -> 8 | H13: 2704 | I13: 42250 | J13: =IF(B13>=About!M$5,0,(IF(ISNA(VLOOKUP(B13,About!M$55:BL$200,8,FALSE)),0,(VLOOKUP(B13,About!M$55:BL$200,8,FALSE))))) -> 23700 | K13: 0 | L13: 0 | M13: 0 | N13: 23700 | O13: 10100 | P13: 5746 | Q13: 0 | R13: 2704 | S13: 18550 | T13: 1585 | U13: =IF(B13>=About!M$5,0,(IF(ISNA(VLOOKUP(B13,About!M$55:BL$200,29,FALSE)),0,(VLOOKUP(B13,About!M$55:BL$200,22,FALSE))))) -> 2200 | W13: 3785 | X13: 14765
A14: 6 | B14: 2021-07-01 | C14: =IF(B14>=About!M$5,0,(IF(ISNA(VLOOKUP(B14,About!M$55:AL$200,2,FALSE)),0,(VLOOKUP(B14,About!M$55:AL$200,2,FALSE))))) -> 34800 | D14: =IF(B14>=About!M$5,0,(IF(ISNA(VLOOKUP(B14,About!M$55:AP$200,30,FALSE)),0,(VLOOKUP(B14,About!M$55:AP$200,30,FALSE))))) -> 28 | E14: =IF(B14>=About!M$5,0,(IF(ISNA(VLOOKUP(B14,About!M$55:AL$167,4,FALSE)),0,(VLOOKUP(B14,About!M$55:AL$167,4,FALSE))))) -> 0 | F14: 9744 | G14: =IF(B14>=About!M$5,0,(IF(ISNA(VLOOKUP(B14,About!M$55:AK$200,6,FALSE)),0,(VLOOKUP(B14,About!M$55:AK$200,6,FALSE))))) -> 9 | H14: 3132 | I14: 47676 | J14: =IF(B14>=About!M$5,0,(IF(ISNA(VLOOKUP(B14,About!M$55:BL$200,8,FALSE)),0,(VLOOKUP(B14,About!M$55:BL$200,8,FALSE))))) -> 23700 | K14: 0 | L14: 0 | M14: 0 | N14: 23700 | O14: 11100 | P14: 9744 | Q14: 0 | R14: 3132 | S14: 23976 | T14: 2084 | U14: =IF(B14>=About!M$5,0,(IF(ISNA(VLOOKUP(B14,About!M$55:BL$200,29,FALSE)),0,(VLOOKUP(B14,About!M$55:BL$200,22,FALSE))))) -> 2200 | W14: 4284 | X14: 19692
A15: 7 | B15: 2021-08-01 | C15: =IF(B15>=About!M$5,0,(IF(ISNA(VLOOKUP(B15,About!M$55:AL$200,2,FALSE)),0,(VLOOKUP(B15,About!M$55:AL$200,2,FALSE))))) -> 34800 | D15: =IF(B15>=About!M$5,0,(IF(ISNA(VLOOKUP(B15,About!M$55:AP$200,30,FALSE)),0,(VLOOKUP(B15,About!M$55:AP$200,30,FALSE))))) -> 28 | E15: =IF(B15>=About!M$5,0,(IF(ISNA(VLOOKUP(B15,About!M$55:AL$167,4,FALSE)),0,(VLOOKUP(B15,About!M$55:AL$167,4,FALSE))))) -> 0 | F15: 9744 | G15: =IF(B15>=About!M$5,0,(IF(ISNA(VLOOKUP(B15,About!M$55:AK$200,6,FALSE)),0,(VLOOKUP(B15,About!M$55:AK$200,6,FALSE))))) -> 9 | H15: 3132 | I15: 47676 | J15: =IF(B15>=About!M$5,0,(IF(ISNA(VLOOKUP(B15,About!M$55:BL$200,8,FALSE)),0,(VLOOKUP(B15,About!M$55:BL$200,8,FALSE))))) -> 23700 | K15: 0 | L15: 0 | M15: 0 | N15: 23700 | O15: 11100 | P15: 9744 | Q15: 0 | R15: 3132 | S15: 23976 | T15: 2084 | U15: =IF(B15>=About!M$5,0,(IF(ISNA(VLOOKUP(B15,About!M$55:BL$200,29,FALSE)),0,(VLOOKUP(B15,About!M$55:BL$200,22,FALSE))))) -> 2200 | W15: 4284 | X15: 19692
A16: 8 | B16: 2021-09-01 | C16: =IF(B16>=About!M$5,0,(IF(ISNA(VLOOKUP(B16,About!M$55:AL$200,2,FALSE)),0,(VLOOKUP(B16,About!M$55:AL$200,2,FALSE))))) -> 0 | D16: =IF(B16>=About!M$5,0,(IF(ISNA(VLOOKUP(B16,About!M$55:AP$200,30,FALSE)),0,(VLOOKUP(B16,About!M$55:AP$200,30,FALSE))))) -> 0 | E16: =IF(B16>=About!M$5,0,(IF(ISNA(VLOOKUP(B16,About!M$55:AL$167,4,FALSE)),0,(VLOOKUP(B16,About!M$55:AL$167,4,FALSE))))) -> 0 | F16: =ROUND(C16*D16/100,0) -> 0 | G16: =IF(B16>=About!M$5,0,(IF(ISNA(VLOOKUP(B16,About!M$55:AK$200,6,FALSE)),0,(VLOOKUP(B16,About!M$55:AK$200,6,FALSE))))) -> 0 | H16: =ROUND(C16*G16/100,0) -> 0 | I16: 0 | J16: =IF(B16>=About!M$5,0,(IF(ISNA(VLOOKUP(B16,About!M$55:BL$200,8,FALSE)),0,(VLOOKUP(B16,About!M$55:BL$200,8,FALSE))))) -> 0 | K16: 0 | L16: 0 | M16: 0 | N16: 0 | O16: 0 | P16: 0 | Q16: 0 | R16: 0 | S16: 0 | T16: 0 | U16: =IF(B16>=About!M$5,0,(IF(ISNA(VLOOKUP(B16,About!M$55:BL$200,29,FALSE)),0,(VLOOKUP(B16,About!M$55:BL$200,22,FALSE))))) -> 0 | W16: 0 | X16: 0
A17: 9 | B17: 2021-10-01 | C17: =IF(B17>=About!M$5,0,(IF(ISNA(VLOOKUP(B17,About!M$55:AL$200,2,FALSE)),0,(VLOOKUP(B17,About!M$55:AL$200,2,FALSE))))) -> 0 | D17: =IF(B17>=About!M$5,0,(IF(ISNA(VLOOKUP(B17,About!M$55:AP$200,30,FALSE)),0,(VLOOKUP(B17,About!M$55:AP$200,30,FALSE))))) -> 0 | E17: =IF(B17>=About!M$5,0,(IF(ISNA(VLOOKUP(B17,About!M$55:AL$167,4,FALSE)),0,(VLOOKUP(B17,About!M$55:AL$167,4,FALSE))))) -> 0 | F17: 0 | G17: =IF(B17>=About!M$5,0,(IF(ISNA(VLOOKUP(B17,About!M$55:AK$200,6,FALSE)),0,(VLOOKUP(B17,About!M$55:AK$200,6,FALSE))))) -> 0 | H17: 0 | I17: 0 | J17: =IF(B17>=About!M$5,0,(IF(ISNA(VLOOKUP(B17,About!M$55:BL$200,8,FALSE)),0,(VLOOKUP(B17,About!M$55:BL$200,8,FALSE))))) -> 0 | K17: 0 | L17: 0 | M17: 0 | N17: 0 | O17: 0 | P17: 0 | Q17: 0 | R17: 0 | S17: 0 | T17: 0 | U17: =IF(B17>=About!M$5,0,(IF(ISNA(VLOOKUP(B17,About!M$55:BL$200,29,FALSE)),0,(VLOOKUP(B17,About!M$55:BL$200,22,FALSE))))) -> 0 | W17: 0 | X17: 0
A18: 10 | B18: 2021-11-01 | C18: =IF(B18>=About!M$5,0,(IF(ISNA(VLOOKUP(B18,About!M$55:AL$200,2,FALSE)),0,(VLOOKUP(B18,About!M$55:AL$200,2,FALSE))))) -> 0 | D18: =IF(B18>=About!M$5,0,(IF(ISNA(VLOOKUP(B18,About!M$55:AP$200,30,FALSE)),0,(VLOOKUP(B18,About!M$55:AP$200,30,FALSE))))) -> 0 | E18: =IF(B18>=About!M$5,0,(IF(ISNA(VLOOKUP(B18,About!M$55:AL$167,4,FALSE)),0,(VLOOKUP(B18,About!M$55:AL$167,4,FALSE))))) -> 0 | F18: 0 | G18: =IF(B18>=About!M$5,0,(IF(ISNA(VLOOKUP(B18,About!M$55:AK$200,6,FALSE)),0,(VLOOKUP(B18,About!M$55:AK$200,6,FALSE))))) -> 0 | H18: 0 | I18: 0 | J18: =IF(B18>=About!M$5,0,(IF(ISNA(VLOOKUP(B18,About!M$55:BL$200,8,FALSE)),0,(VLOOKUP(B18,About!M$55:BL$200,8,FALSE))))) -> 0 | K18: 0 | L18: 0 | M18: 0 | N18: 0 | O18: 0 | P18: 0 | Q18: 0 | R18: 0 | S18: 0 | T18: 0 | U18: =IF(B18>=About!M$5,0,(IF(ISNA(VLOOKUP(B18,About!M$55:BL$200,29,FALSE)),0,(VLOOKUP(B18,About!M$55:BL$200,22,FALSE))))) -> 0 | W18: 0 | X18: 0
A19: 11 | B19: 2021-12-01 | C19: =IF(B19>=About!M$5,0,(IF(ISNA(VLOOKUP(B19,About!M$55:AL$200,2,FALSE)),0,(VLOOKUP(B19,About!M$55:AL$200,2,FALSE))))) -> 0 | D19: =IF(B19>=About!M$5,0,(IF(ISNA(VLOOKUP(B19,About!M$55:AP$200,30,FALSE)),0,(VLOOKUP(B19,About!M$55:AP$200,30,FALSE))))) -> 0 | E19: =IF(B19>=About!M$5,0,(IF(ISNA(VLOOKUP(B19,About!M$55:AL$167,4,FALSE)),0,(VLOOKUP(B19,About!M$55:AL$167,4,FALSE))))) -> 0 | F19: 0 | G19: =IF(B19>=About!M$5,0,(IF(ISNA(VLOOKUP(B19,About!M$55:AK$200,6,FALSE)),0,(VLOOKUP(B19,About!M$55:AK$200,6,FALSE))))) -> 0 | H19: 0 | I19: 0 | J19: =IF(B19>=About!M$5,0,(IF(ISNA(VLOOKUP(B19,About!M$55:BL$200,8,FALSE)),0,(VLOOKUP(B19,About!M$55:BL$200,8,FALSE))))) -> 0 | K19: 0 | L19: 0 | M19: 0 | N19: 0 | O19: 0 | P19: 0 | Q19: 0 | R19: 0 | S19: 0 | T19: 0 | U19: =IF(B19>=About!M$5,0,(IF(ISNA(VLOOKUP(B19,About!M$55:BL$200,29,FALSE)),0,(VLOOKUP(B19,About!M$55:BL$200,22,FALSE))))) -> 0 | W19: 0 | X19: 0
A20: 12 | B20: 2022-01-01 | C20: =IF(B20>=About!M$5,0,(IF(ISNA(VLOOKUP(B20,About!M$55:AL$200,2,FALSE)),0,(VLOOKUP(B20,About!M$55:AL$200,2,FALSE))))) -> 0 | D20: =IF(B20>=About!M$5,0,(IF(ISNA(VLOOKUP(B20,About!M$55:AP$200,30,FALSE)),0,(VLOOKUP(B20,About!M$55:AP$200,30,FALSE))))) -> 0 | E20: =IF(B20>=About!M$5,0,(IF(ISNA(VLOOKUP(B20,About!M$55:AL$167,4,FALSE)),0,(VLOOKUP(B20,About!M$55:AL$167,4,FALSE))))) -> 0 | F20: 0 | G20: =IF(B20>=About!M$5,0,(IF(ISNA(VLOOKUP(B20,About!M$55:AK$200,6,FALSE)),0,(VLOOKUP(B20,About!M$55:AK$200,6,FALSE))))) -> 0 | H20: 0 | I20: 0 | J20: =IF(B20>=About!M$5,0,(IF(ISNA(VLOOKUP(B20,About!M$55:BL$200,8,FALSE)),0,(VLOOKUP(B20,About!M$55:BL$200,8,FALSE))))) -> 0 | K20: 0 | L20: 0 | M20: 0 | N20: 0 | O20: 0 | P20: 0 | Q20: 0 | R20: 0 | S20: 0 | T20: 0 | U20: =IF(B20>=About!M$5,0,(IF(ISNA(VLOOKUP(B20,About!M$55:BL$200,29,FALSE)),0,(VLOOKUP(B20,About!M$55:BL$200,22,FALSE))))) -> 0 | W20: 0 | X20: 0
A21: 13 | B21: 2022-02-01 | C21: =IF(B21>=About!M$5,0,(IF(ISNA(VLOOKUP(B21,About!M$55:AL$200,2,FALSE)),0,(VLOOKUP(B21,About!M$55:AL$200,2,FALSE))))) -> 0 | D21: =IF(B21>=About!M$5,0,(IF(ISNA(VLOOKUP(B21,About!M$55:AP$200,30,FALSE)),0,(VLOOKUP(B21,About!M$55:AP$200,30,FALSE))))) -> 0 | E21: =IF(B21>=About!M$5,0,(IF(ISNA(VLOOKUP(B21,About!M$55:AL$167,4,FALSE)),0,(VLOOKUP(B21,About!M$55:AL$167,4,FALSE))))) -> 0 | F21: 0 | G21: =IF(B21>=About!M$5,0,(IF(ISNA(VLOOKUP(B21,About!M$55:AK$200,6,FALSE)),0,(VLOOKUP(B21,About!M$55:AK$200,6,FALSE))))) -> 0 | H21: 0 | I21: 0 | J21: =IF(B21>=About!M$5,0,(IF(ISNA(VLOOKUP(B21,About!M$55:BL$200,8,FALSE)),0,(VLOOKUP(B21,About!M$55:BL$200,8,FALSE))))) -> 0 | K21: 0 | L21: 0 | M21: 0 | N21: 0 | O21: 0 | P21: 0 | Q21: 0 | R21: 0 | S21: 0 | T21: 0 | U21: =IF(B21>=About!M$5,0,(IF(ISNA(VLOOKUP(B21,About!M$55:BL$200,29,FALSE)),0,(VLOOKUP(B21,About!M$55:BL$200,22,FALSE))))) -> 0 | W21: 0 | X21: 0
A22: 14 | B22: 2022-03-01 | C22: =IF(B22>=About!M$5,0,(IF(ISNA(VLOOKUP(B22,About!M$55:AL$200,2,FALSE)),0,(VLOOKUP(B22,About!M$55:AL$200,2,FALSE))))) -> 0 | D22: =IF(B22>=About!M$5,0,(IF(ISNA(VLOOKUP(B22,About!M$55:AP$200,30,FALSE)),0,(VLOOKUP(B22,About!M$55:AP$200,30,FALSE))))) -> 0 | E22: =IF(B22>=About!M$5,0,(IF(ISNA(VLOOKUP(B22,About!M$55:AL$167,4,FALSE)),0,(VLOOKUP(B22,About!M$55:AL$167,4,FALSE))))) -> 0 | F22: 0 | G22: =IF(B22>=About!M$5,0,(IF(ISNA(VLOOKUP(B22,About!M$55:AK$200,6,FALSE)),0,(VLOOKUP(B22,About!M$55:AK$200,6,FALSE))))) -> 0 | H22: 0 | I22: 0 | J22: =IF(B22>=About!M$5,0,(IF(ISNA(VLOOKUP(B22,About!M$55:BL$200,8,FALSE)),0,(VLOOKUP(B22,About!M$55:BL$200,8,FALSE))))) -> 0 | K22: 0 | L22: 0 | M22: 0 | N22: 0 | O22: 0 | P22: 0 | Q22: 0 | R22: 0 | S22: 0 | T22: 0 | U22: =IF(B22>=About!M$5,0,(IF(ISNA(VLOOKUP(B22,About!M$55:BL$200,29,FALSE)),0,(VLOOKUP(B22,About!M$55:BL$200,22,FALSE))))) -> 0 | W22: 0 | X22: 0
A23: 15 | B23: 2022-04-01 | C23: =IF(B23>=About!M$5,0,(IF(ISNA(VLOOKUP(B23,About!M$55:AL$200,2,FALSE)),0,(VLOOKUP(B23,About!M$55:AL$200,2,FALSE))))) -> 0 | D23: =IF(B23>=About!M$5,0,(IF(ISNA(VLOOKUP(B23,About!M$55:AP$200,30,FALSE)),0,(VLOOKUP(B23,About!M$55:AP$200,30,FALSE))))) -> 0 | E23: =IF(B23>=About!M$5,0,(IF(ISNA(VLOOKUP(B23,About!M$55:AL$167,4,FALSE)),0,(VLOOKUP(B23,About!M$55:AL$167,4,FALSE))))) -> 0 | F23: 0 | G23: =IF(B23>=About!M$5,0,(IF(ISNA(VLOOKUP(B23,About!M$55:AK$200,6,FALSE)),0,(VLOOKUP(B23,About!M$55:AK$200,6,FALSE))))) -> 0 | H23: 0 | I23: 0 | J23: =IF(B23>=About!M$5,0,(IF(ISNA(VLOOKUP(B23,About!M$55:BL$200,8,FALSE)),0,(VLOOKUP(B23,About!M$55:BL$200,8,FALSE))))) -> 0 | K23: 0 | L23: 0 | M23: 0 | N23: 0 | O23: 0 | P23: 0 | Q23: 0 | R23: 0 | S23: 0 | T23: 0 | U23: =IF(B23>=About!M$5,0,(IF(ISNA(VLOOKUP(B23,About!M$55:BL$200,29,FALSE)),0,(VLOOKUP(B23,About!M$55:BL$200,22,FALSE))))) -> 0 | W23: 0 | X23: 0
A24: 16 | B24: 2022-05-01 | C24: =IF(B24>=About!M$5,0,(IF(ISNA(VLOOKUP(B24,About!M$55:AL$200,2,FALSE)),0,(VLOOKUP(B24,About!M$55:AL$200,2,FALSE))))) -> 0 | D24: =IF(B24>=About!M$5,0,(IF(ISNA(VLOOKUP(B24,About!M$55:AP$200,30,FALSE)),0,(VLOOKUP(B24,About!M$55:AP$200,30,FALSE))))) -> 0 | E24: =IF(B24>=About!M$5,0,(IF(ISNA(VLOOKUP(B24,About!M$55:AL$167,4,FALSE)),0,(VLOOKUP(B24,About!M$55:AL$167,4,FALSE))))) -> 0 | F24: 0 | G24: =IF(B24>=About!M$5,0,(IF(ISNA(VLOOKUP(B24,About!M$55:AK$200,6,FALSE)),0,(VLOOKUP(B24,About!M$55:AK$200,6,FALSE))))) -> 0 | H24: 0 | I24: 0 | J24: =IF(B24>=About!M$5,0,(IF(ISNA(VLOOKUP(B24,About!M$55:BL$200,8,FALSE)),0,(VLOOKUP(B24,About!M$55:BL$200,8,FALSE))))) -> 0 | K24: 0 | L24: 0 | M24: 0 | N24: 0 | O24: 0 | P24: 0 | Q24: 0 | R24: 0 | S24: 0 | T24: 0 | U24: =IF(B24>=About!M$5,0,(IF(ISNA(VLOOKUP(B24,About!M$55:BL$200,29,FALSE)),0,(VLOOKUP(B24,About!M$55:BL$200,22,FALSE))))) -> 0 | W24: 0 | X24: 0
A25: 17 | B25: 2022-06-01 | C25: =IF(B25>=About!M$5,0,(IF(ISNA(VLOOKUP(B25,About!M$55:AL$200,2,FALSE)),0,(VLOOKUP(B25,About!M$55:AL$200,2,FALSE))))) -> 0 | D25: =IF(B25>=About!M$5,0,(IF(ISNA(VLOOKUP(B25,About!M$55:AP$200,30,FALSE)),0,(VLOOKUP(B25,About!M$55:AP$200,30,FALSE))))) -> 0 | E25: =IF(B25>=About!M$5,0,(IF(ISNA(VLOOKUP(B25,About!M$55:AL$167,4,FALSE)),0,(VLOOKUP(B25,About!M$55:AL$167,4,FALSE))))) -> 0 | F25: 0 | G25: =IF(B25>=About!M$5,0,(IF(ISNA(VLOOKUP(B25,About!M$55:AK$200,6,FALSE)),0,(VLOOKUP(B25,About!M$55:AK$200,6,FALSE))))) -> 0 | H25: 0 | I25: 0 | J25: =IF(B25>=About!M$5,0,(IF(ISNA(VLOOKUP(B25,About!M$55:BL$200,8,FALSE)),0,(VLOOKUP(B25,About!M$55:BL$200,8,FALSE))))) -> 0 | K25: 0 | L25: 0 | M25: 0 | N25: 0 | O25: 0 | P25: 0 | Q25: 0 | R25: 0 | S25: 0 | T25: 0 | U25: =IF(B25>=About!M$5,0,(IF(ISNA(VLOOKUP(B25,About!M$55:BL$200,29,FALSE)),0,(VLOOKUP(B25,About!M$55:BL$200,22,FALSE))))) -> 0 | W25: 0 | X25: 0
A26: 18 | B26: 2022-07-01 | C26: =IF(B26>=About!M$5,0,(IF(ISNA(VLOOKUP(B26,About!M$55:AL$200,2,FALSE)),0,(VLOOKUP(B26,About!M$55:AL$200,2,FALSE))))) -> 0 | D26: =IF(B26>=About!M$5,0,(IF(ISNA(VLOOKUP(B26,About!M$55:AP$200,30,FALSE)),0,(VLOOKUP(B26,About!M$55:AP$200,30,FALSE))))) -> 0 | E26: =IF(B26>=About!M$5,0,(IF(ISNA(VLOOKUP(B26,About!M$55:AL$167,4,FALSE)),0,(VLOOKUP(B26,About!M$55:AL$167,4,FALSE))))) -> 0 | F26: 0 | G26: =IF(B26>=About!M$5,0,(IF(ISNA(VLOOKUP(B26,About!M$55:AK$200,6,FALSE)),0,(VLOOKUP(B26,About!M$55:AK$200,6,FALSE))))) -> 0 | H26: 0 | I26: 0 | J26: =IF(B26>=About!M$5,0,(IF(ISNA(VLOOKUP(B26,About!M$55:BL$200,8,FALSE)),0,(VLOOKUP(B26,About!M$55:BL$200,8,FALSE))))) -> 0 | K26: 0 | L26: 0 | M26: 0 | N26: 0 | O26: 0 | P26: 0 | Q26: 0 | R26: 0 | S26: 0 | T26: 0 | U26: =IF(B26>=About!M$5,0,(IF(ISNA(VLOOKUP(B26,About!M$55:BL$200,29,FALSE)),0,(VLOOKUP(B26,About!M$55:BL$200,22,FALSE))))) -> 0 | W26: 0 | X26: 0
A27: 19 | B27: 2022-08-01 | C27: =IF(B27>=About!M$5,0,(IF(ISNA(VLOOKUP(B27,About!M$55:AL$200,2,FALSE)),0,(VLOOKUP(B27,About!M$55:AL$200,2,FALSE))))) -> 0 | D27: =IF(B27>=About!M$5,0,(IF(ISNA(VLOOKUP(B27,About!M$55:AP$200,30,FALSE)),0,(VLOOKUP(B27,About!M$55:AP$200,30,FALSE))))) -> 0 | E27: =IF(B27>=About!M$5,0,(IF(ISNA(VLOOKUP(B27,About!M$55:AL$167,4,FALSE)),0,(VLOOKUP(B27,About!M$55:AL$167,4,FALSE))))) -> 0 | F27: 0 | G27: =IF(B27>=About!M$5,0,(IF(ISNA(VLOOKUP(B27,About!M$55:AK$200,6,FALSE)),0,(VLOOKUP(B27,About!M$55:AK$200,6,FALSE))))) -> 0 | H27: 0 | I27: 0 | J27: =IF(B27>=About!M$5,0,(IF(ISNA(VLOOKUP(B27,About!M$55:BL$200,8,FALSE)),0,(VLOOKUP(B27,About!M$55:BL$200,8,FALSE))))) -> 0 | K27: 0 | L27: 0 | M27: 0 | N27: 0 | O27: 0 | P27: 0 | Q27: 0 | R27: 0 | S27: 0 | T27: 0 | U27: =IF(B27>=About!M$5,0,(IF(ISNA(VLOOKUP(B27,About!M$55:BL$200,29,FALSE)),0,(VLOOKUP(B27,About!M$55:BL$200,22,FALSE))))) -> 0 | W27: 0 | X27: 0
A28: 20 | B28: =EDATE(B27,1) -> 2022-09-01 | C28: =IF(B28>=About!M$5,0,(IF(ISNA(VLOOKUP(B28,About!M$55:AL$200,2,FALSE)),0,(VLOOKUP(B28,About!M$55:AL$200,2,FALSE))))) -> 0 | D28: =IF(B28>=About!M$5,0,(IF(ISNA(VLOOKUP(B28,About!M$55:AP$200,30,FALSE)),0,(VLOOKUP(B28,About!M$55:AP$200,30,FALSE))))) -> 0 | E28: =IF(B28>=About!M$5,0,(IF(ISNA(VLOOKUP(B28,About!M$55:AL$167,4,FALSE)),0,(VLOOKUP(B28,About!M$55:AL$167,4,FALSE))))) -> 0 | F28: 0 | G28: =IF(B28>=About!M$5,0,(IF(ISNA(VLOOKUP(B28,About!M$55:AK$200,6,FALSE)),0,(VLOOKUP(B28,About!M$55:AK$200,6,FALSE))))) -> 0 | H28: 0 | I28: 0 | J28: =IF(B28>=About!M$5,0,(IF(ISNA(VLOOKUP(B28,About!M$55:BL$200,8,FALSE)),0,(VLOOKUP(B28,About!M$55:BL$200,8,FALSE))))) -> 0 | K28: 0 | L28: 0 | M28: 0 | N28: 0 | O28: 0 | P28: 0 | Q28: 0 | R28: 0 | S28: 0 | T28: 0 | U28: =IF(B28>=About!M$5,0,(IF(ISNA(VLOOKUP(B28,About!M$55:BL$200,29,FALSE)),0,(VLOOKUP(B28,About!M$55:BL$200,22,FALSE))))) -> 0 | W28: 0 | X28: 0
A29: 21 | B29: =EDATE(B28,1) -> 2022-10-01 | C29: =IF(B29>=About!M$5,0,(IF(ISNA(VLOOKUP(B29,About!M$55:AL$200,2,FALSE)),0,(VLOOKUP(B29,About!M$55:AL$200,2,FALSE))))) -> 0 | D29: =IF(B29>=About!M$5,0,(IF(ISNA(VLOOKUP(B29,About!M$55:AP$200,30,FALSE)),0,(VLOOKUP(B29,About!M$55:AP$200,30,FALSE))))) -> 0 | E29: =IF(B29>=About!M$5,0,(IF(ISNA(VLOOKUP(B29,About!M$55:AL$167,4,FALSE)),0,(VLOOKUP(B29,About!M$55:AL$167,4,FALSE))))) -> 0 | F29: 0 | G29: =IF(B29>=About!M$5,0,(IF(ISNA(VLOOKUP(B29,About!M$55:AK$200,6,FALSE)),0,(VLOOKUP(B29,About!M$55:AK$200,6,FALSE))))) -> 0 | H29: 0 | I29: 0 | J29: =IF(B29>=About!M$5,0,(IF(ISNA(VLOOKUP(B29,About!M$55:BL$200,8,FALSE)),0,(VLOOKUP(B29,About!M$55:BL$200,8,FALSE))))) -> 0 | K29: 0 | L29: 0 | M29: 0 | N29: 0 | O29: 0 | P29: 0 | Q29: 0 | R29: 0 | S29: 0 | T29: 0 | U29: =IF(B29>=About!M$5,0,(IF(ISNA(VLOOKUP(B29,About!M$55:BL$200,29,FALSE)),0,(VLOOKUP(B29,About!M$55:BL$200,22,FALSE))))) -> 0 | W29: 0 | X29: 0
A30: 24 | B30: =EDATE(B29,1) -> 2022-11-01 | C30: =IF(B30>=About!M$5,0,(IF(ISNA(VLOOKUP(B30,About!M$55:AL$200,2,FALSE)),0,(VLOOKUP(B30,About!M$55:AL$200,2,FALSE))))) -> 0 | D30: =IF(B30>=About!M$5,0,(IF(ISNA(VLOOKUP(B30,About!M$55:AP$200,30,FALSE)),0,(VLOOKUP(B30,About!M$55:AP$200,30,FALSE))))) -> 0 | E30: =IF(B30>=About!M$5,0,(IF(ISNA(VLOOKUP(B30,About!M$55:AL$167,4,FALSE)),0,(VLOOKUP(B30,About!M$55:AL$167,4,FALSE))))) -> 0 | F30: 0 | G30: =IF(B30>=About!M$5,0,(IF(ISNA(VLOOKUP(B30,About!M$55:AK$200,6,FALSE)),0,(VLOOKUP(B30,About!M$55:AK$200,6,FALSE))))) -> 0 | H30: 0 | I30: 0 | J30: =IF(B30>=About!M$5,0,(IF(ISNA(VLOOKUP(B30,About!M$55:BL$200,8,FALSE)),0,(VLOOKUP(B30,About!M$55:BL$200,8,FALSE))))) -> 0 | K30: 0 | L30: 0 | M30: 0 | N30: 0 | O30: 0 | P30: 0 | Q30: 0 | R30: 0 | S30: 0 | T30: 0 | U30: =IF(B30>=About!M$5,0,(IF(ISNA(VLOOKUP(B30,About!M$55:BL$200,29,FALSE)),0,(VLOOKUP(B30,About!M$55:BL$200,22,FALSE))))) -> 0 | W30: 0 | X30: 0
A31: 25 | B31: =EDATE(B30,1) -> 2022-12-01 | C31: =IF(B31>=About!M$5,0,(IF(ISNA(VLOOKUP(B31,About!M$55:AL$200,2,FALSE)),0,(VLOOKUP(B31,About!M$55:AL$200,2,FALSE))))) -> 0 | D31: =IF(B31>=About!M$5,0,(IF(ISNA(VLOOKUP(B31,About!M$55:AP$200,30,FALSE)),0,(VLOOKUP(B31,About!M$55:AP$200,30,FALSE))))) -> 0 | E31: =IF(B31>=About!M$5,0,(IF(ISNA(VLOOKUP(B31,About!M$55:AL$167,4,FALSE)),0,(VLOOKUP(B31,About!M$55:AL$167,4,FALSE))))) -> 0 | F31: 0 | G31: =IF(B31>=About!M$5,0,(IF(ISNA(VLOOKUP(B31,About!M$55:AK$200,6,FALSE)),0,(VLOOKUP(B31,About!M$55:AK$200,6,FALSE))))) -> 0 | H31: 0 | I31: 0 | J31: =IF(B31>=About!M$5,0,(IF(ISNA(VLOOKUP(B31,About!M$55:BL$200,8,FALSE)),0,(VLOOKUP(B31,About!M$55:BL$200,8,FALSE))))) -> 0 | K31: 0 | L31: 0 | M31: 0 | N31: 0 | O31: 0 | P31: 0 | Q31: 0 | R31: 0 | S31: 0 | T31: 0 | U31: =IF(B31>=About!M$5,0,(IF(ISNA(VLOOKUP(B31,About!M$55:BL$200,29,FALSE)),0,(VLOOKUP(B31,About!M$55:BL$200,22,FALSE))))) -> 0 | W31: 0 | X31: 0
A32: 26 | B32: 2023-01-01 | C32: =IF(B32>=About!M$5,0,(IF(ISNA(VLOOKUP(B32,About!M$55:AL$200,2,FALSE)),0,(VLOOKUP(B32,About!M$55:AL$200,2,FALSE))))) -> 0 | D32: =IF(B32>=About!M$5,0,(IF(ISNA(VLOOKUP(B32,About!M$55:AP$200,30,FALSE)),0,(VLOOKUP(B32,About!M$55:AP$200,30,FALSE))))) -> 0 | E32: =IF(B32>=About!M$5,0,(IF(ISNA(VLOOKUP(B32,About!M$55:AL$167,4,FALSE)),0,(VLOOKUP(B32,About!M$55:AL$167,4,FALSE))))) -> 0 | F32: 0 | G32: =IF(B32>=About!M$5,0,(IF(ISNA(VLOOKUP(B32,About!M$55:AK$200,6,FALSE)),0,(VLOOKUP(B32,About!M$55:AK$200,6,FALSE))))) -> 0 | H32: 0 | I32: 0 | J32: =IF(B32>=About!M$5,0,(IF(ISNA(VLOOKUP(B32,About!M$55:BL$200,8,FALSE)),0,(VLOOKUP(B32,About!M$55:BL$200,8,FALSE))))) -> 0 | K32: 0 | L32: 0 | M32: 0 | N32: 0 | O32: 0 | P32: 0 | Q32: 0 | R32: 0 | S32: 0 | T32: 0 | U32: =IF(B32>=About!M$5,0,(IF(ISNA(VLOOKUP(B32,About!M$55:BL$200,29,FALSE)),0,(VLOOKUP(B32,About!M$55:BL$200,22,FALSE))))) -> 0 | W32: 0 | X32: 0
A33: 27 | B33: 2023-02-01 | C33: =IF(B33>=About!M$5,0,(IF(ISNA(VLOOKUP(B33,About!M$55:AL$200,2,FALSE)),0,(VLOOKUP(B33,About!M$55:AL$200,2,FALSE))))) -> 0 | D33: =IF(B33>=About!M$5,0,(IF(ISNA(VLOOKUP(B33,About!M$55:AP$200,30,FALSE)),0,(VLOOKUP(B33,About!M$55:AP$200,30,FALSE))))) -> 0 | E33: =IF(B33>=About!M$5,0,(IF(ISNA(VLOOKUP(B33,About!M$55:AL$167,4,FALSE)),0,(VLOOKUP(B33,About!M$55:AL$167,4,FALSE))))) -> 0 | F33: 0 | G33: =IF(B33>=About!M$5,0,(IF(ISNA(VLOOKUP(B33,About!M$55:AK$200,6,FALSE)),0,(VLOOKUP(B33,About!M$55:AK$200,6,FALSE))))) -> 0 | H33: 0 | I33: 0 | J33: =IF(B33>=About!M$5,0,(IF(ISNA(VLOOKUP(B33,About!M$55:BL$200,8,FALSE)),0,(VLOOKUP(B33,About!M$55:BL$200,8,FALSE))))) -> 0 | K33: 0 | L33: 0 | M33: 0 | N33: 0 | O33: 0 | P33: 0 | Q33: 0 | R33: 0 | S33: 0 | T33: 0 | U33: =IF(B33>=About!M$5,0,(IF(ISNA(VLOOKUP(B33,About!M$55:BL$200,29,FALSE)),0,(VLOOKUP(B33,About!M$55:BL$200,22,FALSE))))) -> 0 | W33: 0 | X33: 0
A34: 28 | B34: 2023-03-01 | C34: =IF(B34>=About!M$5,0,(IF(ISNA(VLOOKUP(B34,About!M$55:AL$200,2,FALSE)),0,(VLOOKUP(B34,About!M$55:AL$200,2,FALSE))))) -> 0 | D34: =IF(B34>=About!M$5,0,(IF(ISNA(VLOOKUP(B34,About!M$55:AP$200,30,FALSE)),0,(VLOOKUP(B34,About!M$55:AP$200,30,FALSE))))) -> 0 | E34: =IF(B34>=About!M$5,0,(IF(ISNA(VLOOKUP(B34,About!M$55:AL$167,4,FALSE)),0,(VLOOKUP(B34,About!M$55:AL$167,4,FALSE))))) -> 0 | F34: 0 | G34: =IF(B34>=About!M$5,0,(IF(ISNA(VLOOKUP(B34,About!M$55:AK$200,6,FALSE)),0,(VLOOKUP(B34,About!M$55:AK$200,6,FALSE))))) -> 0 | H34: 0 | I34: 0 | J34: =IF(B34>=About!M$5,0,(IF(ISNA(VLOOKUP(B34,About!M$55:BL$200,8,FALSE)),0,(VLOOKUP(B34,About!M$55:BL$200,8,FALSE))))) -> 0 | K34: 0 | L34: 0 | M34: 0 | N34: 0 | O34: 0 | P34: 0 | Q34: 0 | R34: 0 | S34: 0 | T34: 0 | U34: =IF(B34>=About!M$5,0,(IF(ISNA(VLOOKUP(B34,About!M$55:BL$200,29,FALSE)),0,(VLOOKUP(B34,About!M$55:BL$200,22,FALSE))))) -> 0 | W34: 0 | X34: 0
A35: 29 | B35: 2023-04-01 | C35: =IF(B35>=About!M$5,0,(IF(ISNA(VLOOKUP(B35,About!M$55:AL$200,2,FALSE)),0,(VLOOKUP(B35,About!M$55:AL$200,2,FALSE))))) -> 0 | D35: =IF(B35>=About!M$5,0,(IF(ISNA(VLOOKUP(B35,About!M$55:AP$200,30,FALSE)),0,(VLOOKUP(B35,About!M$55:AP$200,30,FALSE))))) -> 0 | E35: =IF(B35>=About!M$5,0,(IF(ISNA(VLOOKUP(B35,About!M$55:AL$167,4,FALSE)),0,(VLOOKUP(B35,About!M$55:AL$167,4,FALSE))))) -> 0 | F35: 0 | G35: =IF(B35>=About!M$5,0,(IF(ISNA(VLOOKUP(B35,About!M$55:AK$200,6,FALSE)),0,(VLOOKUP(B35,About!M$55:AK$200,6,FALSE))))) -> 0 | H35: 0 | I35: 0 | J35: =IF(B35>=About!M$5,0,(IF(ISNA(VLOOKUP(B35,About!M$55:BL$200,8,FALSE)),0,(VLOOKUP(B35,About!M$55:BL$200,8,FALSE))))) -> 0 | K35: 0 | L35: 0 | M35: 0 | N35: 0 | O35: 0 | P35: 0 | Q35: 0 | R35: 0 | S35: 0 | T35: 0 | U35: =IF(B35>=About!M$5,0,(IF(ISNA(VLOOKUP(B35,About!M$55:BL$200,29,FALSE)),0,(VLOOKUP(B35,About!M$55:BL$200,22,FALSE))))) -> 0 | W35: 0 | X35: 0
A36: 30 | B36: 2023-05-01 | C36: =IF(B36>=About!M$5,0,(IF(ISNA(VLOOKUP(B36,About!M$55:AL$200,2,FALSE)),0,(VLOOKUP(B36,About!M$55:AL$200,2,FALSE))))) -> 0 | D36: =IF(B36>=About!M$5,0,(IF(ISNA(VLOOKUP(B36,About!M$55:AP$200,30,FALSE)),0,(VLOOKUP(B36,About!M$55:AP$200,30,FALSE))))) -> 0 | E36: =IF(B36>=About!M$5,0,(IF(ISNA(VLOOKUP(B36,About!M$55:AL$167,4,FALSE)),0,(VLOOKUP(B36,About!M$55:AL$167,4,FALSE))))) -> 0 | F36: 0 | G36: =IF(B36>=About!M$5,0,(IF(ISNA(VLOOKUP(B36,About!M$55:AK$200,6,FALSE)),0,(VLOOKUP(B36,About!M$55:AK$200,6,FALSE))))) -> 0 | H36: 0 | I36: 0 | J36: =IF(B36>=About!M$5,0,(IF(ISNA(VLOOKUP(B36,About!M$55:BL$200,8,FALSE)),0,(VLOOKUP(B36,About!M$55:BL$200,8,FALSE))))) -> 0 | K36: 0 | L36: 0 | M36: 0 | N36: 0 | O36: 0 | P36: 0 | Q36: 0 | R36: 0 | S36: 0 | T36: 0 | U36: =IF(B36>=About!M$5,0,(IF(ISNA(VLOOKUP(B36,About!M$55:BL$200,29,FALSE)),0,(VLOOKUP(B36,About!M$55:BL$200,22,FALSE))))) -> 0 | W36: 0 | X36: 0
A37: 31 | B37: 2023-06-01 | C37: =IF(B37>=About!M$5,0,(IF(ISNA(VLOOKUP(B37,About!M$55:AL$200,2,FALSE)),0,(VLOOKUP(B37,About!M$55:AL$200,2,FALSE))))) -> 0 | D37: =IF(B37>=About!M$5,0,(IF(ISNA(VLOOKUP(B37,About!M$55:AP$200,30,FALSE)),0,(VLOOKUP(B37,About!M$55:AP$200,30,FALSE))))) -> 0 | E37: =IF(B37>=About!M$5,0,(IF(ISNA(VLOOKUP(B37,About!M$55:AL$167,4,FALSE)),0,(VLOOKUP(B37,About!M$55:AL$167,4,FALSE))))) -> 0 | F37: 0 | G37: =IF(B37>=About!M$5,0,(IF(ISNA(VLOOKUP(B37,About!M$55:AK$200,6,FALSE)),0,(VLOOKUP(B37,About!M$55:AK$200,6,FALSE))))) -> 0 | H37: 0 | I37: 0 | J37: =IF(B37>=About!M$5,0,(IF(ISNA(VLOOKUP(B37,About!M$55:BL$200,8,FALSE)),0,(VLOOKUP(B37,About!M$55:BL$200,8,FALSE))))) -> 0 | K37: 0 | L37: 0 | M37: 0 | N37: 0 | O37: 0 | P37: 0 | Q37: 0 | R37: 0 | S37: 0 | T37: 0 | U37: =IF(B37>=About!M$5,0,(IF(ISNA(VLOOKUP(B37,About!M$55:BL$200,29,FALSE)),0,(VLOOKUP(B37,About!M$55:BL$200,22,FALSE))))) -> 0 | W37: 0 | X37: 0
A38: 32 | B38: 2023-07-01 | C38: =IF(B38>=About!M$5,0,(IF(ISNA(VLOOKUP(B38,About!M$55:AL$200,2,FALSE)),0,(VLOOKUP(B38,About!M$55:AL$200,2,FALSE))))) -> 0 | D38: =IF(B38>=About!M$5,0,(IF(ISNA(VLOOKUP(B38,About!M$55:AP$200,30,FALSE)),0,(VLOOKUP(B38,About!M$55:AP$200,30,FALSE))))) -> 0 | E38: =IF(B38>=About!M$5,0,(IF(ISNA(VLOOKUP(B38,About!M$55:AL$167,4,FALSE)),0,(VLOOKUP(B38,About!M$55:AL$167,4,FALSE))))) -> 0 | F38: 0 | G38: =IF(B38>=About!M$5,0,(IF(ISNA(VLOOKUP(B38,About!M$55:AK$200,6,FALSE)),0,(VLOOKUP(B38,About!M$55:AK$200,6,FALSE))))) -> 0 | H38: 0 | I38: 0 | J38: =IF(B38>=About!M$5,0,(IF(ISNA(VLOOKUP(B38,About!M$55:BL$200,8,FALSE)),0,(VLOOKUP(B38,About!M$55:BL$200,8,FALSE))))) -> 0 | K38: 0 | L38: 0 | M38: 0 | N38: 0 | O38: 0 | P38: 0 | Q38: 0 | R38: 0 | S38: 0 | T38: 0 | U38: =IF(B38>=About!M$5,0,(IF(ISNA(VLOOKUP(B38,About!M$55:BL$200,29,FALSE)),0,(VLOOKUP(B38,About!M$55:BL$200,22,FALSE))))) -> 0 | W38: 0 | X38: 0
A39: 33 | B39: 2023-08-01 | C39: =IF(B39>=About!M$5,0,(IF(ISNA(VLOOKUP(B39,About!M$55:AL$200,2,FALSE)),0,(VLOOKUP(B39,About!M$55:AL$200,2,FALSE))))) -> 0 | D39: =IF(B39>=About!M$5,0,(IF(ISNA(VLOOKUP(B39,About!M$55:AP$200,30,FALSE)),0,(VLOOKUP(B39,About!M$55:AP$200,30,FALSE))))) -> 0 | E39: =IF(B39>=About!M$5,0,(IF(ISNA(VLOOKUP(B39,About!M$55:AL$167,4,FALSE)),0,(VLOOKUP(B39,About!M$55:AL$167,4,FALSE))))) -> 0 | F39: 0 | G39: =IF(B39>=About!M$5,0,(IF(ISNA(VLOOKUP(B39,About!M$55:AK$200,6,FALSE)),0,(VLOOKUP(B39,About!M$55:AK$200,6,FALSE))))) -> 0 | H39: 0 | I39: 0 | J39: =IF(B39>=About!M$5,0,(IF(ISNA(VLOOKUP(B39,About!M$55:BL$200,8,FALSE)),0,(VLOOKUP(B39,About!M$55:BL$200,8,FALSE))))) -> 0 | K39: 0 | L39: 0 | M39: 0 | N39: 0 | O39: 0 | P39: 0 | Q39: 0 | R39: 0 | S39: 0 | T39: 0 | U39: =IF(B39>=About!M$5,0,(IF(ISNA(VLOOKUP(B39,About!M$55:BL$200,29,FALSE)),0,(VLOOKUP(B39,About!M$55:BL$200,22,FALSE))))) -> 0 | W39: 0 | X39: =S39-W39 -> 0
A40: 34 | B40: 2023-09-01 | C40: =IF(B40>=About!M$5,0,(IF(ISNA(VLOOKUP(B40,About!M$55:AL$200,2,FALSE)),0,(VLOOKUP(B40,About!M$55:AL$200,2,FALSE))))) -> 0 | D40: =IF(B40>=About!M$5,0,(IF(ISNA(VLOOKUP(B40,About!M$55:AP$200,30,FALSE)),0,(VLOOKUP(B40,About!M$55:AP$200,30,FALSE))))) -> 0 | E40: =IF(B40>=About!M$5,0,(IF(ISNA(VLOOKUP(B40,About!M$55:AL$167,4,FALSE)),0,(VLOOKUP(B40,About!M$55:AL$167,4,FALSE))))) -> 0 | F40: 0 | G40: =IF(B40>=About!M$5,0,(IF(ISNA(VLOOKUP(B40,About!M$55:AK$200,6,FALSE)),0,(VLOOKUP(B40,About!M$55:AK$200,6,FALSE))))) -> 0 | H40: 0 | I40: 0 | J40: =IF(B40>=About!M$5,0,(IF(ISNA(VLOOKUP(B40,About!M$55:BL$200,8,FALSE)),0,(VLOOKUP(B40,About!M$55:BL$200,8,FALSE))))) -> 0 | K40: 0 | L40: 0 | M40: 0 | N40: 0 | O40: 0 | P40: 0 | Q40: 0 | R40: 0 | S40: 0 | T40: 0 | U40: =IF(B40>=About!M$5,0,(IF(ISNA(VLOOKUP(B40,About!M$55:BL$200,29,FALSE)),0,(VLOOKUP(B40,About!M$55:BL$200,22,FALSE))))) -> 0 | W40: 0 | X40: 0
A41: 35 | B41: 2023-10-01 | C41: =IF(B41>=About!M$5,0,(IF(ISNA(VLOOKUP(B41,About!M$55:AL$200,2,FALSE)),0,(VLOOKUP(B41,About!M$55:AL$200,2,FALSE))))) -> 0 | D41: =IF(B41>=About!M$5,0,(IF(ISNA(VLOOKUP(B41,About!M$55:AP$200,30,FALSE)),0,(VLOOKUP(B41,About!M$55:AP$200,30,FALSE))))) -> 0 | E41: =IF(B41>=About!M$5,0,(IF(ISNA(VLOOKUP(B41,About!M$55:AL$167,4,FALSE)),0,(VLOOKUP(B41,About!M$55:AL$167,4,FALSE))))) -> 0 | F41: 0 | G41: =IF(B41>=About!M$5,0,(IF(ISNA(VLOOKUP(B41,About!M$55:AK$200,6,FALSE)),0,(VLOOKUP(B41,About!M$55:AK$200,6,FALSE))))) -> 0 | H41: 0 | I41: 0 | J41: =IF(B41>=About!M$5,0,(IF(ISNA(VLOOKUP(B41,About!M$55:BL$200,8,FALSE)),0,(VLOOKUP(B41,About!M$55:BL$200,8,FALSE))))) -> 0 | K41: 0 | L41: 0 | M41: 0 | N41: 0 | O41: 0 | P41: 0 | Q41: 0 | R41: 0 | S41: 0 | T41: 0 | U41: =IF(B41>=About!M$5,0,(IF(ISNA(VLOOKUP(B41,About!M$55:BL$200,29,FALSE)),0,(VLOOKUP(B41,About!M$55:BL$200,22,FALSE))))) -> 0 | W41: 0 | X41: 0
A42: 36 | B42: 2023-11-01 | C42: =IF(B42>=About!M$5,0,(IF(ISNA(VLOOKUP(B42,About!M$55:AL$200,2,FALSE)),0,(VLOOKUP(B42,About!M$55:AL$200,2,FALSE))))) -> 0 | D42: =IF(B42>=About!M$5,0,(IF(ISNA(VLOOKUP(B42,About!M$55:AP$200,30,FALSE)),0,(VLOOKUP(B42,About!M$55:AP$200,30,FALSE))))) -> 0 | E42: =IF(B42>=About!M$5,0,(IF(ISNA(VLOOKUP(B42,About!M$55:AL$167,4,FALSE)),0,(VLOOKUP(B42,About!M$55:AL$167,4,FALSE))))) -> 0 | F42: 0 | G42: =IF(B42>=About!M$5,0,(IF(ISNA(VLOOKUP(B42,About!M$55:AK$200,6,FALSE)),0,(VLOOKUP(B42,About!M$55:AK$200,6,FALSE))))) -> 0 | H42: 0 | I42: 0 | J42: =IF(B42>=About!M$5,0,(IF(ISNA(VLOOKUP(B42,About!M$55:BL$200,8,FALSE)),0,(VLOOKUP(B42,About!M$55:BL$200,8,FALSE))))) -> 0 | K42: 0 | L42: 0 | M42: 0 | N42: 0 | O42: 0 | P42: 0 | Q42: 0 | R42: 0 | S42: 0 | T42: 0 | U42: =IF(B42>=About!M$5,0,(IF(ISNA(VLOOKUP(B42,About!M$55:BL$200,29,FALSE)),0,(VLOOKUP(B42,About!M$55:BL$200,22,FALSE))))) -> 0 | W42: 0 | X42: 0
A43: 37 | B43: 2023-12-01 | C43: =IF(B43>=About!M$5,0,(IF(ISNA(VLOOKUP(B43,About!M$55:AL$200,2,FALSE)),0,(VLOOKUP(B43,About!M$55:AL$200,2,FALSE))))) -> 0 | D43: =IF(B43>=About!M$5,0,(IF(ISNA(VLOOKUP(B43,About!M$55:AP$200,30,FALSE)),0,(VLOOKUP(B43,About!M$55:AP$200,30,FALSE))))) -> 0 | E43: =IF(B43>=About!M$5,0,(IF(ISNA(VLOOKUP(B43,About!M$55:AL$167,4,FALSE)),0,(VLOOKUP(B43,About!M$55:AL$167,4,FALSE))))) -> 0 | F43: 0 | G43: =IF(B43>=About!M$5,0,(IF(ISNA(VLOOKUP(B43,About!M$55:AK$200,6,FALSE)),0,(VLOOKUP(B43,About!M$55:AK$200,6,FALSE))))) -> 0 | H43: 0 | I43: 0 | J43: =IF(B43>=About!M$5,0,(IF(ISNA(VLOOKUP(B43,About!M$55:BL$200,8,FALSE)),0,(VLOOKUP(B43,About!M$55:BL$200,8,FALSE))))) -> 0 | K43: 0 | L43: 0 | M43: 0 | N43: 0 | O43: 0 | P43: 0 | Q43: 0 | R43: 0 | S43: 0 | T43: 0 | U43: =IF(B43>=About!M$5,0,(IF(ISNA(VLOOKUP(B43,About!M$55:BL$200,29,FALSE)),0,(VLOOKUP(B43,About!M$55:BL$200,22,FALSE))))) -> 0 | W43: 0 | X43: 0
A44: 38 | B44: 2024-01-01 | C44: =IF(B44>=About!M$5,0,(IF(ISNA(VLOOKUP(B44,About!M$55:AL$200,2,FALSE)),0,(VLOOKUP(B44,About!M$55:AL$200,2,FALSE))))) -> 0 | D44: =IF(B44>=About!M$5,0,(IF(ISNA(VLOOKUP(B44,About!M$55:AP$200,30,FALSE)),0,(VLOOKUP(B44,About!M$55:AP$200,30,FALSE))))) -> 0 | E44: =IF(B44>=About!M$5,0,(IF(ISNA(VLOOKUP(B44,About!M$55:AL$167,4,FALSE)),0,(VLOOKUP(B44,About!M$55:AL$167,4,FALSE))))) -> 0 | F44: 0 | G44: =IF(B44>=About!M$5,0,(IF(ISNA(VLOOKUP(B44,About!M$55:AK$200,6,FALSE)),0,(VLOOKUP(B44,About!M$55:AK$200,6,FALSE))))) -> 0 | H44: 0 | I44: 0 | J44: =IF(B44>=About!M$5,0,(IF(ISNA(VLOOKUP(B44,About!M$55:BL$200,8,FALSE)),0,(VLOOKUP(B44,About!M$55:BL$200,8,FALSE))))) -> 0 | K44: 0 | L44: 0 | M44: 0 | N44: 0 | O44: 0 | P44: 0 | Q44: 0 | R44: 0 | S44: 0 | T44: 0 | U44: =IF(B44>=About!M$5,0,(IF(ISNA(VLOOKUP(B44,About!M$55:BL$200,29,FALSE)),0,(VLOOKUP(B44,About!M$55:BL$200,22,FALSE))))) -> 0 | W44: 0 | X44: 0
A45: 39 | B45: 2024-02-01 | C45: =IF(B45>=About!M$5,0,(IF(ISNA(VLOOKUP(B45,About!M$55:AL$200,2,FALSE)),0,(VLOOKUP(B45,About!M$55:AL$200,2,FALSE))))) -> 0 | D45: =IF(B45>=About!M$5,0,(IF(ISNA(VLOOKUP(B45,About!M$55:AP$200,30,FALSE)),0,(VLOOKUP(B45,About!M$55:AP$200,30,FALSE))))) -> 0 | E45: =IF(B45>=About!M$5,0,(IF(ISNA(VLOOKUP(B45,About!M$55:AL$167,4,FALSE)),0,(VLOOKUP(B45,About!M$55:AL$167,4,FALSE))))) -> 0 | F45: 0 | G45: =IF(B45>=About!M$5,0,(IF(ISNA(VLOOKUP(B45,About!M$55:AK$200,6,FALSE)),0,(VLOOKUP(B45,About!M$55:AK$200,6,FALSE))))) -> 0 | H45: 0 | I45: 0 | J45: =IF(B45>=About!M$5,0,(IF(ISNA(VLOOKUP(B45,About!M$55:BL$200,8,FALSE)),0,(VLOOKUP(B45,About!M$55:BL$200,8,FALSE))))) -> 0 | K45: 0 | L45: 0 | M45: 0 | N45: 0 | O45: 0 | P45: 0 | Q45: 0 | R45: 0 | S45: 0 | T45: 0 | U45: =IF(B45>=About!M$5,0,(IF(ISNA(VLOOKUP(B45,About!M$55:BL$200,29,FALSE)),0,(VLOOKUP(B45,About!M$55:BL$200,22,FALSE))))) -> 0 | W45: 0 | X45: 0
A46: 40 | B46: 2024-03-01 | C46: =IF(B46>=About!M$5,0,(IF(ISNA(VLOOKUP(B46,About!M$55:AL$200,2,FALSE)),0,(VLOOKUP(B46,About!M$55:AL$200,2,FALSE))))) -> 0 | D46: =IF(B46>=About!M$5,0,(IF(ISNA(VLOOKUP(B46,About!M$55:AP$200,30,FALSE)),0,(VLOOKUP(B46,About!M$55:AP$200,30,FALSE))))) -> 0 | E46: =IF(B46>=About!M$5,0,(IF(ISNA(VLOOKUP(B46,About!M$55:AL$167,4,FALSE)),0,(VLOOKUP(B46,About!M$55:AL$167,4,FALSE))))) -> 0 | F46: 0 | G46: =IF(B46>=About!M$5,0,(IF(ISNA(VLOOKUP(B46,About!M$55:AK$200,6,FALSE)),0,(VLOOKUP(B46,About!M$55:AK$200,6,FALSE))))) -> 0 | H46: 0 | I46: 0 | J46: =IF(B46>=About!M$5,0,(IF(ISNA(VLOOKUP(B46,About!M$55:BL$200,8,FALSE)),0,(VLOOKUP(B46,About!M$55:BL$200,8,FALSE))))) -> 0 | K46: 0 | L46: 0 | M46: 0 | N46: 0 | O46: 0 | P46: 0 | Q46: 0 | R46: 0 | S46: 0 | T46: 0 | U46: =IF(B46>=About!M$5,0,(IF(ISNA(VLOOKUP(B46,About!M$55:BL$200,29,FALSE)),0,(VLOOKUP(B46,About!M$55:BL$200,22,FALSE))))) -> 0 | W46: 0 | X46: 0
A47: 41 | B47: 2024-04-01 | C47: =IF(B47>=About!M$5,0,(IF(ISNA(VLOOKUP(B47,About!M$55:AL$200,2,FALSE)),0,(VLOOKUP(B47,About!M$55:AL$200,2,FALSE))))) -> 0 | D47: =IF(B47>=About!M$5,0,(IF(ISNA(VLOOKUP(B47,About!M$55:AP$200,30,FALSE)),0,(VLOOKUP(B47,About!M$55:AP$200,30,FALSE))))) -> 0 | E47: =IF(B47>=About!M$5,0,(IF(ISNA(VLOOKUP(B47,About!M$55:AL$167,4,FALSE)),0,(VLOOKUP(B47,About!M$55:AL$167,4,FALSE))))) -> 0 | F47: 0 | G47: =IF(B47>=About!M$5,0,(IF(ISNA(VLOOKUP(B47,About!M$55:AK$200,6,FALSE)),0,(VLOOKUP(B47,About!M$55:AK$200,6,FALSE))))) -> 0 | H47: 0 | I47: 0 | J47: =IF(B47>=About!M$5,0,(IF(ISNA(VLOOKUP(B47,About!M$55:BL$200,8,FALSE)),0,(VLOOKUP(B47,About!M$55:BL$200,8,FALSE))))) -> 0 | K47: 0 | L47: 0 | M47: 0 | N47: 0 | O47: 0 | P47: 0 | Q47: 0 | R47: 0 | S47: 0 | T47: 0 | U47: =IF(B47>=About!M$5,0,(IF(ISNA(VLOOKUP(B47,About!M$55:BL$200,29,FALSE)),0,(VLOOKUP(B47,About!M$55:BL$200,22,FALSE))))) -> 0 | W47: 0 | X47: 0
A48: 42 | B48: =EDATE(B47,1) -> 2024-05-01 | C48: =IF(B48>=About!M$5,0,(IF(ISNA(VLOOKUP(B48,About!M$55:AL$200,2,FALSE)),0,(VLOOKUP(B48,About!M$55:AL$200,2,FALSE))))) -> 0 | D48: =IF(B48>=About!M$5,0,(IF(ISNA(VLOOKUP(B48,About!M$55:AP$200,30,FALSE)),0,(VLOOKUP(B48,About!M$55:AP$200,30,FALSE))))) -> 0 | E48: =IF(B48>=About!M$5,0,(IF(ISNA(VLOOKUP(B48,About!M$55:AL$167,4,FALSE)),0,(VLOOKUP(B48,About!M$55:AL$167,4,FALSE))))) -> 0 | F48: 0 | G48: =IF(B48>=About!M$5,0,(IF(ISNA(VLOOKUP(B48,About!M$55:AK$200,6,FALSE)),0,(VLOOKUP(B48,About!M$55:AK$200,6,FALSE))))) -> 0 | H48: 0 | I48: 0 | J48: =IF(B48>=About!M$5,0,(IF(ISNA(VLOOKUP(B48,About!M$55:BL$200,8,FALSE)),0,(VLOOKUP(B48,About!M$55:BL$200,8,FALSE))))) -> 0 | K48: 0 | L48: 0 | M48: 0 | N48: 0 | O48: 0 | P48: 0 | Q48: 0 | R48: 0 | S48: 0 | T48: 0 | U48: =IF(B48>=About!M$5,0,(IF(ISNA(VLOOKUP(B48,About!M$55:BL$200,29,FALSE)),0,(VLOOKUP(B48,About!M$55:BL$200,22,FALSE))))) -> 0 | W48: 0 | X48: 0
A49: 43 | B49: 2024-06-01 | C49: =IF(B49>=About!M$5,0,(IF(ISNA(VLOOKUP(B49,About!M$55:AL$200,2,FALSE)),0,(VLOOKUP(B49,About!M$55:AL$200,2,FALSE))))) -> 0 | D49: =IF(B49>=About!M$5,0,(IF(ISNA(VLOOKUP(B49,About!M$55:AP$200,30,FALSE)),0,(VLOOKUP(B49,About!M$55:AP$200,30,FALSE))))) -> 0 | E49: =IF(B49>=About!M$5,0,(IF(ISNA(VLOOKUP(B49,About!M$55:AL$167,4,FALSE)),0,(VLOOKUP(B49,About!M$55:AL$167,4,FALSE))))) -> 0 | F49: 0 | G49: =IF(B49>=About!M$5,0,(IF(ISNA(VLOOKUP(B49,About!M$55:AK$200,6,FALSE)),0,(VLOOKUP(B49,About!M$55:AK$200,6,FALSE))))) -> 0 | H49: 0 | I49: 0 | J49: =IF(B49>=About!M$5,0,(IF(ISNA(VLOOKUP(B49,About!M$55:BL$200,8,FALSE)),0,(VLOOKUP(B49,About!M$55:BL$200,8,FALSE))))) -> 0 | K49: 0 | L49: 0 | M49: 0 | N49: 0 | O49: 0 | P49: 0 | Q49: 0 | R49: 0 | S49: 0 | T49: 0 | U49: =IF(B49>=About!M$5,0,(IF(ISNA(VLOOKUP(B49,About!M$55:BL$200,29,FALSE)),0,(VLOOKUP(B49,About!M$55:BL$200,22,FALSE))))) -> 0 | W49: 0 | X49: 0
A50: 44 | B50: 2024-07-01 | C50: =IF(B50>=About!M$5,0,(IF(ISNA(VLOOKUP(B50,About!M$55:AL$200,2,FALSE)),0,(VLOOKUP(B50,About!M$55:AL$200,2,FALSE))))) -> 0 | D50: =IF(B50>=About!M$5,0,(IF(ISNA(VLOOKUP(B50,About!M$55:AP$200,30,FALSE)),0,(VLOOKUP(B50,About!M$55:AP$200,30,FALSE))))) -> 0 | E50: =IF(B50>=About!M$5,0,(IF(ISNA(VLOOKUP(B50,About!M$55:AL$167,4,FALSE)),0,(VLOOKUP(B50,About!M$55:AL$167,4,FALSE))))) -> 0 | F50: 0 | G50: =IF(B50>=About!M$5,0,(IF(ISNA(VLOOKUP(B50,About!M$55:AK$200,6,FALSE)),0,(VLOOKUP(B50,About!M$55:AK$200,6,FALSE))))) -> 0 | H50: 0 | I50: 0 | J50: =IF(B50>=About!M$5,0,(IF(ISNA(VLOOKUP(B50,About!M$55:BL$200,8,FALSE)),0,(VLOOKUP(B50,About!M$55:BL$200,8,FALSE))))) -> 0 | K50: 0 | L50: 0 | M50: 0 | N50: 0 | O50: 0 | P50: 0 | Q50: 0 | R50: 0 | S50: 0 | T50: 0 | U50: =IF(B50>=About!M$5,0,(IF(ISNA(VLOOKUP(B50,About!M$55:BL$200,29,FALSE)),0,(VLOOKUP(B50,About!M$55:BL$200,22,FALSE))))) -> 0 | W50: 0 | X50: 0
A51: 45 | B51: 2024-08-01 | C51: =IF(B51>=About!M$5,0,(IF(ISNA(VLOOKUP(B51,About!M$55:AL$200,2,FALSE)),0,(VLOOKUP(B51,About!M$55:AL$200,2,FALSE))))) -> 0 | D51: =IF(B51>=About!M$5,0,(IF(ISNA(VLOOKUP(B51,About!M$55:AP$200,30,FALSE)),0,(VLOOKUP(B51,About!M$55:AP$200,30,FALSE))))) -> 0 | E51: =IF(B51>=About!M$5,0,(IF(ISNA(VLOOKUP(B51,About!M$55:AL$167,4,FALSE)),0,(VLOOKUP(B51,About!M$55:AL$167,4,FALSE))))) -> 0 | F51: 0 | G51: =IF(B51>=About!M$5,0,(IF(ISNA(VLOOKUP(B51,About!M$55:AK$200,6,FALSE)),0,(VLOOKUP(B51,About!M$55:AK$200,6,FALSE))))) -> 0 | H51: 0 | I51: 0 | J51: =IF(B51>=About!M$5,0,(IF(ISNA(VLOOKUP(B51,About!M$55:BL$200,8,FALSE)),0,(VLOOKUP(B51,About!M$55:BL$200,8,FALSE))))) -> 0 | K51: 0 | L51: 0 | M51: 0 | N51: 0 | O51: 0 | P51: 0 | Q51: 0 | R51: 0 | S51: 0 | T51: 0 | U51: =IF(B51>=About!M$5,0,(IF(ISNA(VLOOKUP(B51,About!M$55:BL$200,29,FALSE)),0,(VLOOKUP(B51,About!M$55:BL$200,22,FALSE))))) -> 0 | W51: 0 | X51: 0
A52: 46 | B52: 2024-09-01 | C52: =IF(B52>=About!M$5,0,(IF(ISNA(VLOOKUP(B52,About!M$55:AL$200,2,FALSE)),0,(VLOOKUP(B52,About!M$55:AL$200,2,FALSE))))) -> 0 | D52: =IF(B52>=About!M$5,0,(IF(ISNA(VLOOKUP(B52,About!M$55:AP$200,30,FALSE)),0,(VLOOKUP(B52,About!M$55:AP$200,30,FALSE))))) -> 0 | E52: =IF(B52>=About!M$5,0,(IF(ISNA(VLOOKUP(B52,About!M$55:AL$167,4,FALSE)),0,(VLOOKUP(B52,About!M$55:AL$167,4,FALSE))))) -> 0 | F52: 0 | G52: =IF(B52>=About!M$5,0,(IF(ISNA(VLOOKUP(B52,About!M$55:AK$200,6,FALSE)),0,(VLOOKUP(B52,About!M$55:AK$200,6,FALSE))))) -> 0 | H52: 0 | I52: 0 | J52: =IF(B52>=About!M$5,0,(IF(ISNA(VLOOKUP(B52,About!M$55:BL$200,8,FALSE)),0,(VLOOKUP(B52,About!M$55:BL$200,8,FALSE))))) -> 0 | K52: 0 | L52: 0 | M52: 0 | N52: 0 | O52: 0 | P52: 0 | Q52: 0 | R52: 0 | S52: 0 | T52: 0 | U52: =IF(B52>=About!M$5,0,(IF(ISNA(VLOOKUP(B52,About!M$55:BL$200,29,FALSE)),0,(VLOOKUP(B52,About!M$55:BL$200,22,FALSE))))) -> 0 | W52: 0 | X52: 0
A53: 47 | B53: 2024-10-01 | C53: =IF(B53>=About!M$5,0,(IF(ISNA(VLOOKUP(B53,About!M$55:AL$200,2,FALSE)),0,(VLOOKUP(B53,About!M$55:AL$200,2,FALSE))))) -> 0 | D53: =IF(B53>=About!M$5,0,(IF(ISNA(VLOOKUP(B53,About!M$55:AP$200,30,FALSE)),0,(VLOOKUP(B53,About!M$55:AP$200,30,FALSE))))) -> 0 | E53: =IF(B53>=About!M$5,0,(IF(ISNA(VLOOKUP(B53,About!M$55:AL$167,4,FALSE)),0,(VLOOKUP(B53,About!M$55:AL$167,4,FALSE))))) -> 0 | F53: 0 | G53: =IF(B53>=About!M$5,0,(IF(ISNA(VLOOKUP(B53,About!M$55:AK$200,6,FALSE)),0,(VLOOKUP(B53,About!M$55:AK$200,6,FALSE))))) -> 0 | H53: 0 | I53: 0 | J53: =IF(B53>=About!M$5,0,(IF(ISNA(VLOOKUP(B53,About!M$55:BL$200,8,FALSE)),0,(VLOOKUP(B53,About!M$55:BL$200,8,FALSE))))) -> 0 | K53: 0 | L53: 0 | M53: 0 | N53: 0 | O53: 0 | P53: 0 | Q53: 0 | R53: 0 | S53: 0 | T53: 0 | U53: =IF(B53>=About!M$5,0,(IF(ISNA(VLOOKUP(B53,About!M$55:BL$200,29,FALSE)),0,(VLOOKUP(B53,About!M$55:BL$200,22,FALSE))))) -> 0 | W53: 0 | X53: 0
A54: 48 | B54: 2024-11-01 | C54: =IF(B54>=About!M$5,0,(IF(ISNA(VLOOKUP(B54,About!M$55:AL$200,2,FALSE)),0,(VLOOKUP(B54,About!M$55:AL$200,2,FALSE))))) -> 0 | D54: =IF(B54>=About!M$5,0,(IF(ISNA(VLOOKUP(B54,About!M$55:AP$200,30,FALSE)),0,(VLOOKUP(B54,About!M$55:AP$200,30,FALSE))))) -> 0 | E54: =IF(B54>=About!M$5,0,(IF(ISNA(VLOOKUP(B54,About!M$55:AL$167,4,FALSE)),0,(VLOOKUP(B54,About!M$55:AL$167,4,FALSE))))) -> 0 | F54: 0 | G54: =IF(B54>=About!M$5,0,(IF(ISNA(VLOOKUP(B54,About!M$55:AK$200,6,FALSE)),0,(VLOOKUP(B54,About!M$55:AK$200,6,FALSE))))) -> 0 | H54: 0 | I54: 0 | J54: =IF(B54>=About!M$5,0,(IF(ISNA(VLOOKUP(B54,About!M$55:BL$200,8,FALSE)),0,(VLOOKUP(B54,About!M$55:BL$200,8,FALSE))))) -> 0 | K54: 0 | L54: 0 | M54: 0 | N54: 0 | O54: 0 | P54: 0 | Q54: 0 | R54: 0 | S54: 0 | T54: 0 | U54: =IF(B54>=About!M$5,0,(IF(ISNA(VLOOKUP(B54,About!M$55:BL$200,29,FALSE)),0,(VLOOKUP(B54,About!M$55:BL$200,22,FALSE))))) -> 0 | W54: 0 | X54: 0
A55: 49 | B55: 2024-12-01 | C55: =IF(B55>=About!M$5,0,(IF(ISNA(VLOOKUP(B55,About!M$55:AL$200,2,FALSE)),0,(VLOOKUP(B55,About!M$55:AL$200,2,FALSE))))) -> 0 | D55: =IF(B55>=About!M$5,0,(IF(ISNA(VLOOKUP(B55,About!M$55:AP$200,30,FALSE)),0,(VLOOKUP(B55,About!M$55:AP$200,30,FALSE))))) -> 0 | E55: =IF(B55>=About!M$5,0,(IF(ISNA(VLOOKUP(B55,About!M$55:AL$167,4,FALSE)),0,(VLOOKUP(B55,About!M$55:AL$167,4,FALSE))))) -> 0 | F55: 0 | G55: =IF(B55>=About!M$5,0,(IF(ISNA(VLOOKUP(B55,About!M$55:AK$200,6,FALSE)),0,(VLOOKUP(B55,About!M$55:AK$200,6,FALSE))))) -> 0 | H55: 0 | I55: 0 | J55: =IF(B55>=About!M$5,0,(IF(ISNA(VLOOKUP(B55,About!M$55:BL$200,8,FALSE)),0,(VLOOKUP(B55,About!M$55:BL$200,8,FALSE))))) -> 0 | K55: 0 | L55: 0 | M55: 0 | N55: 0 | O55: 0 | P55: 0 | Q55: 0 | R55: 0 | S55: 0 | T55: 0 | U55: =IF(B55>=About!M$5,0,(IF(ISNA(VLOOKUP(B55,About!M$55:BL$200,29,FALSE)),0,(VLOOKUP(B55,About!M$55:BL$200,22,FALSE))))) -> 0 | W55: 0 | X55: 0
A56: 50 | B56: 2025-01-01 | C56: =IF(B56>=About!M$5,0,(IF(ISNA(VLOOKUP(B56,About!M$55:AL$200,2,FALSE)),0,(VLOOKUP(B56,About!M$55:AL$200,2,FALSE))))) -> 0 | D56: =IF(B56>=About!M$5,0,(IF(ISNA(VLOOKUP(B56,About!M$55:AP$200,30,FALSE)),0,(VLOOKUP(B56,About!M$55:AP$200,30,FALSE))))) -> 0 | E56: =IF(B56>=About!M$5,0,(IF(ISNA(VLOOKUP(B56,About!M$55:AL$167,4,FALSE)),0,(VLOOKUP(B56,About!M$55:AL$167,4,FALSE))))) -> 0 | F56: 0 | G56: =IF(B56>=About!M$5,0,(IF(ISNA(VLOOKUP(B56,About!M$55:AK$200,6,FALSE)),0,(VLOOKUP(B56,About!M$55:AK$200,6,FALSE))))) -> 0 | H56: 0 | I56: 0 | J56: =IF(B56>=About!M$5,0,(IF(ISNA(VLOOKUP(B56,About!M$55:BL$200,8,FALSE)),0,(VLOOKUP(B56,About!M$55:BL$200,8,FALSE))))) -> 0 | K56: 0 | L56: 0 | M56: 0 | N56: 0 | O56: 0 | P56: 0 | Q56: 0 | R56: 0 | S56: 0 | T56: 0 | U56: =IF(B56>=About!M$5,0,(IF(ISNA(VLOOKUP(B56,About!M$55:BL$200,29,FALSE)),0,(VLOOKUP(B56,About!M$55:BL$200,22,FALSE))))) -> 0 | W56: 0 | X56: 0
A57: 51 | B57: 2025-02-01 | C57: =IF(B57>=About!M$5,0,(IF(ISNA(VLOOKUP(B57,About!M$55:AL$200,2,FALSE)),0,(VLOOKUP(B57,About!M$55:AL$200,2,FALSE))))) -> 0 | D57: =IF(B57>=About!M$5,0,(IF(ISNA(VLOOKUP(B57,About!M$55:AP$200,30,FALSE)),0,(VLOOKUP(B57,About!M$55:AP$200,30,FALSE))))) -> 0 | E57: =IF(B57>=About!M$5,0,(IF(ISNA(VLOOKUP(B57,About!M$55:AL$167,4,FALSE)),0,(VLOOKUP(B57,About!M$55:AL$167,4,FALSE))))) -> 0 | F57: 0 | G57: =IF(B57>=About!M$5,0,(IF(ISNA(VLOOKUP(B57,About!M$55:AK$200,6,FALSE)),0,(VLOOKUP(B57,About!M$55:AK$200,6,FALSE))))) -> 0 | H57: 0 | I57: 0 | J57: =IF(B57>=About!M$5,0,(IF(ISNA(VLOOKUP(B57,About!M$55:BL$200,8,FALSE)),0,(VLOOKUP(B57,About!M$55:BL$200,8,FALSE))))) -> 0 | K57: 0 | L57: 0 | M57: 0 | N57: 0 | O57: 0 | P57: 0 | Q57: 0 | R57: 0 | S57: 0 | T57: 0 | U57: =IF(B57>=About!M$5,0,(IF(ISNA(VLOOKUP(B57,About!M$55:BL$200,29,FALSE)),0,(VLOOKUP(B57,About!M$55:BL$200,22,FALSE))))) -> 0 | W57: 0 | X57: 0
A58: 52 | B58: =EDATE(B57,1) -> 2025-03-01 | C58: =IF(B58>=About!M$5,0,(IF(ISNA(VLOOKUP(B58,About!M$55:AL$200,2,FALSE)),0,(VLOOKUP(B58,About!M$55:AL$200,2,FALSE))))) -> 0 | D58: =IF(B58>=About!M$5,0,(IF(ISNA(VLOOKUP(B58,About!M$55:AP$200,30,FALSE)),0,(VLOOKUP(B58,About!M$55:AP$200,30,FALSE))))) -> 0 | E58: =IF(B58>=About!M$5,0,(IF(ISNA(VLOOKUP(B58,About!M$55:AL$167,4,FALSE)),0,(VLOOKUP(B58,About!M$55:AL$167,4,FALSE))))) -> 0 | F58: 0 | G58: =IF(B58>=About!M$5,0,(IF(ISNA(VLOOKUP(B58,About!M$55:AK$200,6,FALSE)),0,(VLOOKUP(B58,About!M$55:AK$200,6,FALSE))))) -> 0 | H58: 0 | I58: 0 | J58: =IF(B58>=About!M$5,0,(IF(ISNA(VLOOKUP(B58,About!M$55:BL$200,8,FALSE)),0,(VLOOKUP(B58,About!M$55:BL$200,8,FALSE))))) -> 0 | K58: 0 | L58: 0 | M58: 0 | N58: 0 | O58: 0 | P58: 0 | Q58: 0 | R58: 0 | S58: 0 | T58: 0 | U58: =IF(B58>=About!M$5,0,(IF(ISNA(VLOOKUP(B58,About!M$55:BL$200,29,FALSE)),0,(VLOOKUP(B58,About!M$55:BL$200,22,FALSE))))) -> 0 | W58: 0 | X58: 0
A59: 53 | B59: =EDATE(B58,1) -> 2025-04-01 | C59: =IF(B59>=About!M$5,0,(IF(ISNA(VLOOKUP(B59,About!M$55:AL$200,2,FALSE)),0,(VLOOKUP(B59,About!M$55:AL$200,2,FALSE))))) -> 0 | D59: =IF(B59>=About!M$5,0,(IF(ISNA(VLOOKUP(B59,About!M$55:AP$200,30,FALSE)),0,(VLOOKUP(B59,About!M$55:AP$200,30,FALSE))))) -> 0 | E59: =IF(B59>=About!M$5,0,(IF(ISNA(VLOOKUP(B59,About!M$55:AL$167,4,FALSE)),0,(VLOOKUP(B59,About!M$55:AL$167,4,FALSE))))) -> 0 | F59: 0 | G59: =IF(B59>=About!M$5,0,(IF(ISNA(VLOOKUP(B59,About!M$55:AK$200,6,FALSE)),0,(VLOOKUP(B59,About!M$55:AK$200,6,FALSE))))) -> 0 | H59: 0 | I59: 0 | J59: =IF(B59>=About!M$5,0,(IF(ISNA(VLOOKUP(B59,About!M$55:BL$200,8,FALSE)),0,(VLOOKUP(B59,About!M$55:BL$200,8,FALSE))))) -> 0 | K59: 0 | L59: 0 | M59: 0 | N59: 0 | O59: 0 | P59: 0 | Q59: 0 | R59: 0 | S59: 0 | T59: 0 | U59: =IF(B59>=About!M$5,0,(IF(ISNA(VLOOKUP(B59,About!M$55:BL$200,29,FALSE)),0,(VLOOKUP(B59,About!M$55:BL$200,22,FALSE))))) -> 0 | W59: 0 | X59: 0
A60: 54 | B60: Totalc/f | C60: =IF(B60>=About!M$5,0,(IF(ISNA(VLOOKUP(B60,About!M$55:AL$200,2,FALSE)),0,(VLOOKUP(B60,About!M$55:AL$200,2,FALSE))))) -> 0 | D60: =IF(B60>=About!M$5,0,(IF(ISNA(VLOOKUP(B60,About!M$55:AP$200,30,FALSE)),0,(VLOOKUP(B60,About!M$55:AP$200,30,FALSE))))) -> 0 | E60: =IF(B60>=About!M$5,0,(IF(ISNA(VLOOKUP(B60,About!M$55:AL$167,4,FALSE)),0,(VLOOKUP(B60,About!M$55:AL$167,4,FALSE))))) -> 0 | F60: 0 | G60: =IF(B60>=About!M$5,0,(IF(ISNA(VLOOKUP(B60,About!M$55:AK$200,6,FALSE)),0,(VLOOKUP(B60,About!M$55:AK$200,6,FALSE))))) -> 0 | H60: 0 | I60: 0 | J60: =IF(B60>=About!M$5,0,(IF(ISNA(VLOOKUP(B60,About!M$55:BL$200,8,FALSE)),0,(VLOOKUP(B60,About!M$55:BL$200,8,FALSE))))) -> 0 | K60: 0 | L60: 0 | M60: 0 | N60: 0 | O60: 0 | P60: 0 | Q60: 0 | R60: 0 | S60: 0 | T60: 0 | U60: =IF(B60>=About!M$5,0,(IF(ISNA(VLOOKUP(B60,About!M$55:BL$200,29,FALSE)),0,(VLOOKUP(B60,About!M$55:BL$200,22,FALSE))))) -> 0 | W60: 0 | X60: 0
A61: 55 | B61: TotalB/f | C61: =IF(B61>=About!M$5,0,(IF(ISNA(VLOOKUP(B61,About!M$55:AL$200,2,FALSE)),0,(VLOOKUP(B61,About!M$55:AL$200,2,FALSE))))) -> 0 | D61: =IF(B61>=About!M$5,0,(IF(ISNA(VLOOKUP(B61,About!M$55:AP$200,30,FALSE)),0,(VLOOKUP(B61,About!M$55:AP$200,30,FALSE))))) -> 0 | E61: =IF(B61>=About!M$5,0,(IF(ISNA(VLOOKUP(B61,About!M$55:AL$167,4,FALSE)),0,(VLOOKUP(B61,About!M$55:AL$167,4,FALSE))))) -> 0 | F61: 0 | G61: =IF(B61>=About!M$5,0,(IF(ISNA(VLOOKUP(B61,About!M$55:AK$200,6,FALSE)),0,(VLOOKUP(B61,About!M$55:AK$200,6,FALSE))))) -> 0 | H61: 0 | I61: 0 | J61: =IF(B61>=About!M$5,0,(IF(ISNA(VLOOKUP(B61,About!M$55:BL$200,8,FALSE)),0,(VLOOKUP(B61,About!M$55:BL$200,8,FALSE))))) -> 0 | K61: 0 | L61: 0 | M61: 0 | N61: 0 | O61: 0 | P61: 0 | Q61: 0 | R61: 0 | S61: 0 | T61: 0 | U61: =IF(B61>=About!M$5,0,(IF(ISNA(VLOOKUP(B61,About!M$55:BL$200,29,FALSE)),0,(VLOOKUP(B61,About!M$55:BL$200,22,FALSE))))) -> 0 | W61: 0 | X61: 0
A62: 56 | B62: =EDATE(B59,1) -> 2025-05-01 | C62: =IF(B62>=About!M$5,0,(IF(ISNA(VLOOKUP(B62,About!M$55:AL$200,2,FALSE)),0,(VLOOKUP(B62,About!M$55:AL$200,2,FALSE))))) -> 0 | D62: =IF(B62>=About!M$5,0,(IF(ISNA(VLOOKUP(B62,About!M$55:AP$200,30,FALSE)),0,(VLOOKUP(B62,About!M$55:AP$200,30,FALSE))))) -> 0 | E62: =IF(B62>=About!M$5,0,(IF(ISNA(VLOOKUP(B62,About!M$55:AL$167,4,FALSE)),0,(VLOOKUP(B62,About!M$55:AL$167,4,FALSE))))) -> 0 | F62: 0 | G62: =IF(B62>=About!M$5,0,(IF(ISNA(VLOOKUP(B62,About!M$55:AK$200,6,FALSE)),0,(VLOOKUP(B62,About!M$55:AK$200,6,FALSE))))) -> 0 | H62: 0 | I62: 0 | J62: =IF(B62>=About!M$5,0,(IF(ISNA(VLOOKUP(B62,About!M$55:BL$200,8,FALSE)),0,(VLOOKUP(B62,About!M$55:BL$200,8,FALSE))))) -> 0 | K62: 0 | L62: 0 | M62: 0 | N62: 0 | O62: 0 | P62: 0 | Q62: 0 | R62: 0 | S62: 0 | T62: 0 | U62: =IF(B62>=About!M$5,0,(IF(ISNA(VLOOKUP(B62,About!M$55:BL$200,29,FALSE)),0,(VLOOKUP(B62,About!M$55:BL$200,22,FALSE))))) -> 0 | W62: 0 | X62: 0
A63: 57 | B63: =EDATE(B62,1) -> 2025-06-01 | C63: =IF(B63>=About!M$5,0,(IF(ISNA(VLOOKUP(B63,About!M$55:AL$200,2,FALSE)),0,(VLOOKUP(B63,About!M$55:AL$200,2,FALSE))))) -> 0 | D63: =IF(B63>=About!M$5,0,(IF(ISNA(VLOOKUP(B63,About!M$55:AP$200,30,FALSE)),0,(VLOOKUP(B63,About!M$55:AP$200,30,FALSE))))) -> 0 | E63: =IF(B63>=About!M$5,0,(IF(ISNA(VLOOKUP(B63,About!M$55:AL$167,4,FALSE)),0,(VLOOKUP(B63,About!M$55:AL$167,4,FALSE))))) -> 0 | F63: 0 | G63: =IF(B63>=About!M$5,0,(IF(ISNA(VLOOKUP(B63,About!M$55:AK$200,6,FALSE)),0,(VLOOKUP(B63,About!M$55:AK$200,6,FALSE))))) -> 0 | H63: 0 | I63: 0 | J63: =IF(B63>=About!M$5,0,(IF(ISNA(VLOOKUP(B63,About!M$55:BL$200,8,FALSE)),0,(VLOOKUP(B63,About!M$55:BL$200,8,FALSE))))) -> 0 | K63: 0 | L63: 0 | M63: 0 | N63: 0 | O63: 0 | P63: 0 | Q63: 0 | R63: 0 | S63: 0 | T63: 0 | U63: =IF(B63>=About!M$5,0,(IF(ISNA(VLOOKUP(B63,About!M$55:BL$200,29,FALSE)),0,(VLOOKUP(B63,About!M$55:BL$200,22,FALSE))))) -> 0 | W63: 0 | X63: 0
A64: 58 | B64: =EDATE(B63,1) -> 2025-07-01 | C64: =IF(B64>=About!M$5,0,(IF(ISNA(VLOOKUP(B64,About!M$55:AL$200,2,FALSE)),0,(VLOOKUP(B64,About!M$55:AL$200,2,FALSE))))) -> 0 | D64: =IF(B64>=About!M$5,0,(IF(ISNA(VLOOKUP(B64,About!M$55:AP$200,30,FALSE)),0,(VLOOKUP(B64,About!M$55:AP$200,30,FALSE))))) -> 0 | E64: =IF(B64>=About!M$5,0,(IF(ISNA(VLOOKUP(B64,About!M$55:AL$167,4,FALSE)),0,(VLOOKUP(B64,About!M$55:AL$167,4,FALSE))))) -> 0 | F64: 0 | G64: =IF(B64>=About!M$5,0,(IF(ISNA(VLOOKUP(B64,About!M$55:AK$200,6,FALSE)),0,(VLOOKUP(B64,About!M$55:AK$200,6,FALSE))))) -> 0 | H64: 0 | I64: 0 | J64: =IF(B64>=About!M$5,0,(IF(ISNA(VLOOKUP(B64,About!M$55:BL$200,8,FALSE)),0,(VLOOKUP(B64,About!M$55:BL$200,8,FALSE))))) -> 0 | K64: 0 | L64: 0 | M64: 0 | N64: 0 | O64: 0 | P64: 0 | Q64: 0 | R64: 0 | S64: 0 | T64: 0 | U64: =IF(B64>=About!M$5,0,(IF(ISNA(VLOOKUP(B64,About!M$55:BL$200,29,FALSE)),0,(VLOOKUP(B64,About!M$55:BL$200,22,FALSE))))) -> 0 | V64: =IF(B64>=About!M$5,0,(IF(ISNA(VLOOKUP(B64,About!M$55:AL$167,24,FALSE)),0,(VLOOKUP(B64,About!M$55:AL$167,24,FALSE))))) -> 0 | W64: 0 | X64: 0
A65: 59 | B65: =EDATE(B64,1) -> 2025-08-01 | C65: =IF(B65>=About!M$5,0,(IF(ISNA(VLOOKUP(B65,About!M$55:AL$200,2,FALSE)),0,(VLOOKUP(B65,About!M$55:AL$200,2,FALSE))))) -> 0 | D65: =IF(B65>=About!M$5,0,(IF(ISNA(VLOOKUP(B65,About!M$55:AP$200,30,FALSE)),0,(VLOOKUP(B65,About!M$55:AP$200,30,FALSE))))) -> 0 | E65: =IF(B65>=About!M$5,0,(IF(ISNA(VLOOKUP(B65,About!M$55:AL$167,4,FALSE)),0,(VLOOKUP(B65,About!M$55:AL$167,4,FALSE))))) -> 0 | F65: 0 | G65: =IF(B65>=About!M$5,0,(IF(ISNA(VLOOKUP(B65,About!M$55:AK$200,6,FALSE)),0,(VLOOKUP(B65,About!M$55:AK$200,6,FALSE))))) -> 0 | H65: 0 | I65: 0 | J65: =IF(B65>=About!M$5,0,(IF(ISNA(VLOOKUP(B65,About!M$55:BL$200,8,FALSE)),0,(VLOOKUP(B65,About!M$55:BL$200,8,FALSE))))) -> 0 | K65: 0 | L65: 0 | M65: 0 | N65: 0 | O65: 0 | P65: 0 | Q65: 0 | R65: 0 | S65: 0 | T65: 0 | U65: =IF(B65>=About!M$5,0,(IF(ISNA(VLOOKUP(B65,About!M$55:BL$200,29,FALSE)),0,(VLOOKUP(B65,About!M$55:BL$200,22,FALSE))))) -> 0 | V65: =IF(B65>=About!M$5,0,(IF(ISNA(VLOOKUP(B65,About!M$55:AL$167,24,FALSE)),0,(VLOOKUP(B65,About!M$55:AL$167,24,FALSE))))) -> 0 | W65: 0 | X65: 0
A66: 60 | B66: 2025-09-01 | C66: =IF(B66>=About!M$5,0,(IF(ISNA(VLOOKUP(B66,About!M$55:AL$200,2,FALSE)),0,(VLOOKUP(B66,About!M$55:AL$200,2,FALSE))))) -> 0 | D66: =IF(B66>=About!M$5,0,(IF(ISNA(VLOOKUP(B66,About!M$55:AP$200,30,FALSE)),0,(VLOOKUP(B66,About!M$55:AP$200,30,FALSE))))) -> 0 | E66: =IF(B66>=About!M$5,0,(IF(ISNA(VLOOKUP(B66,About!M$55:AL$167,4,FALSE)),0,(VLOOKUP(B66,About!M$55:AL$167,4,FALSE))))) -> 0 | F66: 0 | G66: =IF(B66>=About!M$5,0,(IF(ISNA(VLOOKUP(B66,About!M$55:AK$200,6,FALSE)),0,(VLOOKUP(B66,About!M$55:AK$200,6,FALSE))))) -> 0 | H66: 0 | I66: 0 | J66: =IF(B66>=About!M$5,0,(IF(ISNA(VLOOKUP(B66,About!M$55:BL$200,8,FALSE)),0,(VLOOKUP(B66,About!M$55:BL$200,8,FALSE))))) -> 0 | K66: 0 | L66: 0 | M66: 0 | N66: 0 | O66: 0 | P66: 0 | Q66: 0 | R66: 0 | S66: 0 | T66: 0 | U66: =IF(B66>=About!M$5,0,(IF(ISNA(VLOOKUP(B66,About!M$55:BL$200,29,FALSE)),0,(VLOOKUP(B66,About!M$55:BL$200,22,FALSE))))) -> 0 | V66: =IF(B66>=About!M$5,0,(IF(ISNA(VLOOKUP(B66,About!M$55:AL$167,24,FALSE)),0,(VLOOKUP(B66,About!M$55:AL$167,24,FALSE))))) -> 0 | W66: 0 | X66: 0
A67: 61 | B67: 2025-10-01 | C67: =IF(B67>=About!M$5,0,(IF(ISNA(VLOOKUP(B67,About!M$55:AL$200,2,FALSE)),0,(VLOOKUP(B67,About!M$55:AL$200,2,FALSE))))) -> 0 | D67: =IF(B67>=About!M$5,0,(IF(ISNA(VLOOKUP(B67,About!M$55:AP$200,30,FALSE)),0,(VLOOKUP(B67,About!M$55:AP$200,30,FALSE))))) -> 0 | E67: =IF(B67>=About!M$5,0,(IF(ISNA(VLOOKUP(B67,About!M$55:AL$167,4,FALSE)),0,(VLOOKUP(B67,About!M$55:AL$167,4,FALSE))))) -> 0 | F67: 0 | G67: =IF(B67>=About!M$5,0,(IF(ISNA(VLOOKUP(B67,About!M$55:AK$200,6,FALSE)),0,(VLOOKUP(B67,About!M$55:AK$200,6,FALSE))))) -> 0 | H67: 0 | I67: 0 | J67: =IF(B67>=About!M$5,0,(IF(ISNA(VLOOKUP(B67,About!M$55:BL$200,8,FALSE)),0,(VLOOKUP(B67,About!M$55:BL$200,8,FALSE))))) -> 0 | K67: 0 | L67: 0 | M67: 0 | N67: 0 | O67: 0 | P67: 0 | Q67: 0 | R67: 0 | S67: 0 | T67: 0 | U67: =IF(B67>=About!M$5,0,(IF(ISNA(VLOOKUP(B67,About!M$55:BL$200,29,FALSE)),0,(VLOOKUP(B67,About!M$55:BL$200,22,FALSE))))) -> 0 | V67: =IF(B67>=About!M$5,0,(IF(ISNA(VLOOKUP(B67,About!M$55:AL$167,24,FALSE)),0,(VLOOKUP(B67,About!M$55:AL$167,24,FALSE))))) -> 0 | W67: 0 | X67: 0
A68: 62 | B68: 2025-11-01 | C68: =IF(B68>=About!M$5,0,(IF(ISNA(VLOOKUP(B68,About!M$55:AL$200,2,FALSE)),0,(VLOOKUP(B68,About!M$55:AL$200,2,FALSE))))) -> 0 | D68: =IF(B68>=About!M$5,0,(IF(ISNA(VLOOKUP(B68,About!M$55:AP$200,30,FALSE)),0,(VLOOKUP(B68,About!M$55:AP$200,30,FALSE))))) -> 0 | E68: =IF(B68>=About!M$5,0,(IF(ISNA(VLOOKUP(B68,About!M$55:AL$167,4,FALSE)),0,(VLOOKUP(B68,About!M$55:AL$167,4,FALSE))))) -> 0 | F68: 0 | G68: =IF(B68>=About!M$5,0,(IF(ISNA(VLOOKUP(B68,About!M$55:AK$200,6,FALSE)),0,(VLOOKUP(B68,About!M$55:AK$200,6,FALSE))))) -> 0 | H68: 0 | I68: 0 | J68: =IF(B68>=About!M$5,0,(IF(ISNA(VLOOKUP(B68,About!M$55:BL$200,8,FALSE)),0,(VLOOKUP(B68,About!M$55:BL$200,8,FALSE))))) -> 0 | K68: 0 | L68: 0 | M68: 0 | N68: 0 | O68: 0 | P68: 0 | Q68: 0 | R68: 0 | S68: 0 | T68: 0 | U68: =IF(B68>=About!M$5,0,(IF(ISNA(VLOOKUP(B68,About!M$55:BL$200,29,FALSE)),0,(VLOOKUP(B68,About!M$55:BL$200,22,FALSE))))) -> 0 | V68: =IF(B68>=About!M$5,0,(IF(ISNA(VLOOKUP(B68,About!M$55:AL$167,24,FALSE)),0,(VLOOKUP(B68,About!M$55:AL$167,24,FALSE))))) -> 0 | W68: 0 | X68: 0
A69: 63 | B69: 2025-12-01 | C69: =IF(B69>=About!M$5,0,(IF(ISNA(VLOOKUP(B69,About!M$55:AL$200,2,FALSE)),0,(VLOOKUP(B69,About!M$55:AL$200,2,FALSE))))) -> 0 | D69: =IF(B69>=About!M$5,0,(IF(ISNA(VLOOKUP(B69,About!M$55:AP$200,30,FALSE)),0,(VLOOKUP(B69,About!M$55:AP$200,30,FALSE))))) -> 0 | E69: =IF(B69>=About!M$5,0,(IF(ISNA(VLOOKUP(B69,About!M$55:AL$167,4,FALSE)),0,(VLOOKUP(B69,About!M$55:AL$167,4,FALSE))))) -> 0 | F69: 0 | G69: =IF(B69>=About!M$5,0,(IF(ISNA(VLOOKUP(B69,About!M$55:AK$200,6,FALSE)),0,(VLOOKUP(B69,About!M$55:AK$200,6,FALSE))))) -> 0 | H69: 0 | I69: 0 | J69: =IF(B69>=About!M$5,0,(IF(ISNA(VLOOKUP(B69,About!M$55:BL$200,8,FALSE)),0,(VLOOKUP(B69,About!M$55:BL$200,8,FALSE))))) -> 0 | K69: 0 | L69: 0 | M69: 0 | N69: 0 | O69: 0 | P69: 0 | Q69: 0 | R69: 0 | S69: 0 | T69: 0 | U69: =IF(B69>=About!M$5,0,(IF(ISNA(VLOOKUP(B69,About!M$55:BL$200,29,FALSE)),0,(VLOOKUP(B69,About!M$55:BL$200,22,FALSE))))) -> 0 | V69: =IF(B69>=About!M$5,0,(IF(ISNA(VLOOKUP(B69,About!M$55:AL$167,24,FALSE)),0,(VLOOKUP(B69,About!M$55:AL$167,24,FALSE))))) -> 0 | W69: 0 | X69: 0
A70: 64 | B70: 2026-01-01 | C70: =IF(B70>=About!M$5,0,(IF(ISNA(VLOOKUP(B70,About!M$55:AL$200,2,FALSE)),0,(VLOOKUP(B70,About!M$55:AL$200,2,FALSE))))) -> 0 | D70: =IF(B70>=About!M$5,0,(IF(ISNA(VLOOKUP(B70,About!M$55:AP$200,30,FALSE)),0,(VLOOKUP(B70,About!M$55:AP$200,30,FALSE))))) -> 0 | E70: =IF(B70>=About!M$5,0,(IF(ISNA(VLOOKUP(B70,About!M$55:AL$167,4,FALSE)),0,(VLOOKUP(B70,About!M$55:AL$167,4,FALSE))))) -> 0 | F70: 0 | G70: =IF(B70>=About!M$5,0,(IF(ISNA(VLOOKUP(B70,About!M$55:AK$200,6,FALSE)),0,(VLOOKUP(B70,About!M$55:AK$200,6,FALSE))))) -> 0 | H70: 0 | I70: 0 | J70: =IF(B70>=About!M$5,0,(IF(ISNA(VLOOKUP(B70,About!M$55:BL$200,8,FALSE)),0,(VLOOKUP(B70,About!M$55:BL$200,8,FALSE))))) -> 0 | K70: 0 | L70: 0 | M70: 0 | N70: 0 | O70: 0 | P70: 0 | Q70: 0 | R70: 0 | S70: 0 | T70: 0 | U70: =IF(B70>=About!M$5,0,(IF(ISNA(VLOOKUP(B70,About!M$55:BL$200,29,FALSE)),0,(VLOOKUP(B70,About!M$55:BL$200,22,FALSE))))) -> 0 | V70: =IF(B70>=About!M$5,0,(IF(ISNA(VLOOKUP(B70,About!M$55:AL$167,24,FALSE)),0,(VLOOKUP(B70,About!M$55:AL$167,24,FALSE))))) -> 0 | W70: 0 | X70: 0
A71: 65 | B71: 2026-02-01 | C71: =IF(B71>=About!M$5,0,(IF(ISNA(VLOOKUP(B71,About!M$55:AL$200,2,FALSE)),0,(VLOOKUP(B71,About!M$55:AL$200,2,FALSE))))) -> 0 | D71: =IF(B71>=About!M$5,0,(IF(ISNA(VLOOKUP(B71,About!M$55:AP$200,30,FALSE)),0,(VLOOKUP(B71,About!M$55:AP$200,30,FALSE))))) -> 0 | E71: =IF(B71>=About!M$5,0,(IF(ISNA(VLOOKUP(B71,About!M$55:AL$167,4,FALSE)),0,(VLOOKUP(B71,About!M$55:AL$167,4,FALSE))))) -> 0 | F71: 0 | G71: =IF(B71>=About!M$5,0,(IF(ISNA(VLOOKUP(B71,About!M$55:AK$200,6,FALSE)),0,(VLOOKUP(B71,About!M$55:AK$200,6,FALSE))))) -> 0 | H71: 0 | I71: 0 | J71: =IF(B71>=About!M$5,0,(IF(ISNA(VLOOKUP(B71,About!M$55:BL$200,8,FALSE)),0,(VLOOKUP(B71,About!M$55:BL$200,8,FALSE))))) -> 0 | K71: 0 | L71: 0 | M71: 0 | N71: 0 | O71: 0 | P71: 0 | Q71: 0 | R71: 0 | S71: 0 | T71: 0 | U71: =IF(B71>=About!M$5,0,(IF(ISNA(VLOOKUP(B71,About!M$55:BL$200,29,FALSE)),0,(VLOOKUP(B71,About!M$55:BL$200,22,FALSE))))) -> 0 | V71: =IF(B71>=About!M$5,0,(IF(ISNA(VLOOKUP(B71,About!M$55:AL$167,24,FALSE)),0,(VLOOKUP(B71,About!M$55:AL$167,24,FALSE))))) -> 0 | W71: 0 | X71: =S71-W71 -> 0
A72: 66 | B72: 2026-03-01 | C72: =IF(B72>=About!M$5,0,(IF(ISNA(VLOOKUP(B72,About!M$55:AL$200,2,FALSE)),0,(VLOOKUP(B72,About!M$55:AL$200,2,FALSE))))) -> 0 | D72: =IF(B72>=About!M$5,0,(IF(ISNA(VLOOKUP(B72,About!M$55:AP$200,30,FALSE)),0,(VLOOKUP(B72,About!M$55:AP$200,30,FALSE))))) -> 0 | E72: =IF(B72>=About!M$5,0,(IF(ISNA(VLOOKUP(B72,About!M$55:AL$167,4,FALSE)),0,(VLOOKUP(B72,About!M$55:AL$167,4,FALSE))))) -> 0 | F72: 0 | G72: =IF(B72>=About!M$5,0,(IF(ISNA(VLOOKUP(B72,About!M$55:AK$200,6,FALSE)),0,(VLOOKUP(B72,About!M$55:AK$200,6,FALSE))))) -> 0 | H72: 0 | I72: 0 | J72: =IF(B72>=About!M$5,0,(IF(ISNA(VLOOKUP(B72,About!M$55:BL$200,8,FALSE)),0,(VLOOKUP(B72,About!M$55:BL$200,8,FALSE))))) -> 0 | K72: 0 | L72: 0 | M72: 0 | N72: =SUM(J72:M72) -> 0 | O72: =C72-J72 -> 0 | P72: 0 | Q72: =E72-L72 -> 0 | R72: =H72-M72 -> 0 | S72: =SUM(O72:R72) -> 0 | T72: 0 | U72: =IF(B72>=About!M$5,0,(IF(ISNA(VLOOKUP(B72,About!M$55:BL$200,29,FALSE)),0,(VLOOKUP(B72,About!M$55:BL$200,22,FALSE))))) -> 0 | V72: =IF(B72>=About!M$5,0,(IF(ISNA(VLOOKUP(B72,About!M$55:AL$167,24,FALSE)),0,(VLOOKUP(B72,About!M$55:AL$167,24,FALSE))))) -> 0 | W72: =SUM(T72:V72) -> 0 | X72: 0
A73: 67 | B73: 2026-04-01 | C73: =IF(B73>=About!M$5,0,(IF(ISNA(VLOOKUP(B73,About!M$55:AL$200,2,FALSE)),0,(VLOOKUP(B73,About!M$55:AL$200,2,FALSE))))) -> 0 | D73: =IF(B73>=About!M$5,0,(IF(ISNA(VLOOKUP(B73,About!M$55:AP$200,30,FALSE)),0,(VLOOKUP(B73,About!M$55:AP$200,30,FALSE))))) -> 0 | E73: =IF(B73>=About!M$5,0,(IF(ISNA(VLOOKUP(B73,About!M$55:AL$167,4,FALSE)),0,(VLOOKUP(B73,About!M$55:AL$167,4,FALSE))))) -> 0 | F73: 0 | G73: =IF(B73>=About!M$5,0,(IF(ISNA(VLOOKUP(B73,About!M$55:AK$200,6,FALSE)),0,(VLOOKUP(B73,About!M$55:AK$200,6,FALSE))))) -> 0 | H73: 0 | I73: 0 | J73: =IF(B73>=About!M$5,0,(IF(ISNA(VLOOKUP(B73,About!M$55:BL$200,8,FALSE)),0,(VLOOKUP(B73,About!M$55:BL$200,8,FALSE))))) -> 0 | K73: 0 | L73: 0 | M73: 0 | N73: 0 | O73: 0 | P73: 0 | Q73: 0 | R73: 0 | S73: 0 | T73: 0 | U73: =IF(B73>=About!M$5,0,(IF(ISNA(VLOOKUP(B73,About!M$55:BL$200,29,FALSE)),0,(VLOOKUP(B73,About!M$55:BL$200,22,FALSE))))) -> 0 | V73: =IF(B73>=About!M$5,0,(IF(ISNA(VLOOKUP(B73,About!M$55:AL$167,24,FALSE)),0,(VLOOKUP(B73,About!M$55:AL$167,24,FALSE))))) -> 0 | W73: 0 | X73: 0
A74: 68 | B74: 2026-05-01 | C74: =IF(B74>=About!M$5,0,(IF(ISNA(VLOOKUP(B74,About!M$55:AL$200,2,FALSE)),0,(VLOOKUP(B74,About!M$55:AL$200,2,FALSE))))) -> 0 | D74: =IF(B74>=About!M$5,0,(IF(ISNA(VLOOKUP(B74,About!M$55:AP$200,30,FALSE)),0,(VLOOKUP(B74,About!M$55:AP$200,30,FALSE))))) -> 0 | E74: =IF(B74>=About!M$5,0,(IF(ISNA(VLOOKUP(B74,About!M$55:AL$167,4,FALSE)),0,(VLOOKUP(B74,About!M$55:AL$167,4,FALSE))))) -> 0 | F74: 0 | G74: =IF(B74>=About!M$5,0,(IF(ISNA(VLOOKUP(B74,About!M$55:AK$200,6,FALSE)),0,(VLOOKUP(B74,About!M$55:AK$200,6,FALSE))))) -> 0 | H74: 0 | I74: =SUM(C74,F74,H74) -> 0 | J74: =IF(B74>=About!M$5,0,(IF(ISNA(VLOOKUP(B74,About!M$55:BL$200,8,FALSE)),0,(VLOOKUP(B74,About!M$55:BL$200,8,FALSE))))) -> 0 | K74: 0 | L74: 0 | M74: 0 | N74: 0 | O74: 0 | P74: =F74-K74 -> 0 | Q74: 0 | R74: 0 | S74: 0 | T74: =ROUND((C74+F74)*10%,0)-ROUND(J74*10%,0) -> 0 | U74: =IF(B74>=About!M$5,0,(IF(ISNA(VLOOKUP(B74,About!M$55:BL$200,29,FALSE)),0,(VLOOKUP(B74,About!M$55:BL$200,22,FALSE))))) -> 0 | V74: =IF(B74>=About!M$5,0,(IF(ISNA(VLOOKUP(B74,About!M$55:AL$167,24,FALSE)),0,(VLOOKUP(B74,About!M$55:AL$167,24,FALSE))))) -> 0 | W74: 0 | X74: 0
A75: 69 | B75: 2026-06-01 | C75: =IF(B75>=About!M$5,0,(IF(ISNA(VLOOKUP(B75,About!M$55:AL$200,2,FALSE)),0,(VLOOKUP(B75,About!M$55:AL$200,2,FALSE))))) -> 0 | D75: =IF(B75>=About!M$5,0,(IF(ISNA(VLOOKUP(B75,About!M$55:AP$200,30,FALSE)),0,(VLOOKUP(B75,About!M$55:AP$200,30,FALSE))))) -> 0 | E75: =IF(B75>=About!M$5,0,(IF(ISNA(VLOOKUP(B75,About!M$55:AL$167,4,FALSE)),0,(VLOOKUP(B75,About!M$55:AL$167,4,FALSE))))) -> 0 | F75: 0 | G75: =IF(B75>=About!M$5,0,(IF(ISNA(VLOOKUP(B75,About!M$55:AK$200,6,FALSE)),0,(VLOOKUP(B75,About!M$55:AK$200,6,FALSE))))) -> 0 | H75: 0 | I75: 0 | J75: =IF(B75>=About!M$5,0,(IF(ISNA(VLOOKUP(B75,About!M$55:BL$200,8,FALSE)),0,(VLOOKUP(B75,About!M$55:BL$200,8,FALSE))))) -> 0 | K75: 0 | L75: 0 | M75: 0 | N75: 0 | O75: 0 | P75: 0 | Q75: 0 | R75: 0 | S75: 0 | T75: 0 | U75: =IF(B75>=About!M$5,0,(IF(ISNA(VLOOKUP(B75,About!M$55:BL$200,29,FALSE)),0,(VLOOKUP(B75,About!M$55:BL$200,22,FALSE))))) -> 0 | V75: =IF(B75>=About!M$5,0,(IF(ISNA(VLOOKUP(B75,About!M$55:AL$167,24,FALSE)),0,(VLOOKUP(B75,About!M$55:AL$167,24,FALSE))))) -> 0 | W75: 0 | X75: 0
A76: 70 | B76: 2026-07-01 | C76: =IF(B76>=About!M$5,0,(IF(ISNA(VLOOKUP(B76,About!M$55:AL$200,2,FALSE)),0,(VLOOKUP(B76,About!M$55:AL$200,2,FALSE))))) -> 0 | D76: =IF(B76>=About!M$5,0,(IF(ISNA(VLOOKUP(B76,About!M$55:AP$200,30,FALSE)),0,(VLOOKUP(B76,About!M$55:AP$200,30,FALSE))))) -> 0 | E76: =IF(B76>=About!M$5,0,(IF(ISNA(VLOOKUP(B76,About!M$55:AL$167,4,FALSE)),0,(VLOOKUP(B76,About!M$55:AL$167,4,FALSE))))) -> 0 | F76: 0 | G76: =IF(B76>=About!M$5,0,(IF(ISNA(VLOOKUP(B76,About!M$55:AK$200,6,FALSE)),0,(VLOOKUP(B76,About!M$55:AK$200,6,FALSE))))) -> 0 | H76: 0 | I76: 0 | J76: =IF(B76>=About!M$5,0,(IF(ISNA(VLOOKUP(B76,About!M$55:BL$200,8,FALSE)),0,(VLOOKUP(B76,About!M$55:BL$200,8,FALSE))))) -> 0 | K76: 0 | L76: 0 | M76: 0 | N76: 0 | O76: 0 | P76: 0 | Q76: 0 | R76: 0 | S76: 0 | T76: 0 | U76: =IF(B76>=About!M$5,0,(IF(ISNA(VLOOKUP(B76,About!M$55:BL$200,29,FALSE)),0,(VLOOKUP(B76,About!M$55:BL$200,22,FALSE))))) -> 0 | V76: =IF(B76>=About!M$5,0,(IF(ISNA(VLOOKUP(B76,About!M$55:AL$167,24,FALSE)),0,(VLOOKUP(B76,About!M$55:AL$167,24,FALSE))))) -> 0 | W76: 0 | X76: 0
A77: 71 | B77: 2026-08-01 | C77: =IF(B77>=About!M$5,0,(IF(ISNA(VLOOKUP(B77,About!M$55:AL$200,2,FALSE)),0,(VLOOKUP(B77,About!M$55:AL$200,2,FALSE))))) -> 0 | D77: =IF(B77>=About!M$5,0,(IF(ISNA(VLOOKUP(B77,About!M$55:AP$200,30,FALSE)),0,(VLOOKUP(B77,About!M$55:AP$200,30,FALSE))))) -> 0 | E77: =IF(B77>=About!M$5,0,(IF(ISNA(VLOOKUP(B77,About!M$55:AL$167,4,FALSE)),0,(VLOOKUP(B77,About!M$55:AL$167,4,FALSE))))) -> 0 | F77: 0 | G77: =IF(B77>=About!M$5,0,(IF(ISNA(VLOOKUP(B77,About!M$55:AK$200,6,FALSE)),0,(VLOOKUP(B77,About!M$55:AK$200,6,FALSE))))) -> 0 | H77: 0 | I77: 0 | J77: =IF(B77>=About!M$5,0,(IF(ISNA(VLOOKUP(B77,About!M$55:BL$200,8,FALSE)),0,(VLOOKUP(B77,About!M$55:BL$200,8,FALSE))))) -> 0 | K77: 0 | L77: 0 | M77: 0 | N77: 0 | O77: 0 | P77: 0 | Q77: 0 | R77: 0 | S77: 0 | T77: 0 | U77: =IF(B77>=About!M$5,0,(IF(ISNA(VLOOKUP(B77,About!M$55:BL$200,29,FALSE)),0,(VLOOKUP(B77,About!M$55:BL$200,22,FALSE))))) -> 0 | V77: =IF(B77>=About!M$5,0,(IF(ISNA(VLOOKUP(B77,About!M$55:AL$167,24,FALSE)),0,(VLOOKUP(B77,About!M$55:AL$167,24,FALSE))))) -> 0 | W77: 0 | X77: 0
A78: 72 | B78: 2026-09-01 | C78: =IF(B78>=About!M$5,0,(IF(ISNA(VLOOKUP(B78,About!M$55:AL$200,2,FALSE)),0,(VLOOKUP(B78,About!M$55:AL$200,2,FALSE))))) -> 0 | D78: =IF(B78>=About!M$5,0,(IF(ISNA(VLOOKUP(B78,About!M$55:AP$200,30,FALSE)),0,(VLOOKUP(B78,About!M$55:AP$200,30,FALSE))))) -> 0 | E78: =IF(B78>=About!M$5,0,(IF(ISNA(VLOOKUP(B78,About!M$55:AL$167,4,FALSE)),0,(VLOOKUP(B78,About!M$55:AL$167,4,FALSE))))) -> 0 | F78: 0 | G78: =IF(B78>=About!M$5,0,(IF(ISNA(VLOOKUP(B78,About!M$55:AK$200,6,FALSE)),0,(VLOOKUP(B78,About!M$55:AK$200,6,FALSE))))) -> 0 | H78: 0 | I78: 0 | J78: =IF(B78>=About!M$5,0,(IF(ISNA(VLOOKUP(B78,About!M$55:BL$200,8,FALSE)),0,(VLOOKUP(B78,About!M$55:BL$200,8,FALSE))))) -> 0 | K78: 0 | L78: 0 | M78: 0 | N78: 0 | O78: 0 | P78: 0 | Q78: 0 | R78: 0 | S78: 0 | T78: 0 | U78: =IF(B78>=About!M$5,0,(IF(ISNA(VLOOKUP(B78,About!M$55:BL$200,29,FALSE)),0,(VLOOKUP(B78,About!M$55:BL$200,22,FALSE))))) -> 0 | V78: =IF(B78>=About!M$5,0,(IF(ISNA(VLOOKUP(B78,About!M$55:AL$167,24,FALSE)),0,(VLOOKUP(B78,About!M$55:AL$167,24,FALSE))))) -> 0 | W78: 0 | X78: 0
A79: 73 | B79: 2026-10-01 | C79: =IF(B79>=About!M$5,0,(IF(ISNA(VLOOKUP(B79,About!M$55:AL$167,2,FALSE)),0,(VLOOKUP(B79,About!M$55:AL$167,2,FALSE))))) -> 0 | D79: =IF(B79>=About!M$5,0,(IF(ISNA(VLOOKUP(B79,About!M$55:AP$200,30,FALSE)),0,(VLOOKUP(B79,About!M$55:AP$200,30,FALSE))))) -> 0 | E79: =IF(B79>=About!M$5,0,(IF(ISNA(VLOOKUP(B79,About!M$55:AL$167,4,FALSE)),0,(VLOOKUP(B79,About!M$55:AL$167,4,FALSE))))) -> 0 | F79: 0 | G79: =IF(B79>=About!M$5,0,(IF(ISNA(VLOOKUP(B79,About!M$55:AK$200,6,FALSE)),0,(VLOOKUP(B79,About!M$55:AK$200,6,FALSE))))) -> 0 | H79: 0 | I79: 0 | J79: =IF(B79>=About!M$5,0,(IF(ISNA(VLOOKUP(B79,About!M$55:BL$200,8,FALSE)),0,(VLOOKUP(B79,About!M$55:BL$200,8,FALSE))))) -> 0 | K79: 0 | L79: 0 | M79: 0 | N79: 0 | O79: 0 | P79: 0 | Q79: 0 | R79: 0 | S79: 0 | T79: 0 | U79: =IF(B79>=About!M$5,0,(IF(ISNA(VLOOKUP(B79,About!M$55:BL$200,29,FALSE)),0,(VLOOKUP(B79,About!M$55:BL$200,22,FALSE))))) -> 0 | V79: =IF(B79>=About!M$5,0,(IF(ISNA(VLOOKUP(B79,About!M$55:AL$167,24,FALSE)),0,(VLOOKUP(B79,About!M$55:AL$167,24,FALSE))))) -> 0 | W79: 0 | X79: 0
A80: 74 | B80: 2026-11-01 | C80: =IF(B80>=About!M$5,0,(IF(ISNA(VLOOKUP(B80,About!M$55:AL$167,2,FALSE)),0,(VLOOKUP(B80,About!M$55:AL$167,2,FALSE))))) -> 0 | D80: =IF(B80>=About!M$5,0,(IF(ISNA(VLOOKUP(B80,About!M$55:AP$200,30,FALSE)),0,(VLOOKUP(B80,About!M$55:AP$200,30,FALSE))))) -> 0 | E80: =IF(B80>=About!M$5,0,(IF(ISNA(VLOOKUP(B80,About!M$55:AL$167,4,FALSE)),0,(VLOOKUP(B80,About!M$55:AL$167,4,FALSE))))) -> 0 | F80: =ROUND(C80*D80/100,0) -> 0 | G80: =IF(B80>=About!M$5,0,(IF(ISNA(VLOOKUP(B80,About!M$55:AK$200,6,FALSE)),0,(VLOOKUP(B80,About!M$55:AK$200,6,FALSE))))) -> 0 | H80: =ROUND(C80*G80/100,0) -> 0 | I80: 0 | J80: =IF(B80>=About!M$5,0,(IF(ISNA(VLOOKUP(B80,About!M$55:BL$200,8,FALSE)),0,(VLOOKUP(B80,About!M$55:BL$200,8,FALSE))))) -> 0 | K80: 0 | L80: 0 | M80: 0 | N80: 0 | O80: 0 | P80: 0 | Q80: 0 | R80: 0 | S80: 0 | T80: 0 | U80: =IF(B80>=About!M$5,0,(IF(ISNA(VLOOKUP(B80,About!M$55:BL$200,29,FALSE)),0,(VLOOKUP(B80,About!M$55:BL$200,22,FALSE))))) -> 0 | V80: =IF(B80>=About!M$5,0,(IF(ISNA(VLOOKUP(B80,About!M$55:AL$167,24,FALSE)),0,(VLOOKUP(B80,About!M$55:AL$167,24,FALSE))))) -> 0 | W80: 0 | X80: 0
A81: 75 | B81: 2026-12-01 | C81: =IF(B81>=About!M$5,0,(IF(ISNA(VLOOKUP(B81,About!M$55:AL$167,2,FALSE)),0,(VLOOKUP(B81,About!M$55:AL$167,2,FALSE))))) -> 0 | D81: =IF(B81>=About!M$5,0,(IF(ISNA(VLOOKUP(B81,About!M$55:AP$200,30,FALSE)),0,(VLOOKUP(B81,About!M$55:AP$200,30,FALSE))))) -> 0 | E81: =IF(B81>=About!M$5,0,(IF(ISNA(VLOOKUP(B81,About!M$55:AL$167,4,FALSE)),0,(VLOOKUP(B81,About!M$55:AL$167,4,FALSE))))) -> 0 | F81: 0 | G81: =IF(B81>=About!M$5,0,(IF(ISNA(VLOOKUP(B81,About!M$55:AK$200,6,FALSE)),0,(VLOOKUP(B81,About!M$55:AK$200,6,FALSE))))) -> 0 | H81: 0 | I81: 0 | J81: =IF(B81>=About!M$5,0,(IF(ISNA(VLOOKUP(B81,About!M$55:BL$200,8,FALSE)),0,(VLOOKUP(B81,About!M$55:BL$200,8,FALSE))))) -> 0 | K81: 0 | L81: 0 | M81: 0 | N81: 0 | O81: 0 | P81: 0 | Q81: 0 | R81: 0 | S81: 0 | T81: 0 | U81: =IF(B81>=About!M$5,0,(IF(ISNA(VLOOKUP(B81,About!M$55:BL$200,29,FALSE)),0,(VLOOKUP(B81,About!M$55:BL$200,22,FALSE))))) -> 0 | V81: =IF(B81>=About!M$5,0,(IF(ISNA(VLOOKUP(B81,About!M$55:AL$167,24,FALSE)),0,(VLOOKUP(B81,About!M$55:AL$167,24,FALSE))))) -> 0 | W81: 0 | X81: 0
A82: 76 | B82: 2027-01-01 | C82: =IF(B82>=About!M$5,0,(IF(ISNA(VLOOKUP(B82,About!M$55:AL$167,2,FALSE)),0,(VLOOKUP(B82,About!M$55:AL$167,2,FALSE))))) -> 0 | D82: =IF(B82>=About!M$5,0,(IF(ISNA(VLOOKUP(B82,About!M$55:AP$200,30,FALSE)),0,(VLOOKUP(B82,About!M$55:AP$200,30,FALSE))))) -> 0 | E82: =IF(B82>=About!M$5,0,(IF(ISNA(VLOOKUP(B82,About!M$55:AL$167,4,FALSE)),0,(VLOOKUP(B82,About!M$55:AL$167,4,FALSE))))) -> 0 | F82: 0 | G82: =IF(B82>=About!M$5,0,(IF(ISNA(VLOOKUP(B82,About!M$55:AK$200,6,FALSE)),0,(VLOOKUP(B82,About!M$55:AK$200,6,FALSE))))) -> 0 | H82: 0 | I82: 0 | J82: =IF(B82>=About!M$5,0,(IF(ISNA(VLOOKUP(B82,About!M$55:BL$200,8,FALSE)),0,(VLOOKUP(B82,About!M$55:BL$200,8,FALSE))))) -> 0 | K82: 0 | L82: 0 | M82: 0 | N82: 0 | O82: 0 | P82: 0 | Q82: 0 | R82: 0 | S82: 0 | T82: 0 | U82: =IF(B82>=About!M$5,0,(IF(ISNA(VLOOKUP(B82,About!M$55:BL$200,29,FALSE)),0,(VLOOKUP(B82,About!M$55:BL$200,22,FALSE))))) -> 0 | V82: =IF(B82>=About!M$5,0,(IF(ISNA(VLOOKUP(B82,About!M$55:AL$167,24,FALSE)),0,(VLOOKUP(B82,About!M$55:AL$167,24,FALSE))))) -> 0 | W82: 0 | X82: 0
A83: 77 | B83: 2027-02-01 | C83: =IF(B83>=About!M$5,0,(IF(ISNA(VLOOKUP(B83,About!M$55:AL$167,2,FALSE)),0,(VLOOKUP(B83,About!M$55:AL$167,2,FALSE))))) -> 0 | D83: =IF(B83>=About!M$5,0,(IF(ISNA(VLOOKUP(B83,About!M$55:AP$200,30,FALSE)),0,(VLOOKUP(B83,About!M$55:AP$200,30,FALSE))))) -> 0 | E83: =IF(B83>=About!M$5,0,(IF(ISNA(VLOOKUP(B83,About!M$55:AL$167,4,FALSE)),0,(VLOOKUP(B83,About!M$55:AL$167,4,FALSE))))) -> 0 | F83: 0 | G83: =IF(B83>=About!M$5,0,(IF(ISNA(VLOOKUP(B83,About!M$55:AK$200,6,FALSE)),0,(VLOOKUP(B83,About!M$55:AK$200,6,FALSE))))) -> 0 | H83: 0 | I83: 0 | J83: =IF(B83>=About!M$5,0,(IF(ISNA(VLOOKUP(B83,About!M$55:BL$200,8,FALSE)),0,(VLOOKUP(B83,About!M$55:BL$200,8,FALSE))))) -> 0 | K83: 0 | L83: 0 | M83: 0 | N83: 0 | O83: 0 | P83: 0 | Q83: 0 | R83: 0 | S83: 0 | T83: 0 | U83: =IF(B83>=About!M$5,0,(IF(ISNA(VLOOKUP(B83,About!M$55:BL$200,29,FALSE)),0,(VLOOKUP(B83,About!M$55:BL$200,22,FALSE))))) -> 0 | V83: =IF(B83>=About!M$5,0,(IF(ISNA(VLOOKUP(B83,About!M$55:AL$167,24,FALSE)),0,(VLOOKUP(B83,About!M$55:AL$167,24,FALSE))))) -> 0 | W83: 0 | X83: 0
A84: 78 | B84: 2027-03-01 | C84: =IF(B84>=About!M$5,0,(IF(ISNA(VLOOKUP(B84,About!M$55:AL$167,2,FALSE)),0,(VLOOKUP(B84,About!M$55:AL$167,2,FALSE))))) -> 0 | D84: =IF(B84>=About!M$5,0,(IF(ISNA(VLOOKUP(B84,About!M$55:AP$200,30,FALSE)),0,(VLOOKUP(B84,About!M$55:AP$200,30,FALSE))))) -> 0 | E84: =IF(B84>=About!M$5,0,(IF(ISNA(VLOOKUP(B84,About!M$55:AL$167,4,FALSE)),0,(VLOOKUP(B84,About!M$55:AL$167,4,FALSE))))) -> 0 | F84: 0 | G84: =IF(B84>=About!M$5,0,(IF(ISNA(VLOOKUP(B84,About!M$55:AK$200,6,FALSE)),0,(VLOOKUP(B84,About!M$55:AK$200,6,FALSE))))) -> 0 | H84: 0 | I84: 0 | J84: =IF(B84>=About!M$5,0,(IF(ISNA(VLOOKUP(B84,About!M$55:BL$200,8,FALSE)),0,(VLOOKUP(B84,About!M$55:BL$200,8,FALSE))))) -> 0 | K84: 0 | L84: 0 | M84: 0 | N84: 0 | O84: 0 | P84: 0 | Q84: 0 | R84: 0 | S84: 0 | T84: 0 | U84: =IF(B84>=About!M$5,0,(IF(ISNA(VLOOKUP(B84,About!M$55:BL$200,29,FALSE)),0,(VLOOKUP(B84,About!M$55:BL$200,22,FALSE))))) -> 0 | V84: =IF(B84>=About!M$5,0,(IF(ISNA(VLOOKUP(B84,About!M$55:AL$167,24,FALSE)),0,(VLOOKUP(B84,About!M$55:AL$167,24,FALSE))))) -> 0 | W84: 0 | X84: 0
A85: 79 | B85: 2027-04-01 | C85: =IF(B85>=About!M$5,0,(IF(ISNA(VLOOKUP(B85,About!M$55:AL$167,2,FALSE)),0,(VLOOKUP(B85,About!M$55:AL$167,2,FALSE))))) -> 0 | D85: =IF(B85>=About!M$5,0,(IF(ISNA(VLOOKUP(B85,About!M$55:AP$200,30,FALSE)),0,(VLOOKUP(B85,About!M$55:AP$200,30,FALSE))))) -> 0 | E85: =IF(B85>=About!M$5,0,(IF(ISNA(VLOOKUP(B85,About!M$55:AL$167,4,FALSE)),0,(VLOOKUP(B85,About!M$55:AL$167,4,FALSE))))) -> 0 | F85: 0 | G85: =IF(B85>=About!M$5,0,(IF(ISNA(VLOOKUP(B85,About!M$55:AK$200,6,FALSE)),0,(VLOOKUP(B85,About!M$55:AK$200,6,FALSE))))) -> 0 | H85: 0 | I85: 0 | J85: =IF(B85>=About!M$5,0,(IF(ISNA(VLOOKUP(B85,About!M$55:BL$200,8,FALSE)),0,(VLOOKUP(B85,About!M$55:BL$200,8,FALSE))))) -> 0 | K85: 0 | L85: 0 | M85: 0 | N85: 0 | O85: 0 | P85: 0 | Q85: 0 | R85: 0 | S85: 0 | T85: 0 | U85: =IF(B85>=About!M$5,0,(IF(ISNA(VLOOKUP(B85,About!M$55:BL$200,29,FALSE)),0,(VLOOKUP(B85,About!M$55:BL$200,22,FALSE))))) -> 0 | V85: =IF(B85>=About!M$5,0,(IF(ISNA(VLOOKUP(B85,About!M$55:AL$167,24,FALSE)),0,(VLOOKUP(B85,About!M$55:AL$167,24,FALSE))))) -> 0 | W85: 0 | X85: 0
A86: 80 | B86: 2027-05-01 | C86: =IF(B86>=About!M$5,0,(IF(ISNA(VLOOKUP(B86,About!M$55:AL$167,2,FALSE)),0,(VLOOKUP(B86,About!M$55:AL$167,2,FALSE))))) -> 0 | D86: =IF(B86>=About!M$5,0,(IF(ISNA(VLOOKUP(B86,About!M$55:AP$200,30,FALSE)),0,(VLOOKUP(B86,About!M$55:AP$200,30,FALSE))))) -> 0 | E86: =IF(B86>=About!M$5,0,(IF(ISNA(VLOOKUP(B86,About!M$55:AL$167,4,FALSE)),0,(VLOOKUP(B86,About!M$55:AL$167,4,FALSE))))) -> 0 | F86: 0 | G86: =IF(B86>=About!M$5,0,(IF(ISNA(VLOOKUP(B86,About!M$55:AK$200,6,FALSE)),0,(VLOOKUP(B86,About!M$55:AK$200,6,FALSE))))) -> 0 | H86: 0 | I86: 0 | J86: =IF(B86>=About!M$5,0,(IF(ISNA(VLOOKUP(B86,About!M$55:BL$200,8,FALSE)),0,(VLOOKUP(B86,About!M$55:BL$200,8,FALSE))))) -> 0 | K86: 0 | L86: 0 | M86: 0 | N86: 0 | O86: 0 | P86: 0 | Q86: 0 | R86: 0 | S86: 0 | T86: 0 | U86: =IF(B86>=About!M$5,0,(IF(ISNA(VLOOKUP(B86,About!M$55:BL$200,29,FALSE)),0,(VLOOKUP(B86,About!M$55:BL$200,22,FALSE))))) -> 0 | V86: =IF(B86>=About!M$5,0,(IF(ISNA(VLOOKUP(B86,About!M$55:AL$167,24,FALSE)),0,(VLOOKUP(B86,About!M$55:AL$167,24,FALSE))))) -> 0 | W86: 0 | X86: 0
A87: 81 | B87: 2027-06-01 | C87: =IF(B87>=About!M$5,0,(IF(ISNA(VLOOKUP(B87,About!M$55:AL$167,2,FALSE)),0,(VLOOKUP(B87,About!M$55:AL$167,2,FALSE))))) -> 0 | D87: =IF(B87>=About!M$5,0,(IF(ISNA(VLOOKUP(B87,About!M$55:AP$200,30,FALSE)),0,(VLOOKUP(B87,About!M$55:AP$200,30,FALSE))))) -> 0 | E87: =IF(B87>=About!M$5,0,(IF(ISNA(VLOOKUP(B87,About!M$55:AL$167,4,FALSE)),0,(VLOOKUP(B87,About!M$55:AL$167,4,FALSE))))) -> 0 | F87: 0 | G87: =IF(B87>=About!M$5,0,(IF(ISNA(VLOOKUP(B87,About!M$55:AK$200,6,FALSE)),0,(VLOOKUP(B87,About!M$55:AK$200,6,FALSE))))) -> 0 | H87: 0 | I87: 0 | J87: =IF(B87>=About!M$5,0,(IF(ISNA(VLOOKUP(B87,About!M$55:BL$200,8,FALSE)),0,(VLOOKUP(B87,About!M$55:BL$200,8,FALSE))))) -> 0 | K87: 0 | L87: 0 | M87: 0 | N87: 0 | O87: 0 | P87: 0 | Q87: 0 | R87: 0 | S87: 0 | T87: 0 | U87: =IF(B87>=About!M$5,0,(IF(ISNA(VLOOKUP(B87,About!M$55:BL$200,29,FALSE)),0,(VLOOKUP(B87,About!M$55:BL$200,22,FALSE))))) -> 0 | V87: =IF(B87>=About!M$5,0,(IF(ISNA(VLOOKUP(B87,About!M$55:AL$167,24,FALSE)),0,(VLOOKUP(B87,About!M$55:AL$167,24,FALSE))))) -> 0 | W87: 0 | X87: 0
A88: 82 | B88: 2027-07-01 | C88: =IF(B88>=About!M$5,0,(IF(ISNA(VLOOKUP(B88,About!M$55:AL$167,2,FALSE)),0,(VLOOKUP(B88,About!M$55:AL$167,2,FALSE))))) -> 0 | D88: =IF(B88>=About!M$5,0,(IF(ISNA(VLOOKUP(B88,About!M$55:AP$200,30,FALSE)),0,(VLOOKUP(B88,About!M$55:AP$200,30,FALSE))))) -> 0 | E88: =IF(B88>=About!M$5,0,(IF(ISNA(VLOOKUP(B88,About!M$55:AL$167,4,FALSE)),0,(VLOOKUP(B88,About!M$55:AL$167,4,FALSE))))) -> 0 | F88: 0 | G88: =IF(B88>=About!M$5,0,(IF(ISNA(VLOOKUP(B88,About!M$55:AK$200,6,FALSE)),0,(VLOOKUP(B88,About!M$55:AK$200,6,FALSE))))) -> 0 | H88: 0 | I88: 0 | J88: =IF(B88>=About!M$5,0,(IF(ISNA(VLOOKUP(B88,About!M$55:BL$200,8,FALSE)),0,(VLOOKUP(B88,About!M$55:BL$200,8,FALSE))))) -> 0 | K88: 0 | L88: 0 | M88: 0 | N88: 0 | O88: 0 | P88: 0 | Q88: 0 | R88: 0 | S88: 0 | T88: 0 | U88: =IF(B88>=About!M$5,0,(IF(ISNA(VLOOKUP(B88,About!M$55:BL$200,29,FALSE)),0,(VLOOKUP(B88,About!M$55:BL$200,22,FALSE))))) -> 0 | V88: =IF(B88>=About!M$5,0,(IF(ISNA(VLOOKUP(B88,About!M$55:AL$167,24,FALSE)),0,(VLOOKUP(B88,About!M$55:AL$167,24,FALSE))))) -> 0 | W88: 0 | X88: 0
A89: 83 | B89: 2027-08-01 | C89: =IF(B89>=About!M$5,0,(IF(ISNA(VLOOKUP(B89,About!M$55:AL$167,2,FALSE)),0,(VLOOKUP(B89,About!M$55:AL$167,2,FALSE))))) -> 0 | D89: =IF(B89>=About!M$5,0,(IF(ISNA(VLOOKUP(B89,About!M$55:AP$200,30,FALSE)),0,(VLOOKUP(B89,About!M$55:AP$200,30,FALSE))))) -> 0 | E89: =IF(B89>=About!M$5,0,(IF(ISNA(VLOOKUP(B89,About!M$55:AL$167,4,FALSE)),0,(VLOOKUP(B89,About!M$55:AL$167,4,FALSE))))) -> 0 | F89: 0 | G89: =IF(B89>=About!M$5,0,(IF(ISNA(VLOOKUP(B89,About!M$55:AK$200,6,FALSE)),0,(VLOOKUP(B89,About!M$55:AK$200,6,FALSE))))) -> 0 | H89: 0 | I89: 0 | J89: =IF(B89>=About!M$5,0,(IF(ISNA(VLOOKUP(B89,About!M$55:BL$200,8,FALSE)),0,(VLOOKUP(B89,About!M$55:BL$200,8,FALSE))))) -> 0 | K89: 0 | L89: 0 | M89: 0 | N89: 0 | O89: 0 | P89: 0 | Q89: 0 | R89: 0 | S89: 0 | T89: 0 | U89: =IF(B89>=About!M$5,0,(IF(ISNA(VLOOKUP(B89,About!M$55:BL$200,29,FALSE)),0,(VLOOKUP(B89,About!M$55:BL$200,22,FALSE))))) -> 0 | V89: =IF(B89>=About!M$5,0,(IF(ISNA(VLOOKUP(B89,About!M$55:AL$167,24,FALSE)),0,(VLOOKUP(B89,About!M$55:AL$167,24,FALSE))))) -> 0 | W89: 0 | X89: 0
A90: 84 | B90: 2027-09-01 | C90: =IF(B90>=About!M$5,0,(IF(ISNA(VLOOKUP(B90,About!M$55:AL$167,2,FALSE)),0,(VLOOKUP(B90,About!M$55:AL$167,2,FALSE))))) -> 0 | D90: =IF(B90>=About!M$5,0,(IF(ISNA(VLOOKUP(B90,About!M$55:AP$200,30,FALSE)),0,(VLOOKUP(B90,About!M$55:AP$200,30,FALSE))))) -> 0 | E90: =IF(B90>=About!M$5,0,(IF(ISNA(VLOOKUP(B90,About!M$55:AL$167,4,FALSE)),0,(VLOOKUP(B90,About!M$55:AL$167,4,FALSE))))) -> 0 | F90: 0 | G90: =IF(B90>=About!M$5,0,(IF(ISNA(VLOOKUP(B90,About!M$55:AK$200,6,FALSE)),0,(VLOOKUP(B90,About!M$55:AK$200,6,FALSE))))) -> 0 | H90: 0 | I90: 0 | J90: =IF(B90>=About!M$5,0,(IF(ISNA(VLOOKUP(B90,About!M$55:BL$200,8,FALSE)),0,(VLOOKUP(B90,About!M$55:BL$200,8,FALSE))))) -> 0 | K90: 0 | L90: 0 | M90: 0 | N90: 0 | O90: 0 | P90: 0 | Q90: 0 | R90: 0 | S90: 0 | T90: 0 | U90: =IF(B90>=About!M$5,0,(IF(ISNA(VLOOKUP(B90,About!M$55:BL$200,29,FALSE)),0,(VLOOKUP(B90,About!M$55:BL$200,22,FALSE))))) -> 0 | V90: =IF(B90>=About!M$5,0,(IF(ISNA(VLOOKUP(B90,About!M$55:AL$167,24,FALSE)),0,(VLOOKUP(B90,About!M$55:AL$167,24,FALSE))))) -> 0 | W90: 0 | X90: 0
A91: 85 | B91: 2027-10-01 | C91: =IF(B91>=About!M$5,0,(IF(ISNA(VLOOKUP(B91,About!M$55:AL$167,2,FALSE)),0,(VLOOKUP(B91,About!M$55:AL$167,2,FALSE))))) -> 0 | D91: =IF(B91>=About!M$5,0,(IF(ISNA(VLOOKUP(B91,About!M$55:AP$200,30,FALSE)),0,(VLOOKUP(B91,About!M$55:AP$200,30,FALSE))))) -> 0 | E91: =IF(B91>=About!M$5,0,(IF(ISNA(VLOOKUP(B91,About!M$55:AL$167,4,FALSE)),0,(VLOOKUP(B91,About!M$55:AL$167,4,FALSE))))) -> 0 | F91: 0 | G91: =IF(B91>=About!M$5,0,(IF(ISNA(VLOOKUP(B91,About!M$55:AK$200,6,FALSE)),0,(VLOOKUP(B91,About!M$55:AK$200,6,FALSE))))) -> 0 | H91: 0 | I91: 0 | J91: =IF(B91>=About!M$5,0,(IF(ISNA(VLOOKUP(B91,About!M$55:BL$200,8,FALSE)),0,(VLOOKUP(B91,About!M$55:BL$200,8,FALSE))))) -> 0 | K91: 0 | L91: 0 | M91: 0 | N91: 0 | O91: 0 | P91: 0 | Q91: 0 | R91: 0 | S91: 0 | T91: 0 | U91: =IF(B91>=About!M$5,0,(IF(ISNA(VLOOKUP(B91,About!M$55:BL$200,29,FALSE)),0,(VLOOKUP(B91,About!M$55:BL$200,22,FALSE))))) -> 0 | V91: =IF(B91>=About!M$5,0,(IF(ISNA(VLOOKUP(B91,About!M$55:AL$167,24,FALSE)),0,(VLOOKUP(B91,About!M$55:AL$167,24,FALSE))))) -> 0 | W91: 0 | X91: 0
A92: 86 | B92: Totalc/f | C92: =IF(B92>=About!M$5,0,(IF(ISNA(VLOOKUP(B92,About!M$55:AL$167,2,FALSE)),0,(VLOOKUP(B92,About!M$55:AL$167,2,FALSE))))) -> 0 | D92: =IF(B92>=About!M$5,0,(IF(ISNA(VLOOKUP(B92,About!M$55:AP$200,30,FALSE)),0,(VLOOKUP(B92,About!M$55:AP$200,30,FALSE))))) -> 0 | E92: =IF(B92>=About!M$5,0,(IF(ISNA(VLOOKUP(B92,About!M$55:AL$167,4,FALSE)),0,(VLOOKUP(B92,About!M$55:AL$167,4,FALSE))))) -> 0 | F92: 0 | G92: =IF(B92>=About!M$5,0,(IF(ISNA(VLOOKUP(B92,About!M$55:AK$200,6,FALSE)),0,(VLOOKUP(B92,About!M$55:AK$200,6,FALSE))))) -> 0 | H92: 0 | I92: 0 | J92: =IF(B92>=About!M$5,0,(IF(ISNA(VLOOKUP(B92,About!M$55:BL$200,8,FALSE)),0,(VLOOKUP(B92,About!M$55:BL$200,8,FALSE))))) -> 0 | K92: 0 | L92: 0 | M92: 0 | N92: 0 | O92: 0 | P92: 0 | Q92: 0 | R92: 0 | S92: 0 | T92: 0 | U92: =IF(B92>=About!M$5,0,(IF(ISNA(VLOOKUP(B92,About!M$55:BL$200,29,FALSE)),0,(VLOOKUP(B92,About!M$55:BL$200,22,FALSE))))) -> 0 | V92: =IF(B92>=About!M$5,0,(IF(ISNA(VLOOKUP(B92,About!M$55:AL$167,24,FALSE)),0,(VLOOKUP(B92,About!M$55:AL$167,24,FALSE))))) -> 0 | W92: 0 | X92: 0
A93: 87 | B93: TotalB/f | C93: =IF(B93>=About!M$5,0,(IF(ISNA(VLOOKUP(B93,About!M$55:AL$167,2,FALSE)),0,(VLOOKUP(B93,About!M$55:AL$167,2,FALSE))))) -> 0 | D93: =IF(B93>=About!M$5,0,(IF(ISNA(VLOOKUP(B93,About!M$55:AP$200,30,FALSE)),0,(VLOOKUP(B93,About!M$55:AP$200,30,FALSE))))) -> 0 | E93: =IF(B93>=About!M$5,0,(IF(ISNA(VLOOKUP(B93,About!M$55:AL$167,4,FALSE)),0,(VLOOKUP(B93,About!M$55:AL$167,4,FALSE))))) -> 0 | F93: 0 | G93: =IF(B93>=About!M$5,0,(IF(ISNA(VLOOKUP(B93,About!M$55:AK$200,6,FALSE)),0,(VLOOKUP(B93,About!M$55:AK$200,6,FALSE))))) -> 0 | H93: 0 | I93: 0 | J93: =IF(B93>=About!M$5,0,(IF(ISNA(VLOOKUP(B93,About!M$55:BL$200,8,FALSE)),0,(VLOOKUP(B93,About!M$55:BL$200,8,FALSE))))) -> 0 | K93: 0 | L93: 0 | M93: 0 | N93: 0 | O93: 0 | P93: 0 | Q93: 0 | R93: 0 | S93: 0 | T93: 0 | U93: =IF(B93>=About!M$5,0,(IF(ISNA(VLOOKUP(B93,About!M$55:BL$200,29,FALSE)),0,(VLOOKUP(B93,About!M$55:BL$200,22,FALSE))))) -> 0 | V93: =IF(B93>=About!M$5,0,(IF(ISNA(VLOOKUP(B93,About!M$55:AL$167,24,FALSE)),0,(VLOOKUP(B93,About!M$55:AL$167,24,FALSE))))) -> 0 | W93: 0 | X93: 0
A94: 88 | B94: =EDATE(B91,1) -> 2027-11-01 | C94: =IF(B94>=About!M$5,0,(IF(ISNA(VLOOKUP(B94,About!M$55:AL$167,2,FALSE)),0,(VLOOKUP(B94,About!M$55:AL$167,2,FALSE))))) -> 0 | D94: =IF(B94>=About!M$5,0,(IF(ISNA(VLOOKUP(B94,About!M$55:AP$200,30,FALSE)),0,(VLOOKUP(B94,About!M$55:AP$200,30,FALSE))))) -> 0 | E94: =IF(B94>=About!M$5,0,(IF(ISNA(VLOOKUP(B94,About!M$55:AL$167,4,FALSE)),0,(VLOOKUP(B94,About!M$55:AL$167,4,FALSE))))) -> 0 | F94: 0 | G94: =IF(B94>=About!M$5,0,(IF(ISNA(VLOOKUP(B94,About!M$55:AK$200,6,FALSE)),0,(VLOOKUP(B94,About!M$55:AK$200,6,FALSE))))) -> 0 | H94: 0 | I94: 0 | J94: =IF(B94>=About!M$5,0,(IF(ISNA(VLOOKUP(B94,About!M$55:BL$200,8,FALSE)),0,(VLOOKUP(B94,About!M$55:BL$200,8,FALSE))))) -> 0 | K94: 0 | L94: 0 | M94: 0 | N94: 0 | O94: 0 | P94: 0 | Q94: 0 | R94: 0 | S94: 0 | T94: 0 | U94: =IF(B94>=About!M$5,0,(IF(ISNA(VLOOKUP(B94,About!M$55:BL$200,29,FALSE)),0,(VLOOKUP(B94,About!M$55:BL$200,22,FALSE))))) -> 0 | V94: =IF(B94>=About!M$5,0,(IF(ISNA(VLOOKUP(B94,About!M$55:AL$167,24,FALSE)),0,(VLOOKUP(B94,About!M$55:AL$167,24,FALSE))))) -> 0 | W94: 0 | X94: 0
A95: 89 | B95: =EDATE(B94,1) -> 2027-12-01 | C95: =IF(B95>=About!M$5,0,(IF(ISNA(VLOOKUP(B95,About!M$55:AL$167,2,FALSE)),0,(VLOOKUP(B95,About!M$55:AL$167,2,FALSE))))) -> 0 | D95: =IF(B95>=About!M$5,0,(IF(ISNA(VLOOKUP(B95,About!M$55:AP$200,30,FALSE)),0,(VLOOKUP(B95,About!M$55:AP$200,30,FALSE))))) -> 0 | E95: =IF(B95>=About!M$5,0,(IF(ISNA(VLOOKUP(B95,About!M$55:AL$167,4,FALSE)),0,(VLOOKUP(B95,About!M$55:AL$167,4,FALSE))))) -> 0 | F95: 0 | G95: =IF(B95>=About!M$5,0,(IF(ISNA(VLOOKUP(B95,About!M$55:AK$200,6,FALSE)),0,(VLOOKUP(B95,About!M$55:AK$200,6,FALSE))))) -> 0 | H95: 0 | I95: 0 | J95: =IF(B95>=About!M$5,0,(IF(ISNA(VLOOKUP(B95,About!M$55:BL$200,8,FALSE)),0,(VLOOKUP(B95,About!M$55:BL$200,8,FALSE))))) -> 0 | K95: 0 | L95: 0 | M95: 0 | N95: 0 | O95: 0 | P95: 0 | Q95: 0 | R95: 0 | S95: 0 | T95: 0 | U95: =IF(B95>=About!M$5,0,(IF(ISNA(VLOOKUP(B95,About!M$55:BL$200,29,FALSE)),0,(VLOOKUP(B95,About!M$55:BL$200,22,FALSE))))) -> 0 | V95: =IF(B95>=About!M$5,0,(IF(ISNA(VLOOKUP(B95,About!M$55:AL$167,24,FALSE)),0,(VLOOKUP(B95,About!M$55:AL$167,24,FALSE))))) -> 0 | W95: 0 | X95: 0
A96: 90 | B96: 2028-01-01 | C96: =IF(B96>=About!M$5,0,(IF(ISNA(VLOOKUP(B96,About!M$55:AL$167,2,FALSE)),0,(VLOOKUP(B96,About!M$55:AL$167,2,FALSE))))) -> 0 | D96: =IF(B96>=About!M$5,0,(IF(ISNA(VLOOKUP(B96,About!M$55:AP$200,30,FALSE)),0,(VLOOKUP(B96,About!M$55:AP$200,30,FALSE))))) -> 0 | E96: =IF(B96>=About!M$5,0,(IF(ISNA(VLOOKUP(B96,About!M$55:AL$167,4,FALSE)),0,(VLOOKUP(B96,About!M$55:AL$167,4,FALSE))))) -> 0 | F96: 0 | G96: =IF(B96>=About!M$5,0,(IF(ISNA(VLOOKUP(B96,About!M$55:AK$200,6,FALSE)),0,(VLOOKUP(B96,About!M$55:AK$200,6,FALSE))))) -> 0 | H96: 0 | I96: 0 | J96: =IF(B96>=About!M$5,0,(IF(ISNA(VLOOKUP(B96,About!M$55:BL$200,8,FALSE)),0,(VLOOKUP(B96,About!M$55:BL$200,8,FALSE))))) -> 0 | K96: 0 | L96: 0 | M96: 0 | N96: 0 | O96: 0 | P96: 0 | Q96: 0 | R96: 0 | S96: 0 | T96: 0 | U96: =IF(B96>=About!M$5,0,(IF(ISNA(VLOOKUP(B96,About!M$55:BL$200,29,FALSE)),0,(VLOOKUP(B96,About!M$55:BL$200,22,FALSE))))) -> 0 | V96: =IF(B96>=About!M$5,0,(IF(ISNA(VLOOKUP(B96,About!M$55:AL$167,24,FALSE)),0,(VLOOKUP(B96,About!M$55:AL$167,24,FALSE))))) -> 0 | W96: 0 | X96: 0
A97: 91 | B97: 2028-02-01 | C97: =IF(B97>=About!M$5,0,(IF(ISNA(VLOOKUP(B97,About!M$55:AL$167,2,FALSE)),0,(VLOOKUP(B97,About!M$55:AL$167,2,FALSE))))) -> 0 | D97: =IF(B97>=About!M$5,0,(IF(ISNA(VLOOKUP(B97,About!M$55:AP$200,30,FALSE)),0,(VLOOKUP(B97,About!M$55:AP$200,30,FALSE))))) -> 0 | E97: =IF(B97>=About!M$5,0,(IF(ISNA(VLOOKUP(B97,About!M$55:AL$167,4,FALSE)),0,(VLOOKUP(B97,About!M$55:AL$167,4,FALSE))))) -> 0 | F97: 0 | G97: =IF(B97>=About!M$5,0,(IF(ISNA(VLOOKUP(B97,About!M$55:AK$200,6,FALSE)),0,(VLOOKUP(B97,About!M$55:AK$200,6,FALSE))))) -> 0 | H97: 0 | I97: 0 | J97: =IF(B97>=About!M$5,0,(IF(ISNA(VLOOKUP(B97,About!M$55:BL$200,8,FALSE)),0,(VLOOKUP(B97,About!M$55:BL$200,8,FALSE))))) -> 0 | K97: 0 | L97: 0 | M97: 0 | N97: 0 | O97: 0 | P97: 0 | Q97: 0 | R97: 0 | S97: 0 | T97: 0 | U97: =IF(B97>=About!M$5,0,(IF(ISNA(VLOOKUP(B97,About!M$55:BL$200,29,FALSE)),0,(VLOOKUP(B97,About!M$55:BL$200,22,FALSE))))) -> 0 | V97: =IF(B97>=About!M$5,0,(IF(ISNA(VLOOKUP(B97,About!M$55:AL$167,24,FALSE)),0,(VLOOKUP(B97,About!M$55:AL$167,24,FALSE))))) -> 0 | W97: 0 | X97: 0
A98: 92 | B98: 2028-03-01 | C98: =IF(B98>=About!M$5,0,(IF(ISNA(VLOOKUP(B98,About!M$55:AL$167,2,FALSE)),0,(VLOOKUP(B98,About!M$55:AL$167,2,FALSE))))) -> 0 | D98: =IF(B98>=About!M$5,0,(IF(ISNA(VLOOKUP(B98,About!M$55:AP$200,30,FALSE)),0,(VLOOKUP(B98,About!M$55:AP$200,30,FALSE))))) -> 0 | E98: =IF(B98>=About!M$5,0,(IF(ISNA(VLOOKUP(B98,About!M$55:AL$167,4,FALSE)),0,(VLOOKUP(B98,About!M$55:AL$167,4,FALSE))))) -> 0 | F98: 0 | G98: =IF(B98>=About!M$5,0,(IF(ISNA(VLOOKUP(B98,About!M$55:AK$200,6,FALSE)),0,(VLOOKUP(B98,About!M$55:AK$200,6,FALSE))))) -> 0 | H98: 0 | I98: 0 | J98: =IF(B98>=About!M$5,0,(IF(ISNA(VLOOKUP(B98,About!M$55:BL$200,8,FALSE)),0,(VLOOKUP(B98,About!M$55:BL$200,8,FALSE))))) -> 0 | K98: 0 | L98: 0 | M98: 0 | N98: 0 | O98: 0 | P98: 0 | Q98: 0 | R98: 0 | S98: 0 | T98: 0 | U98: =IF(B98>=About!M$5,0,(IF(ISNA(VLOOKUP(B98,About!M$55:BL$200,29,FALSE)),0,(VLOOKUP(B98,About!M$55:BL$200,22,FALSE))))) -> 0 | V98: =IF(B98>=About!M$5,0,(IF(ISNA(VLOOKUP(B98,About!M$55:AL$167,24,FALSE)),0,(VLOOKUP(B98,About!M$55:AL$167,24,FALSE))))) -> 0 | W98: 0 | X98: 0
A99: 93 | B99: 2028-04-01 | C99: =IF(B99>=About!M$5,0,(IF(ISNA(VLOOKUP(B99,About!M$55:AL$167,2,FALSE)),0,(VLOOKUP(B99,About!M$55:AL$167,2,FALSE))))) -> 0 | D99: =IF(B99>=About!M$5,0,(IF(ISNA(VLOOKUP(B99,About!M$55:AP$200,30,FALSE)),0,(VLOOKUP(B99,About!M$55:AP$200,30,FALSE))))) -> 0 | E99: =IF(B99>=About!M$5,0,(IF(ISNA(VLOOKUP(B99,About!M$55:AL$167,4,FALSE)),0,(VLOOKUP(B99,About!M$55:AL$167,4,FALSE))))) -> 0 | F99: 0 | G99: =IF(B99>=About!M$5,0,(IF(ISNA(VLOOKUP(B99,About!M$55:AK$200,6,FALSE)),0,(VLOOKUP(B99,About!M$55:AK$200,6,FALSE))))) -> 0 | H99: 0 | I99: 0 | J99: =IF(B99>=About!M$5,0,(IF(ISNA(VLOOKUP(B99,About!M$55:BL$200,8,FALSE)),0,(VLOOKUP(B99,About!M$55:BL$200,8,FALSE))))) -> 0 | K99: 0 | L99: 0 | M99: 0 | N99: 0 | O99: 0 | P99: 0 | Q99: 0 | R99: 0 | S99: 0 | T99: 0 | U99: =IF(B99>=About!M$5,0,(IF(ISNA(VLOOKUP(B99,About!M$55:BL$200,29,FALSE)),0,(VLOOKUP(B99,About!M$55:BL$200,22,FALSE))))) -> 0 | V99: =IF(B99>=About!M$5,0,(IF(ISNA(VLOOKUP(B99,About!M$55:AL$167,24,FALSE)),0,(VLOOKUP(B99,About!M$55:AL$167,24,FALSE))))) -> 0 | W99: 0 | X99: 0
A100: 94 | B100: 2028-05-01 | C100: =IF(B100>=About!M$5,0,(IF(ISNA(VLOOKUP(B100,About!M$55:AL$167,2,FALSE)),0,(VLOOKUP(B100,About!M$55:AL$167,2,FALSE))))) -> 0 | D100: =IF(B100>=About!M$5,0,(IF(ISNA(VLOOKUP(B100,About!M$55:AP$200,30,FALSE)),0,(VLOOKUP(B100,About!M$55:AP$200,30,FALSE))))) -> 0 | E100: =IF(B100>=About!M$5,0,(IF(ISNA(VLOOKUP(B100,About!M$55:AL$167,4,FALSE)),0,(VLOOKUP(B100,About!M$55:AL$167,4,FALSE))))) -> 0 | F100: 0 | G100: =IF(B100>=About!M$5,0,(IF(ISNA(VLOOKUP(B100,About!M$55:AK$200,6,FALSE)),0,(VLOOKUP(B100,About!M$55:AK$200,6,FALSE))))) -> 0 | H100: 0 | I100: 0 | J100: =IF(B100>=About!M$5,0,(IF(ISNA(VLOOKUP(B100,About!M$55:BL$200,8,FALSE)),0,(VLOOKUP(B100,About!M$55:BL$200,8,FALSE))))) -> 0 | K100: 0 | L100: 0 | M100: 0 | N100: 0 | O100: 0 | P100: 0 | Q100: 0 | R100: 0 | S100: 0 | T100: 0 | U100: =IF(B100>=About!M$5,0,(IF(ISNA(VLOOKUP(B100,About!M$55:BL$200,29,FALSE)),0,(VLOOKUP(B100,About!M$55:BL$200,22,FALSE))))) -> 0 | V100: =IF(B100>=About!M$5,0,(IF(ISNA(VLOOKUP(B100,About!M$55:AL$167,24,FALSE)),0,(VLOOKUP(B100,About!M$55:AL$167,24,FALSE))))) -> 0 | W100: 0 | X100: 0
A101: 95 | B101: 2028-06-01 | C101: =IF(B101>=About!M$5,0,(IF(ISNA(VLOOKUP(B101,About!M$55:AL$167,2,FALSE)),0,(VLOOKUP(B101,About!M$55:AL$167,2,FALSE))))) -> 0 | D101: =IF(B101>=About!M$5,0,(IF(ISNA(VLOOKUP(B101,About!M$55:AP$200,30,FALSE)),0,(VLOOKUP(B101,About!M$55:AP$200,30,FALSE))))) -> 0 | E101: =IF(B101>=About!M$5,0,(IF(ISNA(VLOOKUP(B101,About!M$55:AL$167,4,FALSE)),0,(VLOOKUP(B101,About!M$55:AL$167,4,FALSE))))) -> 0 | F101: 0 | G101: =IF(B101>=About!M$5,0,(IF(ISNA(VLOOKUP(B101,About!M$55:AK$200,6,FALSE)),0,(VLOOKUP(B101,About!M$55:AK$200,6,FALSE))))) -> 0 | H101: 0 | I101: 0 | J101: =IF(B101>=About!M$5,0,(IF(ISNA(VLOOKUP(B101,About!M$55:BL$200,8,FALSE)),0,(VLOOKUP(B101,About!M$55:BL$200,8,FALSE))))) -> 0 | K101: 0 | L101: 0 | M101: 0 | N101: 0 | O101: 0 | P101: 0 | Q101: 0 | R101: 0 | S101: 0 | T101: 0 | U101: =IF(B101>=About!M$5,0,(IF(ISNA(VLOOKUP(B101,About!M$55:BL$200,29,FALSE)),0,(VLOOKUP(B101,About!M$55:BL$200,22,FALSE))))) -> 0 | V101: =IF(B101>=About!M$5,0,(IF(ISNA(VLOOKUP(B101,About!M$55:AL$167,24,FALSE)),0,(VLOOKUP(B101,About!M$55:AL$167,24,FALSE))))) -> 0 | W101: 0 | X101: 0
A102: 96 | B102: =EDATE(B101,1) -> 2028-07-01 | C102: =IF(B102>=About!M$5,0,(IF(ISNA(VLOOKUP(B102,About!M$55:AL$167,2,FALSE)),0,(VLOOKUP(B102,About!M$55:AL$167,2,FALSE))))) -> 0 | D102: =IF(B102>=About!M$5,0,(IF(ISNA(VLOOKUP(B102,About!M$55:AP$200,30,FALSE)),0,(VLOOKUP(B102,About!M$55:AP$200,30,FALSE))))) -> 0 | E102: =IF(B102>=About!M$5,0,(IF(ISNA(VLOOKUP(B102,About!M$55:AL$167,4,FALSE)),0,(VLOOKUP(B102,About!M$55:AL$167,4,FALSE))))) -> 0 | F102: 0 | G102: =IF(B102>=About!M$5,0,(IF(ISNA(VLOOKUP(B102,About!M$55:AK$200,6,FALSE)),0,(VLOOKUP(B102,About!M$55:AK$200,6,FALSE))))) -> 0 | H102: 0 | I102: 0 | J102: =IF(B102>=About!M$5,0,(IF(ISNA(VLOOKUP(B102,About!M$55:BL$200,8,FALSE)),0,(VLOOKUP(B102,About!M$55:BL$200,8,FALSE))))) -> 0 | K102: 0 | L102: 0 | M102: 0 | N102: 0 | O102: 0 | P102: 0 | Q102: 0 | R102: 0 | S102: 0 | T102: 0 | U102: =IF(B102>=About!M$5,0,(IF(ISNA(VLOOKUP(B102,About!M$55:BL$200,29,FALSE)),0,(VLOOKUP(B102,About!M$55:BL$200,22,FALSE))))) -> 0 | V102: =IF(B102>=About!M$5,0,(IF(ISNA(VLOOKUP(B102,About!M$55:AL$167,24,FALSE)),0,(VLOOKUP(B102,About!M$55:AL$167,24,FALSE))))) -> 0 | W102: 0 | X102: 0
A103: 97 | B103: 2028-08-01 | C103: =IF(B103>=About!M$5,0,(IF(ISNA(VLOOKUP(B103,About!M$55:AL$167,2,FALSE)),0,(VLOOKUP(B103,About!M$55:AL$167,2,FALSE))))) -> 0 | D103: =IF(B103>=About!M$5,0,(IF(ISNA(VLOOKUP(B103,About!M$55:AP$200,30,FALSE)),0,(VLOOKUP(B103,About!M$55:AP$200,30,FALSE))))) -> 0 | E103: =IF(B103>=About!M$5,0,(IF(ISNA(VLOOKUP(B103,About!M$55:AL$167,4,FALSE)),0,(VLOOKUP(B103,About!M$55:AL$167,4,FALSE))))) -> 0 | F103: 0 | G103: =IF(B103>=About!M$5,0,(IF(ISNA(VLOOKUP(B103,About!M$55:AK$200,6,FALSE)),0,(VLOOKUP(B103,About!M$55:AK$200,6,FALSE))))) -> 0 | H103: 0 | I103: 0 | J103: =IF(B103>=About!M$5,0,(IF(ISNA(VLOOKUP(B103,About!M$55:BL$200,8,FALSE)),0,(VLOOKUP(B103,About!M$55:BL$200,8,FALSE))))) -> 0 | K103: 0 | L103: 0 | M103: 0 | N103: 0 | O103: 0 | P103: 0 | Q103: 0 | R103: 0 | S103: 0 | T103: 0 | U103: =IF(B103>=About!M$5,0,(IF(ISNA(VLOOKUP(B103,About!M$55:BL$200,29,FALSE)),0,(VLOOKUP(B103,About!M$55:BL$200,22,FALSE))))) -> 0 | V103: =IF(B103>=About!M$5,0,(IF(ISNA(VLOOKUP(B103,About!M$55:AL$167,24,FALSE)),0,(VLOOKUP(B103,About!M$55:AL$167,24,FALSE))))) -> 0 | W103: 0 | X103: =S103-W103 -> 0
A104: 98 | B104: 2028-09-01 | C104: =IF(B104>=About!M$5,0,(IF(ISNA(VLOOKUP(B104,About!M$55:AL$167,2,FALSE)),0,(VLOOKUP(B104,About!M$55:AL$167,2,FALSE))))) -> 0 | D104: =IF(B104>=About!M$5,0,(IF(ISNA(VLOOKUP(B104,About!M$55:AP$200,30,FALSE)),0,(VLOOKUP(B104,About!M$55:AP$200,30,FALSE))))) -> 0 | E104: =IF(B104>=About!M$5,0,(IF(ISNA(VLOOKUP(B104,About!M$55:AL$167,4,FALSE)),0,(VLOOKUP(B104,About!M$55:AL$167,4,FALSE))))) -> 0 | F104: 0 | G104: =IF(B104>=About!M$5,0,(IF(ISNA(VLOOKUP(B104,About!M$55:AK$200,6,FALSE)),0,(VLOOKUP(B104,About!M$55:AK$200,6,FALSE))))) -> 0 | H104: 0 | I104: 0 | J104: =IF(B104>=About!M$5,0,(IF(ISNA(VLOOKUP(B104,About!M$55:BL$200,8,FALSE)),0,(VLOOKUP(B104,About!M$55:BL$200,8,FALSE))))) -> 0 | K104: 0 | L104: 0 | M104: 0 | N104: 0 | O104: 0 | P104: 0 | Q104: 0 | R104: 0 | S104: 0 | T104: 0 | U104: =IF(B104>=About!M$5,0,(IF(ISNA(VLOOKUP(B104,About!M$55:BL$200,29,FALSE)),0,(VLOOKUP(B104,About!M$55:BL$200,22,FALSE))))) -> 0 | V104: =IF(B104>=About!M$5,0,(IF(ISNA(VLOOKUP(B104,About!M$55:AL$167,24,FALSE)),0,(VLOOKUP(B104,About!M$55:AL$167,24,FALSE))))) -> 0 | W104: 0 | X104: 0
A105: 99 | B105: 2028-10-01 | C105: =IF(B105>=About!M$5,0,(IF(ISNA(VLOOKUP(B105,About!M$55:AL$167,2,FALSE)),0,(VLOOKUP(B105,About!M$55:AL$167,2,FALSE))))) -> 0 | D105: =IF(B105>=About!M$5,0,(IF(ISNA(VLOOKUP(B105,About!M$55:AP$200,30,FALSE)),0,(VLOOKUP(B105,About!M$55:AP$200,30,FALSE))))) -> 0 | E105: =IF(B105>=About!M$5,0,(IF(ISNA(VLOOKUP(B105,About!M$55:AL$167,4,FALSE)),0,(VLOOKUP(B105,About!M$55:AL$167,4,FALSE))))) -> 0 | F105: 0 | G105: =IF(B105>=About!M$5,0,(IF(ISNA(VLOOKUP(B105,About!M$55:AK$200,6,FALSE)),0,(VLOOKUP(B105,About!M$55:AK$200,6,FALSE))))) -> 0 | H105: 0 | I105: 0 | J105: =IF(B105>=About!M$5,0,(IF(ISNA(VLOOKUP(B105,About!M$55:BL$200,8,FALSE)),0,(VLOOKUP(B105,About!M$55:BL$200,8,FALSE))))) -> 0 | K105: 0 | L105: 0 | M105: 0 | N105: 0 | O105: 0 | P105: 0 | Q105: 0 | R105: 0 | S105: 0 | T105: 0 | U105: =IF(B105>=About!M$5,0,(IF(ISNA(VLOOKUP(B105,About!M$55:BL$200,29,FALSE)),0,(VLOOKUP(B105,About!M$55:BL$200,22,FALSE))))) -> 0 | V105: =IF(B105>=About!M$5,0,(IF(ISNA(VLOOKUP(B105,About!M$55:AL$167,24,FALSE)),0,(VLOOKUP(B105,About!M$55:AL$167,24,FALSE))))) -> 0 | W105: 0 | X105: 0
A106: 100 | B106: 2028-11-01 | C106: =IF(B106>=About!M$5,0,(IF(ISNA(VLOOKUP(B106,About!M$55:AL$167,2,FALSE)),0,(VLOOKUP(B106,About!M$55:AL$167,2,FALSE))))) -> 0 | D106: =IF(B106>=About!M$5,0,(IF(ISNA(VLOOKUP(B106,About!M$55:AP$200,30,FALSE)),0,(VLOOKUP(B106,About!M$55:AP$200,30,FALSE))))) -> 0 | E106: =IF(B106>=About!M$5,0,(IF(ISNA(VLOOKUP(B106,About!M$55:AL$167,4,FALSE)),0,(VLOOKUP(B106,About!M$55:AL$167,4,FALSE))))) -> 0 | F106: 0 | G106: =IF(B106>=About!M$5,0,(IF(ISNA(VLOOKUP(B106,About!M$55:AK$200,6,FALSE)),0,(VLOOKUP(B106,About!M$55:AK$200,6,FALSE))))) -> 0 | H106: 0 | I106: 0 | J106: =IF(B106>=About!M$5,0,(IF(ISNA(VLOOKUP(B106,About!M$55:BL$200,8,FALSE)),0,(VLOOKUP(B106,About!M$55:BL$200,8,FALSE))))) -> 0 | K106: 0 | L106: 0 | M106: 0 | N106: 0 | O106: 0 | P106: 0 | Q106: 0 | R106: 0 | S106: 0 | T106: 0 | U106: =IF(B106>=About!M$5,0,(IF(ISNA(VLOOKUP(B106,About!M$55:BL$200,29,FALSE)),0,(VLOOKUP(B106,About!M$55:BL$200,22,FALSE))))) -> 0 | V106: =IF(B106>=About!M$5,0,(IF(ISNA(VLOOKUP(B106,About!M$55:AL$167,24,FALSE)),0,(VLOOKUP(B106,About!M$55:AL$167,24,FALSE))))) -> 0 | W106: 0 | X106: 0
A107: 101 | B107: =EDATE(B106,1) -> 2028-12-01 | C107: =IF(B107>=About!M$5,0,(IF(ISNA(VLOOKUP(B107,About!M$55:AL$167,2,FALSE)),0,(VLOOKUP(B107,About!M$55:AL$167,2,FALSE))))) -> 0 | D107: =IF(B107>=About!M$5,0,(IF(ISNA(VLOOKUP(B107,About!M$55:AP$200,30,FALSE)),0,(VLOOKUP(B107,About!M$55:AP$200,30,FALSE))))) -> 0 | E107: =IF(B107>=About!M$5,0,(IF(ISNA(VLOOKUP(B107,About!M$55:AL$167,4,FALSE)),0,(VLOOKUP(B107,About!M$55:AL$167,4,FALSE))))) -> 0 | F107: 0 | G107: =IF(B107>=About!M$5,0,(IF(ISNA(VLOOKUP(B107,About!M$55:AK$200,6,FALSE)),0,(VLOOKUP(B107,About!M$55:AK$200,6,FALSE))))) -> 0 | H107: 0 | I107: 0 | J107: =IF(B107>=About!M$5,0,(IF(ISNA(VLOOKUP(B107,About!M$55:BL$200,8,FALSE)),0,(VLOOKUP(B107,About!M$55:BL$200,8,FALSE))))) -> 0 | K107: 0 | L107: 0 | M107: 0 | N107: 0 | O107: 0 | P107: 0 | Q107: 0 | R107: 0 | S107: 0 | T107: 0 | U107: =IF(B107>=About!M$5,0,(IF(ISNA(VLOOKUP(B107,About!M$55:BL$200,29,FALSE)),0,(VLOOKUP(B107,About!M$55:BL$200,22,FALSE))))) -> 0 | V107: =IF(B107>=About!M$5,0,(IF(ISNA(VLOOKUP(B107,About!M$55:AL$167,24,FALSE)),0,(VLOOKUP(B107,About!M$55:AL$167,24,FALSE))))) -> 0 | W107: 0 | X107: 0
A108: 102 | B108: 2029-01-01 | C108: =IF(B108>=About!M$5,0,(IF(ISNA(VLOOKUP(B108,About!M$55:AL$167,2,FALSE)),0,(VLOOKUP(B108,About!M$55:AL$167,2,FALSE))))) -> 0 | D108: =IF(B108>=About!M$5,0,(IF(ISNA(VLOOKUP(B108,About!M$55:AP$200,30,FALSE)),0,(VLOOKUP(B108,About!M$55:AP$200,30,FALSE))))) -> 0 | E108: =IF(B108>=About!M$5,0,(IF(ISNA(VLOOKUP(B108,About!M$55:AL$167,4,FALSE)),0,(VLOOKUP(B108,About!M$55:AL$167,4,FALSE))))) -> 0 | F108: 0 | G108: =IF(B108>=About!M$5,0,(IF(ISNA(VLOOKUP(B108,About!M$55:AK$200,6,FALSE)),0,(VLOOKUP(B108,About!M$55:AK$200,6,FALSE))))) -> 0 | H108: 0 | I108: 0 | J108: =IF(B108>=About!M$5,0,(IF(ISNA(VLOOKUP(B108,About!M$55:BL$200,8,FALSE)),0,(VLOOKUP(B108,About!M$55:BL$200,8,FALSE))))) -> 0 | K108: 0 | L108: 0 | M108: 0 | N108: 0 | O108: 0 | P108: 0 | Q108: 0 | R108: 0 | S108: 0 | T108: 0 | U108: =IF(B108>=About!M$5,0,(IF(ISNA(VLOOKUP(B108,About!M$55:BL$200,29,FALSE)),0,(VLOOKUP(B108,About!M$55:BL$200,22,FALSE))))) -> 0 | V108: =IF(B108>=About!M$5,0,(IF(ISNA(VLOOKUP(B108,About!M$55:AL$167,24,FALSE)),0,(VLOOKUP(B108,About!M$55:AL$167,24,FALSE))))) -> 0 | W108: 0 | X108: 0
B109: GTotal | C109: =SUM(C9:C108) -> 233771 | D109: 141 | E109: 0 | F109: 47397 | H109: 19398 | I109: 300566 | J109: 162514 | K109: 0 | L109: 0 | M109: 0 | N109: 162514 | O109: 71257 | P109: 47397 | Q109: 0 | R109: 19398 | S109: 138052 | T109: 11867 | U109: 13200 | V109: 0 | W109: 25067 | X109: 112985
H111: 19398 | K111: ="( Rs. "&LOOKUP(IF(INT(RIGHT(X109,7)/100000)>19,INT(RIGHT(X109,7)/1000000),IF(INT(RIGHT(X109,7)/100000)>=10,INT(RIGHT(X109,7)/100000),0)),{0,1,2,3,4,5,6,7,8,9,10,11,12,13,14,15,16,17,18,19},{""," TEN "," TWENTY "," THIRTY "," FOURTY "," FIFTY "," SIXTY "," SEVENTY "," EIGHTY "," NINETY "," TEN "," ELEVEN "," TWELVE "," THIRTEEN "," FOURTEEN "," FIFTEEN "," SIXTEEN"," SEVENTEEN"," EIGHTEEN "," NINETEEN "})&IF((IF(INT(RIGHT(X109,7)/100000)>19,INT(RIGHT(X109,7)/1000000),IF(INT(RIGHT(X109,7)/100000)>=10,INT(RIGHT(X109,7)/100000),0))+IF(INT(RIGHT(X109,7)/100000)>19,INT(RIGHT(X109,6)/100000),IF(INT(RIGHT(X109,7)/100000)>10,0,INT(RIGHT(X109,6)/100000))))>0,LOOKUP(IF(INT(RIGHT(X109,7)/100000)>19,INT(RIGHT(X109,6)/100000),IF(INT(RIGHT(X109,7)/100000)>10,0,INT(RIGHT(X109,6)/100000))),{0,1,2,3,4,5,6,7,8,9,10,11,12,13,14,15,16,17,18,19},{""," ONE "," TWO "," THREE "," FOUR "," FIVE "," SIX "," SEVEN "," EIGHT "," NINE "," TEN "," ELEVEN "," TWELVE "," THIRTEEN "," FOURTEEN "," FIFTEEN "," SIXTEEN"," SEVENTEEN"," EIGHTEEN "," NINETEEN "})&" Lac. "," ")&LOOKUP(IF(INT(RIGHT(X109,5)/1000)>19,INT(RIGHT(X109,5)/10000),IF(INT(RIGHT(X109,5)/1000)>=10,INT(RIGHT(X109,5)/1000),0)),{0,1,2,3,4,5,6,7,8,9,10,11,12,13,14,15,16,17,18,19},{""," TEN "," TWENTY "," THIRTY "," FOURTY "," FIFTY "," SIXTY "," SEVENTY "," EIGHTY "," NINETY "," TEN "," ELEVEN "," TWELVE "," THIRTEEN "," FOURTEEN "," FIFTEEN "," SIXTEEN"," SEVENTEEN"," EIGHTEEN "," NINETEEN "})&IF((IF(INT(RIGHT(X109,5)/1000)>19,INT(RIGHT(X109,4)/1000),IF(INT(RIGHT(X109,5)/1000)>10,0,INT(RIGHT(X109,4)/1000)))+IF(INT(RIGHT(X109,5)/1000)>19,INT(RIGHT(X109,5)/10000),IF(INT(RIGHT(X109,5)/1000)>=10,INT(RIGHT(X109,5)/1000),0)))>0,LOOKUP(IF(INT(RIGHT(X109,5)/1000)>19,INT(RIGHT(X109,4)/1000),IF(INT(RIGHT(X109,5)/1000)>10,0,INT(RIGHT(X109,4)/1000))),{0,1,2,3,4,5,6,7,8,9,10,11,12,13,14,15,16,17,18,19},{""," ONE "," TWO "," THREE "," FOUR "," FIVE "," SIX "," SEVEN "," EIGHT "," NINE "," TEN "," ELEVEN "," TWELVE "," THIRTEEN "," FOURTEEN "," FIFTEEN "," SIXTEEN"," SEVENTEEN"," EIGHTEEN "," NINETEEN "})&" Thousand "," ")&IF((INT((RIGHT(X109,3))/100))>0,LOOKUP(INT((RIGHT(X109,3))/100),{0,1,2,3,4,5,6,7,8,9,10,11,12,13,14,15,16,17,18,19},{""," ONE "," TWO "," THREE "," FOUR "," FIVE "," SIX "," SEVEN "," EIGHT "," NINE "," TEN "," ELEVEN "," TWELVE "," THIRTEEN "," FOURTEEN "," FIFTEEN "," SIXTEEN"," SEVENTEEN"," EIGHTEEN "," NINETEEN "})&" Hundred "," ")&LOOKUP(IF(INT(RIGHT(X109,2))>19,INT(RIGHT(X109,2)/10),IF(INT(RIGHT(X109,2))>=10,INT(RIGHT(X109,2)),0)),{0,1,2,3,4,5,6,7,8,9,10,11,12,13,14,15,16,17,18,19},{""," TEN "," TWENTY "," THIRTY "," FOURTY "," FIFTY "," SIXTY "," SEVENTY "," EIGHTY "," NINETY "," TEN "," ELEVEN "," TWELVE "," THIRTEEN "," FOURTEEN "," FIFTEEN "," SIXTEEN"," SEVENTEEN"," EIGHTEEN "," NINETEEN "})&LOOKUP(IF(INT(RIGHT(X109,2))<10,INT(RIGHT(X109,1)),IF(INT(RIGHT(X109,2))<20,0,INT(RIGHT(X109,1)))),{0,1,2,3,4,5,6,7,8,9,10,11,12,13,14,15,16,17,18,19},{""," ONE "," TWO "," THREE "," FOUR "," FIVE "," SIX "," SEVEN "," EIGHT "," NINE "," TEN "," ELEVEN "," TWELVE "," THIRTEEN "," FOURTEEN "," FIFTEEN "," SIXTEEN"," SEVENTEEN"," EIGHTEEN "," NINETEEN "})&" Only)" -> ( Rs. ONE Lac. TWELVE Thousand NINE Hundred EIGHTY FIVE Only)

Sheet Proba Fixa
A1: =Entry!D4 -> dk;kZy;] iz/kkukpk;Z ,oa ih-bZ-bZ-vks-] jktdh; mPp ek/;fed fo|ky; /kus:] chdkusj
A2: &%% dk;kZy; vkns”k %%&
A3: dk;kZy; ftyk f'k{kk vf/kdkjh] eq[;ky; izkjfEHkd f'k{kk] chdkusj ds vkns'k Øekad ftf'kv@izkf'k@eq-@chdk@LFkk;hdj.k ,oa os-fu-@2021@1204 fnukad 13-01-2021 dh vuqikyuk esa jkT; ljdkj dh vf/klwpuk Øekad% ,Q-1¼2½,Q-Mh@fu;e@06 fnukad 13-03-2006 ,oa ,Q-12¼6½,Q-Mh¼fu;e½@05 fnukad 13-03-2006 ds izko/kkukUrxZr 02 o"kZ ds ifjoh{kk/khu izf'k{k.kkFkhZ ds :i esa fu;r fLFkj ekuns; ij@fo|eku osrueku esa fu;qDr fd;s x;s fuEu dkfeZd dks 02 o"kZ dh ifjoh{kkdky vof/k larks"kizn :i ls iw.kZ djus ij fu;qfDr vf/kdkjh }kjk LFkkbZdj.k ,oa osru fu;fefrdj.k vkns'k tkjh djus ij jktLFkku lsok fu;e 1951 ds fu;e 24 o 26 ,oa jktLFkku flfoy lsok,a ¼iqujhf{kr osrueku½ fu;e&2017 ds Øekad ,Q-15¼1½,QMh@ :Yl@2017 fnukad 30-10-2017 ds fu;e&05¼VI & VII½ ,oa vuqlwph 1 esa vafdr la'kks/ku vkns'k 09-12-2017 ds izko/kkukuqlkj dkWye 7 esa vafdr fnukad ls osru vkSj fu;ekuqlkj ns; vU; HkRrs vkgj.k djus dh Lohd`fr ,rn~ }kjk iznku dh tkrh gSA
A4: Ø-la- | B4: deZpkjh dk uke | C4: in | D4: inLFkkiu LFkku | E4: ifjoh{kk/khu in ij dk;Zxzg.k fnukad | F4: ifjoh{kkdky iw.kZ djus dh fnukad | G4: osru fu;ferhdj.k fnukad | H4: is eSfVªDl ysoy | I4: osru fu;fefrdj.k ij ewy osru | J4: vkxkeh osru o`f) frfFk
A5: 1 | B5: 2 | C5: 3 | D5: 4 | E5: 5 | F5: 6 | G5: 7 | H5: 8 | I5: 9 | J5: 10
A6: 1 | B6: =Entry!D6 -> fot; | C6: =Entry!D7 -> v/;kid | D6: =Entry!D8 -> jkmekfo] /kus: | E6: =F6-730 -> 2019-02-05 | F6: =G6-1 -> 2021-02-04 | G6: =Entry!D9 -> 2021-02-05 | H6: =CONCATENATE("L-",Entry!H9) -> L-10 | I6: ='FIX ARREAR'!C10 -> 33800 | J6: 2021-07-01
A7: 2
A8: 3
A9: 4
H11: iz/kkukpk;Z
H12: jkmekfo /kus:
A13: Øekad %jkmekfo@/kus:@laLFkk@LFkkbZdj.k@2021&22@ | F13: fnukad %
A14: izfrfyfi lwpukFkZ %&
A15: 1- Jheku midks"kkf/kdkjh JhMwaxjx<+A
A16: 2- futh iaftdk lEcfU/kr dkfeZd
A17: 3- ys[kk 'kk[kkA
A18: 4- jf{kr i=koyhA
H19: =H11 -> iz/kkukpk;Z
H20: =H12 -> jkmekfo /kus:

Sheet Notional Fixation
A1: dk;kZy;] iz/kkukpk;Z ,oa insu iapk;r izkjfEHkd f'k{kk vf/kdkjh] jktdh; mPp ek/;fed fo|ky;] /kus:] ¼JhMwaxjx<+a½
B2: Øekad % ihbZbZvks@/kus:@laLFkk@osru fu;ru@2021&22@ | K2: fnukad %
A3: dk;kZy; vkns'k
A4: Jheku ftyk f'k{kk vf/kdkjh ¼eq[;ky;½ izkjfEHkd f'k{kk] ukxkSj ds vkns'k Øekad&f'kfouk@izkja@laLFkk&1@U;k-izdj.k@2019&20@1368 fnukad 02-03-2020 dh ikyuk esa izkFkfed ,oa mPp izkFkfed fo|ky; v/;kid HkrhZ] 2013 }kjk p;fur bl dk;kZy; v/khuLFk fuEukafdr dk;Zjr dkfeZd dks ekuuh; mPp U;k;ky;] fu.kZ;kuqlkj bu HkrhZ;ksa esa izFke ijh.kke ls p;fur ,oa fu;qDr f'k{kdksa ¼dfu"Bre½ ds leku uks'kuy ifjykHk ,oa ofj"Brk ykHk nsus dh Lohd`fr iznku djus ij ,oa dk;kZy; ftyk f'k{kk vf/kdkjh ¼eq[;ky;½ izkjfEHkd f'k{kk] ukxkSj ds vkns'k Øekad&f'kfouk@izkja@laLFkk&1@LFkkbZZdj.k@2020@297 fnukad 20-08-2020 ds }kjk fuEukafdr dkfeZd dks LFkkbZ djus ij budk osru fu;ru fuEukafdr fooj.kkuqlkj fd;k tkrk gSA bl uks'kuy ifjykHk dk okLrfod vkfFkZd ifjykHk v/;kid dks okLrfod dk;Zxzg.k frfFk ls nks o"kZ dh ifjoh{kk izf'k{kq vof/k larks"ktud :i ls iw.kZ djus ij HkrhZ fu;eksa ,oa fu;qfDr vkns'k esa vafdr 'krksZa ds vUrxZr fu;ekuqlkj ,oa ekuuh; U;k;ky; fu.kZ;kuqlkj ns; gksxkA
A5: Ø-la- | B5: uke dkfeZd e; in | C5: inLFkkfir fo|ky; dk uke | D5: ekuuh; U;k;y; fu.kZ;kuqlkj dkYifud dk;Zxzg.k ¼mDr HkrhZ esa dfu"Bre vH;FkhZ dh vafre dk;Zxzg.k frfFk½ | E5: v/;kid in ij okLrfod dk;Zxzg.k frfFk | F5: U;k;ky; ds fu.kZ;kuqlkj ifjoh{kk/khu izf'k{k.k dky iw.kZrk mijkUr fu;fer osru 'k`a[kyk iznku fd;s tkus dh frfFk ¼dkYifud½ | G5: ns; fu;fer osru 'k`a[kyk ¼dkYifud½ | I5: okf"kZd osru o`f) mijkUr osru 01-07-17 ¼dkYifud½ | J5: okf"kZd osru o`f) mijkUr osru 01-07-18 ¼dkYifud½ | K5: okf"kZd osru o`f) mijkUr osru 01-07-19 ¼dkYifud½ | L5: ifjoh{kk/khu izf'k{k.k dky iw.kZrk mijkUr ns; osru ¼okLrfod½
G6: osru ysoy | H6: ewy osru | L6: fnukad | M6: ewy osru
A7: 1 | B7: =CONCATENATE('Proba Fixa'!B6, "] ",'Proba Fixa'!C6) -> fot;] v/;kid | C7: ='Proba Fixa'!D6 -> jkmekfo] /kus: | D7: 2015-03-30 | E7: 2017-10-26 | F7: 2017-03-30 | G7: L-10 | H7: 33800 | I7: 34800 | J7: 35800 | K7: 36900 | L7: 26.10.19 | M7: 36900
J10: iz/kkukpk;Z
J11: jkmekfo /kus:
A12: Øekad % ihbZbZvks@/kus:@laLFkk@osru fu;ru@2020&21 | G12: fnukad
B13: 1- midks"kkf/kdkjh ykMuwa
B14: 2- lacaf/kr dkfeZd -----------------------
B15: 3- iaftdk lacaf/kr dkfeZd
B16: 4- jf{kr i=koyh | J16: =J10 -> iz/kkukpk;Z
J17: =J11 -> jkmekfo /kus:

Sheet HRA
A1: =Entry!D4 -> dk;kZy;] iz/kkukpk;Z ,oa ih-bZ-bZ-vks-] jktdh; mPp ek/;fed fo|ky; /kus:] chdkusj
A2: Øekad %& jkmekfo@/kus:@laLFkk@ys[kk@2020&21@ fnukad %&
A3: &%% dk;kZy; vkns”k %%&
A4: Jheku ftyk f'k{kk vf/kdkjh] eq[;ky; izkjfEHkd f'k{kk] chdkusj] ds vkns”k Øekad % ftf'kv@izkf'k@eq-@chdk@LFkkbZdj.k ,oa os-fu@2021@1204 fnukad 13-01-2021 ds }kjk v/khuLFk fo|ky; esa fuEu dkfeZdksa dk LFkkbZdj.k gksus ,oa muds }kjk izLrqr vkosnu i= ds vk/kkj ij jktLFkku flfoy lsok ¼iqujhf{kr osrueku½ fu;e 2017 t;iqj fnukad 30-10-2017 ,oa lela[;d la'kksf/kr vkns'k fnukad 09-12-2017 ds edku fdjk;k HkÙkk fu;e ,Q-6¼4½,QMh¼:Yl½@2017 fnukad 30&10&2017 ,oa la'kks/ku vkns'k fnukad 22-07-2021 ds izko/kkuqlkj jktLFkku lsok fu;eksa ds fu;e 7 ¼24½¼1½ esa ifjHkkf"kr osru ds fu;ekuqlkj edku fdjk;k HkÙkk muds uke ds lkeus vafdr fnukad ls jkT; ljdkj ds vkns'kkuqlkj izfrekg Lohd`r fd;k tkrk gSa &
A5: Ø- la- | B5: Ukke dkfeZd o in | C5: in | D5: fo|ky; dk uke | E5: edku fdjk;k HkÙkk ns; frfFk | F5: ysoy | G5: ewy osru | H5: edku fdjk;k HkÙkk
H6: 8%
A7: 1 | B7: ='Proba Fixa'!B6 -> fot; | C7: ='Proba Fixa'!C6 -> v/;kid | D7: ='Proba Fixa'!D6 -> jkmekfo] /kus: | E7: ='Proba Fixa'!G6 -> 2021-02-05 | F7: ='Proba Fixa'!H6 -> L-10 | G7: ='Proba Fixa'!I6 -> 33800 | H7: =G7*$H$6 -> 2704
A8: 2 | B8: =IF('Proba Fixa'!B7="","",'Proba Fixa'!B7) ->  | C8: =IF('Proba Fixa'!C7="","",'Proba Fixa'!C7) ->  | D8: =IF('Proba Fixa'!D7="","",'Proba Fixa'!D7) ->  | E8: =IF('Proba Fixa'!G7="","",'Proba Fixa'!G6) ->  | F8: =IF('Proba Fixa'!H7="","",'Proba Fixa'!H6) ->  | G8: =IF('Proba Fixa'!I7="","",'Proba Fixa'!I6) ->  | H8: =IF(G8="","",ROUND((G8*$H$6),0)) -> 
A9: 3 | B9: =IF('Proba Fixa'!B8="","",'Proba Fixa'!B8) ->  | C9: =IF('Proba Fixa'!C8="","",'Proba Fixa'!C8) ->  | D9: =IF('Proba Fixa'!D8="","",'Proba Fixa'!D8) ->  | E9: =IF('Proba Fixa'!G8="","",'Proba Fixa'!G7) ->  | F9: =IF('Proba Fixa'!H8="","",'Proba Fixa'!H7) ->  | G9: =IF('Proba Fixa'!I8="","",'Proba Fixa'!I7) ->  | H9: =IF(G9="","",ROUND((G9*$H$6),0)) -> 
A10: 4 | B10: =IF('Proba Fixa'!B9="","",'Proba Fixa'!B9) ->  | C10: =IF('Proba Fixa'!C9="","",'Proba Fixa'!C9) ->  | D10: =IF('Proba Fixa'!D9="","",'Proba Fixa'!D9) ->  | E10: =IF('Proba Fixa'!G9="","",'Proba Fixa'!G8) ->  | F10: =IF('Proba Fixa'!H9="","",'Proba Fixa'!H8) ->  | G10: =IF('Proba Fixa'!I9="","",'Proba Fixa'!I8) -> 
G13: iz/kkukpk;Z
G14: jkmekfo /kus:
A15: Øekad %& jkmekfo@/kus:@laLFkk@ys[kk@2021&22@ | F15: fnukad %&
A16: izfrfyfi lwpukFkZ ,oa ikyukFkZ &
A17: 1- Jheku midks"kkf/kdkjh JhMwaxjx<+A
A18: 2- futh iathdk lEcfU/kr dkfeZd
A19: 3- ys[kk 'kk[kkA
A20: 4- jf{kr i=koyhA
G21: =G13 -> iz/kkukpk;Z
G22: =G14 -> jkmekfo /kus:

Sheet GA 92
B1: GA 92 | D1: GOVERNMENT OF RAJASTHAN | J1: New Form
B2: GFAR 196 & 197 | J2: No. G.A. 41
J3: Rule 155
A4: Office Principal and ex-officio Panchayat Primary Education Officer Dhaneru
A5: Periodical Increment Certificate
A6: lkef;d osru&o`f) izek.k&i=
A7: 1 | B7: Certified that the Government Servants named below have earned the prescribed perodical increments from the date cited in column 7, having been the incumbment of the posts specified for not less than …......... year from the date in column 6, after deducting periods of suspension for misconduct, etc. and absence on leave without pay and, in the case those holding the post in officiating capacity, all other kind of leave.
A8: 2 | B8: Certified that the Government Servants named below have earned / will earn perodical increments from the date cited, for reasons stated in the explanatory memo, attached hereto.
A9: Øe la- | B9: o`f)&Hkksxh dk uke | C9: LFkkbZ ;k LFkkukiUu | D9: in ds osru dh nj | E9: orZeku osru | F9: fnukad ftlls orZeku osru fy;k gS | G9: orZeku osru o``f) dk fnukad | H9: Hkkoh osru | I9: vuqfpr O;ogkj ds dkj.k inP;qfr vkSj ,slh vU; mifLFkfr] tks osruo`f) ds fy, vekU; gks | L9: voSrfud NqV~Vh vkSj LFkkukiUu vf/kdkjh ds fy, dksbZ Hkh vU; NqV~Vh | N9: fo'ks"k fooj.k
I10: o.kZu | J10: dc ls | K10: dc rd | L10: dc ls | M10: dc rd
A11: 1 | B11: 2 | C11: 3 | D11: 4 | E11: 5 | F11: 6 | G11: 7 | H11: 8 | I11: 9 | J11: 10 | K11: 11 | L11: 12 | M11: 13 | N11: 14
A12: 1 | B12: =HRA!B7 -> fot; | C12: LFkkbZ | D12: =HRA!F7 -> L-10 | E12: =HRA!G7 -> 33800 | F12: =HRA!E7 -> 2021-02-05 | G12: 2021-07-01 | H12: =IF(E12="","",ROUND((E12*1.03),-2)) -> 34800 | I12: - | J12: - | K12: - | L12: - | M12: - | N12: -
A13: 2 | B13: =HRA!B8 ->  | C13: LFkkbZ | D13: =HRA!F8 ->  | E13: =HRA!G8 ->  | F13: =HRA!E8 ->  | G13: 2021-07-01 | H13: =IF(E13="","",ROUND((E13*1.03),-2)) ->  | I13: - | J13: - | K13: - | L13: - | M13: - | N13: -
A14: 3 | B14: =HRA!B9 ->  | C14: LFkkbZ | D14: =HRA!F9 ->  | E14: =HRA!G9 ->  | F14: =HRA!E9 ->  | G14: 2021-07-01 | I14: - | J14: - | K14: - | L14: - | M14: - | N14: -
A15: 4 | B15: =HRA!B10 ->  | C15: LFkkbZ | D15: =HRA!F10 ->  | E15: =HRA!G10 ->  | F15: =HRA!E10 ->  | G15: 2021-07-01 | I15: - | J15: - | K15: - | L15: - | M15: - | N15: -
A16: 5 | I16: - | J16: - | K16: - | L16: - | M16: - | N16: -
A17: 6 | I17: - | J17: - | K17: - | L17: - | M17: - | N17: -
A18: 7 | I18: - | J18: - | K18: - | L18: - | M18: - | N18: -
I19: - | J19: - | K19: - | L19: - | M19: - | N19: -
I21: Signature and designation of Drawing officer
